Workbook

Sheet ХОД
A1: ПРОТОКОЛ ХОДА СОРЕВНОВАНИЙ
C3: ВЕС кг
A5: МЕСТО | B5: № п/п | C5: Фамилия Имя | D5: Город общество | E5: Год рожд | F5: Разряд | H5: квалификация | K5: 1/8 финала | N5: 1/4 финала | Q5: 1/2 финала | T5: ФИНАЛ за 1место
B7: 1 | H7: 1 | I7: св
B9: 2 | H9: 2 | I9: св
B11: 3 | H11: 3 | I11: св
B13: 4 | H13: 4 | I13: св
B15: 5 | H15: 5 | I15: св
B17: 6 | H17: 6 | I17: св
B19: 7
B21: 8
B23: 9
B25: 10
B27: 11
B29: 12
B31: 13
B33: 14
B35: 15
B37: 16
B39: 17 | N39: ПЕРЕЭКЗАМЕНОВКА
B41: 18
K42: ПРОИГРАВШИЕ ПЕРВОМУ ФИНАЛИСТУ
B43: 19
B45: 20
B47: 21
U48: 3 МЕСТО
B49: 22
B51: 23
B53: 24
B55: 25
B57: 26 | K57: ПРОИГРАВШИЕ ВТОРОМУ ФИНАЛИСТУ
B59: 27
B61: 28
B63: 29 | U63: 3 МЕСТО
B65: 30
B67: 31
B69: 32

Sheet 3уч
C1: ПРОТОКОЛ ХОДА СОРЕВНОВАНИЙ
C2: традиционный турнир по борьбе вольной, памяти Нейча И.В., г.Солигорск, 20 апреля 2018г.
D3: вес 23 кг
A5: место | C5: № | D5: Фамилия Имя | E5: Город Организация | F5: Разряд | G5: 3 TУР | I5: 4 TУР | K5: 5 TУР | M5: ОЧКИ
M6: КО | N6: ТО
C7: 1 | D7: раф | E7: рааф | G7: 2 | I7: 3 | K7: СВ | M7: =SUM(H7,J7) -> 0 | N7: =SUM(H8,J8) -> 0
C9: 2 | D9: мик | E9: миик | G9: 1 | I9: СВ | K9: 3 | M9: =SUM(H9,L9) -> 0 | N9: =SUM(H10,L10) -> 0
C11: 3 | D11: лео | E11: леео | G11: СВ | I11: 1 | K11: 2 | M11: =SUM(L11,J11) -> 0 | N11: =SUM(L12,J12) -> 0
R28: ПРОТОКОЛ ХОДА СХВАТКИ
S29: ВЕС кг | U29: тур 1 | X29: КОВЕР
R31: № п/п | S31: Фамилия Имя | T31: Город общество | U31: 1 период | W31: 2 период | Y31: баллы | Z31: очки | AA31: Судьи
R33: 1 | S33: =VLOOKUP(R33,C7:E12,2) -> раф | T33: =VLOOKUP(R33,C7:E12,3) -> рааф
R35: 2 | S35: =VLOOKUP(R35,C9:E14,2) -> мик | T35: =VLOOKUP(R35,C9:E14,3) -> миик
R37: 3 | S37: =VLOOKUP(R37,C11:E16,2) -> лео | T37: =VLOOKUP(R37,C11:E16,3) -> леео | U37: свободен
T41: Руководитель ковра
R46: ПРОТОКОЛ ХОДА СХВАТКИ
S47: ВЕС кг | U47: тур 2 | X47: КОВЕР
R49: № п/п | S49: Фамилия Имя | T49: Город общество | U49: 1 период | W49: 2 период | Y49: баллы | Z49: очки | AA49: Судьи
R51: 1 | S51: =VLOOKUP(R51,$C$7:$E$12,3) -> рааф | T51: =VLOOKUP(R51,$C$7:$E$12,3) -> рааф
R53: 3 | S53: =VLOOKUP(R53,$C$7:$E$12,3) -> леео | T53: =VLOOKUP(R53,$C$7:$E$12,3) -> леео
R55: 2 | S55: =VLOOKUP(R55,$C$7:$E$12,3) -> миик | T55: =VLOOKUP(R55,$C$7:$E$12,3) -> миик | U55: свободен
T59: Руководитель ковра
R63: ПРОТОКОЛ ХОДА СХВАТКИ
S64: ВЕС кг | U64: тур 3 | X64: КОВЕР
R66: № п/п | S66: Фамилия Имя | T66: Город общество | U66: 1 период | W66: 2 период | Y66: баллы | Z66: очки | AA66: Судьи
R68: 2 | S68: =VLOOKUP(R68,$C$7:$E$12,2) -> мик | T68: =VLOOKUP(R68,$C$7:$E$12,3) -> миик
R70: 3 | S70: =VLOOKUP(R70,$C$7:$E$12,2) -> лео | T70: =VLOOKUP(R70,$C$7:$E$12,3) -> леео
R72: 1 | S72: =VLOOKUP(R72,$C$7:$E$12,2) -> раф | T72: =VLOOKUP(R72,$C$7:$E$12,3) -> рааф | U72: свободен
T76: Руководитель ковра

Sheet 4уч
A1: ПРОТОКОЛ ХОДА СОРЕВНОВАНИЙ
A2: традиционный турнир по борьбе вольной, памяти Нейча И.В., г.Солигорск, 20 апреля 2018г.
C3: вес 23 кг
A9: место | B9: № | C9: Фамилия Имя | D9: Город Организация | E9: Год рождения | F9: Разряд | G9: 1 ТУР | I9: 2 TУР | K9: 3 TУР | M9: ОЧКИ
M10: КО | N10: ТО
B11: 1 | C11: Иванов Вася | D11: Сол | G11: 2 | H11: 5 | I11: 3 | J11: 4 | K11: 4 | M11: =SUM(H11,J11,L11) -> 9 | N11: =SUM(H12,J12,L12) -> 5
H12: 5
B13: 2 | C13: Васильев Ваня | D13: Мин | G13: 1 | H13: 3 | I13: 4 | J13: 3 | K13: 3 | L13: 3 | M13: =SUM(H13,J13,L13) -> 9 | N13: =SUM(H14,J14,L14) -> 0
B15: 3 | C15: Петров Миша | D15: Гро | G15: 4 | I15: 1 | K15: 2 | M15: =SUM(H15,J15,L15) -> 0 | N15: =SUM(H16,J16,L16) -> 0
B17: 4 | C17: Михайлов Петя | D17: Стр | G17: 3 | I17: 2 | K17: 1 | M17: =SUM(H17,J17,L17) -> 0 | N17: =SUM(H18,J18,L18) -> 13
H18: 5 | J18: 4 | L18: 4
S40: ПРОТОКОЛ ХОДА СХВАТКИ
T41: ВЕС кг | V41: тур 1 | Y41: КОВЕР
S43: № п/п | T43: Фамилия Имя | U43: Город общество | V43: 1 период | X43: 2 период | Z43: баллы | AA43: очки | AB43: Судьи
S45: 1 | T45: =VLOOKUP(S45,$B$11:$D$18,2) -> Иванов Вася | U45: =VLOOKUP(S45,$B$11:$D$18,3) -> Сол
S47: 2 | T47: =VLOOKUP(S47,$B$11:$D$18,2) -> Васильев Ваня | U47: =VLOOKUP(S47,$B$11:$D$18,3) -> Мин
S49: 3 | T49: =VLOOKUP(S49,$B$11:$D$18,2) -> Петров Миша | U49: =VLOOKUP(S49,$B$11:$D$18,3) -> Гро
S51: 4 | T51: =VLOOKUP(S51,$B$11:$D$18,2) -> Михайлов Петя | U51: =VLOOKUP(S51,$B$11:$D$18,3) -> Стр
U55: Руководитель ковра
S61: ПРОТОКОЛ ХОДА СХВАТКИ
T62: ВЕС кг | V62: тур 2 | Y62: КОВЕР
S64: № п/п | T64: Фамилия Имя | U64: Город общество | V64: 1 период | X64: 2 период | Z64: баллы | AA64: очки | AB64: Судьи
S66: 1 | T66: =VLOOKUP(S66,$B$11:$D$18,2) -> Иванов Вася | U66: =VLOOKUP(S66,$B$11:$D$18,3) -> Сол
S68: 3 | T68: =VLOOKUP(S68,$B$11:$D$18,2) -> Петров Миша | U68: =VLOOKUP(S68,$B$11:$D$18,3) -> Гро
S70: 2 | T70: =VLOOKUP(S70,$B$11:$D$18,2) -> Васильев Ваня | U70: =VLOOKUP(S70,$B$11:$D$18,3) -> Мин
S72: 4 | T72: =VLOOKUP(S72,$B$11:$D$18,2) -> Михайлов Петя | U72: =VLOOKUP(S72,$B$11:$D$18,3) -> Стр
U76: Руководитель ковра
S83: ПРОТОКОЛ ХОДА СХВАТКИ
T84: ВЕС кг | V84: тур 3 | Y84: КОВЕР
S86: № п/п | T86: Фамилия Имя | U86: Город общество | V86: 1 период | X86: 2 период | Z86: баллы | AA86: очки | AB86: Судьи
S88: 1 | T88: =VLOOKUP(S88,$B$11:$D$18,2) -> Иванов Вася | U88: =VLOOKUP(S88,$B$11:$D$18,3) -> Сол
S90: 4 | T90: =VLOOKUP(S90,$B$11:$D$18,2) -> Михайлов Петя | U90: =VLOOKUP(S90,$B$11:$D$18,3) -> Стр
S92: 2 | T92: =VLOOKUP(S92,$B$11:$D$18,2) -> Васильев Ваня | U92: =VLOOKUP(S92,$B$11:$D$18,3) -> Мин
S94: 3 | T94: =VLOOKUP(S94,$B$11:$D$18,2) -> Петров Миша | U94: =VLOOKUP(S94,$B$11:$D$18,3) -> Гро
U98: Руководитель ковра

Sheet 5уч
A4: ПРОТОКОЛ ХОДА СОРЕВНОВАНИЙ
A5: традиционный турнир по борьбе вольной, памяти Нейча И.В., г.Солигорск, 20 апреля 2018г.
C6: вес 23 кг
C9: ВЕС 05 кг
A11: место | B11: № | C11: Фамилия Имя | D11: Город Организация | E11: Год рождения | F11: Разряд | G11: 1 ТУР | I11: 2 TУР | K11: 3 TУР | M11: 4 TУР | O11: 5 TУР | Q11: ОЧКИ
Q12: КО | R12: ТО | Z12: >2 | AA12: =5 -> 5 | AB12: =4 -> 4
B13: 1 | C13: 11 | D13: 111 | G13: 2 | H13: 5 | I13: 5 | K13: 4 | M13: 3 | N13: 5 | O13: СВ | Q13: =SUM(H13,J13,L13,N13) -> 10 | R13: =SUM(H14,J14,L14,N14) -> 5 | T13: 1 | U13: 3 | V13: 4 | W13: 5 | X13: 1 | Y13: 3 | Z13: =COUNTIF(U13:Y13,$Z$12:$AB$12) -> 4 | AA13: 1 | AB13: 1 | AC13: =IF($Z$13<>$Z$14<>$Z$15<>$Z$16<>$Z$17,_xlfn.RANK.EQ(Z13,$Z$13:$Z$17,0),RANK(AA13,$AA$13:$AA$17,0)) -> 1
H14: 5 | T14: 2 | U14: 1 | V14: 3 | W14: 4 | X14: 0 | Y14: 1 | Z14: =COUNTIF(U14:Y14,$Z$12:$AB$12) -> 2 | AA14: 0 | AB14: 1 | AC14: =IF($Z$13<>$Z$14<>$Z$15<>$Z$16<>$Z$17,_xlfn.RANK.EQ(Z14,$Z$13:$Z$17,0),RANK(AA14,$AA$13:$AA$17,0)) -> 4
B15: 2 | C15: 12 | D15: 112 | G15: 1 | I15: 3 | K15: 5 | M15: СВ | O15: 4 | Q15: =SUM(H15,J15,L15,P15) -> 0 | R15: =SUM(H16,J16,L16,P16) -> 0 | T15: 3 | U15: 5 | V15: 5 | W15: 0 | X15: 3 | Y15: 1 | Z15: =COUNTIF(U15:Y15,$Z$12:$AB$12) -> 3 | AA15: 2 | AB15: 0 | AC15: =IF($Z$13<>$Z$14<>$Z$15<>$Z$16<>$Z$17,_xlfn.RANK.EQ(Z15,$Z$13:$Z$17,0),RANK(AA15,$AA$13:$AA$17,0)) -> 2
T16: 4 | U16: 3 | V16: 0 | W16: 3 | X16: 3 | Y16: 0 | Z16: =COUNTIF(U16:Y16,$Z$12:$AB$12) -> 3 | AA16: 0 | AB16: 0 | AC16: =IF($Z$13<>$Z$14<>$Z$15<>$Z$16<>$Z$17,_xlfn.RANK.EQ(Z16,$Z$13:$Z$17,0),RANK(AA16,$AA$13:$AA$17,0)) -> 2
B17: 3 | C17: 13 | D17: 113 | G17: 4 | I17: 2 | J17: 4 | K17: СВ | M17: 1 | O17: 5 | Q17: =SUM(H17,J17,N17,P17) -> 4 | R17: =SUM(H18,J18,N18,P18) -> 0 | T17: 5 | U17: 0 | V17: 0 | W17: 0 | X17: 0 | Y17: 0 | Z17: =COUNTIF(U17:Y17,$Z$12:$AB$12) -> 0 | AA17: 0 | AB17: 0 | AC17: =IF($Z$13<>$Z$14<>$Z$15<>$Z$16<>$Z$17,_xlfn.RANK.EQ(Z17,$Z$13:$Z$17,0),RANK(AA17,$AA$13:$AA$17,0)) -> 5
J18: 0
B19: 4 | C19: 14 | D19: 114 | G19: 3 | I19: СВ | K19: 1 | M19: 5 | O19: 2 | Q19: =SUM(H19,L19,N19,P19) -> 0 | R19: =SUM(H20,L20,N20,P20) -> 0 | AB19: =U19&" "&V19&" "&W19 -> 
AB20: =U20&" "&V20&" "&W20 -> 
B21: 5 | C21: 15 | D21: 115 | G21: СВ | I21: 1 | K21: 2 | M21: 4 | O21: 3 | Q21: =SUM(J21,L21,N21,P21) -> 0 | R21: =SUM(J22,L22,N22,P22) -> 0 | AB21: =U21&" "&V21&" "&W21 -> 
AB22: =U22&" "&V22&" "&W22 -> 
AB23: =U23&" "&V23&" "&W23 -> 
T25: ПРОТОКОЛ ХОДА СХВАТКИ
U26: ВЕС кг | W26: тур 1 | Z26: КОВЕР
T28: № п/п | U28: Фамилия Имя | V28: Город общество | W28: 1 период | Y28: 2 период | AA28: баллы | AB28: очки | AC28: Судьи
T30: 1 | U30: =VLOOKUP(T30,$B$13:$D$22,2) -> 11 | V30: =VLOOKUP(T30,$B$13:$D$22,3) -> 111
T32: 2 | U32: =VLOOKUP(T32,$B$13:$D$22,2) -> 12 | V32: =VLOOKUP(T32,$B$13:$D$22,3) -> 112
T34: 3 | U34: =VLOOKUP(T34,$B$13:$D$22,2) -> 13 | V34: =VLOOKUP(T34,$B$13:$D$22,3) -> 113
T36: 4 | U36: =VLOOKUP(T36,$B$13:$D$22,2) -> 14 | V36: =VLOOKUP(T36,$B$13:$D$22,3) -> 114
T38: 5 | U38: =VLOOKUP(T38,$B$13:$D$22,2) -> 15 | V38: =VLOOKUP(T38,$B$13:$D$22,3) -> 115 | W38: СВОБОДЕН
V42: Руководитель ковра
T47: ПРОТОКОЛ ХОДА СХВАТКИ
U48: ВЕС кг | W48: тур 2 | Z48: КОВЕР
T50: № п/п | U50: Фамилия Имя | V50: Город общество | W50: 1 период | Y50: 2 период | AA50: баллы | AB50: очки | AC50: Судьи
T52: 5 | U52: =VLOOKUP(T52,$B$13:$D$22,2) -> 15 | V52: =VLOOKUP(T52,$B$13:$D$22,3) -> 115
T54: 1 | U54: =VLOOKUP(T54,$B$13:$D$22,2) -> 11 | V54: =VLOOKUP(T54,$B$13:$D$22,3) -> 111
T56: 2 | U56: =VLOOKUP(T56,$B$13:$D$22,2) -> 12 | V56: =VLOOKUP(T56,$B$13:$D$22,3) -> 112
T58: 3 | U58: =VLOOKUP(T58,$B$13:$D$22,2) -> 13 | V58: =VLOOKUP(T58,$B$13:$D$22,3) -> 113
T60: 4 | U60: =VLOOKUP(T60,$B$13:$D$22,2) -> 14 | V60: =VLOOKUP(T60,$B$13:$D$22,3) -> 114 | W60: СВОБОДЕН
V64: Руководитель ковра
T70: ПРОТОКОЛ ХОДА СХВАТКИ
U71: ВЕС кг | W71: тур 3 | Z71: КОВЕР
T73: № п/п | U73: Фамилия Имя | V73: Город общество | W73: 1 период | Y73: 2 период | AA73: баллы | AB73: очки | AC73: Судьи
T75: 1 | U75: =VLOOKUP(T75,$B$13:$D$22,2) -> 11 | V75: =VLOOKUP(T75,$B$13:$D$22,3) -> 111
T77: 4 | U77: =VLOOKUP(T77,$B$13:$D$22,2) -> 14 | V77: =VLOOKUP(T77,$B$13:$D$22,3) -> 114
T79: 2 | U79: =VLOOKUP(T79,$B$13:$D$22,2) -> 12 | V79: =VLOOKUP(T79,$B$13:$D$22,3) -> 112
T81: 5 | U81: =VLOOKUP(T81,$B$13:$D$22,2) -> 15 | V81: =VLOOKUP(T81,$B$13:$D$22,3) -> 115
T83: 3 | U83: =VLOOKUP(T83,$B$13:$D$22,2) -> 13 | V83: =VLOOKUP(T83,$B$13:$D$22,3) -> 113 | W83: СВОБОДЕН
V87: Руководитель ковра
T92: ПРОТОКОЛ ХОДА СХВАТКИ
U93: ВЕС кг | W93: тур 4 | Z93: КОВЕР
T95: № п/п | U95: Фамилия Имя | V95: Город общество | W95: 1 период | Y95: 2 период | AA95: баллы | AB95: очки | AC95: Судьи
T97: 1 | U97: =VLOOKUP(T97,$B$13:$D$22,2) -> 11 | V97: =VLOOKUP(T97,$B$13:$D$22,3) -> 111
T99: 3 | U99: =VLOOKUP(T99,$B$13:$D$22,2) -> 13 | V99: =VLOOKUP(T99,$B$13:$D$22,3) -> 113
T101: 5 | U101: =VLOOKUP(T101,$B$13:$D$22,2) -> 15 | V101: =VLOOKUP(T101,$B$13:$D$22,3) -> 115
T103: 4 | U103: =VLOOKUP(T103,$B$13:$D$22,2) -> 14 | V103: =VLOOKUP(T103,$B$13:$D$22,3) -> 114
T105: 2 | U105: =VLOOKUP(T105,$B$13:$D$22,2) -> 12 | V105: =VLOOKUP(T105,$B$13:$D$22,3) -> 112 | W105: СВОБОДЕН
V109: Руководитель ковра
T114: ПРОТОКОЛ ХОДА СХВАТКИ
U115: ВЕС кг | W115: тур 5 | Z115: КОВЕР
T117: № п/п | U117: Фамилия Имя | V117: Город общество | W117: 1 период | Y117: 2 период | AA117: баллы | AB117: очки | AC117: Судьи
T119: 4 | U119: =VLOOKUP(T119,$B$13:$D$22,2) -> 14 | V119: =VLOOKUP(T119,$B$13:$D$22,3) -> 114
T121: 2 | U121: =VLOOKUP(T121,$B$13:$D$22,2) -> 12 | V121: =VLOOKUP(T121,$B$13:$D$22,3) -> 112
T123: 3 | U123: =VLOOKUP(T123,$B$13:$D$22,2) -> 13 | V123: =VLOOKUP(T123,$B$13:$D$22,3) -> 113
T125: 5 | U125: =VLOOKUP(T125,$B$13:$D$22,2) -> 15 | V125: =VLOOKUP(T125,$B$13:$D$22,3) -> 115
T127: 1 | U127: =VLOOKUP(T127,$B$13:$D$22,2) -> 11 | V127: =VLOOKUP(T127,$B$13:$D$22,3) -> 111 | W127: СВОБОДЕН
V131: Руководитель ковра

Sheet 6уч
A5: ПРОТОКОЛ ХОДА СОРЕВНОВАНИЙ
A6: традиционный турнир по борьбе вольной, памяти Нейча И.В., г.Солигорск, 20 апреля 2018г.
B9: вес 23 кг
F20: гр.А
C21: ВЕС 05 кг
A23: место | B23: № | C23: Фамилия Имя | D23: Город Организация | E23: Год рождения | F23: Разряд | G23: 1 TУР | I23: 2 TУР | K23: 3 TУР | M23: ОЧКИ | P23: 1/2 финала | S23: ФИНАЛ за 1место
M24: КО | N24: ТО
A25: 2 | B25: 1 | C25: 11 | D25: 111 | G25: 2 | I25: 3 | K25: СВ
A27: 1 | B27: 2 | C27: 12 | D27: 112 | G27: 1 | I27: СВ | K27: 3 | P27: =IF($A$25=1,$B$25,IF($A$27=1,$B$27,IF($A$29=1,$B$29))) -> 2 | Q27: 2
S28: =IF(Q27>Q29,P27,P29) -> 2 | T28: 3
A29: 3 | B29: 3 | C29: 13 | D29: 113 | G29: СВ | I29: 1 | K29: 2 | P29: =IF($A$36=2,$B$36,IF($A$38=2,$B$38,IF($A$40=2,$B$40))) -> 5 | Q29: 1 | V29: =IF(T28>T30,S28,S30) -> 1
S30: =IF(Q33>Q35,P33,P35) -> 1 | T30: 5
F32: гр.Б
P33: =IF($A$36=1,$B$36,IF($A$38=1,$B$38,IF($A$40=1,$B$40))) -> 6 | Q33: 1 | U33: финал за 3 МЕСТО
A34: место | B34: № | C34: Фамилия Имя | D34: Город Организация | E34: Год рождения | F34: Разряд | G34: 1 TУР | I34: 2 TУР | K34: 3 TУР | M34: ОЧКИ
M35: КО | N35: ТО | P35: =IF($A$25=2,$B$25,IF($A$27=2,$B$27,IF($A$29=2,$B$29))) -> 1 | Q35: 3 | S35: =IF(Q27<Q29,P27,P29) -> 5 | T35: 3
A36: 3 | B36: 4 | C36: 14 | D36: 114 | G36: 2 | I36: 3 | K36: СВ
V37: =IF(T35>T39,S35,S39) -> 5
A38: 2 | B38: 5 | C38: 15 | D38: 115 | G38: 1 | I38: СВ | K38: 3
S39: =IF(Q33<Q35,P33,P35) -> 6 | T39: 1
A40: 1 | B40: 6 | C40: 16 | D40: 116 | G40: СВ | I40: 1 | K40: 2
Z43: ПРОТОКОЛ ХОДА СХВАТКИ
AA44: ВЕС кг | AC44: тур 1 | AF44: КОВЕР
AD45: гр.А
Z46: № п/п | AA46: Фамилия Имя | AB46: Город общество | AC46: 1 период | AE46: 2 период | AG46: баллы | AH46: очки | AI46: Судьи
Z48: 1 | AA48: =VLOOKUP(Z48,$B$25:$D$30,2) -> 11 | AB48: =VLOOKUP(Z48,$B$25:$D$30,3) -> 111
Z50: 2 | AA50: =VLOOKUP(Z50,$B$25:$D$30,2) -> 12 | AB50: =VLOOKUP(Z50,$B$25:$D$30,3) -> 112
Z52: 3 | AA52: =VLOOKUP(Z52,$B$25:$D$30,2) -> 13 | AB52: =VLOOKUP(Z52,$B$25:$D$30,3) -> 113 | AC52: свободен
AD54: гр.Б
Z55: 4 | AA55: =VLOOKUP(Z55,$B$36:$D$41,2) -> 14 | AB55: =VLOOKUP(Z55,$B$36:$D$41,3) -> 114
Z57: 5 | AA57: =VLOOKUP(Z57,$B$36:$D$41,2) -> 15 | AB57: =VLOOKUP(Z57,$B$36:$D$41,3) -> 115
Z59: 6 | AA59: =VLOOKUP(Z59,$B$36:$D$41,2) -> 16 | AB59: =VLOOKUP(Z59,$B$36:$D$41,3) -> 116 | AC59: свободен
AB64: Руководитель ковра
Z70: ПРОТОКОЛ ХОДА СХВАТКИ
AA71: ВЕС кг | AC71: тур 2 | AF71: КОВЕР
AD72: гр.А
Z73: № п/п | AA73: Фамилия Имя | AB73: Город общество | AC73: 1 период | AE73: 2 период | AG73: баллы | AH73: очки | AI73: Судьи
Z75: 3 | AA75: =VLOOKUP(Z75,$B$25:$D$30,2) -> 13 | AB75: =VLOOKUP(Z75,$B$25:$D$30,3) -> 113
Z77: 1 | AA77: =VLOOKUP(Z77,$B$25:$D$30,2) -> 11 | AB77: =VLOOKUP(Z77,$B$25:$D$30,3) -> 111
Z79: 2 | AA79: =VLOOKUP(Z79,$B$25:$D$30,2) -> 12 | AB79: =VLOOKUP(Z79,$B$25:$D$30,3) -> 112 | AC79: свободен
AD81: гр.Б
Z82: 6 | AA82: =VLOOKUP(Z82,$B$36:$D$41,2) -> 16 | AB82: =VLOOKUP(Z82,$B$36:$D$41,3) -> 116
Z84: 4 | AA84: =VLOOKUP(Z84,$B$36:$D$41,2) -> 14 | AB84: =VLOOKUP(Z84,$B$36:$D$41,3) -> 114
Z86: 5 | AA86: =VLOOKUP(Z86,$B$36:$D$41,2) -> 15 | AB86: =VLOOKUP(Z86,$B$36:$D$41,3) -> 115 | AC86: свободен
AB91: Руководитель ковра
Z95: ПРОТОКОЛ ХОДА СХВАТКИ
AA96: ВЕС кг | AC96: тур 3 | AF96: КОВЕР
AD97: гр.А
Z98: № п/п | AA98: Фамилия Имя | AB98: Город общество | AC98: 1 период | AE98: 2 период | AG98: баллы | AH98: очки | AI98: Судьи
Z100: 2 | AA100: =VLOOKUP(Z100,$B$25:$D$30,2) -> 12 | AB100: =VLOOKUP(Z100,$B$25:$D$30,3) -> 112
Z102: 3 | AA102: =VLOOKUP(Z102,$B$25:$D$30,2) -> 13 | AB102: =VLOOKUP(Z102,$B$25:$D$30,3) -> 113
Z104: 1 | AA104: =VLOOKUP(Z104,$B$25:$D$30,2) -> 11 | AB104: =VLOOKUP(Z104,$B$25:$D$30,3) -> 111 | AC104: свободен
AD106: гр.Б
Z107: 5 | AA107: =VLOOKUP(Z107,$B$36:$D$41,2) -> 15 | AB107: =VLOOKUP(Z107,$B$36:$D$41,3) -> 115
Z109: 6 | AA109: =VLOOKUP(Z109,$B$36:$D$41,2) -> 16 | AB109: =VLOOKUP(Z109,$B$36:$D$41,3) -> 116
Z111: 4 | AA111: =VLOOKUP(Z111,$B$36:$D$41,2) -> 14 | AB111: =VLOOKUP(Z111,$B$36:$D$41,3) -> 114 | AC111: свободен
AB116: Руководитель ковра
Z123: ПРОТОКОЛ ХОДА СХВАТКИ
AA124: ВЕС кг | AC124: 1/2 финала | AF124: КОВЕР | AH124: 1
Z126: № п/п | AA126: Фамилия Имя | AB126: Город общество | AC126: 1 период | AE126: 2 период | AG126: баллы | AH126: очки | AI126: Судьи
Z128: =VALUE(P27) -> 2 | AA128: =VLOOKUP(Z128,$B$25:$D$41,2) -> 12 | AB128: Ст.Дороги
Z130: =VALUE(P29) -> 5 | AA130: =VLOOKUP(Z130,$B$25:$D$41,2) -> 15
Z132: =VALUE(P33) -> 6 | AA132: =VLOOKUP(Z132,$B$25:$D$41,2) -> 16
Z134: =VALUE(P35) -> 1 | AA134: =VLOOKUP(Z134,$B$25:$D$41,2) -> 11
AB138: Руководитель ковра
Z145: ПРОТОКОЛ ХОДА СХВАТКИ
AA146: ВЕС кг | AC146: финал за 3м. | AF146: КОВЕР | AH146: 1
Z148: № п/п | AA148: Фамилия Имя | AB148: Город общество | AC148: 1 период | AE148: 2 период | AG148: баллы | AH148: очки | AI148: Судьи
Z150: =VALUE(S35) -> 5 | AA150: Иванов Василий | AB150: Ст.Дороги
Z152: =VALUE(S39) -> 6 | AA152: Иванов Василий
AB156: Руководитель ковра
Z163: ПРОТОКОЛ ХОДА СХВАТКИ
AA164: ВЕС кг | AC164: финал | AF164: КОВЕР | AH164: 1
Z166: № п/п | AA166: Фамилия Имя | AB166: Город общество | AC166: 1 период | AE166: 2 период | AG166: баллы | AH166: очки | AI166: Судьи
Z168: =VALUE(S28) -> 2 | AA168: Иванов Василий | AB168: Ст.Дороги
Z170: =VALUE(S30) -> 1 | AA170: Иванов Василий
AB174: Руководитель ковра

Sheet 7уч
B1: ПРОТОКОЛ ХОДА СОРЕВНОВАНИЙ
B2: традиционный турнир по борьбе вольной, памяти Нейча И.В., г.Солигорск, 20 апреля 2018г.
C5: вес 23 кг | H5: гр.А | P5: 1/2 финала | S5: ФИНАЛ за 1место
A6: место | B6: № | C6: Фамилия Имя | D6: Город Организация | E6: Год рождения | F6: Разряд | G6: 1 ТУР | I6: 2 TУР | K6: 3 TУР | M6: ОЧКИ
M7: КО | N7: ТО | P7: =IF($A$8=1,$B$8,IF($A$10=1,$B$10,IF($A$12=1,$B$12,IF($A$14=1,$B$14)))) -> 2 | Q7: 6
A8: 2 | B8: 1 | C8: 11 | D8: 111 | G8: 2 | H8: 5 | I8: 3 | J8: 4 | K8: 4 | M8: =SUM(H8,J8,L8) -> 9 | N8: =SUM(H9,J9,L9) -> 5
H9: 5
A10: 1 | B10: 2 | C10: 12 | D10: 112 | G10: 1 | H10: 4 | I10: 4 | J10: 5 | K10: 3 | L10: 1 | M10: =SUM(H10,J10,L10) -> 10 | N10: =SUM(H11,J11,L11) -> 10 | S10: =IF(Q7>Q12,P7,P12) -> 2 | T10: 1
H11: 1 | J11: 2 | L11: 7
A12: 3 | B12: 3 | C12: 13 | D12: 113 | G12: 4 | I12: 1 | J12: 5 | K12: 2 | M12: =SUM(H12,J12,L12) -> 5 | N12: =SUM(H13,J13,L13) -> 11 | P12: =IF($A$22=2,$B$22,IF($A$24=2,$B$24,IF($A$26=2,$B$26))) -> 7 | Q12: 1
H13: 3 | J13: 4 | L13: 4
A14: 4 | B14: 4 | C14: 14 | D14: 114 | G14: 3 | I14: 2 | K14: 1 | M14: =SUM(H14,J14,L14) -> 0 | N14: =SUM(H15,J15,L15) -> 6
H15: 3 | J15: 2 | L15: 1 | V15: =IF(T10>T19,S10,S19) -> 1
P17: =IF($A$22=1,$B$22,IF($A$24=1,$B$24,IF($A$26=1,$B$26))) -> 5 | Q17: 4
H18: гр.Б
S19: =IF(Q17>Q22,P17,P22) -> 1 | T19: 3
A20: место | B20: № | C20: Фамилия Имя | D20: Город Организация | E20: Год рождения | F20: Разряд | G20: 3 TУР | I20: 4 TУР | K20: 5 TУР | M20: ОЧКИ
M21: КО | N21: ТО
A22: 1 | B22: 5 | C22: 15 | D22: 115 | G22: 2 | H22: 4 | I22: 3 | J22: 3 | K22: СВ | M22: =SUM(H22,J22) -> 7 | N22: =SUM(H23,J23) -> 14 | P22: =IF($A$8=2,$B$8,IF($A$10=2,$B$10,IF($A$12=2,$B$12,IF($A$14=2,$B$14)))) -> 1 | Q22: 7 | U22: финал за 3 МЕСТО
H23: 10 | J23: 4
A24: 3 | B24: 6 | C24: 16 | D24: 116 | G24: 1 | H24: 0 | I24: СВ | K24: 3 | L24: 0 | M24: =SUM(H24,L24) -> 0 | N24: =SUM(H25,L25) -> 0 | S24: =IF(Q7<Q12,P7,P12) -> 7 | T24: 3
H25: 0 | L25: 0
A26: 2 | B26: 7 | C26: 17 | D26: 117 | G26: СВ | I26: 1 | J26: 1 | K26: 2 | L26: 5 | M26: =SUM(J26,L26) -> 6 | N26: =SUM(L27,J27) -> 12 | V26: =IF(T24>T28,S24,S28) -> 7
J27: 4 | L27: 8
S28: =IF(Q17<Q22,P17,P22) -> 5 | T28: 1
Y30: ПРОТОКОЛ ХОДА СХВАТКИ
Z31: ВЕС кг | AB31: тур 1 | AE31: КОВЕР
AC32: гр.А
Y33: № п/п | Z33: Фамилия Имя | AA33: Город общество | AB33: 1 период | AD33: 2 период | AF33: баллы | AG33: очки | AH33: Судьи
Y35: 1 | Z35: =VLOOKUP(Y35,$B$8:$D$27,2) -> 11
Y37: 2 | Z37: =VLOOKUP(Y37,$B$8:$D$27,2) -> 12
Y39: 3 | Z39: =VLOOKUP(Y39,$B$8:$D$27,2) -> 13
Y41: 4 | Z41: =VLOOKUP(Y41,$B$8:$D$27,2) -> 14
AC44: гр.Б
Y45: 5 | Z45: =VLOOKUP(Y45,$B$8:$D$27,2) -> 15
Y47: 6 | Z47: =VLOOKUP(Y47,$B$8:$D$27,2) -> 16
Y49: 7 | Z49: =VLOOKUP(Y49,$B$8:$D$27,2) -> 17 | AB49: свободен
AA54: Руководитель ковра
Y57: ПРОТОКОЛ ХОДА СХВАТКИ
Z58: ВЕС кг | AB58: тур 2 | AE58: КОВЕР
AC59: гр.А
Y60: № п/п | Z60: Фамилия Имя | AA60: Город общество | AB60: 1 период | AD60: 2 период | AF60: баллы | AG60: очки | AH60: Судьи
Y62: 1 | Z62: =VLOOKUP(Y62,$B$8:$D$27,2) -> 11 | AA62: =VLOOKUP(Y62,$B$8:$D$27,3) -> 111
Y64: 3 | Z64: =VLOOKUP(Y64,$B$8:$D$27,2) -> 13 | AA64: =VLOOKUP(Y64,$B$8:$D$27,3) -> 113
Y66: 2 | Z66: =VLOOKUP(Y66,$B$8:$D$27,2) -> 12 | AA66: =VLOOKUP(Y66,$B$8:$D$27,3) -> 112
Y68: 4 | Z68: =VLOOKUP(Y68,$B$8:$D$27,2) -> 14 | AA68: =VLOOKUP(Y68,$B$8:$D$27,3) -> 114
AC71: гр.Б
Y72: 5 | Z72: =VLOOKUP(Y72,$B$8:$D$27,2) -> 15 | AA72: =VLOOKUP(Y72,$B$8:$D$27,3) -> 115
Y74: 7 | Z74: =VLOOKUP(Y74,$B$8:$D$27,2) -> 17 | AA74: =VLOOKUP(Y74,$B$8:$D$27,3) -> 117
Y76: 6 | Z76: =VLOOKUP(Y76,$B$8:$D$27,2) -> 16 | AA76: =VLOOKUP(Y76,$B$8:$D$27,3) -> 116 | AB76: свободен
AA80: Руководитель ковра
Y82: ПРОТОКОЛ ХОДА СХВАТКИ
Z83: ВЕС кг | AB83: тур 3 | AE83: КОВЕР
AC84: гр.А
Y85: № п/п | Z85: Фамилия Имя | AA85: Город общество | AB85: 1 период | AD85: 2 период | AF85: баллы | AG85: очки | AH85: Судьи
Y87: 1 | Z87: =VLOOKUP(Y87,$B$8:$D$27,2) -> 11 | AA87: =VLOOKUP(Y87,$B$8:$D$27,3) -> 111
Y89: 4 | Z89: 14 | AA89: =VLOOKUP(Y89,$B$8:$D$27,3) -> 114
Y91: 2 | Z91: 12 | AA91: =VLOOKUP(Y91,$B$8:$D$27,3) -> 112
Y93: 3 | Z93: 13 | AA93: =VLOOKUP(Y93,$B$8:$D$27,3) -> 113
AC96: гр.Б
Y97: 6 | Z97: =VLOOKUP(Y97,$B$8:$D$27,2) -> 16 | AA97: =VLOOKUP(Y97,$B$8:$D$27,3) -> 116
Y99: 7 | Z99: =VLOOKUP(Y99,$B$8:$D$27,2) -> 17 | AA99: =VLOOKUP(Y99,$B$8:$D$27,3) -> 117
Y101: 5 | Z101: =VLOOKUP(Y101,$B$8:$D$27,2) -> 15 | AA101: =VLOOKUP(Y101,$B$8:$D$27,3) -> 115 | AB101: свободен
AA106: Руководитель ковра
Y109: ПРОТОКОЛ ХОДА СХВАТКИ
Z110: ВЕС кг | AB110: 1/2 финала | AE110: КОВЕР | AG110: 1
Y112: № п/п | Z112: Фамилия Имя | AA112: Город общество | AB112: 1 период | AD112: 2 период | AF112: баллы | AG112: очки | AH112: Судьи
Y114: =VALUE(P7) -> 2 | Z114: =VLOOKUP(Y114,$B$8:$D$27,2) -> 12 | AA114: =VLOOKUP(Y114,$B$8:$D$27,3) -> 112
Y116: =VALUE(P12) -> 7 | Z116: 17 | AA116: =VLOOKUP(Y116,$B$8:$D$27,3) -> 117
Y118: =VALUE(P17) -> 5 | Z118: 15 | AA118: =VLOOKUP(Y118,$B$8:$D$27,3) -> 115
Y120: =VALUE(P22) -> 1 | Z120: 11 | AA120: =VLOOKUP(Y120,$B$8:$D$27,3) -> 111
AA124: Руководитель ковра
Y131: ПРОТОКОЛ ХОДА СХВАТКИ
Z132: ВЕС кг | AB132: финал за 3м. | AE132: КОВЕР | AG132: 1
Y134: № п/п | Z134: Фамилия Имя | AA134: Город общество | AB134: 1 период | AD134: 2 период | AF134: баллы | AG134: очки | AH134: Судьи
Y136: =VALUE(S24) -> 7 | Z136: =VLOOKUP(Y136,$B$8:$D$27,2) -> 17 | AA136: =VLOOKUP(Y136,$B$8:$D$27,3) -> 117
Y138: =VALUE(S28) -> 5 | Z138: =VLOOKUP(Y138,$B$8:$D$27,2) -> 15 | AA138: =VLOOKUP(Y138,$B$8:$D$27,3) -> 115
AA142: Руководитель ковра
Y149: ПРОТОКОЛ ХОДА СХВАТКИ
Z150: ВЕС кг | AB150: финал | AE150: КОВЕР | AG150: 1
Y152: № п/п | Z152: Фамилия Имя | AA152: Город общество | AB152: 1 период | AD152: 2 период | AF152: баллы | AG152: очки | AH152: Судьи
Y154: =VALUE(S10) -> 2 | Z154: =VLOOKUP(Y154,$B$8:$D$27,2) -> 12 | AA154: =VLOOKUP(Y154,$B$8:$D$27,3) -> 112
Y156: =VALUE(S19) -> 1 | Z156: =VLOOKUP(Y156,$B$8:$D$27,2) -> 11 | AA156: =VLOOKUP(Y156,$B$8:$D$27,3) -> 111
AA160: Руководитель ковра

Sheet 8 участников
A1: ПРОТОКОЛ ХОДА СОРЕВНОВАНИЙ
A2: Турнир по борьбе вольной, памяти первого тренерашколы НЕЙЧА И.В.19 мая 2017г
C3: ВЕС кг
A5: МЕСТО | B5: № п/п | C5: Фамилия Имя | D5: Город общество | E5: Год рожд | F5: Разряд | H5: 1/4 финала | K5: 1/2 финала | N5: ФИНАЛ за 1место
B7: 1 | C7: Иванов Ваня | D7: Питер | H7: 1 | I7: 0 | K7: =IF(I7>I9,H7,IF(I7<I9,H9)) -> 2 | L7: 6
B9: 2 | C9: Петов Петя | D9: Питер | H9: 2 | I9: 7
N10: =IF(L7>L12,K7,K12) -> 2 | O10: 1
B11: 3 | C11: Савин Саава | D11: Москва | H11: 3 | I11: 8
K12: =IF(I11>I13,H11,H13) -> 4 | L12: 1
B13: 4 | C13: Деревянко Вадим | D13: Гродно | H13: 4 | I13: 10
B15: 5 | C15: Товпеко Леха | D15: Минск | H15: 5 | I15: 7 | Q15: 1 | S15: =IF(O10>O19,N10,N19) -> 8
B17: 6 | C17: Моряк саша | D17: Орша | H17: 6 | I17: 4 | K17: =IF(I15>I17,H15,H17) -> 5 | L17: 4
B19: 7 | C19: Цапов Сергей | D19: Смолевичи | H19: 7 | I19: 5 | N19: =IF(L17>L22,K17,K22) -> 8 | O19: 3
B21: 8 | C21: Петн Петя | D21: Гомель | H21: 8 | I21: 6
K22: =IF(I19>I21,H19,H21) -> 8 | L22: 7
J25: ПЕРЕЭКЗАМЕНОВКА
H27: ПРОИГРАВШИЕ ПЕРВОМУ ФИНАЛИСТУ
H29: =CHOOSE(MATCH($N$10,{1,2,3,4,5,6,7,8,9,10,11,12},),2,1,4,3,$K$28,$K$28,$K$24,$K$24,$K$36,$K$36,$K$32,$K$32) -> 1 | I29: 5
K31: =IF(I29>I33,H29,H33) -> 4 | N31: 3 м.
H33: =IF($L$7<$L$12,$K$7,$K$12) -> 4 | I33: 6
G36: ПРОИГРАВШИЕ ВТОРОМУ ФИНАЛИСТУ
H38: =CHOOSE(MATCH($N$19,{5,6,7,8},),6,5,8,7) -> 7 | I38: 5
K40: =IF(I38>I42,H38,H42) -> 7 | O40: 3 м.
H42: =IF(L17<L22,K17,K22) -> 5 | I42: 3
X46: ПРОТОКОЛ ХОДА СХВАТКИ
Y47: ВЕС кг | AA47: 1/4 финала | AD47: КОВЕР | AF47: 1
X49: № п/п | Y49: Фамилия Имя | Z49: Город общество | AA49: 1 период | AC49: 2 период | AE49: баллы | AF49: очки | AG49: Судьи
X51: 1 | Y51: =CHOOSE(MATCH(X51,{1,2,3,4,5,6,7,8,9,10,11,12,13,14,15,16,17},),$C$7,$C$9,$C$11,$C$13,$C$15,$C$17,$C$19,$C$21,$C$23,$C$25,#REF!,$C$27,$C$29,$C$31,$C$33,$C$35,$C$37) -> Иванов Ваня | Z51: =CHOOSE(MATCH(X51,{1,2,3,4,5,6,7,8,9,10,11,12,13,14,15,16,17},), $D$7,$D$9,$D$11,$D$13,$D$15,$D$17,$D$19,$D$21,$D$23,$D$25,#REF!,$D$27,$D$29,$D$31,$D$33,$D$35,$D$37,) -> Питер
X53: 2 | Y53: =CHOOSE(MATCH(X53,{1,2,3,4,5,6,7,8,9,10,11,12,13,14,15,16,17},),$C$7,$C$9,$C$11,$C$13,$C$15,$C$17,$C$19,$C$21,$C$23,$C$25,#REF!,$C$27,$C$29,$C$31,$C$33,$C$35,$C$37) -> Петов Петя | Z53: =CHOOSE(MATCH(X53,{1,2,3,4,5,6,7,8,9,10,11,12,13,14,15,16,17},), $D$7,$D$9,$D$11,$D$13,$D$15,$D$17,$D$19,$D$21,$D$23,$D$25,#REF!,$D$27,$D$29,$D$31,$D$33,$D$35,$D$37,) -> Питер
X55: 3 | Y55: =CHOOSE(MATCH(X55,{1,2,3,4,5,6,7,8,9,10,11,12,13,14,15,16,17},),$C$7,$C$9,$C$11,$C$13,$C$15,$C$17,$C$19,$C$21,$C$23,$C$25,#REF!,$C$27,$C$29,$C$31,$C$33,$C$35,$C$37) -> Савин Саава | Z55: =CHOOSE(MATCH(X55,{1,2,3,4,5,6,7,8,9,10,11,12,13,14,15,16,17},), $D$7,$D$9,$D$11,$D$13,$D$15,$D$17,$D$19,$D$21,$D$23,$D$25,#REF!,$D$27,$D$29,$D$31,$D$33,$D$35,$D$37,) -> Москва
X57: 4 | Y57: =CHOOSE(MATCH(X57,{1,2,3,4,5,6,7,8,9,10,11,12,13,14,15,16,17},),$C$7,$C$9,$C$11,$C$13,$C$15,$C$17,$C$19,$C$21,$C$23,$C$25,#REF!,$C$27,$C$29,$C$31,$C$33,$C$35,$C$37) -> Деревянко Вадим | Z57: =CHOOSE(MATCH(X57,{1,2,3,4,5,6,7,8,9,10,11,12,13,14,15,16,17},), $D$7,$D$9,$D$11,$D$13,$D$15,$D$17,$D$19,$D$21,$D$23,$D$25,#REF!,$D$27,$D$29,$D$31,$D$33,$D$35,$D$37,) -> Гродно
X59: 5 | Y59: =CHOOSE(MATCH(X59,{1,2,3,4,5,6,7,8,9,10,11,12,13,14,15,16,17},),$C$7,$C$9,$C$11,$C$13,$C$15,$C$17,$C$19,$C$21,$C$23,$C$25,#REF!,$C$27,$C$29,$C$31,$C$33,$C$35,$C$37) -> Товпеко Леха | Z59: =CHOOSE(MATCH(X59,{1,2,3,4,5,6,7,8,9,10,11,12,13,14,15,16,17},), $D$7,$D$9,$D$11,$D$13,$D$15,$D$17,$D$19,$D$21,$D$23,$D$25,#REF!,$D$27,$D$29,$D$31,$D$33,$D$35,$D$37,) -> Минск
X61: 6 | Y61: =CHOOSE(MATCH(X61,{1,2,3,4,5,6,7,8,9,10,11,12,13,14,15,16,17},),$C$7,$C$9,$C$11,$C$13,$C$15,$C$17,$C$19,$C$21,$C$23,$C$25,#REF!,$C$27,$C$29,$C$31,$C$33,$C$35,$C$37) -> Моряк саша | Z61: =CHOOSE(MATCH(X61,{1,2,3,4,5,6,7,8,9,10,11,12,13,14,15,16,17},), $D$7,$D$9,$D$11,$D$13,$D$15,$D$17,$D$19,$D$21,$D$23,$D$25,#REF!,$D$27,$D$29,$D$31,$D$33,$D$35,$D$37,) -> Орша
X63: 7 | Y63: =CHOOSE(MATCH(X63,{1,2,3,4,5,6,7,8,9,10,11,12,13,14,15,16,17},),$C$7,$C$9,$C$11,$C$13,$C$15,$C$17,$C$19,$C$21,$C$23,$C$25,#REF!,$C$27,$C$29,$C$31,$C$33,$C$35,$C$37) -> Цапов Сергей | Z63: =CHOOSE(MATCH(X63,{1,2,3,4,5,6,7,8,9,10,11,12,13,14,15,16,17},), $D$7,$D$9,$D$11,$D$13,$D$15,$D$17,$D$19,$D$21,$D$23,$D$25,#REF!,$D$27,$D$29,$D$31,$D$33,$D$35,$D$37,) -> Смолевичи
X65: 8 | Y65: =CHOOSE(MATCH(X65,{1,2,3,4,5,6,7,8,9,10,11,12,13,14,15,16,17},),$C$7,$C$9,$C$11,$C$13,$C$15,$C$17,$C$19,$C$21,$C$23,$C$25,#REF!,$C$27,$C$29,$C$31,$C$33,$C$35,$C$37) -> Петн Петя | Z65: =CHOOSE(MATCH(X65,{1,2,3,4,5,6,7,8,9,10,11,12,13,14,15,16,17},), $D$7,$D$9,$D$11,$D$13,$D$15,$D$17,$D$19,$D$21,$D$23,$D$25,#REF!,$D$27,$D$29,$D$31,$D$33,$D$35,$D$37,) -> Гомель
Z70: Руководитель ковра
X73: ПРОТОКОЛ ХОДА СХВАТКИ
Y74: ВЕС кг | AA74: 1/2 финала | AD74: КОВЕР | AF74: 1
X76: № п/п | Y76: Фамилия Имя | Z76: Город общество | AA76: 1 период | AC76: 2 период | AE76: баллы | AF76: очки | AG76: Судьи
X78: =VALUE($K$7) -> 2 | Y78: =CHOOSE(MATCH(X78,{1,2,3,4,5,6,7,8,9,10,11,12,13,14,15,16,17},),$C$7,$C$9,$C$11,$C$13,$C$15,$C$17,$C$19,$C$21,$C$23,$C$25,#REF!,$C$27,$C$29,$C$31,$C$33,$C$35,$C$37) -> Петов Петя | Z78: =CHOOSE(MATCH(X78,{1,2,3,4,5,6,7,8,9,10,11,12,13,14,15,16,17},), $D$7,$D$9,$D$11,$D$13,$D$15,$D$17,$D$19,$D$21,$D$23,$D$25,#REF!,$D$27,$D$29,$D$31,$D$33,$D$35,$D$37,) -> Питер
X80: =VALUE($K$12) -> 4 | Y80: =CHOOSE(MATCH(X80,{1,2,3,4,5,6,7,8,9,10,11,12,13,14,15,16,17},),$C$7,$C$9,$C$11,$C$13,$C$15,$C$17,$C$19,$C$21,$C$23,$C$25,#REF!,$C$27,$C$29,$C$31,$C$33,$C$35,$C$37) -> Деревянко Вадим | Z80: =CHOOSE(MATCH(X80,{1,2,3,4,5,6,7,8,9,10,11,12,13,14,15,16,17},), $D$7,$D$9,$D$11,$D$13,$D$15,$D$17,$D$19,$D$21,$D$23,$D$25,#REF!,$D$27,$D$29,$D$31,$D$33,$D$35,$D$37,) -> Гродно
X82: =VALUE($K$17) -> 5 | Y82: =CHOOSE(MATCH(X82,{1,2,3,4,5,6,7,8,9,10,11,12,13,14,15,16,17},),$C$7,$C$9,$C$11,$C$13,$C$15,$C$17,$C$19,$C$21,$C$23,$C$25,#REF!,$C$27,$C$29,$C$31,$C$33,$C$35,$C$37) -> Товпеко Леха | Z82: =CHOOSE(MATCH(X82,{1,2,3,4,5,6,7,8,9,10,11,12,13,14,15,16,17},), $D$7,$D$9,$D$11,$D$13,$D$15,$D$17,$D$19,$D$21,$D$23,$D$25,#REF!,$D$27,$D$29,$D$31,$D$33,$D$35,$D$37,) -> Минск
X84: =VALUE($K$22) -> 8 | Y84: =CHOOSE(MATCH(X84,{1,2,3,4,5,6,7,8,9,10,11,12,13,14,15,16,17},),$C$7,$C$9,$C$11,$C$13,$C$15,$C$17,$C$19,$C$21,$C$23,$C$25,#REF!,$C$27,$C$29,$C$31,$C$33,$C$35,$C$37) -> Петн Петя | Z84: =CHOOSE(MATCH(X84,{1,2,3,4,5,6,7,8,9,10,11,12,13,14,15,16,17},), $D$7,$D$9,$D$11,$D$13,$D$15,$D$17,$D$19,$D$21,$D$23,$D$25,#REF!,$D$27,$D$29,$D$31,$D$33,$D$35,$D$37,) -> Гомель
Z88: Руководитель ковра
X137: ПРОТОКОЛ ХОДА СХВАТКИ
Y138: ВЕС кг | AA138: финал за 3м. | AD138: КОВЕР | AF138: 1
X140: № п/п | Y140: Фамилия Имя | Z140: Город общество | AA140: 1 период | AC140: 2 период | AE140: баллы | AF140: очки | AG140: Судьи
X142: =VALUE(H29) -> 1 | Y142: =CHOOSE(MATCH(X142,{1,2,3,4,5,6,7,8,9,10,11,12,13,14,15,16,17},),$C$7,$C$9,$C$11,$C$13,$C$15,$C$17,$C$19,$C$21,$C$23,$C$25,#REF!,$C$27,$C$29,$C$31,$C$33,$C$35,$C$37) -> Иванов Ваня | Z142: =CHOOSE(MATCH(X142,{1,2,3,4,5,6,7,8,9,10,11,12,13,14,15,16,17},), $D$7,$D$9,$D$11,$D$13,$D$15,$D$17,$D$19,$D$21,$D$23,$D$25,#REF!,$D$27,$D$29,$D$31,$D$33,$D$35,$D$37,) -> Питер
X144: =VALUE($H$33) -> 4 | Y144: =CHOOSE(MATCH(X144,{1,2,3,4,5,6,7,8,9,10,11,12,13,14,15,16,17},),$C$7,$C$9,$C$11,$C$13,$C$15,$C$17,$C$19,$C$21,$C$23,$C$25,#REF!,$C$27,$C$29,$C$31,$C$33,$C$35,$C$37) -> Деревянко Вадим | Z144: =CHOOSE(MATCH(X144,{1,2,3,4,5,6,7,8,9,10,11,12,13,14,15,16,17},), $D$7,$D$9,$D$11,$D$13,$D$15,$D$17,$D$19,$D$21,$D$23,$D$25,#REF!,$D$27,$D$29,$D$31,$D$33,$D$35,$D$37,) -> Гродно
X146: =VALUE($H$38) -> 7 | Y146: =CHOOSE(MATCH(X146,{1,2,3,4,5,6,7,8,9,10,11,12,13,14,15,16,17},),$C$7,$C$9,$C$11,$C$13,$C$15,$C$17,$C$19,$C$21,$C$23,$C$25,#REF!,$C$27,$C$29,$C$31,$C$33,$C$35,$C$37) -> Цапов Сергей | Z146: =CHOOSE(MATCH(X146,{1,2,3,4,5,6,7,8,9,10,11,12,13,14,15,16,17},), $D$7,$D$9,$D$11,$D$13,$D$15,$D$17,$D$19,$D$21,$D$23,$D$25,#REF!,$D$27,$D$29,$D$31,$D$33,$D$35,$D$37,) -> Смолевичи
X148: =VALUE($H$42) -> 5 | Y148: =CHOOSE(MATCH(X148,{1,2,3,4,5,6,7,8,9,10,11,12,13,14,15,16,17},),$C$7,$C$9,$C$11,$C$13,$C$15,$C$17,$C$19,$C$21,$C$23,$C$25,#REF!,$C$27,$C$29,$C$31,$C$33,$C$35,$C$37) -> Товпеко Леха | Z148: =CHOOSE(MATCH(X148,{1,2,3,4,5,6,7,8,9,10,11,12,13,14,15,16,17},), $D$7,$D$9,$D$11,$D$13,$D$15,$D$17,$D$19,$D$21,$D$23,$D$25,#REF!,$D$27,$D$29,$D$31,$D$33,$D$35,$D$37,) -> Минск
Z152: Руководитель ковра
X160: ПРОТОКОЛ ХОДА СХВАТКИ
Y161: ВЕС кг | AA161: финал | AD161: КОВЕР | AF161: 1
X163: № п/п | Y163: Фамилия Имя | Z163: Город общество | AA163: 1 период | AC163: 2 период | AE163: баллы | AF163: очки | AG163: Судьи
X165: =VALUE(N10) -> 2 | Y165: =CHOOSE(MATCH(X165,{1,2,3,4,5,6,7,8,9,10,11,12,13,14,15,16,17},),$C$7,$C$9,$C$11,$C$13,$C$15,$C$17,$C$19,$C$21,$C$23,$C$25,#REF!,$C$27,$C$29,$C$31,$C$33,$C$35,$C$37) -> Петов Петя | Z165: =CHOOSE(MATCH(X165,{1,2,3,4,5,6,7,8,9,10,11,12,13,14,15,16,17},), $D$7,$D$9,$D$11,$D$13,$D$15,$D$17,$D$19,$D$21,$D$23,$D$25,#REF!,$D$27,$D$29,$D$31,$D$33,$D$35,$D$37,) -> Питер
X167: =VALUE(N19) -> 8 | Y167: =CHOOSE(MATCH(X167,{1,2,3,4,5,6,7,8,9,10,11,12,13,14,15,16,17},),$C$7,$C$9,$C$11,$C$13,$C$15,$C$17,$C$19,$C$21,$C$23,$C$25,#REF!,$C$27,$C$29,$C$31,$C$33,$C$35,$C$37) -> Петн Петя | Z167: =CHOOSE(MATCH(X167,{1,2,3,4,5,6,7,8,9,10,11,12,13,14,15,16,17},), $D$7,$D$9,$D$11,$D$13,$D$15,$D$17,$D$19,$D$21,$D$23,$D$25,#REF!,$D$27,$D$29,$D$31,$D$33,$D$35,$D$37,) -> Гомель
Z174: Руководитель ковра

Sheet 9уч
A1: ПРОТОКОЛ ХОДА СОРЕВНОВАНИЙ
A2: Турнир по борьбе вольной, памяти первого тренерашколы НЕЙЧА И.В.19 мая 2017г
C3: ВЕС кг
A5: МЕСТО | B5: № п/п | C5: Фамилия Имя | D5: Город общество | E5: Год рожд | F5: Разряд | H5: квалификация | K5: 1/4 финала | N5: 1/2 финала | Q5: ФИНАЛ за 1место
B7: 1 | C7: чехов | D7: чехов | H7: 1 | I7: св | K7: 1 | L7: 7 | N7: =IF(L7>L9,K7,IF(L7<L9,K9)) -> 2 | O7: 0
B9: 2 | C9: пушкин | D9: пушкин | H9: 2 | I9: 3 | K9: =IF(I9>I11,H9,H11) -> 2 | L9: 8
Q10: =IF(O7>O12,N7,N12) -> 4 | R10: 1
B11: 3 | C11: семя | D11: семя | H11: 3 | I11: 0 | K11: 4 | L11: 8
N12: =IF(L11>L13,K11,K13) -> 4 | O12: 1
B13: 4 | C13: бука | D13: бука | H13: 4 | I13: св | K13: 5 | L13: 7
B15: 5 | C15: копа | D15: копа | H15: 5 | I15: св | K15: 6 | L15: 3 | T15: 1 | V15: =IF(R10>R19,Q10,Q19) -> 4
B17: 6 | C17: сить | D17: сить | H17: 6 | I17: св | K17: 7 | L17: 0 | N17: =IF(L15>L17,K15,K17) -> 6 | O17: 8
B19: 7 | C19: керс | D19: керс | H19: 7 | I19: св | K19: 8 | L19: 5 | Q19: =IF(O17>O22,N17,N22) -> 6 | R19: 0
B21: 8 | C21: макс | D21: макс | H21: 8 | I21: св | K21: 9 | L21: 6
N22: =IF(L19>L21,K19,K21) -> 9 | O22: 7
B23: 9 | C23: рома | D23: рома | H23: 9 | I23: св
H30: ПЕРЕЭКЗАМЕНОВКА
H33: ПРОИГРАВШИЕ ПЕРВОМУ ФИНАЛИСТУ
K37: =IFERROR(CHOOSE(MATCH($Q$10,{2,3},),3,2),"") ->  | O37: 3 МЕСТО
N39: =IF(L37<L41,K37,K41) -> 5 | O39: 3
K41: =CHOOSE(MATCH($Q$10,{1,2,3,4,5},),K9,1,1,5,4) -> 5 | Q41: =IF(O39>O43,N39,N43) -> 5
N43: =IF(O7<O12,N7,N12) -> 2 | O43: 0
H48: ПРОИГРАВШИЕ ВТОРОМУ ФИНАЛИСТУ
O52: 3 МЕСТО
N54: =CHOOSE(MATCH($Q$19,{6,7,8,9},),7,6,9,8) -> 7 | O54: 1
Q56: =IF(O54>O58,N54,N58) -> 7
N58: =IF(O17<O22,N17,N22) -> 9 | O58: 0
X61: ПРОТОКОЛ ХОДА СХВАТКИ
Y62: ВЕС кг | AA62: квалификация | AD62: КОВЕР
X64: № п/п | Y64: Фамилия Имя | Z64: Город общество | AA64: 1 период | AC64: 2 период | AE64: баллы | AF64: очки | AG64: Судьи
X66: 2 | Y66: =C9 -> пушкин | Z66: =D9 -> пушкин
X68: 3 | Y68: =C11 -> семя | Z68: =D9 -> пушкин
Z77: Руководитель ковра
X92: ПРОТОКОЛ ХОДА СХВАТКИ
Y93: ВЕС кг | AA93: 1/4 финала | AD93: КОВЕР | AF93: 1
X95: № п/п | Y95: Фамилия Имя | Z95: Город общество | AA95: 1 период | AC95: 2 период | AE95: баллы | AF95: очки | AG95: Судьи
X97: 1 | Y97: =CHOOSE(MATCH(X97,{1,2,3,4,5,6,7,8,9,10,11,12,13,14,15,16,17},),$C$7,$C$9,$C$11,$C$13,$C$15,$C$17,$C$19,$C$21,$C$23,$C$25,#REF!,$C$27,$C$29,$C$31,$C$33,$C$35,$C$37) -> чехов | Z97: =CHOOSE(MATCH(X97,{1,2,3,4,5,6,7,8,9,10,11,12,13,14,15,16,17},), $D$7,$D$9,$D$11,$D$13,$D$15,$D$17,$D$19,$D$21,$D$23,$D$25,#REF!,$D$27,$D$29,$D$31,$D$33,$D$35,$D$37,) -> чехов
X99: =K9 -> 2 | Y99: =CHOOSE(MATCH(X99,{1,2,3,4,5,6,7,8,9,10,11,12,13,14,15,16,17},),$C$7,$C$9,$C$11,$C$13,$C$15,$C$17,$C$19,$C$21,$C$23,$C$25,#REF!,$C$27,$C$29,$C$31,$C$33,$C$35,$C$37) -> пушкин | Z99: =CHOOSE(MATCH(X99,{1,2,3,4,5,6,7,8,9,10,11,12,13,14,15,16,17},), $D$7,$D$9,$D$11,$D$13,$D$15,$D$17,$D$19,$D$21,$D$23,$D$25,#REF!,$D$27,$D$29,$D$31,$D$33,$D$35,$D$37,) -> пушкин
X101: 4 | Y101: =CHOOSE(MATCH(X101,{1,2,3,4,5,6,7,8,9,10,11,12,13,14,15,16,17},),$C$7,$C$9,$C$11,$C$13,$C$15,$C$17,$C$19,$C$21,$C$23,$C$25,#REF!,$C$27,$C$29,$C$31,$C$33,$C$35,$C$37) -> бука | Z101: =CHOOSE(MATCH(X101,{1,2,3,4,5,6,7,8,9,10,11,12,13,14,15,16,17},), $D$7,$D$9,$D$11,$D$13,$D$15,$D$17,$D$19,$D$21,$D$23,$D$25,#REF!,$D$27,$D$29,$D$31,$D$33,$D$35,$D$37,) -> бука
X103: 5 | Y103: =CHOOSE(MATCH(X103,{1,2,3,4,5,6,7,8,9,10,11,12,13,14,15,16,17},),$C$7,$C$9,$C$11,$C$13,$C$15,$C$17,$C$19,$C$21,$C$23,$C$25,#REF!,$C$27,$C$29,$C$31,$C$33,$C$35,$C$37) -> копа | Z103: =CHOOSE(MATCH(X103,{1,2,3,4,5,6,7,8,9,10,11,12,13,14,15,16,17},), $D$7,$D$9,$D$11,$D$13,$D$15,$D$17,$D$19,$D$21,$D$23,$D$25,#REF!,$D$27,$D$29,$D$31,$D$33,$D$35,$D$37,) -> копа
X105: 6 | Y105: =CHOOSE(MATCH(X105,{1,2,3,4,5,6,7,8,9,10,11,12,13,14,15,16,17},),$C$7,$C$9,$C$11,$C$13,$C$15,$C$17,$C$19,$C$21,$C$23,$C$25,#REF!,$C$27,$C$29,$C$31,$C$33,$C$35,$C$37) -> сить | Z105: =CHOOSE(MATCH(X105,{1,2,3,4,5,6,7,8,9,10,11,12,13,14,15,16,17},), $D$7,$D$9,$D$11,$D$13,$D$15,$D$17,$D$19,$D$21,$D$23,$D$25,#REF!,$D$27,$D$29,$D$31,$D$33,$D$35,$D$37,) -> сить
X107: 7 | Y107: =CHOOSE(MATCH(X107,{1,2,3,4,5,6,7,8,9,10,11,12,13,14,15,16,17},),$C$7,$C$9,$C$11,$C$13,$C$15,$C$17,$C$19,$C$21,$C$23,$C$25,#REF!,$C$27,$C$29,$C$31,$C$33,$C$35,$C$37) -> керс | Z107: =CHOOSE(MATCH(X107,{1,2,3,4,5,6,7,8,9,10,11,12,13,14,15,16,17},), $D$7,$D$9,$D$11,$D$13,$D$15,$D$17,$D$19,$D$21,$D$23,$D$25,#REF!,$D$27,$D$29,$D$31,$D$33,$D$35,$D$37,) -> керс
X109: 8 | Y109: =CHOOSE(MATCH(X109,{1,2,3,4,5,6,7,8,9,10,11,12,13,14,15,16,17},),$C$7,$C$9,$C$11,$C$13,$C$15,$C$17,$C$19,$C$21,$C$23,$C$25,#REF!,$C$27,$C$29,$C$31,$C$33,$C$35,$C$37) -> макс | Z109: =CHOOSE(MATCH(X109,{1,2,3,4,5,6,7,8,9,10,11,12,13,14,15,16,17},), $D$7,$D$9,$D$11,$D$13,$D$15,$D$17,$D$19,$D$21,$D$23,$D$25,#REF!,$D$27,$D$29,$D$31,$D$33,$D$35,$D$37,) -> макс
X111: 9 | Y111: =CHOOSE(MATCH(X111,{1,2,3,4,5,6,7,8,9,10,11,12,13,14,15,16,17},),$C$7,$C$9,$C$11,$C$13,$C$15,$C$17,$C$19,$C$21,$C$23,$C$25,#REF!,$C$27,$C$29,$C$31,$C$33,$C$35,$C$37) -> рома | Z111: =CHOOSE(MATCH(X111,{1,2,3,4,5,6,7,8,9,10,11,12,13,14,15,16,17},), $D$7,$D$9,$D$11,$D$13,$D$15,$D$17,$D$19,$D$21,$D$23,$D$25,#REF!,$D$27,$D$29,$D$31,$D$33,$D$35,$D$37,) -> рома
Z116: Руководитель ковра
X119: ПРОТОКОЛ ХОДА СХВАТКИ
Y120: ВЕС кг | AA120: 1/2 финала | AD120: КОВЕР | AF120: 1
X122: № п/п | Y122: Фамилия Имя | Z122: Город общество | AA122: 1 период | AC122: 2 период | AE122: баллы | AF122: очки | AG122: Судьи
X124: =VALUE( N7) -> 2 | Y124: =CHOOSE(MATCH(X124,{1,2,3,4,5,6,7,8,9,10,11,12,13,14,15,16,17},),$C$7,$C$9,$C$11,$C$13,$C$15,$C$17,$C$19,$C$21,$C$23,$C$25,#REF!,$C$27,$C$29,$C$31,$C$33,$C$35,$C$37) -> пушкин | Z124: =CHOOSE(MATCH(X124,{1,2,3,4,5,6,7,8,9,10,11,12,13,14,15,16,17},), $D$7,$D$9,$D$11,$D$13,$D$15,$D$17,$D$19,$D$21,$D$23,$D$25,#REF!,$D$27,$D$29,$D$31,$D$33,$D$35,$D$37,) -> пушкин
X126: =VALUE(N12) -> 4 | Y126: =CHOOSE(MATCH(X126,{1,2,3,4,5,6,7,8,9,10,11,12,13,14,15,16,17},),$C$7,$C$9,$C$11,$C$13,$C$15,$C$17,$C$19,$C$21,$C$23,$C$25,#REF!,$C$27,$C$29,$C$31,$C$33,$C$35,$C$37) -> бука | Z126: =CHOOSE(MATCH(X126,{1,2,3,4,5,6,7,8,9,10,11,12,13,14,15,16,17},), $D$7,$D$9,$D$11,$D$13,$D$15,$D$17,$D$19,$D$21,$D$23,$D$25,#REF!,$D$27,$D$29,$D$31,$D$33,$D$35,$D$37,) -> бука
X128: =VALUE(N17) -> 6 | Y128: =CHOOSE(MATCH(X128,{1,2,3,4,5,6,7,8,9,10,11,12,13,14,15,16,17},),$C$7,$C$9,$C$11,$C$13,$C$15,$C$17,$C$19,$C$21,$C$23,$C$25,#REF!,$C$27,$C$29,$C$31,$C$33,$C$35,$C$37) -> сить | Z128: =CHOOSE(MATCH(X128,{1,2,3,4,5,6,7,8,9,10,11,12,13,14,15,16,17},), $D$7,$D$9,$D$11,$D$13,$D$15,$D$17,$D$19,$D$21,$D$23,$D$25,#REF!,$D$27,$D$29,$D$31,$D$33,$D$35,$D$37,) -> сить
X130: =VALUE(N22) -> 9 | Y130: =CHOOSE(MATCH(X130,{1,2,3,4,5,6,7,8,9,10,11,12,13,14,15,16,17},),$C$7,$C$9,$C$11,$C$13,$C$15,$C$17,$C$19,$C$21,$C$23,$C$25,#REF!,$C$27,$C$29,$C$31,$C$33,$C$35,$C$37) -> рома | Z130: =CHOOSE(MATCH(X130,{1,2,3,4,5,6,7,8,9,10,11,12,13,14,15,16,17},), $D$7,$D$9,$D$11,$D$13,$D$15,$D$17,$D$19,$D$21,$D$23,$D$25,#REF!,$D$27,$D$29,$D$31,$D$33,$D$35,$D$37,) -> рома
Z134: Руководитель ковра
X153: ПРОТОКОЛ ХОДА СХВАТКИ
Y154: ВЕС кг | AA154: утешение | AD154: КОВЕР | AF154: 1
X156: № п/п | Y156: Фамилия Имя | Z156: Город общество | AA156: 1 период | AC156: 2 период | AE156: баллы | AF156: очки | AG156: Судьи
X158: =K37 ->  | Y158: =CHOOSE(MATCH(X158,{1,2,3,4,5,6,7,8,9,10,11,12,13,14,15,16,17},),$C$7,$C$9,$C$11,$C$13,$C$15,$C$17,$C$19,$C$21,$C$23,$C$25,#REF!,$C$27,$C$29,$C$31,$C$33,$C$35,$C$37) ->  | Z158: =CHOOSE(MATCH(X158,{1,2,3,4,5,6,7,8,9,10,11,12,13,14,15,16,17},), $D$7,$D$9,$D$11,$D$13,$D$15,$D$17,$D$19,$D$21,$D$23,$D$25,#REF!,$D$27,$D$29,$D$31,$D$33,$D$35,$D$37,) -> 
X160: =VALUE(K41) -> 5 | Y160: =CHOOSE(MATCH(X160,{1,2,3,4,5,6,7,8,9,10,11,12,13,14,15,16,17},),$C$7,$C$9,$C$11,$C$13,$C$15,$C$17,$C$19,$C$21,$C$23,$C$25,#REF!,$C$27,$C$29,$C$31,$C$33,$C$35,$C$37) -> копа | Z160: =CHOOSE(MATCH(X160,{1,2,3,4,5,6,7,8,9,10,11,12,13,14,15,16,17},), $D$7,$D$9,$D$11,$D$13,$D$15,$D$17,$D$19,$D$21,$D$23,$D$25,#REF!,$D$27,$D$29,$D$31,$D$33,$D$35,$D$37,) -> копа
Z164: Руководитель ковра
X195: ПРОТОКОЛ ХОДА СХВАТКИ
Y196: ВЕС кг | AA196: финал за 3м. | AD196: КОВЕР | AF196: 1
X198: № п/п | Y198: Фамилия Имя | Z198: Город общество | AA198: 1 период | AC198: 2 период | AE198: баллы | AF198: очки | AG198: Судьи
X200: =VALUE(N39) -> 5 | Y200: =CHOOSE(MATCH(X200,{1,2,3,4,5,6,7,8,9,10,11,12,13,14,15,16,17},),$C$7,$C$9,$C$11,$C$13,$C$15,$C$17,$C$19,$C$21,$C$23,$C$25,#REF!,$C$27,$C$29,$C$31,$C$33,$C$35,$C$37) -> копа | Z200: =CHOOSE(MATCH(X200,{1,2,3,4,5,6,7,8,9,10,11,12,13,14,15,16,17},), $D$7,$D$9,$D$11,$D$13,$D$15,$D$17,$D$19,$D$21,$D$23,$D$25,#REF!,$D$27,$D$29,$D$31,$D$33,$D$35,$D$37,) -> копа
X202: =VALUE(N43) -> 2 | Y202: =CHOOSE(MATCH(X202,{1,2,3,4,5,6,7,8,9,10,11,12,13,14,15,16,17},),$C$7,$C$9,$C$11,$C$13,$C$15,$C$17,$C$19,$C$21,$C$23,$C$25,#REF!,$C$27,$C$29,$C$31,$C$33,$C$35,$C$37) -> пушкин | Z202: =CHOOSE(MATCH(X202,{1,2,3,4,5,6,7,8,9,10,11,12,13,14,15,16,17},), $D$7,$D$9,$D$11,$D$13,$D$15,$D$17,$D$19,$D$21,$D$23,$D$25,#REF!,$D$27,$D$29,$D$31,$D$33,$D$35,$D$37,) -> пушкин
X204: =VALUE(N54) -> 7 | Y204: =CHOOSE(MATCH(X204,{1,2,3,4,5,6,7,8,9,10,11,12,13,14,15,16,17},),$C$7,$C$9,$C$11,$C$13,$C$15,$C$17,$C$19,$C$21,$C$23,$C$25,#REF!,$C$27,$C$29,$C$31,$C$33,$C$35,$C$37) -> керс | Z204: =CHOOSE(MATCH(X204,{1,2,3,4,5,6,7,8,9,10,11,12,13,14,15,16,17},), $D$7,$D$9,$D$11,$D$13,$D$15,$D$17,$D$19,$D$21,$D$23,$D$25,#REF!,$D$27,$D$29,$D$31,$D$33,$D$35,$D$37,) -> керс
X206: =VALUE(N58) -> 9 | Y206: =CHOOSE(MATCH(X206,{1,2,3,4,5,6,7,8,9,10,11,12,13,14,15,16,17},),$C$7,$C$9,$C$11,$C$13,$C$15,$C$17,$C$19,$C$21,$C$23,$C$25,#REF!,$C$27,$C$29,$C$31,$C$33,$C$35,$C$37) -> рома | Z206: =CHOOSE(MATCH(X206,{1,2,3,4,5,6,7,8,9,10,11,12,13,14,15,16,17},), $D$7,$D$9,$D$11,$D$13,$D$15,$D$17,$D$19,$D$21,$D$23,$D$25,#REF!,$D$27,$D$29,$D$31,$D$33,$D$35,$D$37,) -> рома
Z210: Руководитель ковра
X218: ПРОТОКОЛ ХОДА СХВАТКИ
Y219: ВЕС кг | AA219: финал | AD219: КОВЕР | AF219: 1
X221: № п/п | Y221: Фамилия Имя | Z221: Город общество | AA221: 1 период | AC221: 2 период | AE221: баллы | AF221: очки | AG221: Судьи
X223: =VALUE( Q10) -> 4 | Y223: =CHOOSE(MATCH(X223,{1,2,3,4,5,6,7,8,9,10,11,12,13,14,15,16,17},),$C$7,$C$9,$C$11,$C$13,$C$15,$C$17,$C$19,$C$21,$C$23,$C$25,#REF!,$C$27,$C$29,$C$31,$C$33,$C$35,$C$37) -> бука | Z223: =CHOOSE(MATCH(X223,{1,2,3,4,5,6,7,8,9,10,11,12,13,14,15,16,17},), $D$7,$D$9,$D$11,$D$13,$D$15,$D$17,$D$19,$D$21,$D$23,$D$25,#REF!,$D$27,$D$29,$D$31,$D$33,$D$35,$D$37,) -> бука
X225: =VALUE(Q19) -> 6 | Y225: =CHOOSE(MATCH(X225,{1,2,3,4,5,6,7,8,9,10,11,12,13,14,15,16,17},),$C$7,$C$9,$C$11,$C$13,$C$15,$C$17,$C$19,$C$21,$C$23,$C$25,#REF!,$C$27,$C$29,$C$31,$C$33,$C$35,$C$37) -> сить | Z225: =CHOOSE(MATCH(X225,{1,2,3,4,5,6,7,8,9,10,11,12,13,14,15,16,17},), $D$7,$D$9,$D$11,$D$13,$D$15,$D$17,$D$19,$D$21,$D$23,$D$25,#REF!,$D$27,$D$29,$D$31,$D$33,$D$35,$D$37,) -> сить
Z232: Руководитель ковра

Sheet 10уч
A1: ПРОТОКОЛ ХОДА СОРЕВНОВАНИЙ
A2: Турнир по борьбе вольной, памяти первого тренерашколы НЕЙЧА И.В.19 мая 2017г
C3: ВЕС кг
A5: МЕСТО | B5: № п/п | C5: Фамилия Имя | D5: Город общество | E5: Год рожд | F5: Разряд | H5: квалификация | K5: 1/4 финала | N5: 1/2 финала | Q5: ФИНАЛ за 1место
B7: 1 | C7: 4001 | D7: 401 | H7: 1 | I7: св
K8: 1 | L8: 3
B9: 2 | C9: 4002 | D9: 402 | H9: 2 | I9: св
N10: =IF(L8>L12,K8,K12) -> 2 | O10: 1
B11: 3 | C11: 4003 | D11: 403 | H11: 3 | I11: св
K12: 2 | L12: 4
B13: 4 | C13: 4004 | D13: 404 | H13: 4 | I13: св
Q14: =IF(O10>O18,N10,N18) -> 2 | R14: 1
B15: 5 | C15: 4005 | D15: 405 | H15: 5 | I15: св
K16: 3 | L16: 1
B17: 6 | C17: 4006 | D17: 406 | H17: 6 | I17: св
N18: =IF(L16>L20,K16,K20) -> 4 | O18: 0
B19: 7 | C19: 4007 | D19: 407 | H19: 7
K20: 4 | L20: 5
B21: 8 | C21: 4008 | D21: 408 | H21: 8
T22: =IF(R14>R30,Q14,Q30) -> 6
B23: 9 | C23: 4009 | D23: 409 | H23: 9
K24: 5 | L24: 3
B25: 10 | C25: 4010 | D25: 410 | H25: 10
N26: =IF(L24>L28,K24,K28) -> 6 | O26: 4
K28: 6 | L28: 4
Q30: =IF(O26>O34,N26,N34) -> 6 | R30: 2
K32: =IF(I19>I21,H19,H21) -> 8 | L32: 1
N34: =IF(L32>L36,K32,K36) -> 10 | O34: 0
K36: =IF(I23>I25,H23,H25) -> 10 | L36: 5
K39: ПЕРЕЭКЗАМЕНОВКА
K42: ПРОИГРАВШИЕ ПЕРВОМУ ФИНАЛИСТУ
R46: 3 МЕСТО
Q48: =CHOOSE(MATCH($Q$14,{1,2,3,4,5,6,7,8,9,10,11,12},),2,1,4,3,$K$28,$K$28,$K$24,$K$24,$K$36,$K$36,$K$32,$K$32) -> 1 | R48: 3
T50: =IF(R48>R52,Q48,Q52) -> 1
Q52: =IF(O10<O18,N10,N18) -> 4 | R52: 0
K57: ПРОИГРАВШИЕ ВТОРОМУ ФИНАЛИСТУ
N61: =CHOOSE(MATCH($Q$30,{9,10},),10,9,) ->  | O61: 1 | R61: 3 МЕСТО
Q63: =IF(O61>O65,N61,N65) ->  | R63: 1
N65: =CHOOSE(MATCH($Q$30,{7,8,9,10},),$K$36,$K$36,$K$32,$K$32) ->  | O65: 0 | T65: =IF(R63>R67,Q63,Q67) -> 
Q67: =IF(O26<O34,N26,N34) -> 10 | R67: 0
AD71: ПРОТОКОЛ ХОДА СХВАТКИ
AE72: ВЕС кг | AG72: квалификация | AJ72: КОВЕР
AD74: № п/п | AE74: Фамилия Имя | AF74: Город общество | AG74: 1 период | AI74: 2 период | AK74: баллы | AL74: очки | AM74: Судьи
AD76: 7 | AE76: =CHOOSE(MATCH(AD76,{1,2,3,4,5,6,7,8,9,10,11,12,13,14,15,16,17},),$C$7,$C$9,$C$11,$C$13,$C$15,$C$17,$C$19,$C$21,$C$23,$C$25,#REF!,$C$27,$C$29,$C$31,$C$33,$C$35,$C$37) -> 4007 | AF76: =CHOOSE(MATCH(AD76,{1,2,3,4,5,6,7,8,9,10,11,12,13,14,15,16,17},), $D$7,$D$9,$D$11,$D$13,$D$15,$D$17,$D$19,$D$21,$D$23,$D$25,#REF!,$D$27,$D$29,$D$31,$D$33,$D$35,$D$37,) -> 407
AD78: 8 | AE78: =CHOOSE(MATCH(AD78,{1,2,3,4,5,6,7,8,9,10,11,12,13,14,15,16,17},),$C$7,$C$9,$C$11,$C$13,$C$15,$C$17,$C$19,$C$21,$C$23,$C$25,#REF!,$C$27,$C$29,$C$31,$C$33,$C$35,$C$37) -> 4008 | AF78: =CHOOSE(MATCH(AD78,{1,2,3,4,5,6,7,8,9,10,11,12,13,14,15,16,17},), $D$7,$D$9,$D$11,$D$13,$D$15,$D$17,$D$19,$D$21,$D$23,$D$25,#REF!,$D$27,$D$29,$D$31,$D$33,$D$35,$D$37,) -> 408
AD80: 9 | AE80: =CHOOSE(MATCH(AD80,{1,2,3,4,5,6,7,8,9,10,11,12,13,14,15,16,17},),$C$7,$C$9,$C$11,$C$13,$C$15,$C$17,$C$19,$C$21,$C$23,$C$25,#REF!,$C$27,$C$29,$C$31,$C$33,$C$35,$C$37) -> 4009 | AF80: =CHOOSE(MATCH(AD80,{1,2,3,4,5,6,7,8,9,10,11,12,13,14,15,16,17},), $D$7,$D$9,$D$11,$D$13,$D$15,$D$17,$D$19,$D$21,$D$23,$D$25,#REF!,$D$27,$D$29,$D$31,$D$33,$D$35,$D$37,) -> 409
AD82: 10 | AE82: =CHOOSE(MATCH(AD82,{1,2,3,4,5,6,7,8,9,10,11,12,13,14,15,16,17},),$C$7,$C$9,$C$11,$C$13,$C$15,$C$17,$C$19,$C$21,$C$23,$C$25,#REF!,$C$27,$C$29,$C$31,$C$33,$C$35,$C$37) -> 4010 | AF82: =CHOOSE(MATCH(AD82,{1,2,3,4,5,6,7,8,9,10,11,12,13,14,15,16,17},), $D$7,$D$9,$D$11,$D$13,$D$15,$D$17,$D$19,$D$21,$D$23,$D$25,#REF!,$D$27,$D$29,$D$31,$D$33,$D$35,$D$37,) -> 410
AF91: Руководитель ковра
AD106: ПРОТОКОЛ ХОДА СХВАТКИ
AE107: ВЕС кг | AG107: 1/4 финала | AJ107: КОВЕР | AL107: 1
AD109: № п/п | AE109: Фамилия Имя | AF109: Город общество | AG109: 1 период | AI109: 2 период | AK109: баллы | AL109: очки | AM109: Судьи
AD111: =VALUE(K8) -> 1 | AE111: =CHOOSE(MATCH(AD111,{1,2,3,4,5,6,7,8,9,10,11,12,13,14,15,16,17},),$C$7,$C$9,$C$11,$C$13,$C$15,$C$17,$C$19,$C$21,$C$23,$C$25,#REF!,$C$27,$C$29,$C$31,$C$33,$C$35,$C$37) -> 4001 | AF111: =CHOOSE(MATCH(AD111,{1,2,3,4,5,6,7,8,9,10,11,12,13,14,15,16,17},), $D$7,$D$9,$D$11,$D$13,$D$15,$D$17,$D$19,$D$21,$D$23,$D$25,#REF!,$D$27,$D$29,$D$31,$D$33,$D$35,$D$37,) -> 401
AD113: =VALUE(K12) -> 2 | AE113: =CHOOSE(MATCH(AD113,{1,2,3,4,5,6,7,8,9,10,11,12,13,14,15,16,17},),$C$7,$C$9,$C$11,$C$13,$C$15,$C$17,$C$19,$C$21,$C$23,$C$25,#REF!,$C$27,$C$29,$C$31,$C$33,$C$35,$C$37) -> 4002 | AF113: =CHOOSE(MATCH(AD113,{1,2,3,4,5,6,7,8,9,10,11,12,13,14,15,16,17},), $D$7,$D$9,$D$11,$D$13,$D$15,$D$17,$D$19,$D$21,$D$23,$D$25,#REF!,$D$27,$D$29,$D$31,$D$33,$D$35,$D$37,) -> 402
AD115: =VALUE(K16) -> 3 | AE115: =CHOOSE(MATCH(AD115,{1,2,3,4,5,6,7,8,9,10,11,12,13,14,15,16,17},),$C$7,$C$9,$C$11,$C$13,$C$15,$C$17,$C$19,$C$21,$C$23,$C$25,#REF!,$C$27,$C$29,$C$31,$C$33,$C$35,$C$37) -> 4003 | AF115: =CHOOSE(MATCH(AD115,{1,2,3,4,5,6,7,8,9,10,11,12,13,14,15,16,17},), $D$7,$D$9,$D$11,$D$13,$D$15,$D$17,$D$19,$D$21,$D$23,$D$25,#REF!,$D$27,$D$29,$D$31,$D$33,$D$35,$D$37,) -> 403
AD117: =VALUE(K20) -> 4 | AE117: =CHOOSE(MATCH(AD117,{1,2,3,4,5,6,7,8,9,10,11,12,13,14,15,16,17},),$C$7,$C$9,$C$11,$C$13,$C$15,$C$17,$C$19,$C$21,$C$23,$C$25,#REF!,$C$27,$C$29,$C$31,$C$33,$C$35,$C$37) -> 4004 | AF117: =CHOOSE(MATCH(AD117,{1,2,3,4,5,6,7,8,9,10,11,12,13,14,15,16,17},), $D$7,$D$9,$D$11,$D$13,$D$15,$D$17,$D$19,$D$21,$D$23,$D$25,#REF!,$D$27,$D$29,$D$31,$D$33,$D$35,$D$37,) -> 404
AD119: =VALUE(K24) -> 5 | AE119: =CHOOSE(MATCH(AD119,{1,2,3,4,5,6,7,8,9,10,11,12,13,14,15,16,17},),$C$7,$C$9,$C$11,$C$13,$C$15,$C$17,$C$19,$C$21,$C$23,$C$25,#REF!,$C$27,$C$29,$C$31,$C$33,$C$35,$C$37) -> 4005 | AF119: =CHOOSE(MATCH(AD119,{1,2,3,4,5,6,7,8,9,10,11,12,13,14,15,16,17},), $D$7,$D$9,$D$11,$D$13,$D$15,$D$17,$D$19,$D$21,$D$23,$D$25,#REF!,$D$27,$D$29,$D$31,$D$33,$D$35,$D$37,) -> 405
AD121: =VALUE(K28) -> 6 | AE121: =CHOOSE(MATCH(AD121,{1,2,3,4,5,6,7,8,9,10,11,12,13,14,15,16,17},),$C$7,$C$9,$C$11,$C$13,$C$15,$C$17,$C$19,$C$21,$C$23,$C$25,#REF!,$C$27,$C$29,$C$31,$C$33,$C$35,$C$37) -> 4006 | AF121: =CHOOSE(MATCH(AD121,{1,2,3,4,5,6,7,8,9,10,11,12,13,14,15,16,17},), $D$7,$D$9,$D$11,$D$13,$D$15,$D$17,$D$19,$D$21,$D$23,$D$25,#REF!,$D$27,$D$29,$D$31,$D$33,$D$35,$D$37,) -> 406
AD123: =VALUE(K32) -> 8 | AE123: =CHOOSE(MATCH(AD123,{1,2,3,4,5,6,7,8,9,10,11,12,13,14,15,16,17},),$C$7,$C$9,$C$11,$C$13,$C$15,$C$17,$C$19,$C$21,$C$23,$C$25,#REF!,$C$27,$C$29,$C$31,$C$33,$C$35,$C$37) -> 4008 | AF123: =CHOOSE(MATCH(AD123,{1,2,3,4,5,6,7,8,9,10,11,12,13,14,15,16,17},), $D$7,$D$9,$D$11,$D$13,$D$15,$D$17,$D$19,$D$21,$D$23,$D$25,#REF!,$D$27,$D$29,$D$31,$D$33,$D$35,$D$37,) -> 408
AD125: =VALUE(K36) -> 10 | AE125: =CHOOSE(MATCH(AD125,{1,2,3,4,5,6,7,8,9,10,11,12,13,14,15,16,17},),$C$7,$C$9,$C$11,$C$13,$C$15,$C$17,$C$19,$C$21,$C$23,$C$25,#REF!,$C$27,$C$29,$C$31,$C$33,$C$35,$C$37) -> 4010 | AF125: =CHOOSE(MATCH(AD125,{1,2,3,4,5,6,7,8,9,10,11,12,13,14,15,16,17},), $D$7,$D$9,$D$11,$D$13,$D$15,$D$17,$D$19,$D$21,$D$23,$D$25,#REF!,$D$27,$D$29,$D$31,$D$33,$D$35,$D$37,) -> 410
AF130: Руководитель ковра
AD133: ПРОТОКОЛ ХОДА СХВАТКИ
AE134: ВЕС кг | AG134: 1/2 финала | AJ134: КОВЕР | AL134: 1
AD136: № п/п | AE136: Фамилия Имя | AF136: Город общество | AG136: 1 период | AI136: 2 период | AK136: баллы | AL136: очки | AM136: Судьи
AD138: =VALUE(N10) -> 2 | AE138: =CHOOSE(MATCH(AD138,{1,2,3,4,5,6,7,8,9,10,11,12,13,14,15,16,17},),$C$7,$C$9,$C$11,$C$13,$C$15,$C$17,$C$19,$C$21,$C$23,$C$25,#REF!,$C$27,$C$29,$C$31,$C$33,$C$35,$C$37) -> 4002 | AF138: =CHOOSE(MATCH(AD138,{1,2,3,4,5,6,7,8,9,10,11,12,13,14,15,16,17},), $D$7,$D$9,$D$11,$D$13,$D$15,$D$17,$D$19,$D$21,$D$23,$D$25,#REF!,$D$27,$D$29,$D$31,$D$33,$D$35,$D$37,) -> 402
AD140: =VALUE(N18) -> 4 | AE140: =CHOOSE(MATCH(AD140,{1,2,3,4,5,6,7,8,9,10,11,12,13,14,15,16,17},),$C$7,$C$9,$C$11,$C$13,$C$15,$C$17,$C$19,$C$21,$C$23,$C$25,#REF!,$C$27,$C$29,$C$31,$C$33,$C$35,$C$37) -> 4004 | AF140: =CHOOSE(MATCH(AD140,{1,2,3,4,5,6,7,8,9,10,11,12,13,14,15,16,17},), $D$7,$D$9,$D$11,$D$13,$D$15,$D$17,$D$19,$D$21,$D$23,$D$25,#REF!,$D$27,$D$29,$D$31,$D$33,$D$35,$D$37,) -> 404
AD142: =VALUE(N26) -> 6 | AE142: =CHOOSE(MATCH(AD142,{1,2,3,4,5,6,7,8,9,10,11,12,13,14,15,16,17},),$C$7,$C$9,$C$11,$C$13,$C$15,$C$17,$C$19,$C$21,$C$23,$C$25,#REF!,$C$27,$C$29,$C$31,$C$33,$C$35,$C$37) -> 4006 | AF142: =CHOOSE(MATCH(AD142,{1,2,3,4,5,6,7,8,9,10,11,12,13,14,15,16,17},), $D$7,$D$9,$D$11,$D$13,$D$15,$D$17,$D$19,$D$21,$D$23,$D$25,#REF!,$D$27,$D$29,$D$31,$D$33,$D$35,$D$37,) -> 406
AD144: =VALUE(N34) -> 10 | AE144: =CHOOSE(MATCH(AD144,{1,2,3,4,5,6,7,8,9,10,11,12,13,14,15,16,17},),$C$7,$C$9,$C$11,$C$13,$C$15,$C$17,$C$19,$C$21,$C$23,$C$25,#REF!,$C$27,$C$29,$C$31,$C$33,$C$35,$C$37) -> 4010 | AF144: =CHOOSE(MATCH(AD144,{1,2,3,4,5,6,7,8,9,10,11,12,13,14,15,16,17},), $D$7,$D$9,$D$11,$D$13,$D$15,$D$17,$D$19,$D$21,$D$23,$D$25,#REF!,$D$27,$D$29,$D$31,$D$33,$D$35,$D$37,) -> 410
AF148: Руководитель ковра
AD167: ПРОТОКОЛ ХОДА СХВАТКИ
AE168: ВЕС кг | AG168: утешение | AJ168: КОВЕР | AL168: 1
AD170: № п/п | AE170: Фамилия Имя | AF170: Город общество | AG170: 1 период | AI170: 2 период | AK170: баллы | AL170: очки | AM170: Судьи
AD172: =VALUE(N46) -> 0 | AE172: =CHOOSE(MATCH(AD172,{1,2,3,4,5,6,7,8,9,10,11,12,13,14,15,16,17},),$C$7,$C$9,$C$11,$C$13,$C$15,$C$17,$C$19,$C$21,$C$23,$C$25,#REF!,$C$27,$C$29,$C$31,$C$33,$C$35,$C$37) ->  | AF172: =CHOOSE(MATCH(AD172,{1,2,3,4,5,6,7,8,9,10,11,12,13,14,15,16,17},), $D$7,$D$9,$D$11,$D$13,$D$15,$D$17,$D$19,$D$21,$D$23,$D$25,#REF!,$D$27,$D$29,$D$31,$D$33,$D$35,$D$37,) -> 
AD174: =VALUE(N50) -> 0 | AE174: =CHOOSE(MATCH(AD174,{1,2,3,4,5,6,7,8,9,10,11,12,13,14,15,16,17},),$C$7,$C$9,$C$11,$C$13,$C$15,$C$17,$C$19,$C$21,$C$23,$C$25,#REF!,$C$27,$C$29,$C$31,$C$33,$C$35,$C$37) ->  | AF174: =CHOOSE(MATCH(AD174,{1,2,3,4,5,6,7,8,9,10,11,12,13,14,15,16,17},), $D$7,$D$9,$D$11,$D$13,$D$15,$D$17,$D$19,$D$21,$D$23,$D$25,#REF!,$D$27,$D$29,$D$31,$D$33,$D$35,$D$37,) -> 
AD176: =VALUE(N61) ->  | AE176: =CHOOSE(MATCH(AD176,{1,2,3,4,5,6,7,8,9,10,11,12,13,14,15,16,17},),$C$7,$C$9,$C$11,$C$13,$C$15,$C$17,$C$19,$C$21,$C$23,$C$25,#REF!,$C$27,$C$29,$C$31,$C$33,$C$35,$C$37) ->  | AF176: =CHOOSE(MATCH(AD176,{1,2,3,4,5,6,7,8,9,10,11,12,13,14,15,16,17},), $D$7,$D$9,$D$11,$D$13,$D$15,$D$17,$D$19,$D$21,$D$23,$D$25,#REF!,$D$27,$D$29,$D$31,$D$33,$D$35,$D$37,) -> 
AD178: =VALUE(N65) ->  | AE178: =CHOOSE(MATCH(AD178,{1,2,3,4,5,6,7,8,9,10,11,12,13,14,15,16,17},),$C$7,$C$9,$C$11,$C$13,$C$15,$C$17,$C$19,$C$21,$C$23,$C$25,#REF!,$C$27,$C$29,$C$31,$C$33,$C$35,$C$37) ->  | AF178: =CHOOSE(MATCH(AD178,{1,2,3,4,5,6,7,8,9,10,11,12,13,14,15,16,17},), $D$7,$D$9,$D$11,$D$13,$D$15,$D$17,$D$19,$D$21,$D$23,$D$25,#REF!,$D$27,$D$29,$D$31,$D$33,$D$35,$D$37,) -> 
AF182: Руководитель ковра
AD213: ПРОТОКОЛ ХОДА СХВАТКИ
AE214: ВЕС кг | AG214: финал за 3м. | AJ214: КОВЕР | AL214: 1
AD216: № п/п | AE216: Фамилия Имя | AF216: Город общество | AG216: 1 период | AI216: 2 период | AK216: баллы | AL216: очки | AM216: Судьи
AD218: =VALUE(Q48) -> 1 | AE218: =CHOOSE(MATCH(AD218,{1,2,3,4,5,6,7,8,9,10,11,12,13,14,15,16,17},),$C$7,$C$9,$C$11,$C$13,$C$15,$C$17,$C$19,$C$21,$C$23,$C$25,#REF!,$C$27,$C$29,$C$31,$C$33,$C$35,$C$37) -> 4001 | AF218: =CHOOSE(MATCH(AD218,{1,2,3,4,5,6,7,8,9,10,11,12,13,14,15,16,17},), $D$7,$D$9,$D$11,$D$13,$D$15,$D$17,$D$19,$D$21,$D$23,$D$25,#REF!,$D$27,$D$29,$D$31,$D$33,$D$35,$D$37,) -> 401
AD220: =VALUE(Q52) -> 4 | AE220: =CHOOSE(MATCH(AD220,{1,2,3,4,5,6,7,8,9,10,11,12,13,14,15,16,17},),$C$7,$C$9,$C$11,$C$13,$C$15,$C$17,$C$19,$C$21,$C$23,$C$25,#REF!,$C$27,$C$29,$C$31,$C$33,$C$35,$C$37) -> 4004 | AF220: =CHOOSE(MATCH(AD220,{1,2,3,4,5,6,7,8,9,10,11,12,13,14,15,16,17},), $D$7,$D$9,$D$11,$D$13,$D$15,$D$17,$D$19,$D$21,$D$23,$D$25,#REF!,$D$27,$D$29,$D$31,$D$33,$D$35,$D$37,) -> 404
AD222: =VALUE(Q63) ->  | AE222: =CHOOSE(MATCH(AD222,{1,2,3,4,5,6,7,8,9,10,11,12,13,14,15,16,17},),$C$7,$C$9,$C$11,$C$13,$C$15,$C$17,$C$19,$C$21,$C$23,$C$25,#REF!,$C$27,$C$29,$C$31,$C$33,$C$35,$C$37) ->  | AF222: =CHOOSE(MATCH(AD222,{1,2,3,4,5,6,7,8,9,10,11,12,13,14,15,16,17},), $D$7,$D$9,$D$11,$D$13,$D$15,$D$17,$D$19,$D$21,$D$23,$D$25,#REF!,$D$27,$D$29,$D$31,$D$33,$D$35,$D$37,) -> 
AD224: =VALUE(Q67) -> 10 | AE224: =CHOOSE(MATCH(AD224,{1,2,3,4,5,6,7,8,9,10,11,12,13,14,15,16,17},),$C$7,$C$9,$C$11,$C$13,$C$15,$C$17,$C$19,$C$21,$C$23,$C$25,#REF!,$C$27,$C$29,$C$31,$C$33,$C$35,$C$37) -> 4010 | AF224: =CHOOSE(MATCH(AD224,{1,2,3,4,5,6,7,8,9,10,11,12,13,14,15,16,17},), $D$7,$D$9,$D$11,$D$13,$D$15,$D$17,$D$19,$D$21,$D$23,$D$25,#REF!,$D$27,$D$29,$D$31,$D$33,$D$35,$D$37,) -> 410
AF228: Руководитель ковра
AD236: ПРОТОКОЛ ХОДА СХВАТКИ
AE237: ВЕС кг | AG237: финал | AJ237: КОВЕР | AL237: 1
AD239: № п/п | AE239: Фамилия Имя | AF239: Город общество | AG239: 1 период | AI239: 2 период | AK239: баллы | AL239: очки | AM239: Судьи
AD241: =VALUE( Q14) -> 2 | AE241: =CHOOSE(MATCH(AD241,{1,2,3,4,5,6,7,8,9,10,11,12,13,14,15,16,17},),$C$7,$C$9,$C$11,$C$13,$C$15,$C$17,$C$19,$C$21,$C$23,$C$25,#REF!,$C$27,$C$29,$C$31,$C$33,$C$35,$C$37) -> 4002 | AF241: =CHOOSE(MATCH(AD241,{1,2,3,4,5,6,7,8,9,10,11,12,13,14,15,16,17},), $D$7,$D$9,$D$11,$D$13,$D$15,$D$17,$D$19,$D$21,$D$23,$D$25,#REF!,$D$27,$D$29,$D$31,$D$33,$D$35,$D$37,) -> 402
AD243: =VALUE(Q30) -> 6 | AE243: =CHOOSE(MATCH(AD243,{1,2,3,4,5,6,7,8,9,10,11,12,13,14,15,16,17},),$C$7,$C$9,$C$11,$C$13,$C$15,$C$17,$C$19,$C$21,$C$23,$C$25,#REF!,$C$27,$C$29,$C$31,$C$33,$C$35,$C$37) -> 4006 | AF243: =CHOOSE(MATCH(AD243,{1,2,3,4,5,6,7,8,9,10,11,12,13,14,15,16,17},), $D$7,$D$9,$D$11,$D$13,$D$15,$D$17,$D$19,$D$21,$D$23,$D$25,#REF!,$D$27,$D$29,$D$31,$D$33,$D$35,$D$37,) -> 406
AF250: Руководитель ковра

Sheet 11 уч
A1: ПРОТОКОЛ ХОДА СОРЕВНОВАНИЙ
A2: Турнир по борьбе вольной, памяти первого тренерашколы НЕЙЧА И.В.19 мая 2017г
C3: ВЕС кг
A5: МЕСТО | B5: № п/п | C5: Фамилия Имя | D5: Город общество | E5: Год рожд | F5: Разряд | H5: квалификация | K5: 1/4 финала | N5: 1/2 финала | Q5: ФИНАЛ за 1место
X6: "1/4"
B7: 1 | C7: 4001 | D7: 401 | H7: 1 | I7: св | W7: 1 | X7: =VLOOKUP(K8,$K$8:$L$37,2)+100 -> 103
K8: 1 | L8: 3 | W8: 2 | X8: =VLOOKUP(W8,$K$8:$L$37,2)+100 -> 105
B9: 2 | C9: 4002 | D9: 402 | H9: 2 | I9: св | W9: 3 | X9: 101
N10: =IF(L8>L12,K8,K12) -> 2 | O10: 1 | W10: 4 | X10: 105
B11: 3 | C11: 4003 | D11: 403 | H11: 3 | I11: св | W11: 5 | X11: 103
K12: 2 | L12: 5 | W12: 6 | X12: 104
B13: 4 | C13: 4004 | D13: 404 | H13: 4 | I13: св | W13: 7 | X13: 104
Q14: =IF(O10>O18,N10,N18) -> 2 | R14: 1 | W14: 8 | X14: 106
B15: 5 | C15: 4005 | D15: 405 | H15: 5 | I15: св | W15: 9 | X15: 106
K16: 3 | L16: 1 | W16: 10 | X16: 103
B17: 6 | C17: 4006 | D17: 406 | H17: 6 | I17: 1 | W17: 11 | X17: =VLOOKUP(H27,$K$8:$L$37,2) -> 3
N18: =IF(L16>L20,K16,K20) -> 4 | O18: 0
B19: 7 | C19: 4007 | D19: 407 | H19: 7 | I19: 0
K20: 4 | L20: 5
B21: 8 | C21: 4008 | D21: 408 | H21: 8 | I21: 4
T22: =IF(R14>R30,Q14,Q30) -> 2
B23: 9 | C23: 4009 | D23: 409 | H23: 9 | I23: 3
K24: 5 | L24: 3
B25: 10 | C25: 4010 | D25: 410 | H25: 10 | I25: 6
N26: =IF(L24>L28,K24,K28) -> 6 | O26: 4
B27: 11 | C27: 4011 | D27: 411 | H27: 11 | I27: 5
K28: =IF(I17>I19,H17,H19) -> 6 | L28: 4
Q30: =IF(O26>O34,N26,N34) -> 8 | R30: 0
K32: =IF( I21>I23,H21,H23) -> 8 | L32: 6
N34: =IF(L32>L36,K32,K36) -> 8 | O34: 5
K36: =IF(I25>I27,H25,H27) -> 10 | L36: 3
K39: ПЕРЕЭКЗАМЕНОВКА
K42: ПРОИГРАВШИЕ ПЕРВОМУ ФИНАЛИСТУ
R46: 3 МЕСТО
Q48: =CHOOSE(MATCH($Q$14,{1,2,3,4,5,6,7,8,9,10,11,12},),2,1,4,3,$K$28,$K$28,$K$24,$K$24,$K$36,$K$36,$K$32,$K$32) -> 1 | R48: 3
T50: =IF(R48>R52,Q48,Q52) -> 1
Q52: =IF(O10<O18,N10,N18) -> 4 | R52: 0
K57: ПРОИГРАВШИЕ ВТОРОМУ ФИНАЛИСТУ
N61: =CHOOSE(MATCH($Q$30,{6,7,8,9,10,11},),7,6,9,8,11,10,) -> 9 | O61: 1 | R61: 3 МЕСТО
Q63: =IF(O61>O65,N61,N65) -> 9 | R63: 1
N65: =CHOOSE(MATCH($Q$30,{5,6,7,8,9,10,11},),$K$28,$K$24,$K$24,$K$36,$K$36,$K$32,$K$32) -> 10 | O65: 0 | T65: =IF(R63>R67,Q63,Q67) -> 9
Q67: =IF(O26<O34,N26,N34) -> 6 | R67: 0
AD71: ПРОТОКОЛ ХОДА СХВАТКИ
AE72: ВЕС кг | AG72: квалификация | AJ72: КОВЕР
AD74: № п/п | AE74: Фамилия Имя | AF74: Город общество | AG74: 1 период | AI74: 2 период | AK74: баллы | AL74: очки | AM74: Судьи
AD76: 6 | AE76: =CHOOSE(MATCH(AD76,{1,2,3,4,5,6,7,8,9,10,11,12,13,14,15,16,17},),$C$7,$C$9,$C$11,$C$13,$C$15,$C$17,$C$19,$C$21,$C$23,$C$25,$C$27,$C$29,$C$31,$C$33,$C$35,$C$37,$C$39) -> 4006 | AF76: =CHOOSE(MATCH(AD76,{1,2,3,4,5,6,7,8,9,10,11,12,13,14,15,16,17},), $D$7,$D$9,$D$11,$D$13,$D$15,$D$17,$D$19,$D$21,$D$23,$D$25,$D$27,$D$29,$D$31,$D$33,$D$35,$D$37,$D$39,) -> 406
AD78: 7 | AE78: =CHOOSE(MATCH(AD78,{1,2,3,4,5,6,7,8,9,10,11,12,13,14,15,16,17},),$C$7,$C$9,$C$11,$C$13,$C$15,$C$17,$C$19,$C$21,$C$23,$C$25,$C$27,$C$29,$C$31,$C$33,$C$35,$C$37,$C$39) -> 4007 | AF78: =CHOOSE(MATCH(AD78,{1,2,3,4,5,6,7,8,9,10,11,12,13,14,15,16,17},), $D$7,$D$9,$D$11,$D$13,$D$15,$D$17,$D$19,$D$21,$D$23,$D$25,$D$27,$D$29,$D$31,$D$33,$D$35,$D$37,$D$39,) -> 407
AD80: 8 | AE80: =CHOOSE(MATCH(AD80,{1,2,3,4,5,6,7,8,9,10,11,12,13,14,15,16,17},),$C$7,$C$9,$C$11,$C$13,$C$15,$C$17,$C$19,$C$21,$C$23,$C$25,$C$27,$C$29,$C$31,$C$33,$C$35,$C$37,$C$39) -> 4008 | AF80: =CHOOSE(MATCH(AD80,{1,2,3,4,5,6,7,8,9,10,11,12,13,14,15,16,17},), $D$7,$D$9,$D$11,$D$13,$D$15,$D$17,$D$19,$D$21,$D$23,$D$25,$D$27,$D$29,$D$31,$D$33,$D$35,$D$37,$D$39,) -> 408
AD82: 9 | AE82: =CHOOSE(MATCH(AD82,{1,2,3,4,5,6,7,8,9,10,11,12,13,14,15,16,17},),$C$7,$C$9,$C$11,$C$13,$C$15,$C$17,$C$19,$C$21,$C$23,$C$25,$C$27,$C$29,$C$31,$C$33,$C$35,$C$37,$C$39) -> 4009 | AF82: =CHOOSE(MATCH(AD82,{1,2,3,4,5,6,7,8,9,10,11,12,13,14,15,16,17},), $D$7,$D$9,$D$11,$D$13,$D$15,$D$17,$D$19,$D$21,$D$23,$D$25,$D$27,$D$29,$D$31,$D$33,$D$35,$D$37,$D$39,) -> 409
AD84: 10 | AE84: =CHOOSE(MATCH(AD84,{1,2,3,4,5,6,7,8,9,10,11,12,13,14,15,16,17},),$C$7,$C$9,$C$11,$C$13,$C$15,$C$17,$C$19,$C$21,$C$23,$C$25,$C$27,$C$29,$C$31,$C$33,$C$35,$C$37,$C$39) -> 4010 | AF84: =CHOOSE(MATCH(AD84,{1,2,3,4,5,6,7,8,9,10,11,12,13,14,15,16,17},), $D$7,$D$9,$D$11,$D$13,$D$15,$D$17,$D$19,$D$21,$D$23,$D$25,$D$27,$D$29,$D$31,$D$33,$D$35,$D$37,$D$39,) -> 410
AD86: 11 | AE86: =CHOOSE(MATCH(AD86,{1,2,3,4,5,6,7,8,9,10,11,12,13,14,15,16,17},),$C$7,$C$9,$C$11,$C$13,$C$15,$C$17,$C$19,$C$21,$C$23,$C$25,$C$27,$C$29,$C$31,$C$33,$C$35,$C$37,$C$39) -> 4011 | AF86: =CHOOSE(MATCH(AD86,{1,2,3,4,5,6,7,8,9,10,11,12,13,14,15,16,17},), $D$7,$D$9,$D$11,$D$13,$D$15,$D$17,$D$19,$D$21,$D$23,$D$25,$D$27,$D$29,$D$31,$D$33,$D$35,$D$37,$D$39,) -> 411
AF90: Руководитель ковра
AD114: ПРОТОКОЛ ХОДА СХВАТКИ
AE115: ВЕС кг | AG115: 1/4 финала | AJ115: КОВЕР | AL115: 1
AD117: № п/п | AE117: Фамилия Имя | AF117: Город общество | AG117: 1 период | AI117: 2 период | AK117: баллы | AL117: очки | AM117: Судьи
AD119: =VALUE(K8) -> 1 | AE119: =CHOOSE(MATCH(AD119,{1,2,3,4,5,6,7,8,9,10,11,12,13,14,15,16,17},),$C$7,$C$9,$C$11,$C$13,$C$15,$C$17,$C$19,$C$21,$C$23,$C$25,$C$27,$C$29,$C$31,$C$33,$C$35,$C$37,$C$39) -> 4001 | AF119: =CHOOSE(MATCH(AD119,{1,2,3,4,5,6,7,8,9,10,11,12,13,14,15,16,17},), $D$7,$D$9,$D$11,$D$13,$D$15,$D$17,$D$19,$D$21,$D$23,$D$25,$D$27,$D$29,$D$31,$D$33,$D$35,$D$37,$D$39,) -> 401
AD121: =VALUE(K12) -> 2 | AE121: =CHOOSE(MATCH(AD121,{1,2,3,4,5,6,7,8,9,10,11,12,13,14,15,16,17},),$C$7,$C$9,$C$11,$C$13,$C$15,$C$17,$C$19,$C$21,$C$23,$C$25,$C$27,$C$29,$C$31,$C$33,$C$35,$C$37,$C$39) -> 4002 | AF121: =CHOOSE(MATCH(AD121,{1,2,3,4,5,6,7,8,9,10,11,12,13,14,15,16,17},), $D$7,$D$9,$D$11,$D$13,$D$15,$D$17,$D$19,$D$21,$D$23,$D$25,$D$27,$D$29,$D$31,$D$33,$D$35,$D$37,$D$39,) -> 402
AD123: =VALUE(K16) -> 3 | AE123: =CHOOSE(MATCH(AD123,{1,2,3,4,5,6,7,8,9,10,11,12,13,14,15,16,17},),$C$7,$C$9,$C$11,$C$13,$C$15,$C$17,$C$19,$C$21,$C$23,$C$25,$C$27,$C$29,$C$31,$C$33,$C$35,$C$37,$C$39) -> 4003 | AF123: =CHOOSE(MATCH(AD123,{1,2,3,4,5,6,7,8,9,10,11,12,13,14,15,16,17},), $D$7,$D$9,$D$11,$D$13,$D$15,$D$17,$D$19,$D$21,$D$23,$D$25,$D$27,$D$29,$D$31,$D$33,$D$35,$D$37,$D$39,) -> 403
AD125: =VALUE(K20) -> 4 | AE125: =CHOOSE(MATCH(AD125,{1,2,3,4,5,6,7,8,9,10,11,12,13,14,15,16,17},),$C$7,$C$9,$C$11,$C$13,$C$15,$C$17,$C$19,$C$21,$C$23,$C$25,$C$27,$C$29,$C$31,$C$33,$C$35,$C$37,$C$39) -> 4004 | AF125: =CHOOSE(MATCH(AD125,{1,2,3,4,5,6,7,8,9,10,11,12,13,14,15,16,17},), $D$7,$D$9,$D$11,$D$13,$D$15,$D$17,$D$19,$D$21,$D$23,$D$25,$D$27,$D$29,$D$31,$D$33,$D$35,$D$37,$D$39,) -> 404
AD127: =VALUE(K24) -> 5 | AE127: =CHOOSE(MATCH(AD127,{1,2,3,4,5,6,7,8,9,10,11,12,13,14,15,16,17},),$C$7,$C$9,$C$11,$C$13,$C$15,$C$17,$C$19,$C$21,$C$23,$C$25,$C$27,$C$29,$C$31,$C$33,$C$35,$C$37,$C$39) -> 4005 | AF127: =CHOOSE(MATCH(AD127,{1,2,3,4,5,6,7,8,9,10,11,12,13,14,15,16,17},), $D$7,$D$9,$D$11,$D$13,$D$15,$D$17,$D$19,$D$21,$D$23,$D$25,$D$27,$D$29,$D$31,$D$33,$D$35,$D$37,$D$39,) -> 405
AD129: =VALUE(K28) -> 6 | AE129: =CHOOSE(MATCH(AD129,{1,2,3,4,5,6,7,8,9,10,11,12,13,14,15,16,17},),$C$7,$C$9,$C$11,$C$13,$C$15,$C$17,$C$19,$C$21,$C$23,$C$25,$C$27,$C$29,$C$31,$C$33,$C$35,$C$37,$C$39) -> 4006 | AF129: =CHOOSE(MATCH(AD129,{1,2,3,4,5,6,7,8,9,10,11,12,13,14,15,16,17},), $D$7,$D$9,$D$11,$D$13,$D$15,$D$17,$D$19,$D$21,$D$23,$D$25,$D$27,$D$29,$D$31,$D$33,$D$35,$D$37,$D$39,) -> 406
AD131: =VALUE(K32) -> 8 | AE131: =CHOOSE(MATCH(AD131,{1,2,3,4,5,6,7,8,9,10,11,12,13,14,15,16,17},),$C$7,$C$9,$C$11,$C$13,$C$15,$C$17,$C$19,$C$21,$C$23,$C$25,$C$27,$C$29,$C$31,$C$33,$C$35,$C$37,$C$39) -> 4008 | AF131: =CHOOSE(MATCH(AD131,{1,2,3,4,5,6,7,8,9,10,11,12,13,14,15,16,17},), $D$7,$D$9,$D$11,$D$13,$D$15,$D$17,$D$19,$D$21,$D$23,$D$25,$D$27,$D$29,$D$31,$D$33,$D$35,$D$37,$D$39,) -> 408
AD133: =VALUE(K36) -> 10 | AE133: =CHOOSE(MATCH(AD133,{1,2,3,4,5,6,7,8,9,10,11,12,13,14,15,16,17},),$C$7,$C$9,$C$11,$C$13,$C$15,$C$17,$C$19,$C$21,$C$23,$C$25,$C$27,$C$29,$C$31,$C$33,$C$35,$C$37,$C$39) -> 4010 | AF133: =CHOOSE(MATCH(AD133,{1,2,3,4,5,6,7,8,9,10,11,12,13,14,15,16,17},), $D$7,$D$9,$D$11,$D$13,$D$15,$D$17,$D$19,$D$21,$D$23,$D$25,$D$27,$D$29,$D$31,$D$33,$D$35,$D$37,$D$39,) -> 410
AF138: Руководитель ковра
AD141: ПРОТОКОЛ ХОДА СХВАТКИ
AE142: ВЕС кг | AG142: 1/2 финала | AJ142: КОВЕР | AL142: 1
AD144: № п/п | AE144: Фамилия Имя | AF144: Город общество | AG144: 1 период | AI144: 2 период | AK144: баллы | AL144: очки | AM144: Судьи
AD146: =VALUE(N10) -> 2 | AE146: =CHOOSE(MATCH(AD146,{1,2,3,4,5,6,7,8,9,10,11,12,13,14,15,16,17},),$C$7,$C$9,$C$11,$C$13,$C$15,$C$17,$C$19,$C$21,$C$23,$C$25,$C$27,$C$29,$C$31,$C$33,$C$35,$C$37,$C$39) -> 4002 | AF146: =CHOOSE(MATCH(AD146,{1,2,3,4,5,6,7,8,9,10,11,12,13,14,15,16,17},), $D$7,$D$9,$D$11,$D$13,$D$15,$D$17,$D$19,$D$21,$D$23,$D$25,$D$27,$D$29,$D$31,$D$33,$D$35,$D$37,$D$39,) -> 402
AD148: =VALUE(N18) -> 4 | AE148: =CHOOSE(MATCH(AD148,{1,2,3,4,5,6,7,8,9,10,11,12,13,14,15,16,17},),$C$7,$C$9,$C$11,$C$13,$C$15,$C$17,$C$19,$C$21,$C$23,$C$25,$C$27,$C$29,$C$31,$C$33,$C$35,$C$37,$C$39) -> 4004 | AF148: =CHOOSE(MATCH(AD148,{1,2,3,4,5,6,7,8,9,10,11,12,13,14,15,16,17},), $D$7,$D$9,$D$11,$D$13,$D$15,$D$17,$D$19,$D$21,$D$23,$D$25,$D$27,$D$29,$D$31,$D$33,$D$35,$D$37,$D$39,) -> 404
AD150: =VALUE(N26) -> 6 | AE150: =CHOOSE(MATCH(AD150,{1,2,3,4,5,6,7,8,9,10,11,12,13,14,15,16,17},),$C$7,$C$9,$C$11,$C$13,$C$15,$C$17,$C$19,$C$21,$C$23,$C$25,$C$27,$C$29,$C$31,$C$33,$C$35,$C$37,$C$39) -> 4006 | AF150: =CHOOSE(MATCH(AD150,{1,2,3,4,5,6,7,8,9,10,11,12,13,14,15,16,17},), $D$7,$D$9,$D$11,$D$13,$D$15,$D$17,$D$19,$D$21,$D$23,$D$25,$D$27,$D$29,$D$31,$D$33,$D$35,$D$37,$D$39,) -> 406
AD152: =VALUE(N34) -> 8 | AE152: =CHOOSE(MATCH(AD152,{1,2,3,4,5,6,7,8,9,10,11,12,13,14,15,16,17},),$C$7,$C$9,$C$11,$C$13,$C$15,$C$17,$C$19,$C$21,$C$23,$C$25,$C$27,$C$29,$C$31,$C$33,$C$35,$C$37,$C$39) -> 4008 | AF152: =CHOOSE(MATCH(AD152,{1,2,3,4,5,6,7,8,9,10,11,12,13,14,15,16,17},), $D$7,$D$9,$D$11,$D$13,$D$15,$D$17,$D$19,$D$21,$D$23,$D$25,$D$27,$D$29,$D$31,$D$33,$D$35,$D$37,$D$39,) -> 408
AF156: Руководитель ковра
AD175: ПРОТОКОЛ ХОДА СХВАТКИ
AE176: ВЕС кг | AG176: утешение | AJ176: КОВЕР | AL176: 1
AD178: № п/п | AE178: Фамилия Имя | AF178: Город общество | AG178: 1 период | AI178: 2 период | AK178: баллы | AL178: очки | AM178: Судьи
AD180: =VALUE(N46) -> 0 | AE180: =CHOOSE(MATCH(AD180,{1,2,3,4,5,6,7,8,9,10,11,12,13,14,15,16,17},),$C$7,$C$9,$C$11,$C$13,$C$15,$C$17,$C$19,$C$21,$C$23,$C$25,$C$27,$C$29,$C$31,$C$33,$C$35,$C$37,$C$39) ->  | AF180: =CHOOSE(MATCH(AD180,{1,2,3,4,5,6,7,8,9,10,11,12,13,14,15,16,17},), $D$7,$D$9,$D$11,$D$13,$D$15,$D$17,$D$19,$D$21,$D$23,$D$25,$D$27,$D$29,$D$31,$D$33,$D$35,$D$37,$D$39,) -> 
AD182: =VALUE(N50) -> 0 | AE182: =CHOOSE(MATCH(AD182,{1,2,3,4,5,6,7,8,9,10,11,12,13,14,15,16,17},),$C$7,$C$9,$C$11,$C$13,$C$15,$C$17,$C$19,$C$21,$C$23,$C$25,$C$27,$C$29,$C$31,$C$33,$C$35,$C$37,$C$39) ->  | AF182: =CHOOSE(MATCH(AD182,{1,2,3,4,5,6,7,8,9,10,11,12,13,14,15,16,17},), $D$7,$D$9,$D$11,$D$13,$D$15,$D$17,$D$19,$D$21,$D$23,$D$25,$D$27,$D$29,$D$31,$D$33,$D$35,$D$37,$D$39,) -> 
AD184: =VALUE(N61) -> 9 | AE184: =CHOOSE(MATCH(AD184,{1,2,3,4,5,6,7,8,9,10,11,12,13,14,15,16,17},),$C$7,$C$9,$C$11,$C$13,$C$15,$C$17,$C$19,$C$21,$C$23,$C$25,$C$27,$C$29,$C$31,$C$33,$C$35,$C$37,$C$39) -> 4009 | AF184: =CHOOSE(MATCH(AD184,{1,2,3,4,5,6,7,8,9,10,11,12,13,14,15,16,17},), $D$7,$D$9,$D$11,$D$13,$D$15,$D$17,$D$19,$D$21,$D$23,$D$25,$D$27,$D$29,$D$31,$D$33,$D$35,$D$37,$D$39,) -> 409
AD186: =VALUE(N65) -> 10 | AE186: =CHOOSE(MATCH(AD186,{1,2,3,4,5,6,7,8,9,10,11,12,13,14,15,16,17},),$C$7,$C$9,$C$11,$C$13,$C$15,$C$17,$C$19,$C$21,$C$23,$C$25,$C$27,$C$29,$C$31,$C$33,$C$35,$C$37,$C$39) -> 4010 | AF186: =CHOOSE(MATCH(AD186,{1,2,3,4,5,6,7,8,9,10,11,12,13,14,15,16,17},), $D$7,$D$9,$D$11,$D$13,$D$15,$D$17,$D$19,$D$21,$D$23,$D$25,$D$27,$D$29,$D$31,$D$33,$D$35,$D$37,$D$39,) -> 410
AF190: Руководитель ковра
AD221: ПРОТОКОЛ ХОДА СХВАТКИ
AE222: ВЕС кг | AG222: финал за 3м. | AJ222: КОВЕР | AL222: 1
AD224: № п/п | AE224: Фамилия Имя | AF224: Город общество | AG224: 1 период | AI224: 2 период | AK224: баллы | AL224: очки | AM224: Судьи
AD226: =VALUE(Q48) -> 1 | AE226: =CHOOSE(MATCH(AD226,{1,2,3,4,5,6,7,8,9,10,11,12,13,14,15,16,17},),$C$7,$C$9,$C$11,$C$13,$C$15,$C$17,$C$19,$C$21,$C$23,$C$25,$C$27,$C$29,$C$31,$C$33,$C$35,$C$37,$C$39) -> 4001 | AF226: =CHOOSE(MATCH(AD226,{1,2,3,4,5,6,7,8,9,10,11,12,13,14,15,16,17},), $D$7,$D$9,$D$11,$D$13,$D$15,$D$17,$D$19,$D$21,$D$23,$D$25,$D$27,$D$29,$D$31,$D$33,$D$35,$D$37,$D$39,) -> 401
AD228: =VALUE(Q52) -> 4 | AE228: =CHOOSE(MATCH(AD228,{1,2,3,4,5,6,7,8,9,10,11,12,13,14,15,16,17},),$C$7,$C$9,$C$11,$C$13,$C$15,$C$17,$C$19,$C$21,$C$23,$C$25,$C$27,$C$29,$C$31,$C$33,$C$35,$C$37,$C$39) -> 4004 | AF228: =CHOOSE(MATCH(AD228,{1,2,3,4,5,6,7,8,9,10,11,12,13,14,15,16,17},), $D$7,$D$9,$D$11,$D$13,$D$15,$D$17,$D$19,$D$21,$D$23,$D$25,$D$27,$D$29,$D$31,$D$33,$D$35,$D$37,$D$39,) -> 404
AD230: =VALUE(Q63) -> 9 | AE230: =CHOOSE(MATCH(AD230,{1,2,3,4,5,6,7,8,9,10,11,12,13,14,15,16,17},),$C$7,$C$9,$C$11,$C$13,$C$15,$C$17,$C$19,$C$21,$C$23,$C$25,$C$27,$C$29,$C$31,$C$33,$C$35,$C$37,$C$39) -> 4009 | AF230: =CHOOSE(MATCH(AD230,{1,2,3,4,5,6,7,8,9,10,11,12,13,14,15,16,17},), $D$7,$D$9,$D$11,$D$13,$D$15,$D$17,$D$19,$D$21,$D$23,$D$25,$D$27,$D$29,$D$31,$D$33,$D$35,$D$37,$D$39,) -> 409
AD232: =VALUE(Q67) -> 6 | AE232: =CHOOSE(MATCH(AD232,{1,2,3,4,5,6,7,8,9,10,11,12,13,14,15,16,17},),$C$7,$C$9,$C$11,$C$13,$C$15,$C$17,$C$19,$C$21,$C$23,$C$25,$C$27,$C$29,$C$31,$C$33,$C$35,$C$37,$C$39) -> 4006 | AF232: =CHOOSE(MATCH(AD232,{1,2,3,4,5,6,7,8,9,10,11,12,13,14,15,16,17},), $D$7,$D$9,$D$11,$D$13,$D$15,$D$17,$D$19,$D$21,$D$23,$D$25,$D$27,$D$29,$D$31,$D$33,$D$35,$D$37,$D$39,) -> 406
AF236: Руководитель ковра
AD244: ПРОТОКОЛ ХОДА СХВАТКИ
AE245: ВЕС кг | AG245: финал | AJ245: КОВЕР | AL245: 1
AD247: № п/п | AE247: Фамилия Имя | AF247: Город общество | AG247: 1 период | AI247: 2 период | AK247: баллы | AL247: очки | AM247: Судьи
AD249: =VALUE( Q14) -> 2 | AE249: =CHOOSE(MATCH(AD249,{1,2,3,4,5,6,7,8,9,10,11,12,13,14,15,16,17},),$C$7,$C$9,$C$11,$C$13,$C$15,$C$17,$C$19,$C$21,$C$23,$C$25,$C$27,$C$29,$C$31,$C$33,$C$35,$C$37,$C$39) -> 4002 | AF249: =CHOOSE(MATCH(AD249,{1,2,3,4,5,6,7,8,9,10,11,12,13,14,15,16,17},), $D$7,$D$9,$D$11,$D$13,$D$15,$D$17,$D$19,$D$21,$D$23,$D$25,$D$27,$D$29,$D$31,$D$33,$D$35,$D$37,$D$39,) -> 402
AD251: =VALUE(Q30) -> 8 | AE251: =CHOOSE(MATCH(AD251,{1,2,3,4,5,6,7,8,9,10,11,12,13,14,15,16,17},),$C$7,$C$9,$C$11,$C$13,$C$15,$C$17,$C$19,$C$21,$C$23,$C$25,$C$27,$C$29,$C$31,$C$33,$C$35,$C$37,$C$39) -> 4008 | AF251: =CHOOSE(MATCH(AD251,{1,2,3,4,5,6,7,8,9,10,11,12,13,14,15,16,17},), $D$7,$D$9,$D$11,$D$13,$D$15,$D$17,$D$19,$D$21,$D$23,$D$25,$D$27,$D$29,$D$31,$D$33,$D$35,$D$37,$D$39,) -> 408
AF258: Руководитель ковра

Sheet 12уч
A1: ПРОТОКОЛ ХОДА СОРЕВНОВАНИЙ
A2: Турнир по борьбе вольной, памяти первого тренерашколы НЕЙЧА И.В.19 мая 2017г
C3: ВЕС кг
A5: МЕСТО | B5: № п/п | C5: Фамилия Имя | D5: Город общество | E5: Год рожд | F5: Разряд | H5: квалификация | K5: 1/4 финала | N5: 1/2 финала | Q5: ФИНАЛ за 1место
B7: 1 | C7: 4001 | D7: 401 | H7: 1 | I7: св
K8: 1 | L8: 5
B9: 2 | C9: 4002 | D9: 402 | H9: 2 | I9: св
N10: =IF(L8>L12,K8,K12) -> 1 | O10: 1
B11: 3 | C11: 4003 | D11: 403 | H11: 3 | I11: св
K12: 2 | L12: 4
B13: 4 | C13: 4004 | D13: 404 | H13: 4 | I13: св
Q14: =IF(O10>O18,N10,N18) -> 1 | R14: 1
B15: 5 | C15: 4005 | D15: 405 | H15: 5
K16: 3 | L16: 1
B17: 6 | C17: 4006 | D17: 406 | H17: 6
N18: =IF(L16>L20,K16,K20) -> 4 | O18: 0
B19: 7 | C19: 4007 | D19: 407 | H19: 7
K20: 4 | L20: 5
B21: 8 | C21: 4008 | D21: 408 | H21: 8
T22: =IF(R14>R30,Q14,Q30) -> 1
B23: 9 | C23: 4009 | D23: 409 | H23: 9
K24: =IF(I15>I17,H15,H17) -> 6 | L24: 3
B25: 10 | C25: 4010 | D25: 410 | H25: 10
N26: =IF(L24>L28,K24,K28) -> 6 | O26: 4
B27: 11 | C27: 4011 | D27: 411 | H27: 11
K28: =IF(I19>I21,H19,H21) -> 8 | L28: 1
B29: 12 | C29: 4012 | D29: 412 | H29: 12
Q30: =IF(O26>O34,N26,N34) -> 6 | R30: 0
K32: =IF( I23>I25,H23,H25) -> 10 | L32: 1
N34: =IF(L32>L36,K32,K36) -> 12 | O34: 0
K36: =IF(I27>I29,H27,H29) -> 12 | L36: 5
K39: ПЕРЕЭКЗАМЕНОВКА
K42: ПРОИГРАВШИЕ ПЕРВОМУ ФИНАЛИСТУ
R46: 3 МЕСТО
Q48: =CHOOSE(MATCH($Q$14,{1,2,3,4,5,6,7,8,9,10,11,12},),2,1,4,3,$K$28,$K$28,$K$24,$K$24,$K$36,$K$36,$K$32,$K$32) -> 2 | R48: 3
T50: =IF(R48>R52,Q48,Q52) -> 2
Q52: =IF(O10<O18,N10,N18) -> 4 | R52: 0
K57: ПРОИГРАВШИЕ ВТОРОМУ ФИНАЛИСТУ
U58: ПРОТОКОЛ ХОДА СХВАТКИ
V59: ВЕС кг | X59: квалификация | AA59: КОВЕР
N61: =CHOOSE(MATCH($Q$30,{3,4,5,6,7,8,9,10,11,12,13,14},),4,3,6,5,8,7,10,9,12,11,14,13,) -> 5 | O61: 1 | R61: 3 МЕСТО | U61: № п/п | V61: Фамилия Имя | W61: Город общество | X61: 1 период | Z61: 2 период | AB61: баллы | AC61: очки | AD61: Судьи
Q63: =IF(O61>O65,N61,N65) -> 5 | R63: 1 | U63: 5 | V63: =CHOOSE(MATCH(U63,{1,2,3,4,5,6,7,8,9,10,11,12,13,14,15,16,17},),$C$7,$C$9,$C$11,$C$13,$C$15,$C$17,$C$19,$C$21,$C$23,$C$25,$C$27,$C$29,$C$31,$C$33,$C$35,$C$37,$C$39) -> 4005 | W63: =CHOOSE(MATCH(U63,{1,2,3,4,5,6,7,8,9,10,11,12,13,14,15,16,17},), $D$7,$D$9,$D$11,$D$13,$D$15,$D$17,$D$19,$D$21,$D$23,$D$25,$D$27,$D$29,$D$31,$D$33,$D$35,$D$37,$D$39,) -> 405
N65: =CHOOSE(MATCH($Q$30,{1,2,3,4,5,6,7,8,9,10,11,12},),2,1,4,3,$K$28,$K$28,$K$24,$K$24,$K$36,$K$36,$K$32,$K$32) -> 8 | O65: 0 | T65: =IF(R63>R67,Q63,Q67) -> 5 | U65: 6 | V65: =CHOOSE(MATCH(U65,{1,2,3,4,5,6,7,8,9,10,11,12,13,14,15,16,17},),$C$7,$C$9,$C$11,$C$13,$C$15,$C$17,$C$19,$C$21,$C$23,$C$25,$C$27,$C$29,$C$31,$C$33,$C$35,$C$37,$C$39) -> 4006 | W65: =CHOOSE(MATCH(U65,{1,2,3,4,5,6,7,8,9,10,11,12,13,14,15,16,17},), $D$7,$D$9,$D$11,$D$13,$D$15,$D$17,$D$19,$D$21,$D$23,$D$25,$D$27,$D$29,$D$31,$D$33,$D$35,$D$37,$D$39,) -> 406
Q67: =IF(O26<O34,N26,N34) -> 12 | R67: 0 | U67: 7 | V67: =CHOOSE(MATCH(U67,{1,2,3,4,5,6,7,8,9,10,11,12,13,14,15,16,17},),$C$7,$C$9,$C$11,$C$13,$C$15,$C$17,$C$19,$C$21,$C$23,$C$25,$C$27,$C$29,$C$31,$C$33,$C$35,$C$37,$C$39) -> 4007 | W67: =CHOOSE(MATCH(U67,{1,2,3,4,5,6,7,8,9,10,11,12,13,14,15,16,17},), $D$7,$D$9,$D$11,$D$13,$D$15,$D$17,$D$19,$D$21,$D$23,$D$25,$D$27,$D$29,$D$31,$D$33,$D$35,$D$37,$D$39,) -> 407
U69: 8 | V69: =CHOOSE(MATCH(U69,{1,2,3,4,5,6,7,8,9,10,11,12,13,14,15,16,17},),$C$7,$C$9,$C$11,$C$13,$C$15,$C$17,$C$19,$C$21,$C$23,$C$25,$C$27,$C$29,$C$31,$C$33,$C$35,$C$37,$C$39) -> 4008 | W69: =CHOOSE(MATCH(U69,{1,2,3,4,5,6,7,8,9,10,11,12,13,14,15,16,17},), $D$7,$D$9,$D$11,$D$13,$D$15,$D$17,$D$19,$D$21,$D$23,$D$25,$D$27,$D$29,$D$31,$D$33,$D$35,$D$37,$D$39,) -> 408
U71: 9 | V71: =CHOOSE(MATCH(U71,{1,2,3,4,5,6,7,8,9,10,11,12,13,14,15,16,17},),$C$7,$C$9,$C$11,$C$13,$C$15,$C$17,$C$19,$C$21,$C$23,$C$25,$C$27,$C$29,$C$31,$C$33,$C$35,$C$37,$C$39) -> 4009 | W71: =CHOOSE(MATCH(U71,{1,2,3,4,5,6,7,8,9,10,11,12,13,14,15,16,17},), $D$7,$D$9,$D$11,$D$13,$D$15,$D$17,$D$19,$D$21,$D$23,$D$25,$D$27,$D$29,$D$31,$D$33,$D$35,$D$37,$D$39,) -> 409
U73: 10 | V73: =CHOOSE(MATCH(U73,{1,2,3,4,5,6,7,8,9,10,11,12,13,14,15,16,17},),$C$7,$C$9,$C$11,$C$13,$C$15,$C$17,$C$19,$C$21,$C$23,$C$25,$C$27,$C$29,$C$31,$C$33,$C$35,$C$37,$C$39) -> 4010 | W73: =CHOOSE(MATCH(U73,{1,2,3,4,5,6,7,8,9,10,11,12,13,14,15,16,17},), $D$7,$D$9,$D$11,$D$13,$D$15,$D$17,$D$19,$D$21,$D$23,$D$25,$D$27,$D$29,$D$31,$D$33,$D$35,$D$37,$D$39,) -> 410
U75: 11 | V75: =CHOOSE(MATCH(U75,{1,2,3,4,5,6,7,8,9,10,11,12,13,14,15,16,17},),$C$7,$C$9,$C$11,$C$13,$C$15,$C$17,$C$19,$C$21,$C$23,$C$25,$C$27,$C$29,$C$31,$C$33,$C$35,$C$37,$C$39) -> 4011 | W75: =CHOOSE(MATCH(U75,{1,2,3,4,5,6,7,8,9,10,11,12,13,14,15,16,17},), $D$7,$D$9,$D$11,$D$13,$D$15,$D$17,$D$19,$D$21,$D$23,$D$25,$D$27,$D$29,$D$31,$D$33,$D$35,$D$37,$D$39,) -> 411
U77: 12 | V77: =CHOOSE(MATCH(U77,{1,2,3,4,5,6,7,8,9,10,11,12,13,14,15,16,17},),$C$7,$C$9,$C$11,$C$13,$C$15,$C$17,$C$19,$C$21,$C$23,$C$25,$C$27,$C$29,$C$31,$C$33,$C$35,$C$37,$C$39) -> 4012 | W77: =CHOOSE(MATCH(U77,{1,2,3,4,5,6,7,8,9,10,11,12,13,14,15,16,17},), $D$7,$D$9,$D$11,$D$13,$D$15,$D$17,$D$19,$D$21,$D$23,$D$25,$D$27,$D$29,$D$31,$D$33,$D$35,$D$37,$D$39,) -> 412
W81: Руководитель ковра
U83: ПРОТОКОЛ ХОДА СХВАТКИ
V84: ВЕС кг | X84: 1/4 финала | AA84: КОВЕР | AC84: 1
U86: № п/п | V86: Фамилия Имя | W86: Город общество | X86: 1 период | Z86: 2 период | AB86: баллы | AC86: очки | AD86: Судьи
U88: =VALUE(K8) -> 1 | V88: =CHOOSE(MATCH(U88,{1,2,3,4,5,6,7,8,9,10,11,12,13,14,15,16,17},),$C$7,$C$9,$C$11,$C$13,$C$15,$C$17,$C$19,$C$21,$C$23,$C$25,$C$27,$C$29,$C$31,$C$33,$C$35,$C$37,$C$39) -> 4001 | W88: =CHOOSE(MATCH(U88,{1,2,3,4,5,6,7,8,9,10,11,12,13,14,15,16,17},), $D$7,$D$9,$D$11,$D$13,$D$15,$D$17,$D$19,$D$21,$D$23,$D$25,$D$27,$D$29,$D$31,$D$33,$D$35,$D$37,$D$39,) -> 401
U90: =VALUE(K12) -> 2 | V90: =CHOOSE(MATCH(U90,{1,2,3,4,5,6,7,8,9,10,11,12,13,14,15,16,17},),$C$7,$C$9,$C$11,$C$13,$C$15,$C$17,$C$19,$C$21,$C$23,$C$25,$C$27,$C$29,$C$31,$C$33,$C$35,$C$37,$C$39) -> 4002 | W90: =CHOOSE(MATCH(U90,{1,2,3,4,5,6,7,8,9,10,11,12,13,14,15,16,17},), $D$7,$D$9,$D$11,$D$13,$D$15,$D$17,$D$19,$D$21,$D$23,$D$25,$D$27,$D$29,$D$31,$D$33,$D$35,$D$37,$D$39,) -> 402
U92: =VALUE(K16) -> 3 | V92: =CHOOSE(MATCH(U92,{1,2,3,4,5,6,7,8,9,10,11,12,13,14,15,16,17},),$C$7,$C$9,$C$11,$C$13,$C$15,$C$17,$C$19,$C$21,$C$23,$C$25,$C$27,$C$29,$C$31,$C$33,$C$35,$C$37,$C$39) -> 4003 | W92: =CHOOSE(MATCH(U92,{1,2,3,4,5,6,7,8,9,10,11,12,13,14,15,16,17},), $D$7,$D$9,$D$11,$D$13,$D$15,$D$17,$D$19,$D$21,$D$23,$D$25,$D$27,$D$29,$D$31,$D$33,$D$35,$D$37,$D$39,) -> 403
U94: =VALUE(K20) -> 4 | V94: =CHOOSE(MATCH(U94,{1,2,3,4,5,6,7,8,9,10,11,12,13,14,15,16,17},),$C$7,$C$9,$C$11,$C$13,$C$15,$C$17,$C$19,$C$21,$C$23,$C$25,$C$27,$C$29,$C$31,$C$33,$C$35,$C$37,$C$39) -> 4004 | W94: =CHOOSE(MATCH(U94,{1,2,3,4,5,6,7,8,9,10,11,12,13,14,15,16,17},), $D$7,$D$9,$D$11,$D$13,$D$15,$D$17,$D$19,$D$21,$D$23,$D$25,$D$27,$D$29,$D$31,$D$33,$D$35,$D$37,$D$39,) -> 404
U96: =VALUE(K24) -> 6 | V96: =CHOOSE(MATCH(U96,{1,2,3,4,5,6,7,8,9,10,11,12,13,14,15,16,17},),$C$7,$C$9,$C$11,$C$13,$C$15,$C$17,$C$19,$C$21,$C$23,$C$25,$C$27,$C$29,$C$31,$C$33,$C$35,$C$37,$C$39) -> 4006 | W96: =CHOOSE(MATCH(U96,{1,2,3,4,5,6,7,8,9,10,11,12,13,14,15,16,17},), $D$7,$D$9,$D$11,$D$13,$D$15,$D$17,$D$19,$D$21,$D$23,$D$25,$D$27,$D$29,$D$31,$D$33,$D$35,$D$37,$D$39,) -> 406
U98: =VALUE(K28) -> 8 | V98: =CHOOSE(MATCH(U98,{1,2,3,4,5,6,7,8,9,10,11,12,13,14,15,16,17},),$C$7,$C$9,$C$11,$C$13,$C$15,$C$17,$C$19,$C$21,$C$23,$C$25,$C$27,$C$29,$C$31,$C$33,$C$35,$C$37,$C$39) -> 4008 | W98: =CHOOSE(MATCH(U98,{1,2,3,4,5,6,7,8,9,10,11,12,13,14,15,16,17},), $D$7,$D$9,$D$11,$D$13,$D$15,$D$17,$D$19,$D$21,$D$23,$D$25,$D$27,$D$29,$D$31,$D$33,$D$35,$D$37,$D$39,) -> 408
U100: =VALUE(K32) -> 10 | V100: =CHOOSE(MATCH(U100,{1,2,3,4,5,6,7,8,9,10,11,12,13,14,15,16,17},),$C$7,$C$9,$C$11,$C$13,$C$15,$C$17,$C$19,$C$21,$C$23,$C$25,$C$27,$C$29,$C$31,$C$33,$C$35,$C$37,$C$39) -> 4010 | W100: =CHOOSE(MATCH(U100,{1,2,3,4,5,6,7,8,9,10,11,12,13,14,15,16,17},), $D$7,$D$9,$D$11,$D$13,$D$15,$D$17,$D$19,$D$21,$D$23,$D$25,$D$27,$D$29,$D$31,$D$33,$D$35,$D$37,$D$39,) -> 410
U102: =VALUE(K36) -> 12 | V102: =CHOOSE(MATCH(U102,{1,2,3,4,5,6,7,8,9,10,11,12,13,14,15,16,17},),$C$7,$C$9,$C$11,$C$13,$C$15,$C$17,$C$19,$C$21,$C$23,$C$25,$C$27,$C$29,$C$31,$C$33,$C$35,$C$37,$C$39) -> 4012 | W102: =CHOOSE(MATCH(U102,{1,2,3,4,5,6,7,8,9,10,11,12,13,14,15,16,17},), $D$7,$D$9,$D$11,$D$13,$D$15,$D$17,$D$19,$D$21,$D$23,$D$25,$D$27,$D$29,$D$31,$D$33,$D$35,$D$37,$D$39,) -> 412
W107: Руководитель ковра
U115: ПРОТОКОЛ ХОДА СХВАТКИ
V116: ВЕС кг | X116: 1/2 финала | AA116: КОВЕР | AC116: 1
U118: № п/п | V118: Фамилия Имя | W118: Город общество | X118: 1 период | Z118: 2 период | AB118: баллы | AC118: очки | AD118: Судьи
U120: 1 | V120: =CHOOSE(MATCH(U120,{1,2,3,4,5,6,7,8,9,10,11,12,13,14,15,16,17},),$C$7,$C$9,$C$11,$C$13,$C$15,$C$17,$C$19,$C$21,$C$23,$C$25,$C$27,$C$29,$C$31,$C$33,$C$35,$C$37,$C$39) -> 4001 | W120: =CHOOSE(MATCH(U120,{1,2,3,4,5,6,7,8,9,10,11,12,13,14,15,16,17},), $D$7,$D$9,$D$11,$D$13,$D$15,$D$17,$D$19,$D$21,$D$23,$D$25,$D$27,$D$29,$D$31,$D$33,$D$35,$D$37,$D$39,) -> 401
U122: 2 | V122: =CHOOSE(MATCH(U122,{1,2,3,4,5,6,7,8,9,10,11,12,13,14,15,16,17},),$C$7,$C$9,$C$11,$C$13,$C$15,$C$17,$C$19,$C$21,$C$23,$C$25,$C$27,$C$29,$C$31,$C$33,$C$35,$C$37,$C$39) -> 4002 | W122: =CHOOSE(MATCH(U122,{1,2,3,4,5,6,7,8,9,10,11,12,13,14,15,16,17},), $D$7,$D$9,$D$11,$D$13,$D$15,$D$17,$D$19,$D$21,$D$23,$D$25,$D$27,$D$29,$D$31,$D$33,$D$35,$D$37,$D$39,) -> 402
U124: 3 | V124: =CHOOSE(MATCH(U124,{1,2,3,4,5,6,7,8,9,10,11,12,13,14,15,16,17},),$C$7,$C$9,$C$11,$C$13,$C$15,$C$17,$C$19,$C$21,$C$23,$C$25,$C$27,$C$29,$C$31,$C$33,$C$35,$C$37,$C$39) -> 4003 | W124: =CHOOSE(MATCH(U124,{1,2,3,4,5,6,7,8,9,10,11,12,13,14,15,16,17},), $D$7,$D$9,$D$11,$D$13,$D$15,$D$17,$D$19,$D$21,$D$23,$D$25,$D$27,$D$29,$D$31,$D$33,$D$35,$D$37,$D$39,) -> 403
U126: 4 | V126: =CHOOSE(MATCH(U126,{1,2,3,4,5,6,7,8,9,10,11,12,13,14,15,16,17},),$C$7,$C$9,$C$11,$C$13,$C$15,$C$17,$C$19,$C$21,$C$23,$C$25,$C$27,$C$29,$C$31,$C$33,$C$35,$C$37,$C$39) -> 4004 | W126: =CHOOSE(MATCH(U126,{1,2,3,4,5,6,7,8,9,10,11,12,13,14,15,16,17},), $D$7,$D$9,$D$11,$D$13,$D$15,$D$17,$D$19,$D$21,$D$23,$D$25,$D$27,$D$29,$D$31,$D$33,$D$35,$D$37,$D$39,) -> 404
W131: Руководитель ковра
U135: ПРОТОКОЛ ХОДА СХВАТКИ
V136: ВЕС кг | X136: утешение | AA136: КОВЕР | AC136: 1
U138: № п/п | V138: Фамилия Имя | W138: Город общество | X138: 1 период | Z138: 2 период | AB138: баллы | AC138: очки | AD138: Судьи
U140: 1 | V140: =CHOOSE(MATCH(U140,{1,2,3,4,5,6,7,8,9,10,11,12,13,14,15,16,17},),$C$7,$C$9,$C$11,$C$13,$C$15,$C$17,$C$19,$C$21,$C$23,$C$25,$C$27,$C$29,$C$31,$C$33,$C$35,$C$37,$C$39) -> 4001 | W140: =CHOOSE(MATCH(U140,{1,2,3,4,5,6,7,8,9,10,11,12,13,14,15,16,17},), $D$7,$D$9,$D$11,$D$13,$D$15,$D$17,$D$19,$D$21,$D$23,$D$25,$D$27,$D$29,$D$31,$D$33,$D$35,$D$37,$D$39,) -> 401
U142: 2 | V142: =CHOOSE(MATCH(U142,{1,2,3,4,5,6,7,8,9,10,11,12,13,14,15,16,17},),$C$7,$C$9,$C$11,$C$13,$C$15,$C$17,$C$19,$C$21,$C$23,$C$25,$C$27,$C$29,$C$31,$C$33,$C$35,$C$37,$C$39) -> 4002 | W142: =CHOOSE(MATCH(U142,{1,2,3,4,5,6,7,8,9,10,11,12,13,14,15,16,17},), $D$7,$D$9,$D$11,$D$13,$D$15,$D$17,$D$19,$D$21,$D$23,$D$25,$D$27,$D$29,$D$31,$D$33,$D$35,$D$37,$D$39,) -> 402
W146: Руководитель ковра
U151: ПРОТОКОЛ ХОДА СХВАТКИ
V152: ВЕС кг | X152: финал за 3м. | AA152: КОВЕР | AC152: 1
U154: № п/п | V154: Фамилия Имя | W154: Город общество | X154: 1 период | Z154: 2 период | AB154: баллы | AC154: очки | AD154: Судьи
U156: 1 | V156: =CHOOSE(MATCH(U156,{1,2,3,4,5,6,7,8,9,10,11,12,13,14,15,16,17},),$C$7,$C$9,$C$11,$C$13,$C$15,$C$17,$C$19,$C$21,$C$23,$C$25,$C$27,$C$29,$C$31,$C$33,$C$35,$C$37,$C$39) -> 4001 | W156: =CHOOSE(MATCH(U156,{1,2,3,4,5,6,7,8,9,10,11,12,13,14,15,16,17},), $D$7,$D$9,$D$11,$D$13,$D$15,$D$17,$D$19,$D$21,$D$23,$D$25,$D$27,$D$29,$D$31,$D$33,$D$35,$D$37,$D$39,) -> 401
U158: 2 | V158: =CHOOSE(MATCH(U158,{1,2,3,4,5,6,7,8,9,10,11,12,13,14,15,16,17},),$C$7,$C$9,$C$11,$C$13,$C$15,$C$17,$C$19,$C$21,$C$23,$C$25,$C$27,$C$29,$C$31,$C$33,$C$35,$C$37,$C$39) -> 4002 | W158: =CHOOSE(MATCH(U158,{1,2,3,4,5,6,7,8,9,10,11,12,13,14,15,16,17},), $D$7,$D$9,$D$11,$D$13,$D$15,$D$17,$D$19,$D$21,$D$23,$D$25,$D$27,$D$29,$D$31,$D$33,$D$35,$D$37,$D$39,) -> 402
U160: 1 | V160: =CHOOSE(MATCH(U160,{1,2,3,4,5,6,7,8,9,10,11,12,13,14,15,16,17},),$C$7,$C$9,$C$11,$C$13,$C$15,$C$17,$C$19,$C$21,$C$23,$C$25,$C$27,$C$29,$C$31,$C$33,$C$35,$C$37,$C$39) -> 4001 | W160: =CHOOSE(MATCH(U160,{1,2,3,4,5,6,7,8,9,10,11,12,13,14,15,16,17},), $D$7,$D$9,$D$11,$D$13,$D$15,$D$17,$D$19,$D$21,$D$23,$D$25,$D$27,$D$29,$D$31,$D$33,$D$35,$D$37,$D$39,) -> 401
U162: 2 | V162: =CHOOSE(MATCH(U162,{1,2,3,4,5,6,7,8,9,10,11,12,13,14,15,16,17},),$C$7,$C$9,$C$11,$C$13,$C$15,$C$17,$C$19,$C$21,$C$23,$C$25,$C$27,$C$29,$C$31,$C$33,$C$35,$C$37,$C$39) -> 4002 | W162: =CHOOSE(MATCH(U162,{1,2,3,4,5,6,7,8,9,10,11,12,13,14,15,16,17},), $D$7,$D$9,$D$11,$D$13,$D$15,$D$17,$D$19,$D$21,$D$23,$D$25,$D$27,$D$29,$D$31,$D$33,$D$35,$D$37,$D$39,) -> 402
W166: Руководитель ковра
V169: ПРОТОКОЛ ХОДА СХВАТКИ
V170: ВЕС кг | X170: финал | AA170: КОВЕР | AC170: 1
U172: № п/п | V172: Фамилия Имя | W172: Город общество | X172: 1 период | Z172: 2 период | AB172: баллы | AC172: очки | AD172: Судьи
U174: 1 | V174: =CHOOSE(MATCH(U174,{1,2,3,4,5,6,7,8,9,10,11,12,13,14,15,16,17},),$C$7,$C$9,$C$11,$C$13,$C$15,$C$17,$C$19,$C$21,$C$23,$C$25,$C$27,$C$29,$C$31,$C$33,$C$35,$C$37,$C$39) -> 4001 | W174: =CHOOSE(MATCH(U174,{1,2,3,4,5,6,7,8,9,10,11,12,13,14,15,16,17},), $D$7,$D$9,$D$11,$D$13,$D$15,$D$17,$D$19,$D$21,$D$23,$D$25,$D$27,$D$29,$D$31,$D$33,$D$35,$D$37,$D$39,) -> 401
U176: 2 | V176: =CHOOSE(MATCH(U176,{1,2,3,4,5,6,7,8,9,10,11,12,13,14,15,16,17},),$C$7,$C$9,$C$11,$C$13,$C$15,$C$17,$C$19,$C$21,$C$23,$C$25,$C$27,$C$29,$C$31,$C$33,$C$35,$C$37,$C$39) -> 4002 | W176: =CHOOSE(MATCH(U176,{1,2,3,4,5,6,7,8,9,10,11,12,13,14,15,16,17},), $D$7,$D$9,$D$11,$D$13,$D$15,$D$17,$D$19,$D$21,$D$23,$D$25,$D$27,$D$29,$D$31,$D$33,$D$35,$D$37,$D$39,) -> 402
W180: Руководитель ковра

Sheet 13уч
A1: ПРОТОКОЛ ХОДА СОРЕВНОВАНИЙ
A2: Турнир по борьбе вольной, памяти первого тренерашколы НЕЙЧА И.В.19 мая 2017г
C3: ВЕС кг
A5: МЕСТО | B5: № п/п | C5: Фамилия Имя | D5: Город общество | E5: Год рожд | F5: Разряд | H5: квалификация | K5: 1/4 финала | N5: 1/2 финала | Q5: ФИНАЛ за 1место | Y5: кв | Z5: 1/4 | AA5: 1/2 | AB5: ф3 | AC5: ф1 | AD5: 1 | AE5: 3 | AF5: сумма
X6: 1 | Y6: =VLOOKUP(X6,$H$7:$I$32,2) -> св | Z6: =IFERROR(VLOOKUP(X6,$K$8:$L$37,2,0)+100,0) -> 103 | AA6: =IFERROR(VLOOKUP(X6,$N$10:$O$35,2,0)+100,0) -> 101 | AB6: =IFERROR(VLOOKUP(X6,$Q$48:$R$53,2,0)+100,0) -> 100 | AC6: =IFERROR(VLOOKUP(X6,$Q$14:$R$31,2,0)+300,0) -> 0 | AD6: =IFERROR(VLOOKUP(X6,$T$22:$U$23,2,0)+200,0) -> 0 | AE6: =IFERROR(VLOOKUP(X6,$T$50:$U$51,2,0)+150,0) -> 0 | AF6: =SUM(Z6,AA6,AB6,AC6,AD6,AE6) -> 304 | AG6: =RANK(AF6,$AF$6:$AF$18) -> 5
B7: 1 | C7: 100001 | D7: 120001 | H7: 1 | I7: св | X7: 2 | Y7: =VLOOKUP(X7,$H$7:$I$32,2) -> св | Z7: =IFERROR(VLOOKUP(X7,$K$8:$L$37,2,0)+100,0) -> 100 | AA7: =IFERROR(VLOOKUP(X7,$N$10:$O$35,2,0)+100,0) -> 0 | AB7: =IFERROR(VLOOKUP(X7,$Q$48:$R$53,2,0)+100,0) -> 0 | AC7: =IFERROR(VLOOKUP(X7,$Q$14:$R$31,2,0)+300,0) -> 0 | AD7: =IFERROR(VLOOKUP(X7,$T$22:$U$23,2,0)+200,0) -> 0 | AE7: =IFERROR(VLOOKUP(X7,$T$50:$U$51,2,0)+150,0) -> 0 | AF7: =SUM(Z7,AA7,AB7,AC7,AD7,AE7) -> 100 | AG7: =RANK(AF7,$AF$6:$AF$18) -> 9
K8: 1 | L8: 3 | X8: 3 | Y8: св | Z8: 101 | AA8: 0 | AB8: =IFERROR(VLOOKUP(X8,$Q$48:$R$53,2,0)+100,0) -> 103 | AC8: 0 | AD8: 0 | AE8: =IFERROR(VLOOKUP(X8,$T$50:$U$51,2,0)+150,0) -> 150 | AF8: 354 | AG8: 4
B9: 2 | C9: 100002 | D9: 120002 | H9: 2 | I9: св | X9: 4 | Y9: 1 | Z9: 0 | AA9: 0 | AB9: =IFERROR(VLOOKUP(X9,$Q$48:$R$53,2,0)+100,0) -> 0 | AC9: 0 | AD9: 0 | AE9: =IFERROR(VLOOKUP(X9,$T$50:$U$51,2,0)+150,0) -> 0 | AF9: 0 | AG9: 10
N10: =IF(L8>L12,K8,K12) -> 1 | O10: 1 | X10: 5 | Y10: 3 | Z10: 103 | AA10: 103 | AB10: =IFERROR(VLOOKUP(X10,$Q$48:$R$53,2,0)+100,0) -> 0 | AC10: 303 | AD10: 200 | AE10: =IFERROR(VLOOKUP(X10,$T$50:$U$51,2,0)+150,0) -> 0 | AF10: 709 | AG10: 1
B11: 3 | C11: 100003 | D11: 120003 | H11: 3 | I11: св | X11: 6 | Y11: 1 | Z11: 0 | AA11: 0 | AB11: =IFERROR(VLOOKUP(X11,$Q$63:$R$68,2,0)+100,0) -> 0 | AC11: 0 | AD11: 0 | AE11: =IFERROR(VLOOKUP(X11,$T$65:$U$66,2,0)+150,0) -> 0 | AF11: 0 | AG11: 10
K12: 2 | L12: 0 | X12: 7 | Y12: 3 | Z12: 103 | AA12: 104 | AB12: =IFERROR(VLOOKUP(X12,$Q$63:$R$68,2,0)+100,0) -> 0 | AC12: 301 | AD12: 0 | AE12: =IFERROR(VLOOKUP(X12,$T$65:$U$66,2,0)+150,0) -> 0 | AF12: 508 | AG12: 2
B13: 4 | C13: 100004 | D13: 120004 | H13: 4 | I13: 1 | X13: 8 | Y13: 1 | Z13: 0 | AA13: 0 | AB13: 101 | AC13: 0 | AD13: 0 | AE13: 0 | AF13: 101 | AG13: 6
Q14: =IF(O10>O18,N10,N18) -> 5 | R14: 3 | X14: 9 | Y14: 3 | Z14: 101 | AA14: 0 | AB14: 0 | AC14: 0 | AD14: 0 | AE14: 0 | AF14: 101 | AG14: 6
B15: 5 | C15: 100005 | D15: 120005 | H15: 5 | I15: 3 | X15: 10 | Y15: 1 | Z15: 0 | AA15: 0 | AB15: 0 | AC15: 0 | AD15: 0 | AE15: 0 | AF15: 0 | AG15: 10
K16: 3 | L16: 1 | X16: 11 | Y16: 3 | Z16: 101 | AA16: 0 | AB16: 0 | AC16: 0 | AD16: 0 | AE16: 0 | AF16: 101 | AG16: 6
B17: 6 | C17: 100006 | D17: 120006 | H17: 6 | I17: 1 | X17: 12 | Y17: 1 | Z17: 0 | AA17: 0 | AB17: 0 | AC17: 0 | AD17: 0 | AE17: 0 | AF17: 0 | AG17: 10
N18: =IF(L16>L20,K16,K20) -> 5 | O18: 3 | X18: 13 | Y18: 3 | Z18: 103 | AA18: 100 | AB18: 103 | AC18: 0 | AD18: 0 | AE18: 150 | AF18: 456 | AG18: 3
B19: 7 | C19: 100007 | D19: 120007 | H19: 7 | I19: 3
K20: =IF(I13>I15,H13,H15) -> 5 | L20: 3
B21: 8 | C21: 100008 | D21: 120008 | H21: 8 | I21: 1
T22: =IF(R14>R30,Q14,Q30) -> 5
B23: 9 | C23: 100009 | D23: 120009 | H23: 9 | I23: 3
K24: =IF(I17>I19,H17,H19) -> 7 | L24: 3
B25: 10 | C25: 100010 | D25: 120010 | H25: 10 | I25: 1
N26: =IF(L24>L28,K24,K28) -> 7 | O26: 4
B27: 11 | C27: 100011 | D27: 120011 | H27: 11 | I27: 3
K28: =IF(I21>I23,H21,H23) -> 9 | L28: 1
B29: 12 | C29: 100012 | D29: 120012 | H29: 12 | I29: 1
Q30: =IF(O26>O34,N26,N34) -> 7 | R30: 1
B31: 13 | C31: 100013 | D31: 120013 | H31: 13 | I31: 3
K32: =IF( I25>I27,H25,H27) -> 11 | L32: 1
N34: =IF(L32>L36,K32,K36) -> 13 | O34: 0
K36: =IF(I29>I31,H29,H31) -> 13 | L36: 3
K39: ПЕРЕЭКЗАМЕНОВКА
K42: ПРОИГРАВШИЕ ПЕРВОМУ ФИНАЛИСТУ
N46: =CHOOSE(MATCH($Q$14,{4,5,6,7,8,9,10,11,12,13},),5,4,7,6,9,8,11,10,13,12,) -> 4 | O46: 1 | R46: 3 МЕСТО
Q48: =IF(O46>O50,N46,N50) -> 3 | R48: 3
N50: =CHOOSE(MATCH($Q$14,{1,2,3,4,5,6,7,8,9,10,11,12,13,14,15},),$K$12,$K$8,$K$20,$K$16,$K$16,$K$28,$K$28,$K$24,$K$24,$K$36,$K$36,$K$32,$K$32) -> 3 | O50: 3 | T50: =IF(R48>R52,Q48,Q52) -> 3
Q52: =IF(O10<O18,N10,N18) -> 1 | R52: 0
K57: ПРОИГРАВШИЕ ВТОРОМУ ФИНАЛИСТУ
N61: =CHOOSE(MATCH($Q$30,{3,4,5,6,7,8,9,10,11,12,13,14},),4,3,6,5,8,7,10,9,12,11,14,13,) -> 8 | O61: 1 | R61: 3 МЕСТО
Q63: =IF(O61>O65,N61,N65) -> 8 | R63: 1
N65: =CHOOSE(MATCH($Q$30,{1,2,3,4,5,6,7,8,9,10,11,12,13,14,15},),$K$12,$K$8,$K$8,$K$20,$K$20,$K$16,$K$16,$K$28,$K$28,$K$24,$K$24,$K$32,$K$32,$K$36,$K$36) -> 3 | O65: 0 | T65: =IF(R63>R67,Q63,Q67) -> 13
Q67: =IF(O26<O34,N26,N34) -> 13 | R67: 3
AD71: ПРОТОКОЛ ХОДА СХВАТКИ
AE72: ВЕС кг | AG72: квалификация | AJ72: КОВЕР
AD74: № п/п | AE74: Фамилия Имя | AF74: Город общество | AG74: 1 период | AI74: 2 период | AK74: баллы | AL74: очки | AM74: Судьи
AD76: 4 | AE76: =CHOOSE(MATCH(AD76,{1,2,3,4,5,6,7,8,9,10,11,12,13,14,15,16,17},),$C$7,$C$9,$C$11,$C$13,$C$15,$C$17,$C$19,$C$21,$C$23,$C$25,$C$27,$C$29,$C$31,$C$33,$C$35,$C$37,$C$39) -> 100004 | AF76: =CHOOSE(MATCH(AD76,{1,2,3,4,5,6,7,8,9,10,11,12,13,14,15,16,17},), $D$7,$D$9,$D$11,$D$13,$D$15,$D$17,$D$19,$D$21,$D$23,$D$25,$D$27,$D$29,$D$31,$D$33,$D$35,$D$37,$D$39,) -> 120004
AD78: 5 | AE78: =CHOOSE(MATCH(AD78,{1,2,3,4,5,6,7,8,9,10,11,12,13,14,15,16,17},),$C$7,$C$9,$C$11,$C$13,$C$15,$C$17,$C$19,$C$21,$C$23,$C$25,$C$27,$C$29,$C$31,$C$33,$C$35,$C$37,$C$39) -> 100005 | AF78: =CHOOSE(MATCH(AD78,{1,2,3,4,5,6,7,8,9,10,11,12,13,14,15,16,17},), $D$7,$D$9,$D$11,$D$13,$D$15,$D$17,$D$19,$D$21,$D$23,$D$25,$D$27,$D$29,$D$31,$D$33,$D$35,$D$37,$D$39,) -> 120005
AD80: 6 | AE80: =CHOOSE(MATCH(AD80,{1,2,3,4,5,6,7,8,9,10,11,12,13,14,15,16,17},),$C$7,$C$9,$C$11,$C$13,$C$15,$C$17,$C$19,$C$21,$C$23,$C$25,$C$27,$C$29,$C$31,$C$33,$C$35,$C$37,$C$39) -> 100006 | AF80: =CHOOSE(MATCH(AD80,{1,2,3,4,5,6,7,8,9,10,11,12,13,14,15,16,17},), $D$7,$D$9,$D$11,$D$13,$D$15,$D$17,$D$19,$D$21,$D$23,$D$25,$D$27,$D$29,$D$31,$D$33,$D$35,$D$37,$D$39,) -> 120006
AD82: 7 | AE82: =CHOOSE(MATCH(AD82,{1,2,3,4,5,6,7,8,9,10,11,12,13,14,15,16,17},),$C$7,$C$9,$C$11,$C$13,$C$15,$C$17,$C$19,$C$21,$C$23,$C$25,$C$27,$C$29,$C$31,$C$33,$C$35,$C$37,$C$39) -> 100007 | AF82: =CHOOSE(MATCH(AD82,{1,2,3,4,5,6,7,8,9,10,11,12,13,14,15,16,17},), $D$7,$D$9,$D$11,$D$13,$D$15,$D$17,$D$19,$D$21,$D$23,$D$25,$D$27,$D$29,$D$31,$D$33,$D$35,$D$37,$D$39,) -> 120007
AD84: 8 | AE84: =CHOOSE(MATCH(AD84,{1,2,3,4,5,6,7,8,9,10,11,12,13,14,15,16,17},),$C$7,$C$9,$C$11,$C$13,$C$15,$C$17,$C$19,$C$21,$C$23,$C$25,$C$27,$C$29,$C$31,$C$33,$C$35,$C$37,$C$39) -> 100008 | AF84: =CHOOSE(MATCH(AD84,{1,2,3,4,5,6,7,8,9,10,11,12,13,14,15,16,17},), $D$7,$D$9,$D$11,$D$13,$D$15,$D$17,$D$19,$D$21,$D$23,$D$25,$D$27,$D$29,$D$31,$D$33,$D$35,$D$37,$D$39,) -> 120008
AD86: 9 | AE86: =CHOOSE(MATCH(AD86,{1,2,3,4,5,6,7,8,9,10,11,12,13,14,15,16,17},),$C$7,$C$9,$C$11,$C$13,$C$15,$C$17,$C$19,$C$21,$C$23,$C$25,$C$27,$C$29,$C$31,$C$33,$C$35,$C$37,$C$39) -> 100009 | AF86: =CHOOSE(MATCH(AD86,{1,2,3,4,5,6,7,8,9,10,11,12,13,14,15,16,17},), $D$7,$D$9,$D$11,$D$13,$D$15,$D$17,$D$19,$D$21,$D$23,$D$25,$D$27,$D$29,$D$31,$D$33,$D$35,$D$37,$D$39,) -> 120009
AD88: 10 | AE88: =CHOOSE(MATCH(AD88,{1,2,3,4,5,6,7,8,9,10,11,12,13,14,15,16,17},),$C$7,$C$9,$C$11,$C$13,$C$15,$C$17,$C$19,$C$21,$C$23,$C$25,$C$27,$C$29,$C$31,$C$33,$C$35,$C$37,$C$39) -> 100010 | AF88: =CHOOSE(MATCH(AD88,{1,2,3,4,5,6,7,8,9,10,11,12,13,14,15,16,17},), $D$7,$D$9,$D$11,$D$13,$D$15,$D$17,$D$19,$D$21,$D$23,$D$25,$D$27,$D$29,$D$31,$D$33,$D$35,$D$37,$D$39,) -> 120010
AD90: 11 | AE90: =CHOOSE(MATCH(AD90,{1,2,3,4,5,6,7,8,9,10,11,12,13,14,15,16,17},),$C$7,$C$9,$C$11,$C$13,$C$15,$C$17,$C$19,$C$21,$C$23,$C$25,$C$27,$C$29,$C$31,$C$33,$C$35,$C$37,$C$39) -> 100011 | AF90: =CHOOSE(MATCH(AD90,{1,2,3,4,5,6,7,8,9,10,11,12,13,14,15,16,17},), $D$7,$D$9,$D$11,$D$13,$D$15,$D$17,$D$19,$D$21,$D$23,$D$25,$D$27,$D$29,$D$31,$D$33,$D$35,$D$37,$D$39,) -> 120011
AD92: 12 | AE92: =CHOOSE(MATCH(AD92,{1,2,3,4,5,6,7,8,9,10,11,12,13,14,15,16,17},),$C$7,$C$9,$C$11,$C$13,$C$15,$C$17,$C$19,$C$21,$C$23,$C$25,$C$27,$C$29,$C$31,$C$33,$C$35,$C$37,$C$39) -> 100012 | AF92: =CHOOSE(MATCH(AD92,{1,2,3,4,5,6,7,8,9,10,11,12,13,14,15,16,17},), $D$7,$D$9,$D$11,$D$13,$D$15,$D$17,$D$19,$D$21,$D$23,$D$25,$D$27,$D$29,$D$31,$D$33,$D$35,$D$37,$D$39,) -> 120012
AD94: 13 | AE94: =CHOOSE(MATCH(AD94,{1,2,3,4,5,6,7,8,9,10,11,12,13,14,15,16,17},),$C$7,$C$9,$C$11,$C$13,$C$15,$C$17,$C$19,$C$21,$C$23,$C$25,$C$27,$C$29,$C$31,$C$33,$C$35,$C$37,$C$39) -> 100013 | AF94: =CHOOSE(MATCH(AD94,{1,2,3,4,5,6,7,8,9,10,11,12,13,14,15,16,17},), $D$7,$D$9,$D$11,$D$13,$D$15,$D$17,$D$19,$D$21,$D$23,$D$25,$D$27,$D$29,$D$31,$D$33,$D$35,$D$37,$D$39,) -> 120013
AF98: Руководитель ковра
AD122: ПРОТОКОЛ ХОДА СХВАТКИ
AE123: ВЕС кг | AG123: 1/4 финала | AJ123: КОВЕР | AL123: 1
AD125: № п/п | AE125: Фамилия Имя | AF125: Город общество | AG125: 1 период | AI125: 2 период | AK125: баллы | AL125: очки | AM125: Судьи
AD127: =VALUE(K8) -> 1 | AE127: =CHOOSE(MATCH(AD127,{1,2,3,4,5,6,7,8,9,10,11,12,13,14,15,16,17},),$C$7,$C$9,$C$11,$C$13,$C$15,$C$17,$C$19,$C$21,$C$23,$C$25,$C$27,$C$29,$C$31,$C$33,$C$35,$C$37,$C$39) -> 100001 | AF127: =CHOOSE(MATCH(AD127,{1,2,3,4,5,6,7,8,9,10,11,12,13,14,15,16,17},), $D$7,$D$9,$D$11,$D$13,$D$15,$D$17,$D$19,$D$21,$D$23,$D$25,$D$27,$D$29,$D$31,$D$33,$D$35,$D$37,$D$39,) -> 120001
AD129: =VALUE(K12) -> 2 | AE129: =CHOOSE(MATCH(AD129,{1,2,3,4,5,6,7,8,9,10,11,12,13,14,15,16,17},),$C$7,$C$9,$C$11,$C$13,$C$15,$C$17,$C$19,$C$21,$C$23,$C$25,$C$27,$C$29,$C$31,$C$33,$C$35,$C$37,$C$39) -> 100002 | AF129: =CHOOSE(MATCH(AD129,{1,2,3,4,5,6,7,8,9,10,11,12,13,14,15,16,17},), $D$7,$D$9,$D$11,$D$13,$D$15,$D$17,$D$19,$D$21,$D$23,$D$25,$D$27,$D$29,$D$31,$D$33,$D$35,$D$37,$D$39,) -> 120002
AD131: =VALUE(K16) -> 3 | AE131: =CHOOSE(MATCH(AD131,{1,2,3,4,5,6,7,8,9,10,11,12,13,14,15,16,17},),$C$7,$C$9,$C$11,$C$13,$C$15,$C$17,$C$19,$C$21,$C$23,$C$25,$C$27,$C$29,$C$31,$C$33,$C$35,$C$37,$C$39) -> 100003 | AF131: =CHOOSE(MATCH(AD131,{1,2,3,4,5,6,7,8,9,10,11,12,13,14,15,16,17},), $D$7,$D$9,$D$11,$D$13,$D$15,$D$17,$D$19,$D$21,$D$23,$D$25,$D$27,$D$29,$D$31,$D$33,$D$35,$D$37,$D$39,) -> 120003
AD133: =VALUE(K20) -> 5 | AE133: =CHOOSE(MATCH(AD133,{1,2,3,4,5,6,7,8,9,10,11,12,13,14,15,16,17},),$C$7,$C$9,$C$11,$C$13,$C$15,$C$17,$C$19,$C$21,$C$23,$C$25,$C$27,$C$29,$C$31,$C$33,$C$35,$C$37,$C$39) -> 100005 | AF133: =CHOOSE(MATCH(AD133,{1,2,3,4,5,6,7,8,9,10,11,12,13,14,15,16,17},), $D$7,$D$9,$D$11,$D$13,$D$15,$D$17,$D$19,$D$21,$D$23,$D$25,$D$27,$D$29,$D$31,$D$33,$D$35,$D$37,$D$39,) -> 120005
AD135: =VALUE(K24) -> 7 | AE135: =CHOOSE(MATCH(AD135,{1,2,3,4,5,6,7,8,9,10,11,12,13,14,15,16,17},),$C$7,$C$9,$C$11,$C$13,$C$15,$C$17,$C$19,$C$21,$C$23,$C$25,$C$27,$C$29,$C$31,$C$33,$C$35,$C$37,$C$39) -> 100007 | AF135: =CHOOSE(MATCH(AD135,{1,2,3,4,5,6,7,8,9,10,11,12,13,14,15,16,17},), $D$7,$D$9,$D$11,$D$13,$D$15,$D$17,$D$19,$D$21,$D$23,$D$25,$D$27,$D$29,$D$31,$D$33,$D$35,$D$37,$D$39,) -> 120007
AD137: =VALUE(K28) -> 9 | AE137: =CHOOSE(MATCH(AD137,{1,2,3,4,5,6,7,8,9,10,11,12,13,14,15,16,17},),$C$7,$C$9,$C$11,$C$13,$C$15,$C$17,$C$19,$C$21,$C$23,$C$25,$C$27,$C$29,$C$31,$C$33,$C$35,$C$37,$C$39) -> 100009 | AF137: =CHOOSE(MATCH(AD137,{1,2,3,4,5,6,7,8,9,10,11,12,13,14,15,16,17},), $D$7,$D$9,$D$11,$D$13,$D$15,$D$17,$D$19,$D$21,$D$23,$D$25,$D$27,$D$29,$D$31,$D$33,$D$35,$D$37,$D$39,) -> 120009
AD139: =VALUE(K32) -> 11 | AE139: =CHOOSE(MATCH(AD139,{1,2,3,4,5,6,7,8,9,10,11,12,13,14,15,16,17},),$C$7,$C$9,$C$11,$C$13,$C$15,$C$17,$C$19,$C$21,$C$23,$C$25,$C$27,$C$29,$C$31,$C$33,$C$35,$C$37,$C$39) -> 100011 | AF139: =CHOOSE(MATCH(AD139,{1,2,3,4,5,6,7,8,9,10,11,12,13,14,15,16,17},), $D$7,$D$9,$D$11,$D$13,$D$15,$D$17,$D$19,$D$21,$D$23,$D$25,$D$27,$D$29,$D$31,$D$33,$D$35,$D$37,$D$39,) -> 120011
AD141: =VALUE(K36) -> 13 | AE141: =CHOOSE(MATCH(AD141,{1,2,3,4,5,6,7,8,9,10,11,12,13,14,15,16,17},),$C$7,$C$9,$C$11,$C$13,$C$15,$C$17,$C$19,$C$21,$C$23,$C$25,$C$27,$C$29,$C$31,$C$33,$C$35,$C$37,$C$39) -> 100013 | AF141: =CHOOSE(MATCH(AD141,{1,2,3,4,5,6,7,8,9,10,11,12,13,14,15,16,17},), $D$7,$D$9,$D$11,$D$13,$D$15,$D$17,$D$19,$D$21,$D$23,$D$25,$D$27,$D$29,$D$31,$D$33,$D$35,$D$37,$D$39,) -> 120013
AF146: Руководитель ковра
AD149: ПРОТОКОЛ ХОДА СХВАТКИ
AE150: ВЕС кг | AG150: 1/2 финала | AJ150: КОВЕР | AL150: 1
AD152: № п/п | AE152: Фамилия Имя | AF152: Город общество | AG152: 1 период | AI152: 2 период | AK152: баллы | AL152: очки | AM152: Судьи
AD154: =VALUE(N10) -> 1 | AE154: =CHOOSE(MATCH(AD154,{1,2,3,4,5,6,7,8,9,10,11,12,13,14,15,16,17},),$C$7,$C$9,$C$11,$C$13,$C$15,$C$17,$C$19,$C$21,$C$23,$C$25,$C$27,$C$29,$C$31,$C$33,$C$35,$C$37,$C$39) -> 100001 | AF154: =CHOOSE(MATCH(AD154,{1,2,3,4,5,6,7,8,9,10,11,12,13,14,15,16,17},), $D$7,$D$9,$D$11,$D$13,$D$15,$D$17,$D$19,$D$21,$D$23,$D$25,$D$27,$D$29,$D$31,$D$33,$D$35,$D$37,$D$39,) -> 120001
AD156: =VALUE(N18) -> 5 | AE156: =CHOOSE(MATCH(AD156,{1,2,3,4,5,6,7,8,9,10,11,12,13,14,15,16,17},),$C$7,$C$9,$C$11,$C$13,$C$15,$C$17,$C$19,$C$21,$C$23,$C$25,$C$27,$C$29,$C$31,$C$33,$C$35,$C$37,$C$39) -> 100005 | AF156: =CHOOSE(MATCH(AD156,{1,2,3,4,5,6,7,8,9,10,11,12,13,14,15,16,17},), $D$7,$D$9,$D$11,$D$13,$D$15,$D$17,$D$19,$D$21,$D$23,$D$25,$D$27,$D$29,$D$31,$D$33,$D$35,$D$37,$D$39,) -> 120005
AD158: =VALUE(N26) -> 7 | AE158: =CHOOSE(MATCH(AD158,{1,2,3,4,5,6,7,8,9,10,11,12,13,14,15,16,17},),$C$7,$C$9,$C$11,$C$13,$C$15,$C$17,$C$19,$C$21,$C$23,$C$25,$C$27,$C$29,$C$31,$C$33,$C$35,$C$37,$C$39) -> 100007 | AF158: =CHOOSE(MATCH(AD158,{1,2,3,4,5,6,7,8,9,10,11,12,13,14,15,16,17},), $D$7,$D$9,$D$11,$D$13,$D$15,$D$17,$D$19,$D$21,$D$23,$D$25,$D$27,$D$29,$D$31,$D$33,$D$35,$D$37,$D$39,) -> 120007
AD160: =VALUE(N34) -> 13 | AE160: =CHOOSE(MATCH(AD160,{1,2,3,4,5,6,7,8,9,10,11,12,13,14,15,16,17},),$C$7,$C$9,$C$11,$C$13,$C$15,$C$17,$C$19,$C$21,$C$23,$C$25,$C$27,$C$29,$C$31,$C$33,$C$35,$C$37,$C$39) -> 100013 | AF160: =CHOOSE(MATCH(AD160,{1,2,3,4,5,6,7,8,9,10,11,12,13,14,15,16,17},), $D$7,$D$9,$D$11,$D$13,$D$15,$D$17,$D$19,$D$21,$D$23,$D$25,$D$27,$D$29,$D$31,$D$33,$D$35,$D$37,$D$39,) -> 120013
AF164: Руководитель ковра
AD183: ПРОТОКОЛ ХОДА СХВАТКИ
AE184: ВЕС кг | AG184: утешение | AJ184: КОВЕР | AL184: 1
AD186: № п/п | AE186: Фамилия Имя | AF186: Город общество | AG186: 1 период | AI186: 2 период | AK186: баллы | AL186: очки | AM186: Судьи
AD188: =VALUE(N46) -> 4 | AE188: =CHOOSE(MATCH(AD188,{1,2,3,4,5,6,7,8,9,10,11,12,13,14,15,16,17},),$C$7,$C$9,$C$11,$C$13,$C$15,$C$17,$C$19,$C$21,$C$23,$C$25,$C$27,$C$29,$C$31,$C$33,$C$35,$C$37,$C$39) -> 100004 | AF188: =CHOOSE(MATCH(AD188,{1,2,3,4,5,6,7,8,9,10,11,12,13,14,15,16,17},), $D$7,$D$9,$D$11,$D$13,$D$15,$D$17,$D$19,$D$21,$D$23,$D$25,$D$27,$D$29,$D$31,$D$33,$D$35,$D$37,$D$39,) -> 120004
AD190: =VALUE(N50) -> 3 | AE190: =CHOOSE(MATCH(AD190,{1,2,3,4,5,6,7,8,9,10,11,12,13,14,15,16,17},),$C$7,$C$9,$C$11,$C$13,$C$15,$C$17,$C$19,$C$21,$C$23,$C$25,$C$27,$C$29,$C$31,$C$33,$C$35,$C$37,$C$39) -> 100003 | AF190: =CHOOSE(MATCH(AD190,{1,2,3,4,5,6,7,8,9,10,11,12,13,14,15,16,17},), $D$7,$D$9,$D$11,$D$13,$D$15,$D$17,$D$19,$D$21,$D$23,$D$25,$D$27,$D$29,$D$31,$D$33,$D$35,$D$37,$D$39,) -> 120003
AD192: =VALUE(N61) -> 8 | AE192: =CHOOSE(MATCH(AD192,{1,2,3,4,5,6,7,8,9,10,11,12,13,14,15,16,17},),$C$7,$C$9,$C$11,$C$13,$C$15,$C$17,$C$19,$C$21,$C$23,$C$25,$C$27,$C$29,$C$31,$C$33,$C$35,$C$37,$C$39) -> 100008 | AF192: =CHOOSE(MATCH(AD192,{1,2,3,4,5,6,7,8,9,10,11,12,13,14,15,16,17},), $D$7,$D$9,$D$11,$D$13,$D$15,$D$17,$D$19,$D$21,$D$23,$D$25,$D$27,$D$29,$D$31,$D$33,$D$35,$D$37,$D$39,) -> 120008
AD194: =VALUE(N65) -> 3 | AE194: =CHOOSE(MATCH(AD194,{1,2,3,4,5,6,7,8,9,10,11,12,13,14,15,16,17},),$C$7,$C$9,$C$11,$C$13,$C$15,$C$17,$C$19,$C$21,$C$23,$C$25,$C$27,$C$29,$C$31,$C$33,$C$35,$C$37,$C$39) -> 100003 | AF194: =CHOOSE(MATCH(AD194,{1,2,3,4,5,6,7,8,9,10,11,12,13,14,15,16,17},), $D$7,$D$9,$D$11,$D$13,$D$15,$D$17,$D$19,$D$21,$D$23,$D$25,$D$27,$D$29,$D$31,$D$33,$D$35,$D$37,$D$39,) -> 120003
AF198: Руководитель ковра
AD229: ПРОТОКОЛ ХОДА СХВАТКИ
AE230: ВЕС кг | AG230: финал за 3м. | AJ230: КОВЕР | AL230: 1
AD232: № п/п | AE232: Фамилия Имя | AF232: Город общество | AG232: 1 период | AI232: 2 период | AK232: баллы | AL232: очки | AM232: Судьи
AD234: =VALUE(Q48) -> 3 | AE234: =CHOOSE(MATCH(AD234,{1,2,3,4,5,6,7,8,9,10,11,12,13,14,15,16,17},),$C$7,$C$9,$C$11,$C$13,$C$15,$C$17,$C$19,$C$21,$C$23,$C$25,$C$27,$C$29,$C$31,$C$33,$C$35,$C$37,$C$39) -> 100003 | AF234: =CHOOSE(MATCH(AD234,{1,2,3,4,5,6,7,8,9,10,11,12,13,14,15,16,17},), $D$7,$D$9,$D$11,$D$13,$D$15,$D$17,$D$19,$D$21,$D$23,$D$25,$D$27,$D$29,$D$31,$D$33,$D$35,$D$37,$D$39,) -> 120003
AD236: =VALUE(Q52) -> 1 | AE236: =CHOOSE(MATCH(AD236,{1,2,3,4,5,6,7,8,9,10,11,12,13,14,15,16,17},),$C$7,$C$9,$C$11,$C$13,$C$15,$C$17,$C$19,$C$21,$C$23,$C$25,$C$27,$C$29,$C$31,$C$33,$C$35,$C$37,$C$39) -> 100001 | AF236: =CHOOSE(MATCH(AD236,{1,2,3,4,5,6,7,8,9,10,11,12,13,14,15,16,17},), $D$7,$D$9,$D$11,$D$13,$D$15,$D$17,$D$19,$D$21,$D$23,$D$25,$D$27,$D$29,$D$31,$D$33,$D$35,$D$37,$D$39,) -> 120001
AD238: =VALUE(Q63) -> 8 | AE238: =CHOOSE(MATCH(AD238,{1,2,3,4,5,6,7,8,9,10,11,12,13,14,15,16,17},),$C$7,$C$9,$C$11,$C$13,$C$15,$C$17,$C$19,$C$21,$C$23,$C$25,$C$27,$C$29,$C$31,$C$33,$C$35,$C$37,$C$39) -> 100008 | AF238: =CHOOSE(MATCH(AD238,{1,2,3,4,5,6,7,8,9,10,11,12,13,14,15,16,17},), $D$7,$D$9,$D$11,$D$13,$D$15,$D$17,$D$19,$D$21,$D$23,$D$25,$D$27,$D$29,$D$31,$D$33,$D$35,$D$37,$D$39,) -> 120008
AD240: =VALUE(Q67) -> 13 | AE240: =CHOOSE(MATCH(AD240,{1,2,3,4,5,6,7,8,9,10,11,12,13,14,15,16,17},),$C$7,$C$9,$C$11,$C$13,$C$15,$C$17,$C$19,$C$21,$C$23,$C$25,$C$27,$C$29,$C$31,$C$33,$C$35,$C$37,$C$39) -> 100013 | AF240: =CHOOSE(MATCH(AD240,{1,2,3,4,5,6,7,8,9,10,11,12,13,14,15,16,17},), $D$7,$D$9,$D$11,$D$13,$D$15,$D$17,$D$19,$D$21,$D$23,$D$25,$D$27,$D$29,$D$31,$D$33,$D$35,$D$37,$D$39,) -> 120013
AF244: Руководитель ковра
AD252: ПРОТОКОЛ ХОДА СХВАТКИ
AE253: ВЕС кг | AG253: финал | AJ253: КОВЕР | AL253: 1
AD255: № п/п | AE255: Фамилия Имя | AF255: Город общество | AG255: 1 период | AI255: 2 период | AK255: баллы | AL255: очки | AM255: Судьи
AD257: =VALUE( Q14) -> 5 | AE257: =CHOOSE(MATCH(AD257,{1,2,3,4,5,6,7,8,9,10,11,12,13,14,15,16,17},),$C$7,$C$9,$C$11,$C$13,$C$15,$C$17,$C$19,$C$21,$C$23,$C$25,$C$27,$C$29,$C$31,$C$33,$C$35,$C$37,$C$39) -> 100005 | AF257: =CHOOSE(MATCH(AD257,{1,2,3,4,5,6,7,8,9,10,11,12,13,14,15,16,17},), $D$7,$D$9,$D$11,$D$13,$D$15,$D$17,$D$19,$D$21,$D$23,$D$25,$D$27,$D$29,$D$31,$D$33,$D$35,$D$37,$D$39,) -> 120005
AD259: =VALUE(Q30) -> 7 | AE259: =CHOOSE(MATCH(AD259,{1,2,3,4,5,6,7,8,9,10,11,12,13,14,15,16,17},),$C$7,$C$9,$C$11,$C$13,$C$15,$C$17,$C$19,$C$21,$C$23,$C$25,$C$27,$C$29,$C$31,$C$33,$C$35,$C$37,$C$39) -> 100007 | AF259: =CHOOSE(MATCH(AD259,{1,2,3,4,5,6,7,8,9,10,11,12,13,14,15,16,17},), $D$7,$D$9,$D$11,$D$13,$D$15,$D$17,$D$19,$D$21,$D$23,$D$25,$D$27,$D$29,$D$31,$D$33,$D$35,$D$37,$D$39,) -> 120007
AF266: Руководитель ковра

Sheet 14уч
A1: ПРОТОКОЛ ХОДА СОРЕВНОВАНИЙ
A2: Турнир по борьбе вольной, памяти первого тренерашколы НЕЙЧА И.В.19 мая 2017г
C3: ВЕС кг
A5: МЕСТО | B5: № п/п | C5: Фамилия Имя | D5: Город общество | E5: Год рожд | F5: Разряд | H5: квалификация | K5: 1/4 финала | N5: 1/2 финала | Q5: ФИНАЛ за 1место
B7: 1 | C7: 3013001 | D7: 55001 | H7: 1 | I7: св
K8: 1 | L8: 3
B9: 2 | C9: 3013002 | D9: 55002 | H9: 2 | I9: св
N10: =IF(L8>L12,K8,K12) -> 2 | O10: 1
B11: 3 | C11: 3013003 | D11: 55003 | H11: 3
K12: 2 | L12: 4
B13: 4 | C13: 3013004 | D13: 55004 | H13: 4
Q14: =IF(O10>O18,N10,N18) -> 2 | R14: 1
B15: 5 | C15: 3013005 | D15: 55005 | H15: 5
K16: =IF(I11>I13,H11,H13) -> 4 | L16: 1
B17: 6 | C17: 3013006 | D17: 55006 | H17: 6
N18: =IF(L16>L20,K16,K20) -> 6 | O18: 0
B19: 7 | C19: 3013007 | D19: 55007 | H19: 7
K20: =IF(I15>I27,H15,H17) -> 6 | L20: 5
B21: 8 | C21: 3013008 | D21: 55008 | H21: 8
T22: =IF(R14>R30,Q14,Q30) -> 2
B23: 9 | C23: 3013009 | D23: 55009 | H23: 9
K24: =IF(I19>I21,H19,H21) -> 8 | L24: 3
B25: 10 | C25: 3013010 | D25: 55010 | H25: 10
N26: =IF(L24>L28,K24,K28) -> 8 | O26: 4
B27: 11 | C27: 3013011 | D27: 55011 | H27: 11 | I27: 1
K28: =IF(I23>I25,H23,H25) -> 10 | L28: 0
B29: 12 | C29: 3013012 | D29: 55012 | H29: 12 | I29: 0
Q30: =IF(O26>O34,N26,N34) -> 8 | R30: 0
B31: 13 | C31: 3013013 | D31: 55013 | H31: 13 | I31: 1
K32: =IF( I27>I29,H27,H29) -> 11 | L32: 1
B33: 14 | C33: 3013014 | D33: 55014 | H33: 14 | I33: 0
N34: =IF(L32>L36,K32,K36) -> 13 | O34: 0
K36: =IF(I31>I33,H31,H33) -> 13 | L36: 5
K39: ПЕРЕЭКЗАМЕНОВКА
K42: ПРОИГРАВШИЕ ПЕРВОМУ ФИНАЛИСТУ
N46: =CHOOSE(MATCH($Q$14,{3,4,5,6,7,8,9,10,11,12,13,14},),4,3,6,5,8,7,10,9,12,11,14,13,) ->  | R46: 3 МЕСТО
Q48: =IF(O46>O50,N46,N50) -> 1 | R48: 3
N50: =CHOOSE(MATCH($Q$14,{1,2,3,4,5,6,7,8,9,10,11,12,13,14,15},),$K$12,$K$8,$K$8,$K$20,$K$20,$K$16,$K$16,$K$28,$K$28,$K$24,$K$24,$K$36,$K$36,$K$32,$K$32) -> 1 | T50: =IF(R48>R52,Q48,Q52) -> 1
Q52: =IF(O10<O18,N10,N18) -> 6 | R52: 0
K57: ПРОИГРАВШИЕ ВТОРОМУ ФИНАЛИСТУ
N61: =CHOOSE(MATCH($Q$30,{3,4,5,6,7,8,9,10,11,12,13,14},),4,3,6,5,8,7,10,9,12,11,14,13,) -> 7 | O61: 1 | R61: 3 МЕСТО
Q63: =IF(O61>O65,N61,N65) -> 7 | R63: 1
N65: =CHOOSE(MATCH($Q$30,{1,2,3,4,5,6,7,8,9,10,11,12,13,14,15},),$K$12,$K$8,$K$8,$K$20,$K$20,$K$16,$K$16,$K$28,$K$28,$K$24,$K$24,$K$32,$K$32,$K$36,$K$36) -> 10 | O65: 0 | T65: =IF(R63>R67,Q63,Q67) -> 7
Q67: =IF(O26<O34,N26,N34) -> 13 | R67: 0
AD71: ПРОТОКОЛ ХОДА СХВАТКИ
AE72: ВЕС кг | AG72: квалификация | AJ72: КОВЕР | AL72: 1
AD74: № п/п | AE74: Фамилия Имя | AF74: Город общество | AG74: 1 период | AI74: 2 период | AK74: баллы | AL74: очки | AM74: Судьи
AD76: 3 | AE76: =CHOOSE(MATCH(AD76,{1,2,3,4,5,6,7,8,9,10,11,12,13,14,15,16,17},),$C$7,$C$9,$C$11,$C$13,$C$15,$C$17,$C$19,$C$21,$C$23,$C$25,$C$27,$C$29,$C$31,$C$33,$C$35,$C$37,$C$39) -> 3013003 | AF76: =CHOOSE(MATCH(AD76,{1,2,3,4,5,6,7,8,9,10,11,12,13,14,15,16,17},), $D$7,$D$9,$D$11,$D$13,$D$15,$D$17,$D$19,$D$21,$D$23,$D$25,$D$27,$D$29,$D$31,$D$33,$D$35,$D$37,$D$39,) -> 55003
AD78: 4 | AE78: =CHOOSE(MATCH(AD78,{1,2,3,4,5,6,7,8,9,10,11,12,13,14,15,16,17},),$C$7,$C$9,$C$11,$C$13,$C$15,$C$17,$C$19,$C$21,$C$23,$C$25,$C$27,$C$29,$C$31,$C$33,$C$35,$C$37,$C$39) -> 3013004 | AF78: =CHOOSE(MATCH(AD78,{1,2,3,4,5,6,7,8,9,10,11,12,13,14,15,16,17},), $D$7,$D$9,$D$11,$D$13,$D$15,$D$17,$D$19,$D$21,$D$23,$D$25,$D$27,$D$29,$D$31,$D$33,$D$35,$D$37,$D$39,) -> 55004
AD80: 5 | AE80: =CHOOSE(MATCH(AD80,{1,2,3,4,5,6,7,8,9,10,11,12,13,14,15,16,17},),$C$7,$C$9,$C$11,$C$13,$C$15,$C$17,$C$19,$C$21,$C$23,$C$25,$C$27,$C$29,$C$31,$C$33,$C$35,$C$37,$C$39) -> 3013005 | AF80: =CHOOSE(MATCH(AD80,{1,2,3,4,5,6,7,8,9,10,11,12,13,14,15,16,17},), $D$7,$D$9,$D$11,$D$13,$D$15,$D$17,$D$19,$D$21,$D$23,$D$25,$D$27,$D$29,$D$31,$D$33,$D$35,$D$37,$D$39,) -> 55005
AD82: 6 | AE82: =CHOOSE(MATCH(AD82,{1,2,3,4,5,6,7,8,9,10,11,12,13,14,15,16,17},),$C$7,$C$9,$C$11,$C$13,$C$15,$C$17,$C$19,$C$21,$C$23,$C$25,$C$27,$C$29,$C$31,$C$33,$C$35,$C$37,$C$39) -> 3013006 | AF82: =CHOOSE(MATCH(AD82,{1,2,3,4,5,6,7,8,9,10,11,12,13,14,15,16,17},), $D$7,$D$9,$D$11,$D$13,$D$15,$D$17,$D$19,$D$21,$D$23,$D$25,$D$27,$D$29,$D$31,$D$33,$D$35,$D$37,$D$39,) -> 55006
AD84: 7 | AE84: =CHOOSE(MATCH(AD84,{1,2,3,4,5,6,7,8,9,10,11,12,13,14,15,16,17},),$C$7,$C$9,$C$11,$C$13,$C$15,$C$17,$C$19,$C$21,$C$23,$C$25,$C$27,$C$29,$C$31,$C$33,$C$35,$C$37,$C$39) -> 3013007 | AF84: =CHOOSE(MATCH(AD84,{1,2,3,4,5,6,7,8,9,10,11,12,13,14,15,16,17},), $D$7,$D$9,$D$11,$D$13,$D$15,$D$17,$D$19,$D$21,$D$23,$D$25,$D$27,$D$29,$D$31,$D$33,$D$35,$D$37,$D$39,) -> 55007
AD86: 8 | AE86: =CHOOSE(MATCH(AD86,{1,2,3,4,5,6,7,8,9,10,11,12,13,14,15,16,17},),$C$7,$C$9,$C$11,$C$13,$C$15,$C$17,$C$19,$C$21,$C$23,$C$25,$C$27,$C$29,$C$31,$C$33,$C$35,$C$37,$C$39) -> 3013008 | AF86: =CHOOSE(MATCH(AD86,{1,2,3,4,5,6,7,8,9,10,11,12,13,14,15,16,17},), $D$7,$D$9,$D$11,$D$13,$D$15,$D$17,$D$19,$D$21,$D$23,$D$25,$D$27,$D$29,$D$31,$D$33,$D$35,$D$37,$D$39,) -> 55008
AD88: 9 | AE88: =CHOOSE(MATCH(AD88,{1,2,3,4,5,6,7,8,9,10,11,12,13,14,15,16,17},),$C$7,$C$9,$C$11,$C$13,$C$15,$C$17,$C$19,$C$21,$C$23,$C$25,$C$27,$C$29,$C$31,$C$33,$C$35,$C$37,$C$39) -> 3013009 | AF88: =CHOOSE(MATCH(AD88,{1,2,3,4,5,6,7,8,9,10,11,12,13,14,15,16,17},), $D$7,$D$9,$D$11,$D$13,$D$15,$D$17,$D$19,$D$21,$D$23,$D$25,$D$27,$D$29,$D$31,$D$33,$D$35,$D$37,$D$39,) -> 55009
AD90: 10 | AE90: =CHOOSE(MATCH(AD90,{1,2,3,4,5,6,7,8,9,10,11,12,13,14,15,16,17},),$C$7,$C$9,$C$11,$C$13,$C$15,$C$17,$C$19,$C$21,$C$23,$C$25,$C$27,$C$29,$C$31,$C$33,$C$35,$C$37,$C$39) -> 3013010 | AF90: =CHOOSE(MATCH(AD90,{1,2,3,4,5,6,7,8,9,10,11,12,13,14,15,16,17},), $D$7,$D$9,$D$11,$D$13,$D$15,$D$17,$D$19,$D$21,$D$23,$D$25,$D$27,$D$29,$D$31,$D$33,$D$35,$D$37,$D$39,) -> 55010
AD92: 11 | AE92: =CHOOSE(MATCH(AD92,{1,2,3,4,5,6,7,8,9,10,11,12,13,14,15,16,17},),$C$7,$C$9,$C$11,$C$13,$C$15,$C$17,$C$19,$C$21,$C$23,$C$25,$C$27,$C$29,$C$31,$C$33,$C$35,$C$37,$C$39) -> 3013011 | AF92: =CHOOSE(MATCH(AD92,{1,2,3,4,5,6,7,8,9,10,11,12,13,14,15,16,17},), $D$7,$D$9,$D$11,$D$13,$D$15,$D$17,$D$19,$D$21,$D$23,$D$25,$D$27,$D$29,$D$31,$D$33,$D$35,$D$37,$D$39,) -> 55011
AD94: 12 | AE94: =CHOOSE(MATCH(AD94,{1,2,3,4,5,6,7,8,9,10,11,12,13,14,15,16,17},),$C$7,$C$9,$C$11,$C$13,$C$15,$C$17,$C$19,$C$21,$C$23,$C$25,$C$27,$C$29,$C$31,$C$33,$C$35,$C$37,$C$39) -> 3013012 | AF94: =CHOOSE(MATCH(AD94,{1,2,3,4,5,6,7,8,9,10,11,12,13,14,15,16,17},), $D$7,$D$9,$D$11,$D$13,$D$15,$D$17,$D$19,$D$21,$D$23,$D$25,$D$27,$D$29,$D$31,$D$33,$D$35,$D$37,$D$39,) -> 55012
AD96: 13 | AE96: =CHOOSE(MATCH(AD96,{1,2,3,4,5,6,7,8,9,10,11,12,13,14,15,16,17},),$C$7,$C$9,$C$11,$C$13,$C$15,$C$17,$C$19,$C$21,$C$23,$C$25,$C$27,$C$29,$C$31,$C$33,$C$35,$C$37,$C$39) -> 3013013 | AF96: =CHOOSE(MATCH(AD96,{1,2,3,4,5,6,7,8,9,10,11,12,13,14,15,16,17},), $D$7,$D$9,$D$11,$D$13,$D$15,$D$17,$D$19,$D$21,$D$23,$D$25,$D$27,$D$29,$D$31,$D$33,$D$35,$D$37,$D$39,) -> 55013
AD98: 14 | AE98: =CHOOSE(MATCH(AD98,{1,2,3,4,5,6,7,8,9,10,11,12,13,14,15,16,17},),$C$7,$C$9,$C$11,$C$13,$C$15,$C$17,$C$19,$C$21,$C$23,$C$25,$C$27,$C$29,$C$31,$C$33,$C$35,$C$37,$C$39) -> 3013014 | AF98: =CHOOSE(MATCH(AD98,{1,2,3,4,5,6,7,8,9,10,11,12,13,14,15,16,17},), $D$7,$D$9,$D$11,$D$13,$D$15,$D$17,$D$19,$D$21,$D$23,$D$25,$D$27,$D$29,$D$31,$D$33,$D$35,$D$37,$D$39,) -> 55014
AF105: Руководитель ковра
AD127: ПРОТОКОЛ ХОДА СХВАТКИ
AE128: ВЕС кг | AG128: 1/4 финала | AJ128: КОВЕР | AL128: 1
AD130: № п/п | AE130: Фамилия Имя | AF130: Город общество | AG130: 1 период | AI130: 2 период | AK130: баллы | AL130: очки | AM130: Судьи
AD132: =VALUE(K8) -> 1 | AE132: =CHOOSE(MATCH(AD132,{1,2,3,4,5,6,7,8,9,10,11,12,13,14,15,16,17},),$C$7,$C$9,$C$11,$C$13,$C$15,$C$17,$C$19,$C$21,$C$23,$C$25,$C$27,$C$29,$C$31,$C$33,$C$35,$C$37,$C$39) -> 3013001 | AF132: =CHOOSE(MATCH(AD132,{1,2,3,4,5,6,7,8,9,10,11,12,13,14,15,16,17},), $D$7,$D$9,$D$11,$D$13,$D$15,$D$17,$D$19,$D$21,$D$23,$D$25,$D$27,$D$29,$D$31,$D$33,$D$35,$D$37,$D$39,) -> 55001
AD134: =VALUE(K12) -> 2 | AE134: =CHOOSE(MATCH(AD134,{1,2,3,4,5,6,7,8,9,10,11,12,13,14,15,16,17},),$C$7,$C$9,$C$11,$C$13,$C$15,$C$17,$C$19,$C$21,$C$23,$C$25,$C$27,$C$29,$C$31,$C$33,$C$35,$C$37,$C$39) -> 3013002 | AF134: =CHOOSE(MATCH(AD134,{1,2,3,4,5,6,7,8,9,10,11,12,13,14,15,16,17},), $D$7,$D$9,$D$11,$D$13,$D$15,$D$17,$D$19,$D$21,$D$23,$D$25,$D$27,$D$29,$D$31,$D$33,$D$35,$D$37,$D$39,) -> 55002
AD136: =VALUE(K16) -> 4 | AE136: =CHOOSE(MATCH(AD136,{1,2,3,4,5,6,7,8,9,10,11,12,13,14,15,16,17},),$C$7,$C$9,$C$11,$C$13,$C$15,$C$17,$C$19,$C$21,$C$23,$C$25,$C$27,$C$29,$C$31,$C$33,$C$35,$C$37,$C$39) -> 3013004 | AF136: =CHOOSE(MATCH(AD136,{1,2,3,4,5,6,7,8,9,10,11,12,13,14,15,16,17},), $D$7,$D$9,$D$11,$D$13,$D$15,$D$17,$D$19,$D$21,$D$23,$D$25,$D$27,$D$29,$D$31,$D$33,$D$35,$D$37,$D$39,) -> 55004
AD138: =VALUE(K20) -> 6 | AE138: =CHOOSE(MATCH(AD138,{1,2,3,4,5,6,7,8,9,10,11,12,13,14,15,16,17},),$C$7,$C$9,$C$11,$C$13,$C$15,$C$17,$C$19,$C$21,$C$23,$C$25,$C$27,$C$29,$C$31,$C$33,$C$35,$C$37,$C$39) -> 3013006 | AF138: =CHOOSE(MATCH(AD138,{1,2,3,4,5,6,7,8,9,10,11,12,13,14,15,16,17},), $D$7,$D$9,$D$11,$D$13,$D$15,$D$17,$D$19,$D$21,$D$23,$D$25,$D$27,$D$29,$D$31,$D$33,$D$35,$D$37,$D$39,) -> 55006
AD140: =VALUE(K24) -> 8 | AE140: =CHOOSE(MATCH(AD140,{1,2,3,4,5,6,7,8,9,10,11,12,13,14,15,16,17},),$C$7,$C$9,$C$11,$C$13,$C$15,$C$17,$C$19,$C$21,$C$23,$C$25,$C$27,$C$29,$C$31,$C$33,$C$35,$C$37,$C$39) -> 3013008 | AF140: =CHOOSE(MATCH(AD140,{1,2,3,4,5,6,7,8,9,10,11,12,13,14,15,16,17},), $D$7,$D$9,$D$11,$D$13,$D$15,$D$17,$D$19,$D$21,$D$23,$D$25,$D$27,$D$29,$D$31,$D$33,$D$35,$D$37,$D$39,) -> 55008
AD142: =VALUE(K28) -> 10 | AE142: =CHOOSE(MATCH(AD142,{1,2,3,4,5,6,7,8,9,10,11,12,13,14,15,16,17},),$C$7,$C$9,$C$11,$C$13,$C$15,$C$17,$C$19,$C$21,$C$23,$C$25,$C$27,$C$29,$C$31,$C$33,$C$35,$C$37,$C$39) -> 3013010 | AF142: =CHOOSE(MATCH(AD142,{1,2,3,4,5,6,7,8,9,10,11,12,13,14,15,16,17},), $D$7,$D$9,$D$11,$D$13,$D$15,$D$17,$D$19,$D$21,$D$23,$D$25,$D$27,$D$29,$D$31,$D$33,$D$35,$D$37,$D$39,) -> 55010
AD144: =VALUE(K32) -> 11 | AE144: =CHOOSE(MATCH(AD144,{1,2,3,4,5,6,7,8,9,10,11,12,13,14,15,16,17},),$C$7,$C$9,$C$11,$C$13,$C$15,$C$17,$C$19,$C$21,$C$23,$C$25,$C$27,$C$29,$C$31,$C$33,$C$35,$C$37,$C$39) -> 3013011 | AF144: =CHOOSE(MATCH(AD144,{1,2,3,4,5,6,7,8,9,10,11,12,13,14,15,16,17},), $D$7,$D$9,$D$11,$D$13,$D$15,$D$17,$D$19,$D$21,$D$23,$D$25,$D$27,$D$29,$D$31,$D$33,$D$35,$D$37,$D$39,) -> 55011
AD146: =VALUE(K36) -> 13 | AE146: =CHOOSE(MATCH(AD146,{1,2,3,4,5,6,7,8,9,10,11,12,13,14,15,16,17},),$C$7,$C$9,$C$11,$C$13,$C$15,$C$17,$C$19,$C$21,$C$23,$C$25,$C$27,$C$29,$C$31,$C$33,$C$35,$C$37,$C$39) -> 3013013 | AF146: =CHOOSE(MATCH(AD146,{1,2,3,4,5,6,7,8,9,10,11,12,13,14,15,16,17},), $D$7,$D$9,$D$11,$D$13,$D$15,$D$17,$D$19,$D$21,$D$23,$D$25,$D$27,$D$29,$D$31,$D$33,$D$35,$D$37,$D$39,) -> 55013
AF151: Руководитель ковра
AD154: ПРОТОКОЛ ХОДА СХВАТКИ
AE155: ВЕС кг | AG155: 1/2 финала | AJ155: КОВЕР | AL155: 1
AD157: № п/п | AE157: Фамилия Имя | AF157: Город общество | AG157: 1 период | AI157: 2 период | AK157: баллы | AL157: очки | AM157: Судьи
AD159: =VALUE(N10) -> 2 | AE159: =CHOOSE(MATCH(AD159,{1,2,3,4,5,6,7,8,9,10,11,12,13,14,15,16,17},),$C$7,$C$9,$C$11,$C$13,$C$15,$C$17,$C$19,$C$21,$C$23,$C$25,$C$27,$C$29,$C$31,$C$33,$C$35,$C$37,$C$39) -> 3013002 | AF159: =CHOOSE(MATCH(AD159,{1,2,3,4,5,6,7,8,9,10,11,12,13,14,15,16,17},), $D$7,$D$9,$D$11,$D$13,$D$15,$D$17,$D$19,$D$21,$D$23,$D$25,$D$27,$D$29,$D$31,$D$33,$D$35,$D$37,$D$39,) -> 55002
AD161: =VALUE(N18) -> 6 | AE161: =CHOOSE(MATCH(AD161,{1,2,3,4,5,6,7,8,9,10,11,12,13,14,15,16,17},),$C$7,$C$9,$C$11,$C$13,$C$15,$C$17,$C$19,$C$21,$C$23,$C$25,$C$27,$C$29,$C$31,$C$33,$C$35,$C$37,$C$39) -> 3013006 | AF161: =CHOOSE(MATCH(AD161,{1,2,3,4,5,6,7,8,9,10,11,12,13,14,15,16,17},), $D$7,$D$9,$D$11,$D$13,$D$15,$D$17,$D$19,$D$21,$D$23,$D$25,$D$27,$D$29,$D$31,$D$33,$D$35,$D$37,$D$39,) -> 55006
AD163: =VALUE(N26) -> 8 | AE163: =CHOOSE(MATCH(AD163,{1,2,3,4,5,6,7,8,9,10,11,12,13,14,15,16,17},),$C$7,$C$9,$C$11,$C$13,$C$15,$C$17,$C$19,$C$21,$C$23,$C$25,$C$27,$C$29,$C$31,$C$33,$C$35,$C$37,$C$39) -> 3013008 | AF163: =CHOOSE(MATCH(AD163,{1,2,3,4,5,6,7,8,9,10,11,12,13,14,15,16,17},), $D$7,$D$9,$D$11,$D$13,$D$15,$D$17,$D$19,$D$21,$D$23,$D$25,$D$27,$D$29,$D$31,$D$33,$D$35,$D$37,$D$39,) -> 55008
AD165: =VALUE(N34) -> 13 | AE165: =CHOOSE(MATCH(AD165,{1,2,3,4,5,6,7,8,9,10,11,12,13,14,15,16,17},),$C$7,$C$9,$C$11,$C$13,$C$15,$C$17,$C$19,$C$21,$C$23,$C$25,$C$27,$C$29,$C$31,$C$33,$C$35,$C$37,$C$39) -> 3013013 | AF165: =CHOOSE(MATCH(AD165,{1,2,3,4,5,6,7,8,9,10,11,12,13,14,15,16,17},), $D$7,$D$9,$D$11,$D$13,$D$15,$D$17,$D$19,$D$21,$D$23,$D$25,$D$27,$D$29,$D$31,$D$33,$D$35,$D$37,$D$39,) -> 55013
AF169: Руководитель ковра
AD188: ПРОТОКОЛ ХОДА СХВАТКИ
AE189: ВЕС кг | AG189: утешение | AJ189: КОВЕР | AL189: 1
AD191: № п/п | AE191: Фамилия Имя | AF191: Город общество | AG191: 1 период | AI191: 2 период | AK191: баллы | AL191: очки | AM191: Судьи
AD193: =VALUE(N46) ->  | AE193: =CHOOSE(MATCH(AD193,{1,2,3,4,5,6,7,8,9,10,11,12,13,14,15,16,17},),$C$7,$C$9,$C$11,$C$13,$C$15,$C$17,$C$19,$C$21,$C$23,$C$25,$C$27,$C$29,$C$31,$C$33,$C$35,$C$37,$C$39) ->  | AF193: =CHOOSE(MATCH(AD193,{1,2,3,4,5,6,7,8,9,10,11,12,13,14,15,16,17},), $D$7,$D$9,$D$11,$D$13,$D$15,$D$17,$D$19,$D$21,$D$23,$D$25,$D$27,$D$29,$D$31,$D$33,$D$35,$D$37,$D$39,) -> 
AD195: =VALUE(N50) -> 1 | AE195: =CHOOSE(MATCH(AD195,{1,2,3,4,5,6,7,8,9,10,11,12,13,14,15,16,17},),$C$7,$C$9,$C$11,$C$13,$C$15,$C$17,$C$19,$C$21,$C$23,$C$25,$C$27,$C$29,$C$31,$C$33,$C$35,$C$37,$C$39) -> 3013001 | AF195: =CHOOSE(MATCH(AD195,{1,2,3,4,5,6,7,8,9,10,11,12,13,14,15,16,17},), $D$7,$D$9,$D$11,$D$13,$D$15,$D$17,$D$19,$D$21,$D$23,$D$25,$D$27,$D$29,$D$31,$D$33,$D$35,$D$37,$D$39,) -> 55001
AD197: =VALUE(N61) -> 7 | AE197: =CHOOSE(MATCH(AD197,{1,2,3,4,5,6,7,8,9,10,11,12,13,14,15,16,17},),$C$7,$C$9,$C$11,$C$13,$C$15,$C$17,$C$19,$C$21,$C$23,$C$25,$C$27,$C$29,$C$31,$C$33,$C$35,$C$37,$C$39) -> 3013007 | AF197: =CHOOSE(MATCH(AD197,{1,2,3,4,5,6,7,8,9,10,11,12,13,14,15,16,17},), $D$7,$D$9,$D$11,$D$13,$D$15,$D$17,$D$19,$D$21,$D$23,$D$25,$D$27,$D$29,$D$31,$D$33,$D$35,$D$37,$D$39,) -> 55007
AD199: =VALUE(N65) -> 10 | AE199: =CHOOSE(MATCH(AD199,{1,2,3,4,5,6,7,8,9,10,11,12,13,14,15,16,17},),$C$7,$C$9,$C$11,$C$13,$C$15,$C$17,$C$19,$C$21,$C$23,$C$25,$C$27,$C$29,$C$31,$C$33,$C$35,$C$37,$C$39) -> 3013010 | AF199: =CHOOSE(MATCH(AD199,{1,2,3,4,5,6,7,8,9,10,11,12,13,14,15,16,17},), $D$7,$D$9,$D$11,$D$13,$D$15,$D$17,$D$19,$D$21,$D$23,$D$25,$D$27,$D$29,$D$31,$D$33,$D$35,$D$37,$D$39,) -> 55010
AF203: Руководитель ковра
AD234: ПРОТОКОЛ ХОДА СХВАТКИ
AE235: ВЕС кг | AG235: финал за 3м. | AJ235: КОВЕР | AL235: 1
AD237: № п/п | AE237: Фамилия Имя | AF237: Город общество | AG237: 1 период | AI237: 2 период | AK237: баллы | AL237: очки | AM237: Судьи
AD239: =VALUE(Q48) -> 1 | AE239: =CHOOSE(MATCH(AD239,{1,2,3,4,5,6,7,8,9,10,11,12,13,14,15,16,17},),$C$7,$C$9,$C$11,$C$13,$C$15,$C$17,$C$19,$C$21,$C$23,$C$25,$C$27,$C$29,$C$31,$C$33,$C$35,$C$37,$C$39) -> 3013001 | AF239: =CHOOSE(MATCH(AD239,{1,2,3,4,5,6,7,8,9,10,11,12,13,14,15,16,17},), $D$7,$D$9,$D$11,$D$13,$D$15,$D$17,$D$19,$D$21,$D$23,$D$25,$D$27,$D$29,$D$31,$D$33,$D$35,$D$37,$D$39,) -> 55001
AD241: =VALUE(Q52) -> 6 | AE241: =CHOOSE(MATCH(AD241,{1,2,3,4,5,6,7,8,9,10,11,12,13,14,15,16,17},),$C$7,$C$9,$C$11,$C$13,$C$15,$C$17,$C$19,$C$21,$C$23,$C$25,$C$27,$C$29,$C$31,$C$33,$C$35,$C$37,$C$39) -> 3013006 | AF241: =CHOOSE(MATCH(AD241,{1,2,3,4,5,6,7,8,9,10,11,12,13,14,15,16,17},), $D$7,$D$9,$D$11,$D$13,$D$15,$D$17,$D$19,$D$21,$D$23,$D$25,$D$27,$D$29,$D$31,$D$33,$D$35,$D$37,$D$39,) -> 55006
AD243: =VALUE(Q63) -> 7 | AE243: =CHOOSE(MATCH(AD243,{1,2,3,4,5,6,7,8,9,10,11,12,13,14,15,16,17},),$C$7,$C$9,$C$11,$C$13,$C$15,$C$17,$C$19,$C$21,$C$23,$C$25,$C$27,$C$29,$C$31,$C$33,$C$35,$C$37,$C$39) -> 3013007 | AF243: =CHOOSE(MATCH(AD243,{1,2,3,4,5,6,7,8,9,10,11,12,13,14,15,16,17},), $D$7,$D$9,$D$11,$D$13,$D$15,$D$17,$D$19,$D$21,$D$23,$D$25,$D$27,$D$29,$D$31,$D$33,$D$35,$D$37,$D$39,) -> 55007
AD245: =VALUE(Q67) -> 13 | AE245: =CHOOSE(MATCH(AD245,{1,2,3,4,5,6,7,8,9,10,11,12,13,14,15,16,17},),$C$7,$C$9,$C$11,$C$13,$C$15,$C$17,$C$19,$C$21,$C$23,$C$25,$C$27,$C$29,$C$31,$C$33,$C$35,$C$37,$C$39) -> 3013013 | AF245: =CHOOSE(MATCH(AD245,{1,2,3,4,5,6,7,8,9,10,11,12,13,14,15,16,17},), $D$7,$D$9,$D$11,$D$13,$D$15,$D$17,$D$19,$D$21,$D$23,$D$25,$D$27,$D$29,$D$31,$D$33,$D$35,$D$37,$D$39,) -> 55013
AF249: Руководитель ковра
AD257: ПРОТОКОЛ ХОДА СХВАТКИ
AE258: ВЕС кг | AG258: финал | AJ258: КОВЕР | AL258: 1
AD260: № п/п | AE260: Фамилия Имя | AF260: Город общество | AG260: 1 период | AI260: 2 период | AK260: баллы | AL260: очки | AM260: Судьи
AD262: =VALUE( Q14) -> 2 | AE262: =CHOOSE(MATCH(AD262,{1,2,3,4,5,6,7,8,9,10,11,12,13,14,15,16,17},),$C$7,$C$9,$C$11,$C$13,$C$15,$C$17,$C$19,$C$21,$C$23,$C$25,$C$27,$C$29,$C$31,$C$33,$C$35,$C$37,$C$39) -> 3013002 | AF262: =CHOOSE(MATCH(AD262,{1,2,3,4,5,6,7,8,9,10,11,12,13,14,15,16,17},), $D$7,$D$9,$D$11,$D$13,$D$15,$D$17,$D$19,$D$21,$D$23,$D$25,$D$27,$D$29,$D$31,$D$33,$D$35,$D$37,$D$39,) -> 55002
AD264: =VALUE(Q30) -> 8 | AE264: =CHOOSE(MATCH(AD264,{1,2,3,4,5,6,7,8,9,10,11,12,13,14,15,16,17},),$C$7,$C$9,$C$11,$C$13,$C$15,$C$17,$C$19,$C$21,$C$23,$C$25,$C$27,$C$29,$C$31,$C$33,$C$35,$C$37,$C$39) -> 3013008 | AF264: =CHOOSE(MATCH(AD264,{1,2,3,4,5,6,7,8,9,10,11,12,13,14,15,16,17},), $D$7,$D$9,$D$11,$D$13,$D$15,$D$17,$D$19,$D$21,$D$23,$D$25,$D$27,$D$29,$D$31,$D$33,$D$35,$D$37,$D$39,) -> 55008
AF271: Руководитель ковра

Sheet 15уч
A1: ПРОТОКОЛ ХОДА СОРЕВНОВАНИЙ
A2: Турнир по борьбе вольной, памяти первого тренерашколы НЕЙЧА И.В.19 мая 2017г
C3: ВЕС кг
A5: МЕСТО | B5: № п/п | C5: Фамилия Имя | D5: Город общество | E5: Год рожд | F5: Разряд | H5: квалификация | K5: 1/4 финала | N5: 1/2 финала | Q5: ФИНАЛ за 1место
B7: 1 | C7: 2001 | D7: 20001 | H7: 1 | I7: св
K8: =IF(I7>I9,H7,H9) -> 1 | L8: 3
B9: 2 | C9: 2002 | D9: 20002 | H9: 2 | I9: 1
N10: =IF(L8>L12,K8,K12) -> 2 | O10: 1
B11: 3 | C11: 2003 | D11: 20003 | H11: 3 | I11: 0
K12: =IF(I9>I11,H9,H11) -> 2 | L12: 4
B13: 4 | C13: 2004 | D13: 20004 | H13: 4 | I13: 1
Q14: =IF(O10>O18,N10,N18) -> 7 | R14: 1
B15: 5 | C15: 2005 | D15: 20005 | H15: 5 | I15: 0
K16: =IF(I13>I15,H13,H15) -> 4 | L16: 1
B17: 6 | C17: 2006 | D17: 20006 | H17: 6
N18: =IF(L16>L20,K16,K20) -> 7 | O18: 2
B19: 7 | C19: 2007 | D19: 20007 | H19: 7
K20: =IF(I17>I19,H17,H19) -> 7 | L20: 5
B21: 8 | C21: 2008 | D21: 20008 | H21: 8
T22: =IF(R14>R30,Q14,Q30) -> 7
B23: 9 | C23: 2009 | D23: 20009 | H23: 9
K24: =IF(I21>I23,H21,H23) -> 9 | L24: 3
B25: 10 | C25: 2010 | D25: 20010 | H25: 10
N26: =IF(L24>L28,K24,K28) -> 11 | O26: 4
B27: 11 | C27: 2011 | D27: 20011 | H27: 11
K28: =IF(I25>I27,H25,H27) -> 11 | L28: 4
B29: 12 | C29: 2012 | D29: 20012 | H29: 12
Q30: =IF(O26>O34,N26,N34) -> 11 | R30: 0
B31: 13 | C31: 2013 | D31: 20013 | H31: 13
K32: =IF(I29>I31,H29,H31) -> 13 | L32: 1
B33: 14 | C33: 2014 | D33: 20014 | H33: 14 | I33: 1
N34: =IF(L32>L36,K32,K36) -> 14 | O34: 0
B35: 15 | C35: 2015 | D35: 20015 | H35: 15 | I35: 0
K36: =IF(I33>I35,H33,H35) -> 14 | L36: 5
N39: ПЕРЕЭКЗАМЕНОВКА
K42: ПРОИГРАВШИЕ ПЕРВОМУ ФИНАЛИСТУ
N46: =CHOOSE(MATCH($Q$14,{2,3,4,5,6,7,8,9,10,11,12,13,14,15},),3,2,5,4,7,6,9,8,11,10,13,12,15,14) -> 6 | O46: 1
Q48: =IF(O46>O50,N46,N50) -> 6 | R48: 3 | U48: 3 МЕСТО
N50: =CHOOSE(MATCH($Q$14,{1,2,3,4,5,6,7,8,9,10,11,12,13,14,15},),$K$12,$K$8,$K$8,$K$20,$K$20,$K$16,$K$16,$K$28,$K$28,$K$24,$K$24,$K$36,$K$36,$K$32,$K$32) -> 4 | O50: 0 | T50: =IF(R48>R52,Q48,Q52) -> 6 | U50: =IF(S48>S52,R48,R52) -> 0
Q52: =IF(O10<O18,N10,N18) -> 2 | R52: 0
K57: ПРОИГРАВШИЕ ВТОРОМУ ФИНАЛИСТУ
N61: =CHOOSE(MATCH($Q$30,{2,3,4,5,6,7,8,9,10,11,12,13,14,15},),3,2,5,4,7,6,9,8,11,10,13,12,15,14) -> 10 | O61: 1
Q63: =IF(O61>O65,N61,N65) -> 10 | R63: 1 | U63: 3 МЕСТО
N65: =CHOOSE(MATCH($Q$30,{1,2,3,4,5,6,7,8,9,10,11,12,13,14,15},),$K$12,$K$8,$K$8,$K$20,$K$20,$K$16,$K$16,$K$28,$K$28,$K$24,$K$24,$K$36,$K$36,$K$32,$K$32) -> 9 | O65: 0 | T65: =IF(R63>R67,Q63,Q67) -> 10 | U65: =IF(S63>S67,R63,R67) -> 0
Q67: =IF(O26<O34,N26,N34) -> 14 | R67: 0
AD71: ПРОТОКОЛ ХОДА СХВАТКИ
AE72: ВЕС кг | AG72: квалификация | AJ72: КОВЕР | AL72: 1
AD74: № п/п | AE74: Фамилия Имя | AF74: Город общество | AG74: 1 период | AI74: 2 период | AK74: баллы | AL74: очки | AM74: Судьи
AD76: 2 | AE76: =CHOOSE(MATCH(AD76,{1,2,3,4,5,6,7,8,9,10,11,12,13,14,15,16,17},),$C$7,$C$9,$C$11,$C$13,$C$15,$C$17,$C$19,$C$21,$C$23,$C$25,$C$27,$C$29,$C$31,$C$33,$C$35,$C$37,$C$39) -> 2002 | AF76: =CHOOSE(MATCH(AD76,{1,2,3,4,5,6,7,8,9,10,11,12,13,14,15,16,17},), $D$7,$D$9,$D$11,$D$13,$D$15,$D$17,$D$19,$D$21,$D$23,$D$25,$D$27,$D$29,$D$31,$D$33,$D$35,$D$37,$D$39,) -> 20002
AD78: 3 | AE78: =CHOOSE(MATCH(AD78,{1,2,3,4,5,6,7,8,9,10,11,12,13,14,15,16,17},),$C$7,$C$9,$C$11,$C$13,$C$15,$C$17,$C$19,$C$21,$C$23,$C$25,$C$27,$C$29,$C$31,$C$33,$C$35,$C$37,$C$39) -> 2003 | AF78: =CHOOSE(MATCH(AD78,{1,2,3,4,5,6,7,8,9,10,11,12,13,14,15,16,17},), $D$7,$D$9,$D$11,$D$13,$D$15,$D$17,$D$19,$D$21,$D$23,$D$25,$D$27,$D$29,$D$31,$D$33,$D$35,$D$37,$D$39,) -> 20003
AD80: 4 | AE80: =CHOOSE(MATCH(AD80,{1,2,3,4,5,6,7,8,9,10,11,12,13,14,15,16,17},),$C$7,$C$9,$C$11,$C$13,$C$15,$C$17,$C$19,$C$21,$C$23,$C$25,$C$27,$C$29,$C$31,$C$33,$C$35,$C$37,$C$39) -> 2004 | AF80: =CHOOSE(MATCH(AD80,{1,2,3,4,5,6,7,8,9,10,11,12,13,14,15,16,17},), $D$7,$D$9,$D$11,$D$13,$D$15,$D$17,$D$19,$D$21,$D$23,$D$25,$D$27,$D$29,$D$31,$D$33,$D$35,$D$37,$D$39,) -> 20004
AD82: 5 | AE82: =CHOOSE(MATCH(AD82,{1,2,3,4,5,6,7,8,9,10,11,12,13,14,15,16,17},),$C$7,$C$9,$C$11,$C$13,$C$15,$C$17,$C$19,$C$21,$C$23,$C$25,$C$27,$C$29,$C$31,$C$33,$C$35,$C$37,$C$39) -> 2005 | AF82: =CHOOSE(MATCH(AD82,{1,2,3,4,5,6,7,8,9,10,11,12,13,14,15,16,17},), $D$7,$D$9,$D$11,$D$13,$D$15,$D$17,$D$19,$D$21,$D$23,$D$25,$D$27,$D$29,$D$31,$D$33,$D$35,$D$37,$D$39,) -> 20005
AD84: 6 | AE84: =CHOOSE(MATCH(AD84,{1,2,3,4,5,6,7,8,9,10,11,12,13,14,15,16,17},),$C$7,$C$9,$C$11,$C$13,$C$15,$C$17,$C$19,$C$21,$C$23,$C$25,$C$27,$C$29,$C$31,$C$33,$C$35,$C$37,$C$39) -> 2006 | AF84: =CHOOSE(MATCH(AD84,{1,2,3,4,5,6,7,8,9,10,11,12,13,14,15,16,17},), $D$7,$D$9,$D$11,$D$13,$D$15,$D$17,$D$19,$D$21,$D$23,$D$25,$D$27,$D$29,$D$31,$D$33,$D$35,$D$37,$D$39,) -> 20006
AD86: 7 | AE86: =CHOOSE(MATCH(AD86,{1,2,3,4,5,6,7,8,9,10,11,12,13,14,15,16,17},),$C$7,$C$9,$C$11,$C$13,$C$15,$C$17,$C$19,$C$21,$C$23,$C$25,$C$27,$C$29,$C$31,$C$33,$C$35,$C$37,$C$39) -> 2007 | AF86: =CHOOSE(MATCH(AD86,{1,2,3,4,5,6,7,8,9,10,11,12,13,14,15,16,17},), $D$7,$D$9,$D$11,$D$13,$D$15,$D$17,$D$19,$D$21,$D$23,$D$25,$D$27,$D$29,$D$31,$D$33,$D$35,$D$37,$D$39,) -> 20007
AD88: 8 | AE88: =CHOOSE(MATCH(AD88,{1,2,3,4,5,6,7,8,9,10,11,12,13,14,15,16,17},),$C$7,$C$9,$C$11,$C$13,$C$15,$C$17,$C$19,$C$21,$C$23,$C$25,$C$27,$C$29,$C$31,$C$33,$C$35,$C$37,$C$39) -> 2008 | AF88: =CHOOSE(MATCH(AD88,{1,2,3,4,5,6,7,8,9,10,11,12,13,14,15,16,17},), $D$7,$D$9,$D$11,$D$13,$D$15,$D$17,$D$19,$D$21,$D$23,$D$25,$D$27,$D$29,$D$31,$D$33,$D$35,$D$37,$D$39,) -> 20008
AD90: 9 | AE90: =CHOOSE(MATCH(AD90,{1,2,3,4,5,6,7,8,9,10,11,12,13,14,15,16,17},),$C$7,$C$9,$C$11,$C$13,$C$15,$C$17,$C$19,$C$21,$C$23,$C$25,$C$27,$C$29,$C$31,$C$33,$C$35,$C$37,$C$39) -> 2009 | AF90: =CHOOSE(MATCH(AD90,{1,2,3,4,5,6,7,8,9,10,11,12,13,14,15,16,17},), $D$7,$D$9,$D$11,$D$13,$D$15,$D$17,$D$19,$D$21,$D$23,$D$25,$D$27,$D$29,$D$31,$D$33,$D$35,$D$37,$D$39,) -> 20009
AD92: 10 | AE92: =CHOOSE(MATCH(AD92,{1,2,3,4,5,6,7,8,9,10,11,12,13,14,15,16,17},),$C$7,$C$9,$C$11,$C$13,$C$15,$C$17,$C$19,$C$21,$C$23,$C$25,$C$27,$C$29,$C$31,$C$33,$C$35,$C$37,$C$39) -> 2010 | AF92: =CHOOSE(MATCH(AD92,{1,2,3,4,5,6,7,8,9,10,11,12,13,14,15,16,17},), $D$7,$D$9,$D$11,$D$13,$D$15,$D$17,$D$19,$D$21,$D$23,$D$25,$D$27,$D$29,$D$31,$D$33,$D$35,$D$37,$D$39,) -> 20010
AD94: 11 | AE94: =CHOOSE(MATCH(AD94,{1,2,3,4,5,6,7,8,9,10,11,12,13,14,15,16,17},),$C$7,$C$9,$C$11,$C$13,$C$15,$C$17,$C$19,$C$21,$C$23,$C$25,$C$27,$C$29,$C$31,$C$33,$C$35,$C$37,$C$39) -> 2011 | AF94: =CHOOSE(MATCH(AD94,{1,2,3,4,5,6,7,8,9,10,11,12,13,14,15,16,17},), $D$7,$D$9,$D$11,$D$13,$D$15,$D$17,$D$19,$D$21,$D$23,$D$25,$D$27,$D$29,$D$31,$D$33,$D$35,$D$37,$D$39,) -> 20011
AD96: 12 | AE96: =CHOOSE(MATCH(AD96,{1,2,3,4,5,6,7,8,9,10,11,12,13,14,15,16,17},),$C$7,$C$9,$C$11,$C$13,$C$15,$C$17,$C$19,$C$21,$C$23,$C$25,$C$27,$C$29,$C$31,$C$33,$C$35,$C$37,$C$39) -> 2012 | AF96: =CHOOSE(MATCH(AD96,{1,2,3,4,5,6,7,8,9,10,11,12,13,14,15,16,17},), $D$7,$D$9,$D$11,$D$13,$D$15,$D$17,$D$19,$D$21,$D$23,$D$25,$D$27,$D$29,$D$31,$D$33,$D$35,$D$37,$D$39,) -> 20012
AD98: 13 | AE98: =CHOOSE(MATCH(AD98,{1,2,3,4,5,6,7,8,9,10,11,12,13,14,15,16,17},),$C$7,$C$9,$C$11,$C$13,$C$15,$C$17,$C$19,$C$21,$C$23,$C$25,$C$27,$C$29,$C$31,$C$33,$C$35,$C$37,$C$39) -> 2013 | AF98: =CHOOSE(MATCH(AD98,{1,2,3,4,5,6,7,8,9,10,11,12,13,14,15,16,17},), $D$7,$D$9,$D$11,$D$13,$D$15,$D$17,$D$19,$D$21,$D$23,$D$25,$D$27,$D$29,$D$31,$D$33,$D$35,$D$37,$D$39,) -> 20013
AD100: 14 | AE100: =CHOOSE(MATCH(AD100,{1,2,3,4,5,6,7,8,9,10,11,12,13,14,15,16,17},),$C$7,$C$9,$C$11,$C$13,$C$15,$C$17,$C$19,$C$21,$C$23,$C$25,$C$27,$C$29,$C$31,$C$33,$C$35,$C$37,$C$39) -> 2014 | AF100: =CHOOSE(MATCH(AD100,{1,2,3,4,5,6,7,8,9,10,11,12,13,14,15,16,17},), $D$7,$D$9,$D$11,$D$13,$D$15,$D$17,$D$19,$D$21,$D$23,$D$25,$D$27,$D$29,$D$31,$D$33,$D$35,$D$37,$D$39,) -> 20014
AD102: 15 | AE102: =CHOOSE(MATCH(AD102,{1,2,3,4,5,6,7,8,9,10,11,12,13,14,15,16,17},),$C$7,$C$9,$C$11,$C$13,$C$15,$C$17,$C$19,$C$21,$C$23,$C$25,$C$27,$C$29,$C$31,$C$33,$C$35,$C$37,$C$39) -> 2015 | AF102: =CHOOSE(MATCH(AD102,{1,2,3,4,5,6,7,8,9,10,11,12,13,14,15,16,17},), $D$7,$D$9,$D$11,$D$13,$D$15,$D$17,$D$19,$D$21,$D$23,$D$25,$D$27,$D$29,$D$31,$D$33,$D$35,$D$37,$D$39,) -> 20015
AF109: Руководитель ковра
AD131: ПРОТОКОЛ ХОДА СХВАТКИ
AE132: ВЕС кг | AG132: 1/4 финала | AJ132: КОВЕР | AL132: 1
AD134: № п/п | AE134: Фамилия Имя | AF134: Город общество | AG134: 1 период | AI134: 2 период | AK134: баллы | AL134: очки | AM134: Судьи
AD136: =VALUE(K8) -> 1 | AE136: =CHOOSE(MATCH(AD136,{1,2,3,4,5,6,7,8,9,10,11,12,13,14,15,16,17},),$C$7,$C$9,$C$11,$C$13,$C$15,$C$17,$C$19,$C$21,$C$23,$C$25,$C$27,$C$29,$C$31,$C$33,$C$35,$C$37,$C$39) -> 2001 | AF136: =CHOOSE(MATCH(AD136,{1,2,3,4,5,6,7,8,9,10,11,12,13,14,15,16,17},), $D$7,$D$9,$D$11,$D$13,$D$15,$D$17,$D$19,$D$21,$D$23,$D$25,$D$27,$D$29,$D$31,$D$33,$D$35,$D$37,$D$39,) -> 20001
AD138: =VALUE(K12) -> 2 | AE138: =CHOOSE(MATCH(AD138,{1,2,3,4,5,6,7,8,9,10,11,12,13,14,15,16,17},),$C$7,$C$9,$C$11,$C$13,$C$15,$C$17,$C$19,$C$21,$C$23,$C$25,$C$27,$C$29,$C$31,$C$33,$C$35,$C$37,$C$39) -> 2002 | AF138: =CHOOSE(MATCH(AD138,{1,2,3,4,5,6,7,8,9,10,11,12,13,14,15,16,17},), $D$7,$D$9,$D$11,$D$13,$D$15,$D$17,$D$19,$D$21,$D$23,$D$25,$D$27,$D$29,$D$31,$D$33,$D$35,$D$37,$D$39,) -> 20002
AD140: =VALUE(K16) -> 4 | AE140: =CHOOSE(MATCH(AD140,{1,2,3,4,5,6,7,8,9,10,11,12,13,14,15,16,17},),$C$7,$C$9,$C$11,$C$13,$C$15,$C$17,$C$19,$C$21,$C$23,$C$25,$C$27,$C$29,$C$31,$C$33,$C$35,$C$37,$C$39) -> 2004 | AF140: =CHOOSE(MATCH(AD140,{1,2,3,4,5,6,7,8,9,10,11,12,13,14,15,16,17},), $D$7,$D$9,$D$11,$D$13,$D$15,$D$17,$D$19,$D$21,$D$23,$D$25,$D$27,$D$29,$D$31,$D$33,$D$35,$D$37,$D$39,) -> 20004
AD142: =VALUE(K20) -> 7 | AE142: =CHOOSE(MATCH(AD142,{1,2,3,4,5,6,7,8,9,10,11,12,13,14,15,16,17},),$C$7,$C$9,$C$11,$C$13,$C$15,$C$17,$C$19,$C$21,$C$23,$C$25,$C$27,$C$29,$C$31,$C$33,$C$35,$C$37,$C$39) -> 2007 | AF142: =CHOOSE(MATCH(AD142,{1,2,3,4,5,6,7,8,9,10,11,12,13,14,15,16,17},), $D$7,$D$9,$D$11,$D$13,$D$15,$D$17,$D$19,$D$21,$D$23,$D$25,$D$27,$D$29,$D$31,$D$33,$D$35,$D$37,$D$39,) -> 20007
AD144: =VALUE(K24) -> 9 | AE144: =CHOOSE(MATCH(AD144,{1,2,3,4,5,6,7,8,9,10,11,12,13,14,15,16,17},),$C$7,$C$9,$C$11,$C$13,$C$15,$C$17,$C$19,$C$21,$C$23,$C$25,$C$27,$C$29,$C$31,$C$33,$C$35,$C$37,$C$39) -> 2009 | AF144: =CHOOSE(MATCH(AD144,{1,2,3,4,5,6,7,8,9,10,11,12,13,14,15,16,17},), $D$7,$D$9,$D$11,$D$13,$D$15,$D$17,$D$19,$D$21,$D$23,$D$25,$D$27,$D$29,$D$31,$D$33,$D$35,$D$37,$D$39,) -> 20009
AD146: =VALUE(K28) -> 11 | AE146: =CHOOSE(MATCH(AD146,{1,2,3,4,5,6,7,8,9,10,11,12,13,14,15,16,17},),$C$7,$C$9,$C$11,$C$13,$C$15,$C$17,$C$19,$C$21,$C$23,$C$25,$C$27,$C$29,$C$31,$C$33,$C$35,$C$37,$C$39) -> 2011 | AF146: =CHOOSE(MATCH(AD146,{1,2,3,4,5,6,7,8,9,10,11,12,13,14,15,16,17},), $D$7,$D$9,$D$11,$D$13,$D$15,$D$17,$D$19,$D$21,$D$23,$D$25,$D$27,$D$29,$D$31,$D$33,$D$35,$D$37,$D$39,) -> 20011
AD148: =VALUE(K32) -> 13 | AE148: =CHOOSE(MATCH(AD148,{1,2,3,4,5,6,7,8,9,10,11,12,13,14,15,16,17},),$C$7,$C$9,$C$11,$C$13,$C$15,$C$17,$C$19,$C$21,$C$23,$C$25,$C$27,$C$29,$C$31,$C$33,$C$35,$C$37,$C$39) -> 2013 | AF148: =CHOOSE(MATCH(AD148,{1,2,3,4,5,6,7,8,9,10,11,12,13,14,15,16,17},), $D$7,$D$9,$D$11,$D$13,$D$15,$D$17,$D$19,$D$21,$D$23,$D$25,$D$27,$D$29,$D$31,$D$33,$D$35,$D$37,$D$39,) -> 20013
AD150: =VALUE(K36) -> 14 | AE150: =CHOOSE(MATCH(AD150,{1,2,3,4,5,6,7,8,9,10,11,12,13,14,15,16,17},),$C$7,$C$9,$C$11,$C$13,$C$15,$C$17,$C$19,$C$21,$C$23,$C$25,$C$27,$C$29,$C$31,$C$33,$C$35,$C$37,$C$39) -> 2014 | AF150: =CHOOSE(MATCH(AD150,{1,2,3,4,5,6,7,8,9,10,11,12,13,14,15,16,17},), $D$7,$D$9,$D$11,$D$13,$D$15,$D$17,$D$19,$D$21,$D$23,$D$25,$D$27,$D$29,$D$31,$D$33,$D$35,$D$37,$D$39,) -> 20014
AF155: Руководитель ковра
AD158: ПРОТОКОЛ ХОДА СХВАТКИ
AE159: ВЕС кг | AG159: 1/2 финала | AJ159: КОВЕР | AL159: 1
AD161: № п/п | AE161: Фамилия Имя | AF161: Город общество | AG161: 1 период | AI161: 2 период | AK161: баллы | AL161: очки | AM161: Судьи
AD163: =VALUE(N10) -> 2 | AE163: =CHOOSE(MATCH(AD163,{1,2,3,4,5,6,7,8,9,10,11,12,13,14,15,16,17},),$C$7,$C$9,$C$11,$C$13,$C$15,$C$17,$C$19,$C$21,$C$23,$C$25,$C$27,$C$29,$C$31,$C$33,$C$35,$C$37,$C$39) -> 2002 | AF163: =CHOOSE(MATCH(AD163,{1,2,3,4,5,6,7,8,9,10,11,12,13,14,15,16,17},), $D$7,$D$9,$D$11,$D$13,$D$15,$D$17,$D$19,$D$21,$D$23,$D$25,$D$27,$D$29,$D$31,$D$33,$D$35,$D$37,$D$39,) -> 20002
AD165: =VALUE(N18) -> 7 | AE165: =CHOOSE(MATCH(AD165,{1,2,3,4,5,6,7,8,9,10,11,12,13,14,15,16,17},),$C$7,$C$9,$C$11,$C$13,$C$15,$C$17,$C$19,$C$21,$C$23,$C$25,$C$27,$C$29,$C$31,$C$33,$C$35,$C$37,$C$39) -> 2007 | AF165: =CHOOSE(MATCH(AD165,{1,2,3,4,5,6,7,8,9,10,11,12,13,14,15,16,17},), $D$7,$D$9,$D$11,$D$13,$D$15,$D$17,$D$19,$D$21,$D$23,$D$25,$D$27,$D$29,$D$31,$D$33,$D$35,$D$37,$D$39,) -> 20007
AD167: =VALUE(N26) -> 11 | AE167: =CHOOSE(MATCH(AD167,{1,2,3,4,5,6,7,8,9,10,11,12,13,14,15,16,17},),$C$7,$C$9,$C$11,$C$13,$C$15,$C$17,$C$19,$C$21,$C$23,$C$25,$C$27,$C$29,$C$31,$C$33,$C$35,$C$37,$C$39) -> 2011 | AF167: =CHOOSE(MATCH(AD167,{1,2,3,4,5,6,7,8,9,10,11,12,13,14,15,16,17},), $D$7,$D$9,$D$11,$D$13,$D$15,$D$17,$D$19,$D$21,$D$23,$D$25,$D$27,$D$29,$D$31,$D$33,$D$35,$D$37,$D$39,) -> 20011
AD169: =VALUE(N34) -> 14 | AE169: =CHOOSE(MATCH(AD169,{1,2,3,4,5,6,7,8,9,10,11,12,13,14,15,16,17},),$C$7,$C$9,$C$11,$C$13,$C$15,$C$17,$C$19,$C$21,$C$23,$C$25,$C$27,$C$29,$C$31,$C$33,$C$35,$C$37,$C$39) -> 2014 | AF169: =CHOOSE(MATCH(AD169,{1,2,3,4,5,6,7,8,9,10,11,12,13,14,15,16,17},), $D$7,$D$9,$D$11,$D$13,$D$15,$D$17,$D$19,$D$21,$D$23,$D$25,$D$27,$D$29,$D$31,$D$33,$D$35,$D$37,$D$39,) -> 20014
AF173: Руководитель ковра
AD192: ПРОТОКОЛ ХОДА СХВАТКИ
AE193: ВЕС кг | AG193: утешение | AJ193: КОВЕР | AL193: 1
AD195: № п/п | AE195: Фамилия Имя | AF195: Город общество | AG195: 1 период | AI195: 2 период | AK195: баллы | AL195: очки | AM195: Судьи
AD197: =VALUE(N46) -> 6 | AE197: =CHOOSE(MATCH(AD197,{1,2,3,4,5,6,7,8,9,10,11,12,13,14,15,16,17},),$C$7,$C$9,$C$11,$C$13,$C$15,$C$17,$C$19,$C$21,$C$23,$C$25,$C$27,$C$29,$C$31,$C$33,$C$35,$C$37,$C$39) -> 2006 | AF197: =CHOOSE(MATCH(AD197,{1,2,3,4,5,6,7,8,9,10,11,12,13,14,15,16,17},), $D$7,$D$9,$D$11,$D$13,$D$15,$D$17,$D$19,$D$21,$D$23,$D$25,$D$27,$D$29,$D$31,$D$33,$D$35,$D$37,$D$39,) -> 20006
AD199: =VALUE(N50) -> 4 | AE199: =CHOOSE(MATCH(AD199,{1,2,3,4,5,6,7,8,9,10,11,12,13,14,15,16,17},),$C$7,$C$9,$C$11,$C$13,$C$15,$C$17,$C$19,$C$21,$C$23,$C$25,$C$27,$C$29,$C$31,$C$33,$C$35,$C$37,$C$39) -> 2004 | AF199: =CHOOSE(MATCH(AD199,{1,2,3,4,5,6,7,8,9,10,11,12,13,14,15,16,17},), $D$7,$D$9,$D$11,$D$13,$D$15,$D$17,$D$19,$D$21,$D$23,$D$25,$D$27,$D$29,$D$31,$D$33,$D$35,$D$37,$D$39,) -> 20004
AD201: =VALUE(N61) -> 10 | AE201: =CHOOSE(MATCH(AD201,{1,2,3,4,5,6,7,8,9,10,11,12,13,14,15,16,17},),$C$7,$C$9,$C$11,$C$13,$C$15,$C$17,$C$19,$C$21,$C$23,$C$25,$C$27,$C$29,$C$31,$C$33,$C$35,$C$37,$C$39) -> 2010 | AF201: =CHOOSE(MATCH(AD201,{1,2,3,4,5,6,7,8,9,10,11,12,13,14,15,16,17},), $D$7,$D$9,$D$11,$D$13,$D$15,$D$17,$D$19,$D$21,$D$23,$D$25,$D$27,$D$29,$D$31,$D$33,$D$35,$D$37,$D$39,) -> 20010
AD203: =VALUE(N65) -> 9 | AE203: =CHOOSE(MATCH(AD203,{1,2,3,4,5,6,7,8,9,10,11,12,13,14,15,16,17},),$C$7,$C$9,$C$11,$C$13,$C$15,$C$17,$C$19,$C$21,$C$23,$C$25,$C$27,$C$29,$C$31,$C$33,$C$35,$C$37,$C$39) -> 2009 | AF203: =CHOOSE(MATCH(AD203,{1,2,3,4,5,6,7,8,9,10,11,12,13,14,15,16,17},), $D$7,$D$9,$D$11,$D$13,$D$15,$D$17,$D$19,$D$21,$D$23,$D$25,$D$27,$D$29,$D$31,$D$33,$D$35,$D$37,$D$39,) -> 20009
AF207: Руководитель ковра
AD238: ПРОТОКОЛ ХОДА СХВАТКИ
AE239: ВЕС кг | AG239: финал за 3м. | AJ239: КОВЕР | AL239: 1
AD241: № п/п | AE241: Фамилия Имя | AF241: Город общество | AG241: 1 период | AI241: 2 период | AK241: баллы | AL241: очки | AM241: Судьи
AD243: =VALUE(Q48) -> 6 | AE243: =CHOOSE(MATCH(AD243,{1,2,3,4,5,6,7,8,9,10,11,12,13,14,15,16,17},),$C$7,$C$9,$C$11,$C$13,$C$15,$C$17,$C$19,$C$21,$C$23,$C$25,$C$27,$C$29,$C$31,$C$33,$C$35,$C$37,$C$39) -> 2006 | AF243: =CHOOSE(MATCH(AD243,{1,2,3,4,5,6,7,8,9,10,11,12,13,14,15,16,17},), $D$7,$D$9,$D$11,$D$13,$D$15,$D$17,$D$19,$D$21,$D$23,$D$25,$D$27,$D$29,$D$31,$D$33,$D$35,$D$37,$D$39,) -> 20006
AD245: =VALUE(Q52) -> 2 | AE245: =CHOOSE(MATCH(AD245,{1,2,3,4,5,6,7,8,9,10,11,12,13,14,15,16,17},),$C$7,$C$9,$C$11,$C$13,$C$15,$C$17,$C$19,$C$21,$C$23,$C$25,$C$27,$C$29,$C$31,$C$33,$C$35,$C$37,$C$39) -> 2002 | AF245: =CHOOSE(MATCH(AD245,{1,2,3,4,5,6,7,8,9,10,11,12,13,14,15,16,17},), $D$7,$D$9,$D$11,$D$13,$D$15,$D$17,$D$19,$D$21,$D$23,$D$25,$D$27,$D$29,$D$31,$D$33,$D$35,$D$37,$D$39,) -> 20002
AD247: =VALUE(Q63) -> 10 | AE247: =CHOOSE(MATCH(AD247,{1,2,3,4,5,6,7,8,9,10,11,12,13,14,15,16,17},),$C$7,$C$9,$C$11,$C$13,$C$15,$C$17,$C$19,$C$21,$C$23,$C$25,$C$27,$C$29,$C$31,$C$33,$C$35,$C$37,$C$39) -> 2010 | AF247: =CHOOSE(MATCH(AD247,{1,2,3,4,5,6,7,8,9,10,11,12,13,14,15,16,17},), $D$7,$D$9,$D$11,$D$13,$D$15,$D$17,$D$19,$D$21,$D$23,$D$25,$D$27,$D$29,$D$31,$D$33,$D$35,$D$37,$D$39,) -> 20010
AD249: =VALUE(Q67) -> 14 | AE249: =CHOOSE(MATCH(AD249,{1,2,3,4,5,6,7,8,9,10,11,12,13,14,15,16,17},),$C$7,$C$9,$C$11,$C$13,$C$15,$C$17,$C$19,$C$21,$C$23,$C$25,$C$27,$C$29,$C$31,$C$33,$C$35,$C$37,$C$39) -> 2014 | AF249: =CHOOSE(MATCH(AD249,{1,2,3,4,5,6,7,8,9,10,11,12,13,14,15,16,17},), $D$7,$D$9,$D$11,$D$13,$D$15,$D$17,$D$19,$D$21,$D$23,$D$25,$D$27,$D$29,$D$31,$D$33,$D$35,$D$37,$D$39,) -> 20014
AF253: Руководитель ковра
AD261: ПРОТОКОЛ ХОДА СХВАТКИ
AE262: ВЕС кг | AG262: финал | AJ262: КОВЕР | AL262: 1
AD264: № п/п | AE264: Фамилия Имя | AF264: Город общество | AG264: 1 период | AI264: 2 период | AK264: баллы | AL264: очки | AM264: Судьи
AD266: =VALUE( Q14) -> 7 | AE266: =CHOOSE(MATCH(AD266,{1,2,3,4,5,6,7,8,9,10,11,12,13,14,15,16,17},),$C$7,$C$9,$C$11,$C$13,$C$15,$C$17,$C$19,$C$21,$C$23,$C$25,$C$27,$C$29,$C$31,$C$33,$C$35,$C$37,$C$39) -> 2007 | AF266: =CHOOSE(MATCH(AD266,{1,2,3,4,5,6,7,8,9,10,11,12,13,14,15,16,17},), $D$7,$D$9,$D$11,$D$13,$D$15,$D$17,$D$19,$D$21,$D$23,$D$25,$D$27,$D$29,$D$31,$D$33,$D$35,$D$37,$D$39,) -> 20007
AD268: =VALUE(Q30) -> 11 | AE268: =CHOOSE(MATCH(AD268,{1,2,3,4,5,6,7,8,9,10,11,12,13,14,15,16,17},),$C$7,$C$9,$C$11,$C$13,$C$15,$C$17,$C$19,$C$21,$C$23,$C$25,$C$27,$C$29,$C$31,$C$33,$C$35,$C$37,$C$39) -> 2011 | AF268: =CHOOSE(MATCH(AD268,{1,2,3,4,5,6,7,8,9,10,11,12,13,14,15,16,17},), $D$7,$D$9,$D$11,$D$13,$D$15,$D$17,$D$19,$D$21,$D$23,$D$25,$D$27,$D$29,$D$31,$D$33,$D$35,$D$37,$D$39,) -> 20011
AF275: Руководитель ковра

Sheet 16уч
A1: ПРОТОКОЛ ХОДА СОРЕВНОВАНИЙ
A2: Турнир по борьбе вольной, памяти первого тренерашколы НЕЙЧА И.В.19 мая 2017г
C3: ВЕС кг
A5: МЕСТО | B5: № п/п | C5: Фамилия Имя | D5: Город общество | E5: Год рожд | F5: Разряд | K5: 1/8 финала | N5: 1/4 финала | Q5: 1/2 финала | T5: ФИНАЛ за 1место
B7: 1 | C7: 1601 | D7: 1701 | K7: 1
N8: =IF(L7>L9,K7,K9) -> 2 | O8: 3
B9: 2 | C9: 1602 | D9: 1702 | K9: 2
Q10: =IF(O8>O12,N8,N12) -> 4 | R10: 1
B11: 3 | C11: 1603 | D11: 1703 | K11: 3
N12: =IF(L11>L13,K11,K13) -> 4 | O12: 4
B13: 4 | C13: 1604 | D13: 1704 | K13: 4
T14: =IF(R10>R18,Q10,Q18) -> 8 | U14: 1
B15: 5 | C15: 1605 | D15: 1705 | K15: 5
N16: =IF(L15>L17,K15,K17) -> 6 | O16: 1
B17: 6 | C17: 1606 | D17: 1706 | K17: 6
Q18: =IF(O16>O20,N16,N20) -> 8 | R18: 2
B19: 7 | C19: 1607 | D19: 1707 | K19: 7
N20: =IF(L19>L21,K19,K21) -> 8 | O20: 5
B21: 8 | C21: 1608 | D21: 1708 | K21: 8
W22: =IF(U14>U30,T14,T30) -> 8
B23: 9 | C23: 1609 | D23: 1709 | K23: 9
N24: =IF(L23>L25,K23,K25) -> 10 | O24: 3
B25: 10 | C25: 1610 | D25: 1710 | K25: 10
Q26: =IF(O24>O28,N24,N28) -> 12 | R26: 4
B27: 11 | C27: 1611 | D27: 1711 | K27: 11
N28: =IF(L27>L29,K27,K29) -> 12 | O28: 4
B29: 12 | C29: 1612 | D29: 1712 | K29: 12
T30: =IF(R26>R34,Q26,Q34) -> 12 | U30: 0
B31: 13 | C31: 1613 | D31: 1713 | K31: 13
N32: =IF(L31>L33,K31,K33) -> 14 | O32: 1
B33: 14 | C33: 1614 | D33: 1714 | K33: 14
Q34: =IF(O32>O36,N32,N36) -> 16 | R34: 0
B35: 15 | C35: 1615 | D35: 1715 | K35: 15
N36: =IF(L35>L37,K35,K37) -> 16 | O36: 5
B37: 16 | C37: 1616 | D37: 1716 | K37: 16
N39: ПЕРЕЭКЗАМЕНОВКА
K42: ПРОИГРАВШИЕ ПЕРВОМУ ФИНАЛИСТУ
N46: =CHOOSE(MATCH($T$14,{1,2,3,4,5,6,7,8,9,10,11,12,13,14,15,16},),2,1,4,3,6,5,8,7,10,9,12,11,14,13,16,15,) -> 7 | O46: 1
Q48: =IF(O46>O50,N46,N50) -> 7 | R48: 3 | U48: 3 МЕСТО
N50: =CHOOSE(MATCH($T$14,{1,2,3,4,5,6,7,8,9,10,11,12,13,14,15,16},),N12,N12,N8,N8,N20,N20,N16,N16,) -> 6 | O50: 0 | T50: =IF(R48>R52,Q48,Q52) -> 7 | U50: =IF(S48>S52,R48,R52) -> 0
Q52: =IF(R10<R18,Q10,Q18) -> 4 | R52: 0
K57: ПРОИГРАВШИЕ ВТОРОМУ ФИНАЛИСТУ
N61: =CHOOSE(MATCH($T$30,{1,2,3,4,5,6,7,8,9,10,11,12,13,14,15,16},),2,1,4,3,6,5,8,7,10,9,12,11,14,13,16,15,) -> 11 | O61: 1
Q63: =IF(O61>O65,N61,N65) -> 11 | R63: 1 | U63: 3 МЕСТО
N65: =CHOOSE(MATCH(T30,{9,10,11,12,13,14,15,16,17},),N28,N28,N24,N24,N36,N36,N32,N32,N32,) -> 10 | O65: 0 | T65: =IF(R63>R67,Q63,Q67) -> 11 | U65: =IF(S63>S67,R63,R67) -> 0
Q67: =IF(R26<R34,Q26,Q34) -> 16 | R67: 0
AD71: ПРОТОКОЛ ХОДА СХВАТКИ
AE72: ВЕС кг | AG72: 1/8 финала | AJ72: КОВЕР | AL72: 1
AD74: № п/п | AE74: Фамилия Имя | AF74: Город общество | AG74: 1 период | AI74: 2 период | AK74: баллы | AL74: очки | AM74: Судьи
AD76: 1 | AE76: =CHOOSE(MATCH(AD76,{1,2,3,4,5,6,7,8,9,10,11,12,13,14,15,16,17},),$C$7,$C$9,$C$11,$C$13,$C$15,$C$17,$C$19,$C$21,$C$23,$C$25,$C$27,$C$29,$C$31,$C$33,$C$35,$C$37,$C$39) -> 1601 | AF76: =CHOOSE(MATCH(AD76,{1,2,3,4,5,6,7,8,9,10,11,12,13,14,15,16,17},), $D$7,$D$9,$D$11,$D$13,$D$15,$D$17,$D$19,$D$21,$D$23,$D$25,$D$27,$D$29,$D$31,$D$33,$D$35,$D$37,$D$39,) -> 1701
AD78: 2 | AE78: =CHOOSE(MATCH(AD78,{1,2,3,4,5,6,7,8,9,10,11,12,13,14,15,16,17},),$C$7,$C$9,$C$11,$C$13,$C$15,$C$17,$C$19,$C$21,$C$23,$C$25,$C$27,$C$29,$C$31,$C$33,$C$35,$C$37,$C$39) -> 1602 | AF78: =CHOOSE(MATCH(AD78,{1,2,3,4,5,6,7,8,9,10,11,12,13,14,15,16,17},), $D$7,$D$9,$D$11,$D$13,$D$15,$D$17,$D$19,$D$21,$D$23,$D$25,$D$27,$D$29,$D$31,$D$33,$D$35,$D$37,$D$39,) -> 1702
AD80: 3 | AE80: =CHOOSE(MATCH(AD80,{1,2,3,4,5,6,7,8,9,10,11,12,13,14,15,16,17},),$C$7,$C$9,$C$11,$C$13,$C$15,$C$17,$C$19,$C$21,$C$23,$C$25,$C$27,$C$29,$C$31,$C$33,$C$35,$C$37,$C$39) -> 1603 | AF80: =CHOOSE(MATCH(AD80,{1,2,3,4,5,6,7,8,9,10,11,12,13,14,15,16,17},), $D$7,$D$9,$D$11,$D$13,$D$15,$D$17,$D$19,$D$21,$D$23,$D$25,$D$27,$D$29,$D$31,$D$33,$D$35,$D$37,$D$39,) -> 1703
AD82: 4 | AE82: =CHOOSE(MATCH(AD82,{1,2,3,4,5,6,7,8,9,10,11,12,13,14,15,16,17},),$C$7,$C$9,$C$11,$C$13,$C$15,$C$17,$C$19,$C$21,$C$23,$C$25,$C$27,$C$29,$C$31,$C$33,$C$35,$C$37,$C$39) -> 1604 | AF82: =CHOOSE(MATCH(AD82,{1,2,3,4,5,6,7,8,9,10,11,12,13,14,15,16,17},), $D$7,$D$9,$D$11,$D$13,$D$15,$D$17,$D$19,$D$21,$D$23,$D$25,$D$27,$D$29,$D$31,$D$33,$D$35,$D$37,$D$39,) -> 1704
AD84: 5 | AE84: =CHOOSE(MATCH(AD84,{1,2,3,4,5,6,7,8,9,10,11,12,13,14,15,16,17},),$C$7,$C$9,$C$11,$C$13,$C$15,$C$17,$C$19,$C$21,$C$23,$C$25,$C$27,$C$29,$C$31,$C$33,$C$35,$C$37,$C$39) -> 1605 | AF84: =CHOOSE(MATCH(AD84,{1,2,3,4,5,6,7,8,9,10,11,12,13,14,15,16,17},), $D$7,$D$9,$D$11,$D$13,$D$15,$D$17,$D$19,$D$21,$D$23,$D$25,$D$27,$D$29,$D$31,$D$33,$D$35,$D$37,$D$39,) -> 1705
AD86: 6 | AE86: =CHOOSE(MATCH(AD86,{1,2,3,4,5,6,7,8,9,10,11,12,13,14,15,16,17},),$C$7,$C$9,$C$11,$C$13,$C$15,$C$17,$C$19,$C$21,$C$23,$C$25,$C$27,$C$29,$C$31,$C$33,$C$35,$C$37,$C$39) -> 1606 | AF86: =CHOOSE(MATCH(AD86,{1,2,3,4,5,6,7,8,9,10,11,12,13,14,15,16,17},), $D$7,$D$9,$D$11,$D$13,$D$15,$D$17,$D$19,$D$21,$D$23,$D$25,$D$27,$D$29,$D$31,$D$33,$D$35,$D$37,$D$39,) -> 1706
AD88: 7 | AE88: =CHOOSE(MATCH(AD88,{1,2,3,4,5,6,7,8,9,10,11,12,13,14,15,16,17},),$C$7,$C$9,$C$11,$C$13,$C$15,$C$17,$C$19,$C$21,$C$23,$C$25,$C$27,$C$29,$C$31,$C$33,$C$35,$C$37,$C$39) -> 1607 | AF88: =CHOOSE(MATCH(AD88,{1,2,3,4,5,6,7,8,9,10,11,12,13,14,15,16,17},), $D$7,$D$9,$D$11,$D$13,$D$15,$D$17,$D$19,$D$21,$D$23,$D$25,$D$27,$D$29,$D$31,$D$33,$D$35,$D$37,$D$39,) -> 1707
AD90: 8 | AE90: =CHOOSE(MATCH(AD90,{1,2,3,4,5,6,7,8,9,10,11,12,13,14,15,16,17},),$C$7,$C$9,$C$11,$C$13,$C$15,$C$17,$C$19,$C$21,$C$23,$C$25,$C$27,$C$29,$C$31,$C$33,$C$35,$C$37,$C$39) -> 1608 | AF90: =CHOOSE(MATCH(AD90,{1,2,3,4,5,6,7,8,9,10,11,12,13,14,15,16,17},), $D$7,$D$9,$D$11,$D$13,$D$15,$D$17,$D$19,$D$21,$D$23,$D$25,$D$27,$D$29,$D$31,$D$33,$D$35,$D$37,$D$39,) -> 1708
AD92: 9 | AE92: =CHOOSE(MATCH(AD92,{1,2,3,4,5,6,7,8,9,10,11,12,13,14,15,16,17},),$C$7,$C$9,$C$11,$C$13,$C$15,$C$17,$C$19,$C$21,$C$23,$C$25,$C$27,$C$29,$C$31,$C$33,$C$35,$C$37,$C$39) -> 1609 | AF92: =CHOOSE(MATCH(AD92,{1,2,3,4,5,6,7,8,9,10,11,12,13,14,15,16,17},), $D$7,$D$9,$D$11,$D$13,$D$15,$D$17,$D$19,$D$21,$D$23,$D$25,$D$27,$D$29,$D$31,$D$33,$D$35,$D$37,$D$39,) -> 1709
AD94: 10 | AE94: =CHOOSE(MATCH(AD94,{1,2,3,4,5,6,7,8,9,10,11,12,13,14,15,16,17},),$C$7,$C$9,$C$11,$C$13,$C$15,$C$17,$C$19,$C$21,$C$23,$C$25,$C$27,$C$29,$C$31,$C$33,$C$35,$C$37,$C$39) -> 1610 | AF94: =CHOOSE(MATCH(AD94,{1,2,3,4,5,6,7,8,9,10,11,12,13,14,15,16,17},), $D$7,$D$9,$D$11,$D$13,$D$15,$D$17,$D$19,$D$21,$D$23,$D$25,$D$27,$D$29,$D$31,$D$33,$D$35,$D$37,$D$39,) -> 1710
AD96: 11 | AE96: =CHOOSE(MATCH(AD96,{1,2,3,4,5,6,7,8,9,10,11,12,13,14,15,16,17},),$C$7,$C$9,$C$11,$C$13,$C$15,$C$17,$C$19,$C$21,$C$23,$C$25,$C$27,$C$29,$C$31,$C$33,$C$35,$C$37,$C$39) -> 1611 | AF96: =CHOOSE(MATCH(AD96,{1,2,3,4,5,6,7,8,9,10,11,12,13,14,15,16,17},), $D$7,$D$9,$D$11,$D$13,$D$15,$D$17,$D$19,$D$21,$D$23,$D$25,$D$27,$D$29,$D$31,$D$33,$D$35,$D$37,$D$39,) -> 1711
AD98: 12 | AE98: =CHOOSE(MATCH(AD98,{1,2,3,4,5,6,7,8,9,10,11,12,13,14,15,16,17},),$C$7,$C$9,$C$11,$C$13,$C$15,$C$17,$C$19,$C$21,$C$23,$C$25,$C$27,$C$29,$C$31,$C$33,$C$35,$C$37,$C$39) -> 1612 | AF98: =CHOOSE(MATCH(AD98,{1,2,3,4,5,6,7,8,9,10,11,12,13,14,15,16,17},), $D$7,$D$9,$D$11,$D$13,$D$15,$D$17,$D$19,$D$21,$D$23,$D$25,$D$27,$D$29,$D$31,$D$33,$D$35,$D$37,$D$39,) -> 1712
AD100: 13 | AE100: =CHOOSE(MATCH(AD100,{1,2,3,4,5,6,7,8,9,10,11,12,13,14,15,16,17},),$C$7,$C$9,$C$11,$C$13,$C$15,$C$17,$C$19,$C$21,$C$23,$C$25,$C$27,$C$29,$C$31,$C$33,$C$35,$C$37,$C$39) -> 1613 | AF100: =CHOOSE(MATCH(AD100,{1,2,3,4,5,6,7,8,9,10,11,12,13,14,15,16,17},), $D$7,$D$9,$D$11,$D$13,$D$15,$D$17,$D$19,$D$21,$D$23,$D$25,$D$27,$D$29,$D$31,$D$33,$D$35,$D$37,$D$39,) -> 1713
AD102: 14 | AE102: =CHOOSE(MATCH(AD102,{1,2,3,4,5,6,7,8,9,10,11,12,13,14,15,16,17},),$C$7,$C$9,$C$11,$C$13,$C$15,$C$17,$C$19,$C$21,$C$23,$C$25,$C$27,$C$29,$C$31,$C$33,$C$35,$C$37,$C$39) -> 1614 | AF102: =CHOOSE(MATCH(AD102,{1,2,3,4,5,6,7,8,9,10,11,12,13,14,15,16,17},), $D$7,$D$9,$D$11,$D$13,$D$15,$D$17,$D$19,$D$21,$D$23,$D$25,$D$27,$D$29,$D$31,$D$33,$D$35,$D$37,$D$39,) -> 1714
AD104: 15 | AE104: =CHOOSE(MATCH(AD104,{1,2,3,4,5,6,7,8,9,10,11,12,13,14,15,16,17},),$C$7,$C$9,$C$11,$C$13,$C$15,$C$17,$C$19,$C$21,$C$23,$C$25,$C$27,$C$29,$C$31,$C$33,$C$35,$C$37,$C$39) -> 1615 | AF104: =CHOOSE(MATCH(AD104,{1,2,3,4,5,6,7,8,9,10,11,12,13,14,15,16,17},), $D$7,$D$9,$D$11,$D$13,$D$15,$D$17,$D$19,$D$21,$D$23,$D$25,$D$27,$D$29,$D$31,$D$33,$D$35,$D$37,$D$39,) -> 1715
AD106: 16 | AE106: =CHOOSE(MATCH(AD106,{1,2,3,4,5,6,7,8,9,10,11,12,13,14,15,16,17},),$C$7,$C$9,$C$11,$C$13,$C$15,$C$17,$C$19,$C$21,$C$23,$C$25,$C$27,$C$29,$C$31,$C$33,$C$35,$C$37,$C$39) -> 1616 | AF106: =CHOOSE(MATCH(AD106,{1,2,3,4,5,6,7,8,9,10,11,12,13,14,15,16,17},), $D$7,$D$9,$D$11,$D$13,$D$15,$D$17,$D$19,$D$21,$D$23,$D$25,$D$27,$D$29,$D$31,$D$33,$D$35,$D$37,$D$39,) -> 1716
AF113: Руководитель ковра
AD135: ПРОТОКОЛ ХОДА СХВАТКИ
AE136: ВЕС кг | AG136: 1/4 финала | AJ136: КОВЕР | AL136: 1
AD138: № п/п | AE138: Фамилия Имя | AF138: Город общество | AG138: 1 период | AI138: 2 период | AK138: баллы | AL138: очки | AM138: Судьи
AD140: =VALUE(N8) -> 2 | AE140: =CHOOSE(MATCH(AD140,{1,2,3,4,5,6,7,8,9,10,11,12,13,14,15,16,17},),$C$7,$C$9,$C$11,$C$13,$C$15,$C$17,$C$19,$C$21,$C$23,$C$25,$C$27,$C$29,$C$31,$C$33,$C$35,$C$37,$C$39) -> 1602 | AF140: =CHOOSE(MATCH(AD140,{1,2,3,4,5,6,7,8,9,10,11,12,13,14,15,16,17},), $D$7,$D$9,$D$11,$D$13,$D$15,$D$17,$D$19,$D$21,$D$23,$D$25,$D$27,$D$29,$D$31,$D$33,$D$35,$D$37,$D$39,) -> 1702
AD142: =VALUE(N12) -> 4 | AE142: =CHOOSE(MATCH(AD142,{1,2,3,4,5,6,7,8,9,10,11,12,13,14,15,16,17},),$C$7,$C$9,$C$11,$C$13,$C$15,$C$17,$C$19,$C$21,$C$23,$C$25,$C$27,$C$29,$C$31,$C$33,$C$35,$C$37,$C$39) -> 1604 | AF142: =CHOOSE(MATCH(AD142,{1,2,3,4,5,6,7,8,9,10,11,12,13,14,15,16,17},), $D$7,$D$9,$D$11,$D$13,$D$15,$D$17,$D$19,$D$21,$D$23,$D$25,$D$27,$D$29,$D$31,$D$33,$D$35,$D$37,$D$39,) -> 1704
AD144: =VALUE(N16) -> 6 | AE144: =CHOOSE(MATCH(AD144,{1,2,3,4,5,6,7,8,9,10,11,12,13,14,15,16,17},),$C$7,$C$9,$C$11,$C$13,$C$15,$C$17,$C$19,$C$21,$C$23,$C$25,$C$27,$C$29,$C$31,$C$33,$C$35,$C$37,$C$39) -> 1606 | AF144: =CHOOSE(MATCH(AD144,{1,2,3,4,5,6,7,8,9,10,11,12,13,14,15,16,17},), $D$7,$D$9,$D$11,$D$13,$D$15,$D$17,$D$19,$D$21,$D$23,$D$25,$D$27,$D$29,$D$31,$D$33,$D$35,$D$37,$D$39,) -> 1706
AD146: =VALUE(N20) -> 8 | AE146: =CHOOSE(MATCH(AD146,{1,2,3,4,5,6,7,8,9,10,11,12,13,14,15,16,17},),$C$7,$C$9,$C$11,$C$13,$C$15,$C$17,$C$19,$C$21,$C$23,$C$25,$C$27,$C$29,$C$31,$C$33,$C$35,$C$37,$C$39) -> 1608 | AF146: =CHOOSE(MATCH(AD146,{1,2,3,4,5,6,7,8,9,10,11,12,13,14,15,16,17},), $D$7,$D$9,$D$11,$D$13,$D$15,$D$17,$D$19,$D$21,$D$23,$D$25,$D$27,$D$29,$D$31,$D$33,$D$35,$D$37,$D$39,) -> 1708
AD148: =VALUE(N24) -> 10 | AE148: =CHOOSE(MATCH(AD148,{1,2,3,4,5,6,7,8,9,10,11,12,13,14,15,16,17},),$C$7,$C$9,$C$11,$C$13,$C$15,$C$17,$C$19,$C$21,$C$23,$C$25,$C$27,$C$29,$C$31,$C$33,$C$35,$C$37,$C$39) -> 1610 | AF148: =CHOOSE(MATCH(AD148,{1,2,3,4,5,6,7,8,9,10,11,12,13,14,15,16,17},), $D$7,$D$9,$D$11,$D$13,$D$15,$D$17,$D$19,$D$21,$D$23,$D$25,$D$27,$D$29,$D$31,$D$33,$D$35,$D$37,$D$39,) -> 1710
AD150: =VALUE(N28) -> 12 | AE150: =CHOOSE(MATCH(AD150,{1,2,3,4,5,6,7,8,9,10,11,12,13,14,15,16,17},),$C$7,$C$9,$C$11,$C$13,$C$15,$C$17,$C$19,$C$21,$C$23,$C$25,$C$27,$C$29,$C$31,$C$33,$C$35,$C$37,$C$39) -> 1612 | AF150: =CHOOSE(MATCH(AD150,{1,2,3,4,5,6,7,8,9,10,11,12,13,14,15,16,17},), $D$7,$D$9,$D$11,$D$13,$D$15,$D$17,$D$19,$D$21,$D$23,$D$25,$D$27,$D$29,$D$31,$D$33,$D$35,$D$37,$D$39,) -> 1712
AD152: =VALUE(N32) -> 14 | AE152: =CHOOSE(MATCH(AD152,{1,2,3,4,5,6,7,8,9,10,11,12,13,14,15,16,17},),$C$7,$C$9,$C$11,$C$13,$C$15,$C$17,$C$19,$C$21,$C$23,$C$25,$C$27,$C$29,$C$31,$C$33,$C$35,$C$37,$C$39) -> 1614 | AF152: =CHOOSE(MATCH(AD152,{1,2,3,4,5,6,7,8,9,10,11,12,13,14,15,16,17},), $D$7,$D$9,$D$11,$D$13,$D$15,$D$17,$D$19,$D$21,$D$23,$D$25,$D$27,$D$29,$D$31,$D$33,$D$35,$D$37,$D$39,) -> 1714
AD154: =VALUE(N36) -> 16 | AE154: =CHOOSE(MATCH(AD154,{1,2,3,4,5,6,7,8,9,10,11,12,13,14,15,16,17},),$C$7,$C$9,$C$11,$C$13,$C$15,$C$17,$C$19,$C$21,$C$23,$C$25,$C$27,$C$29,$C$31,$C$33,$C$35,$C$37,$C$39) -> 1616 | AF154: =CHOOSE(MATCH(AD154,{1,2,3,4,5,6,7,8,9,10,11,12,13,14,15,16,17},), $D$7,$D$9,$D$11,$D$13,$D$15,$D$17,$D$19,$D$21,$D$23,$D$25,$D$27,$D$29,$D$31,$D$33,$D$35,$D$37,$D$39,) -> 1716
AF159: Руководитель ковра
AD162: ПРОТОКОЛ ХОДА СХВАТКИ
AE163: ВЕС кг | AG163: 1/2 финала | AJ163: КОВЕР | AL163: 1
AD165: № п/п | AE165: Фамилия Имя | AF165: Город общество | AG165: 1 период | AI165: 2 период | AK165: баллы | AL165: очки | AM165: Судьи
AD167: =VALUE(Q10) -> 4 | AE167: =CHOOSE(MATCH(AD167,{1,2,3,4,5,6,7,8,9,10,11,12,13,14,15,16,17},),$C$7,$C$9,$C$11,$C$13,$C$15,$C$17,$C$19,$C$21,$C$23,$C$25,$C$27,$C$29,$C$31,$C$33,$C$35,$C$37,$C$39) -> 1604 | AF167: =CHOOSE(MATCH(AD167,{1,2,3,4,5,6,7,8,9,10,11,12,13,14,15,16,17},), $D$7,$D$9,$D$11,$D$13,$D$15,$D$17,$D$19,$D$21,$D$23,$D$25,$D$27,$D$29,$D$31,$D$33,$D$35,$D$37,$D$39,) -> 1704
AD169: =VALUE(Q18) -> 8 | AE169: =CHOOSE(MATCH(AD169,{1,2,3,4,5,6,7,8,9,10,11,12,13,14,15,16,17},),$C$7,$C$9,$C$11,$C$13,$C$15,$C$17,$C$19,$C$21,$C$23,$C$25,$C$27,$C$29,$C$31,$C$33,$C$35,$C$37,$C$39) -> 1608 | AF169: =CHOOSE(MATCH(AD169,{1,2,3,4,5,6,7,8,9,10,11,12,13,14,15,16,17},), $D$7,$D$9,$D$11,$D$13,$D$15,$D$17,$D$19,$D$21,$D$23,$D$25,$D$27,$D$29,$D$31,$D$33,$D$35,$D$37,$D$39,) -> 1708
AD171: =VALUE(Q26) -> 12 | AE171: =CHOOSE(MATCH(AD171,{1,2,3,4,5,6,7,8,9,10,11,12,13,14,15,16,17},),$C$7,$C$9,$C$11,$C$13,$C$15,$C$17,$C$19,$C$21,$C$23,$C$25,$C$27,$C$29,$C$31,$C$33,$C$35,$C$37,$C$39) -> 1612 | AF171: =CHOOSE(MATCH(AD171,{1,2,3,4,5,6,7,8,9,10,11,12,13,14,15,16,17},), $D$7,$D$9,$D$11,$D$13,$D$15,$D$17,$D$19,$D$21,$D$23,$D$25,$D$27,$D$29,$D$31,$D$33,$D$35,$D$37,$D$39,) -> 1712
AD173: =VALUE(Q34) -> 16 | AE173: =CHOOSE(MATCH(AD173,{1,2,3,4,5,6,7,8,9,10,11,12,13,14,15,16,17},),$C$7,$C$9,$C$11,$C$13,$C$15,$C$17,$C$19,$C$21,$C$23,$C$25,$C$27,$C$29,$C$31,$C$33,$C$35,$C$37,$C$39) -> 1616 | AF173: =CHOOSE(MATCH(AD173,{1,2,3,4,5,6,7,8,9,10,11,12,13,14,15,16,17},), $D$7,$D$9,$D$11,$D$13,$D$15,$D$17,$D$19,$D$21,$D$23,$D$25,$D$27,$D$29,$D$31,$D$33,$D$35,$D$37,$D$39,) -> 1716
AF177: Руководитель ковра
AD196: ПРОТОКОЛ ХОДА СХВАТКИ
AE197: ВЕС кг | AG197: утешение | AJ197: КОВЕР | AL197: 1
AD199: № п/п | AE199: Фамилия Имя | AF199: Город общество | AG199: 1 период | AI199: 2 период | AK199: баллы | AL199: очки | AM199: Судьи
AD201: =VALUE(N46) -> 7 | AE201: =CHOOSE(MATCH(AD201,{1,2,3,4,5,6,7,8,9,10,11,12,13,14,15,16,17},),$C$7,$C$9,$C$11,$C$13,$C$15,$C$17,$C$19,$C$21,$C$23,$C$25,$C$27,$C$29,$C$31,$C$33,$C$35,$C$37,$C$39) -> 1607 | AF201: =CHOOSE(MATCH(AD201,{1,2,3,4,5,6,7,8,9,10,11,12,13,14,15,16,17},), $D$7,$D$9,$D$11,$D$13,$D$15,$D$17,$D$19,$D$21,$D$23,$D$25,$D$27,$D$29,$D$31,$D$33,$D$35,$D$37,$D$39,) -> 1707
AD203: =VALUE(N50) -> 6 | AE203: =CHOOSE(MATCH(AD203,{1,2,3,4,5,6,7,8,9,10,11,12,13,14,15,16,17},),$C$7,$C$9,$C$11,$C$13,$C$15,$C$17,$C$19,$C$21,$C$23,$C$25,$C$27,$C$29,$C$31,$C$33,$C$35,$C$37,$C$39) -> 1606 | AF203: =CHOOSE(MATCH(AD203,{1,2,3,4,5,6,7,8,9,10,11,12,13,14,15,16,17},), $D$7,$D$9,$D$11,$D$13,$D$15,$D$17,$D$19,$D$21,$D$23,$D$25,$D$27,$D$29,$D$31,$D$33,$D$35,$D$37,$D$39,) -> 1706
AD205: =VALUE(N61) -> 11 | AE205: =CHOOSE(MATCH(AD205,{1,2,3,4,5,6,7,8,9,10,11,12,13,14,15,16,17},),$C$7,$C$9,$C$11,$C$13,$C$15,$C$17,$C$19,$C$21,$C$23,$C$25,$C$27,$C$29,$C$31,$C$33,$C$35,$C$37,$C$39) -> 1611 | AF205: =CHOOSE(MATCH(AD205,{1,2,3,4,5,6,7,8,9,10,11,12,13,14,15,16,17},), $D$7,$D$9,$D$11,$D$13,$D$15,$D$17,$D$19,$D$21,$D$23,$D$25,$D$27,$D$29,$D$31,$D$33,$D$35,$D$37,$D$39,) -> 1711
AD207: =VALUE(N65) -> 10 | AE207: =CHOOSE(MATCH(AD207,{1,2,3,4,5,6,7,8,9,10,11,12,13,14,15,16,17},),$C$7,$C$9,$C$11,$C$13,$C$15,$C$17,$C$19,$C$21,$C$23,$C$25,$C$27,$C$29,$C$31,$C$33,$C$35,$C$37,$C$39) -> 1610 | AF207: =CHOOSE(MATCH(AD207,{1,2,3,4,5,6,7,8,9,10,11,12,13,14,15,16,17},), $D$7,$D$9,$D$11,$D$13,$D$15,$D$17,$D$19,$D$21,$D$23,$D$25,$D$27,$D$29,$D$31,$D$33,$D$35,$D$37,$D$39,) -> 1710
AF211: Руководитель ковра
AD242: ПРОТОКОЛ ХОДА СХВАТКИ
AE243: ВЕС кг | AG243: финал за 3м. | AJ243: КОВЕР | AL243: 1
AD245: № п/п | AE245: Фамилия Имя | AF245: Город общество | AG245: 1 период | AI245: 2 период | AK245: баллы | AL245: очки | AM245: Судьи
AD247: =VALUE(Q48) -> 7 | AE247: =CHOOSE(MATCH(AD247,{1,2,3,4,5,6,7,8,9,10,11,12,13,14,15,16,17},),$C$7,$C$9,$C$11,$C$13,$C$15,$C$17,$C$19,$C$21,$C$23,$C$25,$C$27,$C$29,$C$31,$C$33,$C$35,$C$37,$C$39) -> 1607 | AF247: =CHOOSE(MATCH(AD247,{1,2,3,4,5,6,7,8,9,10,11,12,13,14,15,16,17},), $D$7,$D$9,$D$11,$D$13,$D$15,$D$17,$D$19,$D$21,$D$23,$D$25,$D$27,$D$29,$D$31,$D$33,$D$35,$D$37,$D$39,) -> 1707
AD249: =VALUE(Q52) -> 4 | AE249: =CHOOSE(MATCH(AD249,{1,2,3,4,5,6,7,8,9,10,11,12,13,14,15,16,17},),$C$7,$C$9,$C$11,$C$13,$C$15,$C$17,$C$19,$C$21,$C$23,$C$25,$C$27,$C$29,$C$31,$C$33,$C$35,$C$37,$C$39) -> 1604 | AF249: =CHOOSE(MATCH(AD249,{1,2,3,4,5,6,7,8,9,10,11,12,13,14,15,16,17},), $D$7,$D$9,$D$11,$D$13,$D$15,$D$17,$D$19,$D$21,$D$23,$D$25,$D$27,$D$29,$D$31,$D$33,$D$35,$D$37,$D$39,) -> 1704
AD251: =VALUE(Q63) -> 11 | AE251: =CHOOSE(MATCH(AD251,{1,2,3,4,5,6,7,8,9,10,11,12,13,14,15,16,17},),$C$7,$C$9,$C$11,$C$13,$C$15,$C$17,$C$19,$C$21,$C$23,$C$25,$C$27,$C$29,$C$31,$C$33,$C$35,$C$37,$C$39) -> 1611 | AF251: =CHOOSE(MATCH(AD251,{1,2,3,4,5,6,7,8,9,10,11,12,13,14,15,16,17},), $D$7,$D$9,$D$11,$D$13,$D$15,$D$17,$D$19,$D$21,$D$23,$D$25,$D$27,$D$29,$D$31,$D$33,$D$35,$D$37,$D$39,) -> 1711
AD253: =VALUE(Q67) -> 16 | AE253: =CHOOSE(MATCH(AD253,{1,2,3,4,5,6,7,8,9,10,11,12,13,14,15,16,17},),$C$7,$C$9,$C$11,$C$13,$C$15,$C$17,$C$19,$C$21,$C$23,$C$25,$C$27,$C$29,$C$31,$C$33,$C$35,$C$37,$C$39) -> 1616 | AF253: =CHOOSE(MATCH(AD253,{1,2,3,4,5,6,7,8,9,10,11,12,13,14,15,16,17},), $D$7,$D$9,$D$11,$D$13,$D$15,$D$17,$D$19,$D$21,$D$23,$D$25,$D$27,$D$29,$D$31,$D$33,$D$35,$D$37,$D$39,) -> 1716
AF257: Руководитель ковра
AD265: ПРОТОКОЛ ХОДА СХВАТКИ
AE266: ВЕС кг | AG266: финал | AJ266: КОВЕР | AL266: 1
AD268: № п/п | AE268: Фамилия Имя | AF268: Город общество | AG268: 1 период | AI268: 2 период | AK268: баллы | AL268: очки | AM268: Судьи
AD270: =VALUE( T14) -> 8 | AE270: =CHOOSE(MATCH(AD270,{1,2,3,4,5,6,7,8,9,10,11,12,13,14,15,16,17},),$C$7,$C$9,$C$11,$C$13,$C$15,$C$17,$C$19,$C$21,$C$23,$C$25,$C$27,$C$29,$C$31,$C$33,$C$35,$C$37,$C$39) -> 1608 | AF270: =CHOOSE(MATCH(AD270,{1,2,3,4,5,6,7,8,9,10,11,12,13,14,15,16,17},), $D$7,$D$9,$D$11,$D$13,$D$15,$D$17,$D$19,$D$21,$D$23,$D$25,$D$27,$D$29,$D$31,$D$33,$D$35,$D$37,$D$39,) -> 1708
AD272: =VALUE(T30) -> 12 | AE272: =CHOOSE(MATCH(AD272,{1,2,3,4,5,6,7,8,9,10,11,12,13,14,15,16,17},),$C$7,$C$9,$C$11,$C$13,$C$15,$C$17,$C$19,$C$21,$C$23,$C$25,$C$27,$C$29,$C$31,$C$33,$C$35,$C$37,$C$39) -> 1612 | AF272: =CHOOSE(MATCH(AD272,{1,2,3,4,5,6,7,8,9,10,11,12,13,14,15,16,17},), $D$7,$D$9,$D$11,$D$13,$D$15,$D$17,$D$19,$D$21,$D$23,$D$25,$D$27,$D$29,$D$31,$D$33,$D$35,$D$37,$D$39,) -> 1712
AF279: Руководитель ковра

Sheet 17уч
A1: ПРОТОКОЛ ХОДА СОРЕВНОВАНИЙ
A2: Турнир по борьбе вольной, памяти первого тренерашколы НЕЙЧА И.В.19 мая 2017г
C3: ВЕС 57 кг
A5: МЕСТО | B5: № п/п | C5: Фамилия Имя | D5: Город общество | E5: Год рожд | F5: Разряд | H5: квалификация | K5: 1/8 финала | N5: 1/4 финала | Q5: 1/2 финала | T5: ФИНАЛ за 1место
A7: 1 | B7: 2 | C7: IRI | D7: 205 | H7: 1 | I7: св | K7: 1 | L7: 0
N8: =IF(L7>L9,K7,K9) -> 2 | O8: 3
A9: 2 | B9: 21 | C9: GEO | D9: 202 | H9: 2 | I9: св | K9: 2 | L9: 2
Q10: =IF(O8>O12,N8,N12) -> 2 | R10: 1
A11: 3 | B11: 29 | C11: KAZ | D11: KALZ | H11: 3 | I11: св | K11: 3 | L11: 3
N12: =IF(L11>L13,K11,K13) -> 3 | O12: 2
A13: 4 | B13: 31 | C13: SVK | D13: 213 | H13: 4 | I13: св | K13: 4 | L13: 2
T14: =IF(R10>R18,Q10,Q18) -> 8 | U14: 1
A15: 5 | B15: 55 | C15: MGL | D15: ZANDA | H15: 5 | I15: св | K15: 5 | L15: 1
N16: =IF(L15>L17,K15,K17) -> 5 | O16: 1
A17: 6 | B17: 79 | C17: KAZ | D17: TEMIR | H17: 6 | I17: св | K17: 6 | L17: 0
Q18: =IF(O16>O20,N16,N20) -> 8 | R18: 2
A19: 7 | B19: 84 | C19: GER | D19: 203 | H19: 7 | I19: св | K19: 7 | L19: 1
N20: =IF(L19>L21,K19,K21) -> 8 | O20: 5
A21: 8 | B21: 86 | C21: IND | D21: 204 | H21: 8 | I21: св | K21: 8 | L21: 2
W22: =IF(U14>U30,T14,T30) -> 8
A23: 9 | B23: 107 | C23: ECU | D23: 201 | H23: 9 | I23: св | K23: 9 | L23: 3
N24: =IF(L23>L25,K23,K25) -> 9 | O24: 1
A25: 10 | B25: 167 | C25: TJK | D25: 214 | H25: 10 | I25: св | K25: 10 | L25: 0
Q26: =IF(O24>O28,N24,N28) -> 9 | R26: 4
A27: 11 | B27: 170 | C27: MGL | D27: BAT | H27: 11 | I27: св | K27: 11 | L27: 1
N28: =IF(L27>L29,K27,K29) -> 11 | O28: 0
A29: 12 | B29: 181 | C29: TUR | D29: KARAVUS | H29: 12 | I29: св | K29: 12 | L29: 0
T30: =IF(R26>R34,Q26,Q34) -> 17 | U30: 0
A31: 13 | B31: 189 | C31: PUR | D31: 212 | H31: 13 | I31: св | K31: 13 | L31: 1
N32: =IF(L31>L33,K31,K33) -> 13 | O32: 1
A33: 14 | B33: 194 | C33: KGZ | D33: 209 | H33: 14 | I33: св | K33: 14 | L33: 0 | O33: ;
Q34: =IF(O32>O36,N32,N36) -> 17 | R34: 5
A35: 15 | B35: 227 | C35: KAZ | D35: YESSE | H35: 15 | I35: св | K35: 15 | L35: 1
N36: =IF(L35>L37,K35,K37) -> 17 | O36: 2
A37: 16 | B37: 236 | C37: TUR | D37: KIZILTAS | H37: 16 | I37: 1 | K37: =IF(I37>I39,H37,H39) -> 17 | L37: 2
A39: 17 | B39: 239 | C39: TUR | D39: KARAVUS | H39: 17 | I39: 2 | N39: ПЕРЕЭКЗАМЕНОВКА
K42: ПРОИГРАВШИЕ ПЕРВОМУ ФИНАЛИСТУ
N46: =CHOOSE(MATCH($T$14,{1,2,3,4,5,6,7,8,9,10,11,12,13,14,15,16},),2,1,4,3,6,5,8,7,10,9,12,11,14,13,16,15,) -> 7 | O46: 1
Q48: =IF(O46>O50,N46,N50) -> 7 | R48: 3 | U48: 3 МЕСТО
N50: =CHOOSE(MATCH($T$14,{1,2,3,4,5,6,7,8,9,10,11,12,13,14,15,16},),N12,N12,N8,N8,N20,N20,N16,N16,) -> 5 | O50: 0 | T50: =IF(R48>R52,Q48,Q52) -> 7 | U50: =IF(S48>S52,R48,R52) -> 0
Q52: =IF(R10<R18,Q10,Q18) -> 2 | R52: 0
K57: ПРОИГРАВШИЕ ВТОРОМУ ФИНАЛИСТУ
K59: =CHOOSE(MATCH(T30,{16,17},),17,16,) -> 16
N61: =IF(L59>L63,K59,K63) -> 15 | O61: 1
K63: =CHOOSE(MATCH($T$30,{9,10,11,12,13,14,15,16,17,18,19,20,21,22,23,24,25,26,27,28,30,31,32},),10,9,12,11,14,13,16,15,15,17,20,19,22,21,24,23,26,25,28,27,30,29,32,31,) -> 15 | Q63: =IF(O61>O65,N61,N65) -> 15 | R63: 1 | U63: 3 МЕСТО
N65: =CHOOSE(MATCH(T30,{9,10,11,12,13,14,15,16,17},),N28,N28,N24,N24,N36,N36,N32,N32,N32,) -> 13 | O65: 0 | T65: =IF(R63>R67,Q63,Q67) -> 15 | U65: =IF(S63>S67,R63,R67) -> 0
Q67: =IF(R26<R34,Q26,Q34) -> 9 | R67: 0
AD71: ПРОТОКОЛ ХОДА СХВАТКИ
AE72: ВЕС кг | AG72: квалификация | AJ72: КОВЕР | AL72: 1
AD74: № п/п | AE74: Фамилия Имя | AF74: Город общество | AG74: 1 период | AI74: 2 период | AK74: баллы | AL74: очки | AM74: Судьи
AD76: 16 | AE76: =CHOOSE(MATCH(AD76,{1,2,3,4,5,6,7,8,9,10,11,12,13,14,15,16,17},),$C$7,$C$9,$C$11,$C$13,$C$15,$C$17,$C$19,$C$21,$C$23,$C$25,$C$27,$C$29,$C$31,$C$33,$C$35,$C$37,$C$39) -> TUR | AF76: =CHOOSE(MATCH(AD76,{1,2,3,4,5,6,7,8,9,10,11,12,13,14,15,16,17},), $D$7,$D$9,$D$11,$D$13,$D$15,$D$17,$D$19,$D$21,$D$23,$D$25,$D$27,$D$29,$D$31,$D$33,$D$35,$D$37,$D$39,) -> KIZILTAS
AD78: 17 | AE78: =CHOOSE(MATCH(AD78,{1,2,3,4,5,6,7,8,9,10,11,12,13,14,15,16,17},),$C$7,$C$9,$C$11,$C$13,$C$15,$C$17,$C$19,$C$21,$C$23,$C$25,$C$27,$C$29,$C$31,$C$33,$C$35,$C$37,$C$39) -> TUR | AF78: =CHOOSE(MATCH(AD78,{1,2,3,4,5,6,7,8,9,10,11,12,13,14,15,16,17},), $D$7,$D$9,$D$11,$D$13,$D$15,$D$17,$D$19,$D$21,$D$23,$D$25,$D$27,$D$29,$D$31,$D$33,$D$35,$D$37,$D$39,) -> KARAVUS
AF83: Руководитель ковра
AD86: ПРОТОКОЛ ХОДА СХВАТКИ
AE87: ВЕС кг | AG87: 1/8 финала | AJ87: КОВЕР | AL87: 1
AD89: № п/п | AE89: Фамилия Имя | AF89: Город общество | AG89: 1 период | AI89: 2 период | AK89: баллы | AL89: очки | AM89: Судьи
AD91: 1 | AE91: =CHOOSE(MATCH(AD91,{1,2,3,4,5,6,7,8,9,10,11,12,13,14,15,16,17},),$C$7,$C$9,$C$11,$C$13,$C$15,$C$17,$C$19,$C$21,$C$23,$C$25,$C$27,$C$29,$C$31,$C$33,$C$35,$C$37,$C$39) -> IRI | AF91: =CHOOSE(MATCH(AD91,{1,2,3,4,5,6,7,8,9,10,11,12,13,14,15,16,17},), $D$7,$D$9,$D$11,$D$13,$D$15,$D$17,$D$19,$D$21,$D$23,$D$25,$D$27,$D$29,$D$31,$D$33,$D$35,$D$37,$D$39,) -> 205
AD93: 2 | AE93: =CHOOSE(MATCH(AD93,{1,2,3,4,5,6,7,8,9,10,11,12,13,14,15,16,17},),$C$7,$C$9,$C$11,$C$13,$C$15,$C$17,$C$19,$C$21,$C$23,$C$25,$C$27,$C$29,$C$31,$C$33,$C$35,$C$37,$C$39) -> GEO | AF93: =CHOOSE(MATCH(AD93,{1,2,3,4,5,6,7,8,9,10,11,12,13,14,15,16,17},), $D$7,$D$9,$D$11,$D$13,$D$15,$D$17,$D$19,$D$21,$D$23,$D$25,$D$27,$D$29,$D$31,$D$33,$D$35,$D$37,$D$39,) -> 202
AD95: 3 | AE95: =CHOOSE(MATCH(AD95,{1,2,3,4,5,6,7,8,9,10,11,12,13,14,15,16,17},),$C$7,$C$9,$C$11,$C$13,$C$15,$C$17,$C$19,$C$21,$C$23,$C$25,$C$27,$C$29,$C$31,$C$33,$C$35,$C$37,$C$39) -> KAZ | AF95: =CHOOSE(MATCH(AD95,{1,2,3,4,5,6,7,8,9,10,11,12,13,14,15,16,17},), $D$7,$D$9,$D$11,$D$13,$D$15,$D$17,$D$19,$D$21,$D$23,$D$25,$D$27,$D$29,$D$31,$D$33,$D$35,$D$37,$D$39,) -> KALZ
AD97: 4 | AE97: =CHOOSE(MATCH(AD97,{1,2,3,4,5,6,7,8,9,10,11,12,13,14,15,16,17},),$C$7,$C$9,$C$11,$C$13,$C$15,$C$17,$C$19,$C$21,$C$23,$C$25,$C$27,$C$29,$C$31,$C$33,$C$35,$C$37,$C$39) -> SVK | AF97: =CHOOSE(MATCH(AD97,{1,2,3,4,5,6,7,8,9,10,11,12,13,14,15,16,17},), $D$7,$D$9,$D$11,$D$13,$D$15,$D$17,$D$19,$D$21,$D$23,$D$25,$D$27,$D$29,$D$31,$D$33,$D$35,$D$37,$D$39,) -> 213
AD99: 5 | AE99: =CHOOSE(MATCH(AD99,{1,2,3,4,5,6,7,8,9,10,11,12,13,14,15,16,17},),$C$7,$C$9,$C$11,$C$13,$C$15,$C$17,$C$19,$C$21,$C$23,$C$25,$C$27,$C$29,$C$31,$C$33,$C$35,$C$37,$C$39) -> MGL | AF99: =CHOOSE(MATCH(AD99,{1,2,3,4,5,6,7,8,9,10,11,12,13,14,15,16,17},), $D$7,$D$9,$D$11,$D$13,$D$15,$D$17,$D$19,$D$21,$D$23,$D$25,$D$27,$D$29,$D$31,$D$33,$D$35,$D$37,$D$39,) -> ZANDA
AD101: 6 | AE101: =CHOOSE(MATCH(AD101,{1,2,3,4,5,6,7,8,9,10,11,12,13,14,15,16,17},),$C$7,$C$9,$C$11,$C$13,$C$15,$C$17,$C$19,$C$21,$C$23,$C$25,$C$27,$C$29,$C$31,$C$33,$C$35,$C$37,$C$39) -> KAZ | AF101: =CHOOSE(MATCH(AD101,{1,2,3,4,5,6,7,8,9,10,11,12,13,14,15,16,17},), $D$7,$D$9,$D$11,$D$13,$D$15,$D$17,$D$19,$D$21,$D$23,$D$25,$D$27,$D$29,$D$31,$D$33,$D$35,$D$37,$D$39,) -> TEMIR
AD103: 7 | AE103: =CHOOSE(MATCH(AD103,{1,2,3,4,5,6,7,8,9,10,11,12,13,14,15,16,17},),$C$7,$C$9,$C$11,$C$13,$C$15,$C$17,$C$19,$C$21,$C$23,$C$25,$C$27,$C$29,$C$31,$C$33,$C$35,$C$37,$C$39) -> GER | AF103: =CHOOSE(MATCH(AD103,{1,2,3,4,5,6,7,8,9,10,11,12,13,14,15,16,17},), $D$7,$D$9,$D$11,$D$13,$D$15,$D$17,$D$19,$D$21,$D$23,$D$25,$D$27,$D$29,$D$31,$D$33,$D$35,$D$37,$D$39,) -> 203
AD105: 8 | AE105: =CHOOSE(MATCH(AD105,{1,2,3,4,5,6,7,8,9,10,11,12,13,14,15,16,17},),$C$7,$C$9,$C$11,$C$13,$C$15,$C$17,$C$19,$C$21,$C$23,$C$25,$C$27,$C$29,$C$31,$C$33,$C$35,$C$37,$C$39) -> IND | AF105: =CHOOSE(MATCH(AD105,{1,2,3,4,5,6,7,8,9,10,11,12,13,14,15,16,17},), $D$7,$D$9,$D$11,$D$13,$D$15,$D$17,$D$19,$D$21,$D$23,$D$25,$D$27,$D$29,$D$31,$D$33,$D$35,$D$37,$D$39,) -> 204
AD107: 9 | AE107: =CHOOSE(MATCH(AD107,{1,2,3,4,5,6,7,8,9,10,11,12,13,14,15,16,17},),$C$7,$C$9,$C$11,$C$13,$C$15,$C$17,$C$19,$C$21,$C$23,$C$25,$C$27,$C$29,$C$31,$C$33,$C$35,$C$37,$C$39) -> ECU | AF107: =CHOOSE(MATCH(AD107,{1,2,3,4,5,6,7,8,9,10,11,12,13,14,15,16,17},), $D$7,$D$9,$D$11,$D$13,$D$15,$D$17,$D$19,$D$21,$D$23,$D$25,$D$27,$D$29,$D$31,$D$33,$D$35,$D$37,$D$39,) -> 201
AD109: 10 | AE109: =CHOOSE(MATCH(AD109,{1,2,3,4,5,6,7,8,9,10,11,12,13,14,15,16,17},),$C$7,$C$9,$C$11,$C$13,$C$15,$C$17,$C$19,$C$21,$C$23,$C$25,$C$27,$C$29,$C$31,$C$33,$C$35,$C$37,$C$39) -> TJK | AF109: =CHOOSE(MATCH(AD109,{1,2,3,4,5,6,7,8,9,10,11,12,13,14,15,16,17},), $D$7,$D$9,$D$11,$D$13,$D$15,$D$17,$D$19,$D$21,$D$23,$D$25,$D$27,$D$29,$D$31,$D$33,$D$35,$D$37,$D$39,) -> 214
AD111: 11 | AE111: =CHOOSE(MATCH(AD111,{1,2,3,4,5,6,7,8,9,10,11,12,13,14,15,16,17},),$C$7,$C$9,$C$11,$C$13,$C$15,$C$17,$C$19,$C$21,$C$23,$C$25,$C$27,$C$29,$C$31,$C$33,$C$35,$C$37,$C$39) -> MGL | AF111: =CHOOSE(MATCH(AD111,{1,2,3,4,5,6,7,8,9,10,11,12,13,14,15,16,17},), $D$7,$D$9,$D$11,$D$13,$D$15,$D$17,$D$19,$D$21,$D$23,$D$25,$D$27,$D$29,$D$31,$D$33,$D$35,$D$37,$D$39,) -> BAT
AD113: 12 | AE113: =CHOOSE(MATCH(AD113,{1,2,3,4,5,6,7,8,9,10,11,12,13,14,15,16,17},),$C$7,$C$9,$C$11,$C$13,$C$15,$C$17,$C$19,$C$21,$C$23,$C$25,$C$27,$C$29,$C$31,$C$33,$C$35,$C$37,$C$39) -> TUR | AF113: =CHOOSE(MATCH(AD113,{1,2,3,4,5,6,7,8,9,10,11,12,13,14,15,16,17},), $D$7,$D$9,$D$11,$D$13,$D$15,$D$17,$D$19,$D$21,$D$23,$D$25,$D$27,$D$29,$D$31,$D$33,$D$35,$D$37,$D$39,) -> KARAVUS
AD115: 13 | AE115: =CHOOSE(MATCH(AD115,{1,2,3,4,5,6,7,8,9,10,11,12,13,14,15,16,17},),$C$7,$C$9,$C$11,$C$13,$C$15,$C$17,$C$19,$C$21,$C$23,$C$25,$C$27,$C$29,$C$31,$C$33,$C$35,$C$37,$C$39) -> PUR | AF115: =CHOOSE(MATCH(AD115,{1,2,3,4,5,6,7,8,9,10,11,12,13,14,15,16,17},), $D$7,$D$9,$D$11,$D$13,$D$15,$D$17,$D$19,$D$21,$D$23,$D$25,$D$27,$D$29,$D$31,$D$33,$D$35,$D$37,$D$39,) -> 212
AD117: 14 | AE117: =CHOOSE(MATCH(AD117,{1,2,3,4,5,6,7,8,9,10,11,12,13,14,15,16,17},),$C$7,$C$9,$C$11,$C$13,$C$15,$C$17,$C$19,$C$21,$C$23,$C$25,$C$27,$C$29,$C$31,$C$33,$C$35,$C$37,$C$39) -> KGZ | AF117: =CHOOSE(MATCH(AD117,{1,2,3,4,5,6,7,8,9,10,11,12,13,14,15,16,17},), $D$7,$D$9,$D$11,$D$13,$D$15,$D$17,$D$19,$D$21,$D$23,$D$25,$D$27,$D$29,$D$31,$D$33,$D$35,$D$37,$D$39,) -> 209
AD119: 15 | AE119: =CHOOSE(MATCH(AD119,{1,2,3,4,5,6,7,8,9,10,11,12,13,14,15,16,17},),$C$7,$C$9,$C$11,$C$13,$C$15,$C$17,$C$19,$C$21,$C$23,$C$25,$C$27,$C$29,$C$31,$C$33,$C$35,$C$37,$C$39) -> KAZ | AF119: =CHOOSE(MATCH(AD119,{1,2,3,4,5,6,7,8,9,10,11,12,13,14,15,16,17},), $D$7,$D$9,$D$11,$D$13,$D$15,$D$17,$D$19,$D$21,$D$23,$D$25,$D$27,$D$29,$D$31,$D$33,$D$35,$D$37,$D$39,) -> YESSE
AD121: =VALUE(K37) -> 17 | AE121: =CHOOSE(MATCH(AD121,{1,2,3,4,5,6,7,8,9,10,11,12,13,14,15,16,17},),$C$7,$C$9,$C$11,$C$13,$C$15,$C$17,$C$19,$C$21,$C$23,$C$25,$C$27,$C$29,$C$31,$C$33,$C$35,$C$37,$C$39) -> TUR | AF121: =CHOOSE(MATCH(AD121,{1,2,3,4,5,6,7,8,9,10,11,12,13,14,15,16,17},), $D$7,$D$9,$D$11,$D$13,$D$15,$D$17,$D$19,$D$21,$D$23,$D$25,$D$27,$D$29,$D$31,$D$33,$D$35,$D$37,$D$39,) -> KARAVUS
AF128: Руководитель ковра
AD150: ПРОТОКОЛ ХОДА СХВАТКИ
AE151: ВЕС кг | AG151: 1/4 финала | AJ151: КОВЕР | AL151: 1
AD153: № п/п | AE153: Фамилия Имя | AF153: Город общество | AG153: 1 период | AI153: 2 период | AK153: баллы | AL153: очки | AM153: Судьи
AD155: =VALUE(N8) -> 2 | AE155: =CHOOSE(MATCH(AD155,{1,2,3,4,5,6,7,8,9,10,11,12,13,14,15,16,17},),$C$7,$C$9,$C$11,$C$13,$C$15,$C$17,$C$19,$C$21,$C$23,$C$25,$C$27,$C$29,$C$31,$C$33,$C$35,$C$37,$C$39) -> GEO | AF155: =CHOOSE(MATCH(AD155,{1,2,3,4,5,6,7,8,9,10,11,12,13,14,15,16,17},), $D$7,$D$9,$D$11,$D$13,$D$15,$D$17,$D$19,$D$21,$D$23,$D$25,$D$27,$D$29,$D$31,$D$33,$D$35,$D$37,$D$39,) -> 202
AD157: =VALUE(N12) -> 3 | AE157: =CHOOSE(MATCH(AD157,{1,2,3,4,5,6,7,8,9,10,11,12,13,14,15,16,17},),$C$7,$C$9,$C$11,$C$13,$C$15,$C$17,$C$19,$C$21,$C$23,$C$25,$C$27,$C$29,$C$31,$C$33,$C$35,$C$37,$C$39) -> KAZ | AF157: =CHOOSE(MATCH(AD157,{1,2,3,4,5,6,7,8,9,10,11,12,13,14,15,16,17},), $D$7,$D$9,$D$11,$D$13,$D$15,$D$17,$D$19,$D$21,$D$23,$D$25,$D$27,$D$29,$D$31,$D$33,$D$35,$D$37,$D$39,) -> KALZ
AD159: =VALUE(N16) -> 5 | AE159: =CHOOSE(MATCH(AD159,{1,2,3,4,5,6,7,8,9,10,11,12,13,14,15,16,17},),$C$7,$C$9,$C$11,$C$13,$C$15,$C$17,$C$19,$C$21,$C$23,$C$25,$C$27,$C$29,$C$31,$C$33,$C$35,$C$37,$C$39) -> MGL | AF159: =CHOOSE(MATCH(AD159,{1,2,3,4,5,6,7,8,9,10,11,12,13,14,15,16,17},), $D$7,$D$9,$D$11,$D$13,$D$15,$D$17,$D$19,$D$21,$D$23,$D$25,$D$27,$D$29,$D$31,$D$33,$D$35,$D$37,$D$39,) -> ZANDA
AD161: =VALUE(N20) -> 8 | AE161: =CHOOSE(MATCH(AD161,{1,2,3,4,5,6,7,8,9,10,11,12,13,14,15,16,17},),$C$7,$C$9,$C$11,$C$13,$C$15,$C$17,$C$19,$C$21,$C$23,$C$25,$C$27,$C$29,$C$31,$C$33,$C$35,$C$37,$C$39) -> IND | AF161: =CHOOSE(MATCH(AD161,{1,2,3,4,5,6,7,8,9,10,11,12,13,14,15,16,17},), $D$7,$D$9,$D$11,$D$13,$D$15,$D$17,$D$19,$D$21,$D$23,$D$25,$D$27,$D$29,$D$31,$D$33,$D$35,$D$37,$D$39,) -> 204
AD163: =VALUE(N24) -> 9 | AE163: =CHOOSE(MATCH(AD163,{1,2,3,4,5,6,7,8,9,10,11,12,13,14,15,16,17},),$C$7,$C$9,$C$11,$C$13,$C$15,$C$17,$C$19,$C$21,$C$23,$C$25,$C$27,$C$29,$C$31,$C$33,$C$35,$C$37,$C$39) -> ECU | AF163: =CHOOSE(MATCH(AD163,{1,2,3,4,5,6,7,8,9,10,11,12,13,14,15,16,17},), $D$7,$D$9,$D$11,$D$13,$D$15,$D$17,$D$19,$D$21,$D$23,$D$25,$D$27,$D$29,$D$31,$D$33,$D$35,$D$37,$D$39,) -> 201
AD165: =VALUE(N28) -> 11 | AE165: =CHOOSE(MATCH(AD165,{1,2,3,4,5,6,7,8,9,10,11,12,13,14,15,16,17},),$C$7,$C$9,$C$11,$C$13,$C$15,$C$17,$C$19,$C$21,$C$23,$C$25,$C$27,$C$29,$C$31,$C$33,$C$35,$C$37,$C$39) -> MGL | AF165: =CHOOSE(MATCH(AD165,{1,2,3,4,5,6,7,8,9,10,11,12,13,14,15,16,17},), $D$7,$D$9,$D$11,$D$13,$D$15,$D$17,$D$19,$D$21,$D$23,$D$25,$D$27,$D$29,$D$31,$D$33,$D$35,$D$37,$D$39,) -> BAT
AD167: =VALUE(N32) -> 13 | AE167: =CHOOSE(MATCH(AD167,{1,2,3,4,5,6,7,8,9,10,11,12,13,14,15,16,17},),$C$7,$C$9,$C$11,$C$13,$C$15,$C$17,$C$19,$C$21,$C$23,$C$25,$C$27,$C$29,$C$31,$C$33,$C$35,$C$37,$C$39) -> PUR | AF167: =CHOOSE(MATCH(AD167,{1,2,3,4,5,6,7,8,9,10,11,12,13,14,15,16,17},), $D$7,$D$9,$D$11,$D$13,$D$15,$D$17,$D$19,$D$21,$D$23,$D$25,$D$27,$D$29,$D$31,$D$33,$D$35,$D$37,$D$39,) -> 212
AD169: =VALUE(N36) -> 17 | AE169: =CHOOSE(MATCH(AD169,{1,2,3,4,5,6,7,8,9,10,11,12,13,14,15,16,17},),$C$7,$C$9,$C$11,$C$13,$C$15,$C$17,$C$19,$C$21,$C$23,$C$25,$C$27,$C$29,$C$31,$C$33,$C$35,$C$37,$C$39) -> TUR | AF169: =CHOOSE(MATCH(AD169,{1,2,3,4,5,6,7,8,9,10,11,12,13,14,15,16,17},), $D$7,$D$9,$D$11,$D$13,$D$15,$D$17,$D$19,$D$21,$D$23,$D$25,$D$27,$D$29,$D$31,$D$33,$D$35,$D$37,$D$39,) -> KARAVUS
AF174: Руководитель ковра
AD177: ПРОТОКОЛ ХОДА СХВАТКИ
AE178: ВЕС кг | AG178: 1/2 финала | AJ178: КОВЕР | AL178: 1
AD180: № п/п | AE180: Фамилия Имя | AF180: Город общество | AG180: 1 период | AI180: 2 период | AK180: баллы | AL180: очки | AM180: Судьи
AD182: =VALUE(Q10) -> 2 | AE182: =CHOOSE(MATCH(AD182,{1,2,3,4,5,6,7,8,9,10,11,12,13,14,15,16,17},),$C$7,$C$9,$C$11,$C$13,$C$15,$C$17,$C$19,$C$21,$C$23,$C$25,$C$27,$C$29,$C$31,$C$33,$C$35,$C$37,$C$39) -> GEO | AF182: =CHOOSE(MATCH(AD182,{1,2,3,4,5,6,7,8,9,10,11,12,13,14,15,16,17},), $D$7,$D$9,$D$11,$D$13,$D$15,$D$17,$D$19,$D$21,$D$23,$D$25,$D$27,$D$29,$D$31,$D$33,$D$35,$D$37,$D$39,) -> 202
AD184: =VALUE(Q18) -> 8 | AE184: =CHOOSE(MATCH(AD184,{1,2,3,4,5,6,7,8,9,10,11,12,13,14,15,16,17},),$C$7,$C$9,$C$11,$C$13,$C$15,$C$17,$C$19,$C$21,$C$23,$C$25,$C$27,$C$29,$C$31,$C$33,$C$35,$C$37,$C$39) -> IND | AF184: =CHOOSE(MATCH(AD184,{1,2,3,4,5,6,7,8,9,10,11,12,13,14,15,16,17},), $D$7,$D$9,$D$11,$D$13,$D$15,$D$17,$D$19,$D$21,$D$23,$D$25,$D$27,$D$29,$D$31,$D$33,$D$35,$D$37,$D$39,) -> 204
AD186: =VALUE(Q26) -> 9 | AE186: =CHOOSE(MATCH(AD186,{1,2,3,4,5,6,7,8,9,10,11,12,13,14,15,16,17},),$C$7,$C$9,$C$11,$C$13,$C$15,$C$17,$C$19,$C$21,$C$23,$C$25,$C$27,$C$29,$C$31,$C$33,$C$35,$C$37,$C$39) -> ECU | AF186: =CHOOSE(MATCH(AD186,{1,2,3,4,5,6,7,8,9,10,11,12,13,14,15,16,17},), $D$7,$D$9,$D$11,$D$13,$D$15,$D$17,$D$19,$D$21,$D$23,$D$25,$D$27,$D$29,$D$31,$D$33,$D$35,$D$37,$D$39,) -> 201
AD188: =VALUE(Q34) -> 17 | AE188: =CHOOSE(MATCH(AD188,{1,2,3,4,5,6,7,8,9,10,11,12,13,14,15,16,17},),$C$7,$C$9,$C$11,$C$13,$C$15,$C$17,$C$19,$C$21,$C$23,$C$25,$C$27,$C$29,$C$31,$C$33,$C$35,$C$37,$C$39) -> TUR | AF188: =CHOOSE(MATCH(AD188,{1,2,3,4,5,6,7,8,9,10,11,12,13,14,15,16,17},), $D$7,$D$9,$D$11,$D$13,$D$15,$D$17,$D$19,$D$21,$D$23,$D$25,$D$27,$D$29,$D$31,$D$33,$D$35,$D$37,$D$39,) -> KARAVUS
AF192: Руководитель ковра
AD211: ПРОТОКОЛ ХОДА СХВАТКИ
AE212: ВЕС кг | AG212: утешение | AJ212: КОВЕР | AL212: 1
AD214: № п/п | AE214: Фамилия Имя | AF214: Город общество | AG214: 1 период | AI214: 2 период | AK214: баллы | AL214: очки | AM214: Судьи
AD216: =VALUE(K44) -> 0 | AE216: =CHOOSE(MATCH(AD216,{1,2,3,4,5,6,7,8,9,10,11,12,13,14,15,16,17},),$C$7,$C$9,$C$11,$C$13,$C$15,$C$17,$C$19,$C$21,$C$23,$C$25,$C$27,$C$29,$C$31,$C$33,$C$35,$C$37,$C$39) ->  | AF216: =CHOOSE(MATCH(AD216,{1,2,3,4,5,6,7,8,9,10,11,12,13,14,15,16,17},), $D$7,$D$9,$D$11,$D$13,$D$15,$D$17,$D$19,$D$21,$D$23,$D$25,$D$27,$D$29,$D$31,$D$33,$D$35,$D$37,$D$39,) -> 
AD218: =VALUE(K48) -> 0 | AE218: =CHOOSE(MATCH(AD218,{1,2,3,4,5,6,7,8,9,10,11,12,13,14,15,16,17},),$C$7,$C$9,$C$11,$C$13,$C$15,$C$17,$C$19,$C$21,$C$23,$C$25,$C$27,$C$29,$C$31,$C$33,$C$35,$C$37,$C$39) ->  | AF218: =CHOOSE(MATCH(AD218,{1,2,3,4,5,6,7,8,9,10,11,12,13,14,15,16,17},), $D$7,$D$9,$D$11,$D$13,$D$15,$D$17,$D$19,$D$21,$D$23,$D$25,$D$27,$D$29,$D$31,$D$33,$D$35,$D$37,$D$39,) -> 
AD220: =VALUE(K59) -> 16 | AE220: =CHOOSE(MATCH(AD220,{1,2,3,4,5,6,7,8,9,10,11,12,13,14,15,16,17},),$C$7,$C$9,$C$11,$C$13,$C$15,$C$17,$C$19,$C$21,$C$23,$C$25,$C$27,$C$29,$C$31,$C$33,$C$35,$C$37,$C$39) -> TUR | AF220: =CHOOSE(MATCH(AD220,{1,2,3,4,5,6,7,8,9,10,11,12,13,14,15,16,17},), $D$7,$D$9,$D$11,$D$13,$D$15,$D$17,$D$19,$D$21,$D$23,$D$25,$D$27,$D$29,$D$31,$D$33,$D$35,$D$37,$D$39,) -> KIZILTAS
AD222: =VALUE(K63) -> 15 | AE222: =CHOOSE(MATCH(AD222,{1,2,3,4,5,6,7,8,9,10,11,12,13,14,15,16,17},),$C$7,$C$9,$C$11,$C$13,$C$15,$C$17,$C$19,$C$21,$C$23,$C$25,$C$27,$C$29,$C$31,$C$33,$C$35,$C$37,$C$39) -> KAZ | AF222: =CHOOSE(MATCH(AD222,{1,2,3,4,5,6,7,8,9,10,11,12,13,14,15,16,17},), $D$7,$D$9,$D$11,$D$13,$D$15,$D$17,$D$19,$D$21,$D$23,$D$25,$D$27,$D$29,$D$31,$D$33,$D$35,$D$37,$D$39,) -> YESSE
AF226: Руководитель ковра
AD230: ПРОТОКОЛ ХОДА СХВАТКИ
AE231: ВЕС кг | AG231: утешение | AJ231: КОВЕР | AL231: 1
AD233: № п/п | AE233: Фамилия Имя | AF233: Город общество | AG233: 1 период | AI233: 2 период | AK233: баллы | AL233: очки | AM233: Судьи
AD235: =VALUE(N46) -> 7 | AE235: =CHOOSE(MATCH(AD235,{1,2,3,4,5,6,7,8,9,10,11,12,13,14,15,16,17},),$C$7,$C$9,$C$11,$C$13,$C$15,$C$17,$C$19,$C$21,$C$23,$C$25,$C$27,$C$29,$C$31,$C$33,$C$35,$C$37,$C$39) -> GER | AF235: =CHOOSE(MATCH(AD235,{1,2,3,4,5,6,7,8,9,10,11,12,13,14,15,16,17},), $D$7,$D$9,$D$11,$D$13,$D$15,$D$17,$D$19,$D$21,$D$23,$D$25,$D$27,$D$29,$D$31,$D$33,$D$35,$D$37,$D$39,) -> 203
AD237: =VALUE(N50) -> 5 | AE237: =CHOOSE(MATCH(AD237,{1,2,3,4,5,6,7,8,9,10,11,12,13,14,15,16,17},),$C$7,$C$9,$C$11,$C$13,$C$15,$C$17,$C$19,$C$21,$C$23,$C$25,$C$27,$C$29,$C$31,$C$33,$C$35,$C$37,$C$39) -> MGL | AF237: =CHOOSE(MATCH(AD237,{1,2,3,4,5,6,7,8,9,10,11,12,13,14,15,16,17},), $D$7,$D$9,$D$11,$D$13,$D$15,$D$17,$D$19,$D$21,$D$23,$D$25,$D$27,$D$29,$D$31,$D$33,$D$35,$D$37,$D$39,) -> ZANDA
AD239: =VALUE(N61) -> 15 | AE239: =CHOOSE(MATCH(AD239,{1,2,3,4,5,6,7,8,9,10,11,12,13,14,15,16,17},),$C$7,$C$9,$C$11,$C$13,$C$15,$C$17,$C$19,$C$21,$C$23,$C$25,$C$27,$C$29,$C$31,$C$33,$C$35,$C$37,$C$39) -> KAZ | AF239: =CHOOSE(MATCH(AD239,{1,2,3,4,5,6,7,8,9,10,11,12,13,14,15,16,17},), $D$7,$D$9,$D$11,$D$13,$D$15,$D$17,$D$19,$D$21,$D$23,$D$25,$D$27,$D$29,$D$31,$D$33,$D$35,$D$37,$D$39,) -> YESSE
AD241: =VALUE(N65) -> 13 | AE241: =CHOOSE(MATCH(AD241,{1,2,3,4,5,6,7,8,9,10,11,12,13,14,15,16,17},),$C$7,$C$9,$C$11,$C$13,$C$15,$C$17,$C$19,$C$21,$C$23,$C$25,$C$27,$C$29,$C$31,$C$33,$C$35,$C$37,$C$39) -> PUR | AF241: =CHOOSE(MATCH(AD241,{1,2,3,4,5,6,7,8,9,10,11,12,13,14,15,16,17},), $D$7,$D$9,$D$11,$D$13,$D$15,$D$17,$D$19,$D$21,$D$23,$D$25,$D$27,$D$29,$D$31,$D$33,$D$35,$D$37,$D$39,) -> 212
AF245: Руководитель ковра
AD273: ПРОТОКОЛ ХОДА СХВАТКИ
AE274: ВЕС кг | AG274: финал за 3м. | AJ274: КОВЕР | AL274: 1
AD276: № п/п | AE276: Фамилия Имя | AF276: Город общество | AG276: 1 период | AI276: 2 период | AK276: баллы | AL276: очки | AM276: Судьи
AD278: =VALUE(Q48) -> 7 | AE278: =CHOOSE(MATCH(AD278,{1,2,3,4,5,6,7,8,9,10,11,12,13,14,15,16,17},),$C$7,$C$9,$C$11,$C$13,$C$15,$C$17,$C$19,$C$21,$C$23,$C$25,$C$27,$C$29,$C$31,$C$33,$C$35,$C$37,$C$39) -> GER | AF278: =CHOOSE(MATCH(AD278,{1,2,3,4,5,6,7,8,9,10,11,12,13,14,15,16,17},), $D$7,$D$9,$D$11,$D$13,$D$15,$D$17,$D$19,$D$21,$D$23,$D$25,$D$27,$D$29,$D$31,$D$33,$D$35,$D$37,$D$39,) -> 203
AD280: =VALUE(Q52) -> 2 | AE280: =CHOOSE(MATCH(AD280,{1,2,3,4,5,6,7,8,9,10,11,12,13,14,15,16,17},),$C$7,$C$9,$C$11,$C$13,$C$15,$C$17,$C$19,$C$21,$C$23,$C$25,$C$27,$C$29,$C$31,$C$33,$C$35,$C$37,$C$39) -> GEO | AF280: =CHOOSE(MATCH(AD280,{1,2,3,4,5,6,7,8,9,10,11,12,13,14,15,16,17},), $D$7,$D$9,$D$11,$D$13,$D$15,$D$17,$D$19,$D$21,$D$23,$D$25,$D$27,$D$29,$D$31,$D$33,$D$35,$D$37,$D$39,) -> 202
AD282: =VALUE(Q63) -> 15 | AE282: =CHOOSE(MATCH(AD282,{1,2,3,4,5,6,7,8,9,10,11,12,13,14,15,16,17},),$C$7,$C$9,$C$11,$C$13,$C$15,$C$17,$C$19,$C$21,$C$23,$C$25,$C$27,$C$29,$C$31,$C$33,$C$35,$C$37,$C$39) -> KAZ | AF282: =CHOOSE(MATCH(AD282,{1,2,3,4,5,6,7,8,9,10,11,12,13,14,15,16,17},), $D$7,$D$9,$D$11,$D$13,$D$15,$D$17,$D$19,$D$21,$D$23,$D$25,$D$27,$D$29,$D$31,$D$33,$D$35,$D$37,$D$39,) -> YESSE
AD284: =VALUE(Q67) -> 9 | AE284: =CHOOSE(MATCH(AD284,{1,2,3,4,5,6,7,8,9,10,11,12,13,14,15,16,17},),$C$7,$C$9,$C$11,$C$13,$C$15,$C$17,$C$19,$C$21,$C$23,$C$25,$C$27,$C$29,$C$31,$C$33,$C$35,$C$37,$C$39) -> ECU | AF284: =CHOOSE(MATCH(AD284,{1,2,3,4,5,6,7,8,9,10,11,12,13,14,15,16,17},), $D$7,$D$9,$D$11,$D$13,$D$15,$D$17,$D$19,$D$21,$D$23,$D$25,$D$27,$D$29,$D$31,$D$33,$D$35,$D$37,$D$39,) -> 201
AF288: Руководитель ковра
AD296: ПРОТОКОЛ ХОДА СХВАТКИ
AE297: ВЕС кг | AG297: финал | AJ297: КОВЕР | AL297: 1
AD299: № п/п | AE299: Фамилия Имя | AF299: Город общество | AG299: 1 период | AI299: 2 период | AK299: баллы | AL299: очки | AM299: Судьи
AD301: =VALUE(T14) -> 8 | AE301: =CHOOSE(MATCH(AD301,{1,2,3,4,5,6,7,8,9,10,11,12,13,14,15,16,17},),$C$7,$C$9,$C$11,$C$13,$C$15,$C$17,$C$19,$C$21,$C$23,$C$25,$C$27,$C$29,$C$31,$C$33,$C$35,$C$37,$C$39) -> IND | AF301: =CHOOSE(MATCH(AD301,{1,2,3,4,5,6,7,8,9,10,11,12,13,14,15,16,17},), $D$7,$D$9,$D$11,$D$13,$D$15,$D$17,$D$19,$D$21,$D$23,$D$25,$D$27,$D$29,$D$31,$D$33,$D$35,$D$37,$D$39,) -> 204
AD303: =VALUE(T30) -> 17 | AE303: =CHOOSE(MATCH(AD303,{1,2,3,4,5,6,7,8,9,10,11,12,13,14,15,16,17},),$C$7,$C$9,$C$11,$C$13,$C$15,$C$17,$C$19,$C$21,$C$23,$C$25,$C$27,$C$29,$C$31,$C$33,$C$35,$C$37,$C$39) -> TUR | AF303: =CHOOSE(MATCH(AD303,{1,2,3,4,5,6,7,8,9,10,11,12,13,14,15,16,17},), $D$7,$D$9,$D$11,$D$13,$D$15,$D$17,$D$19,$D$21,$D$23,$D$25,$D$27,$D$29,$D$31,$D$33,$D$35,$D$37,$D$39,) -> KARAVUS
AF310: Руководитель ковра

Sheet 18уч
A1: ПРОТОКОЛ ХОДА СОРЕВНОВАНИЙ
A2: Турнир по борьбе вольной, памяти первого тренерашколы НЕЙЧА И.В.19 мая 2017г
C3: ВЕС кг
A5: МЕСТО | B5: № п/п | C5: Фамилия Имя | D5: Город общество | E5: Год рожд | F5: Разряд | H5: квалификация | K5: 1/8 финала | N5: 1/4 финала | Q5: 1/2 финала | T5: ФИНАЛ за 1место
B7: 1 | C7: 501 | D7: 601 | H7: 1 | I7: св | K7: 1 | L7: 0
N8: =IF(L7>L9,K7,K9) -> 2 | O8: 3
B9: 2 | C9: 502 | D9: 602 | H9: 2 | I9: св | K9: 2 | L9: 2
Q10: =IF(O8>O12,N8,N12) -> 2 | R10: 1
B11: 3 | C11: 503 | D11: 603 | H11: 3 | I11: св | K11: 3 | L11: 3
N12: =IF(L11>L13,K11,K13) -> 3 | O12: 2
B13: 4 | C13: 504 | D13: 604 | H13: 4 | I13: св | K13: 4 | L13: 2
T14: =IF(R10>R18,Q10,Q18) -> 8 | U14: 1
B15: 5 | C15: 505 | D15: 605 | H15: 5 | I15: св | K15: 5 | L15: 1
N16: =IF(L15>L17,K15,K17) -> 5 | O16: 1
B17: 6 | C17: 506 | D17: 606 | H17: 6 | I17: св | K17: 6 | L17: 0
Q18: =IF(O16>O20,N16,N20) -> 8 | R18: 2
B19: 7 | C19: 507 | D19: 607 | H19: 7 | I19: св | K19: 7 | L19: 1
N20: =IF(L19>L21,K19,K21) -> 8 | O20: 5
B21: 8 | C21: 508 | D21: 608 | H21: 8 | I21: св | K21: 8 | L21: 2
W22: =IF(U14>U30,T14,T30) -> 8
B23: 9 | C23: 509 | D23: 609 | H23: 9 | I23: св | K23: 9 | L23: 3
N24: =IF(L23>L25,K23,K25) -> 9 | O24: 1
B25: 10 | C25: 510 | D25: 610 | H25: 10 | I25: св | K25: 10 | L25: 0
Q26: =IF(O24>O28,N24,N28) -> 9 | R26: 4
B27: 11 | C27: 511 | D27: 611 | H27: 11 | I27: св | K27: 11 | L27: 1
N28: =IF(L27>L29,K27,K29) -> 11 | O28: 0
B29: 12 | C29: 512 | D29: 612 | H29: 12 | I29: св | K29: 12 | L29: 0
T30: =IF(R26>R34,Q26,Q34) -> 18 | U30: 0
B31: 13 | C31: 513 | D31: 613 | H31: 13 | I31: св | K31: 13 | L31: 1
N32: =IF(L31>L33,K31,K33) -> 13 | O32: 1
B33: 14 | C33: 514 | D33: 614 | H33: 14 | I33: св | K33: 14 | L33: 0 | O33: ;
Q34: =IF(O32>O36,N32,N36) -> 18 | R34: 5
B35: 15 | C35: 515 | D35: 615 | H35: 15 | I35: 0 | K35: =IF(I35>I37,H35,H37) -> 16 | L35: 1
N36: =IF(L35>L37,K35,K37) -> 18 | O36: 2
B37: 16 | C37: 516 | D37: 616 | H37: 16 | I37: 2 | K37: =IF(I39>I41,H39,H41) -> 18 | L37: 2
B39: 17 | C39: 517 | D39: 617 | H39: 17 | I39: 1 | N39: ПЕРЕЭКЗАМЕНОВКА
B41: 18 | C41: 518 | D41: 618 | H41: 18 | I41: 2
K42: ПРОИГРАВШИЕ ПЕРВОМУ ФИНАЛИСТУ
N46: =CHOOSE(MATCH($T$14,{1,2,3,4,5,6,7,8,9,10,11,12,13,14,15,16},),2,1,4,3,6,5,8,7,10,9,12,11,14,13,16,15,) -> 7 | O46: 1
Q48: =IF(O46>O50,N46,N50) -> 7 | R48: 3 | U48: 3 МЕСТО
N50: =CHOOSE(MATCH($T$14,{1,2,3,4,5,6,7,8,9,10,11,12,13,14,15,16},),N12,N12,N8,N8,N20,N20,N16,N16,) -> 5 | O50: 0 | T50: =IF(R48>R52,Q48,Q52) -> 7 | U50: =IF(S48>S52,R48,R52) -> 0
Q52: =IF(R10<R18,Q10,Q18) -> 2 | R52: 0
K57: ПРОИГРАВШИЕ ВТОРОМУ ФИНАЛИСТУ
K59: =CHOOSE(MATCH(T30,{15,16,17,18},),16,15,18,17) -> 17 | L59: 1
N61: =IF(L59>L63,K59,K63) -> 17 | O61: 1
K63: =CHOOSE(MATCH($T$30,{9,10,11,12,13,14,15,16,17,18},),10,9,12,11,14,13,K37,K37,K35,K35,) -> 16 | L63: 0 | Q63: =IF(O61>O65,N61,N65) -> 17 | R63: 1 | U63: 3 МЕСТО
N65: =CHOOSE(MATCH(T30,{9,10,11,12,13,14,15,16,17,18},),N28,N28,N24,N24,N36,N36,N32,N32,N32,N32) -> 13 | O65: 0 | T65: =IF(R63>R67,Q63,Q67) -> 17 | U65: =IF(S63>S67,R63,R67) -> 0
Q67: =IF(R26<R34,Q26,Q34) -> 9 | R67: 0
AD71: ПРОТОКОЛ ХОДА СХВАТКИ
AE72: ВЕС кг | AG72: квалификация | AJ72: КОВЕР | AL72: 1
AD74: № п/п | AE74: Фамилия Имя | AF74: Город общество | AG74: 1 период | AI74: 2 период | AK74: баллы | AL74: очки | AM74: Судьи
AD76: 15 | AE76: =CHOOSE(MATCH(AD76,{1,2,3,4,5,6,7,8,9,10,11,12,13,14,15,16,17,18},),$C$7,$C$9,$C$11,$C$13,$C$15,$C$17,$C$19,$C$21,$C$23,$C$25,$C$27,$C$29,$C$31,$C$33,$C$35,$C$37,$C$39,$C$41) -> 515 | AF76: =CHOOSE(MATCH(AD76,{1,2,3,4,5,6,7,8,9,10,11,12,13,14,15,16,17,18},), $D$7,$D$9,$D$11,$D$13,$D$15,$D$17,$D$19,$D$21,$D$23,$D$25,$D$27,$D$29,$D$31,$D$33,$D$35,$D$37,$D$39,$D$41) -> 615
AD78: 16 | AE78: =CHOOSE(MATCH(AD78,{1,2,3,4,5,6,7,8,9,10,11,12,13,14,15,16,17,18},),$C$7,$C$9,$C$11,$C$13,$C$15,$C$17,$C$19,$C$21,$C$23,$C$25,$C$27,$C$29,$C$31,$C$33,$C$35,$C$37,$C$39,$C$41) -> 516 | AF78: =CHOOSE(MATCH(AD78,{1,2,3,4,5,6,7,8,9,10,11,12,13,14,15,16,17,18},), $D$7,$D$9,$D$11,$D$13,$D$15,$D$17,$D$19,$D$21,$D$23,$D$25,$D$27,$D$29,$D$31,$D$33,$D$35,$D$37,$D$39,$D$41) -> 616
AD80: 17 | AE80: =CHOOSE(MATCH(AD80,{1,2,3,4,5,6,7,8,9,10,11,12,13,14,15,16,17,18},),$C$7,$C$9,$C$11,$C$13,$C$15,$C$17,$C$19,$C$21,$C$23,$C$25,$C$27,$C$29,$C$31,$C$33,$C$35,$C$37,$C$39,$C$41) -> 517 | AF80: =CHOOSE(MATCH(AD80,{1,2,3,4,5,6,7,8,9,10,11,12,13,14,15,16,17,18},), $D$7,$D$9,$D$11,$D$13,$D$15,$D$17,$D$19,$D$21,$D$23,$D$25,$D$27,$D$29,$D$31,$D$33,$D$35,$D$37,$D$39,$D$41) -> 617
AD82: 18 | AE82: =CHOOSE(MATCH(AD82,{1,2,3,4,5,6,7,8,9,10,11,12,13,14,15,16,17,18},),$C$7,$C$9,$C$11,$C$13,$C$15,$C$17,$C$19,$C$21,$C$23,$C$25,$C$27,$C$29,$C$31,$C$33,$C$35,$C$37,$C$39,$C$41) -> 518 | AF82: =CHOOSE(MATCH(AD82,{1,2,3,4,5,6,7,8,9,10,11,12,13,14,15,16,17,18},), $D$7,$D$9,$D$11,$D$13,$D$15,$D$17,$D$19,$D$21,$D$23,$D$25,$D$27,$D$29,$D$31,$D$33,$D$35,$D$37,$D$39,$D$41) -> 618
AD86: ПРОТОКОЛ ХОДА СХВАТКИ
AE87: ВЕС кг | AG87: 1/8 финала | AJ87: КОВЕР | AL87: 1
AD89: № п/п | AE89: Фамилия Имя | AF89: Город общество | AG89: 1 период | AI89: 2 период | AK89: баллы | AL89: очки | AM89: Судьи
AD91: 1 | AE91: =CHOOSE(MATCH(AD91,{1,2,3,4,5,6,7,8,9,10,11,12,13,14,15,16,17,18},),$C$7,$C$9,$C$11,$C$13,$C$15,$C$17,$C$19,$C$21,$C$23,$C$25,$C$27,$C$29,$C$31,$C$33,$C$35,$C$37,$C$39,$C$41) -> 501 | AF91: =CHOOSE(MATCH(AD91,{1,2,3,4,5,6,7,8,9,10,11,12,13,14,15,16,17,18},), $D$7,$D$9,$D$11,$D$13,$D$15,$D$17,$D$19,$D$21,$D$23,$D$25,$D$27,$D$29,$D$31,$D$33,$D$35,$D$37,$D$39,$D$41) -> 601
AD93: 2 | AE93: =CHOOSE(MATCH(AD93,{1,2,3,4,5,6,7,8,9,10,11,12,13,14,15,16,17,18},),$C$7,$C$9,$C$11,$C$13,$C$15,$C$17,$C$19,$C$21,$C$23,$C$25,$C$27,$C$29,$C$31,$C$33,$C$35,$C$37,$C$39,$C$41) -> 502 | AF93: =CHOOSE(MATCH(AD93,{1,2,3,4,5,6,7,8,9,10,11,12,13,14,15,16,17,18},), $D$7,$D$9,$D$11,$D$13,$D$15,$D$17,$D$19,$D$21,$D$23,$D$25,$D$27,$D$29,$D$31,$D$33,$D$35,$D$37,$D$39,$D$41) -> 602
AD95: 3 | AE95: =CHOOSE(MATCH(AD95,{1,2,3,4,5,6,7,8,9,10,11,12,13,14,15,16,17,18},),$C$7,$C$9,$C$11,$C$13,$C$15,$C$17,$C$19,$C$21,$C$23,$C$25,$C$27,$C$29,$C$31,$C$33,$C$35,$C$37,$C$39,$C$41) -> 503 | AF95: =CHOOSE(MATCH(AD95,{1,2,3,4,5,6,7,8,9,10,11,12,13,14,15,16,17,18},), $D$7,$D$9,$D$11,$D$13,$D$15,$D$17,$D$19,$D$21,$D$23,$D$25,$D$27,$D$29,$D$31,$D$33,$D$35,$D$37,$D$39,$D$41) -> 603
AD97: 4 | AE97: =CHOOSE(MATCH(AD97,{1,2,3,4,5,6,7,8,9,10,11,12,13,14,15,16,17,18},),$C$7,$C$9,$C$11,$C$13,$C$15,$C$17,$C$19,$C$21,$C$23,$C$25,$C$27,$C$29,$C$31,$C$33,$C$35,$C$37,$C$39,$C$41) -> 504 | AF97: =CHOOSE(MATCH(AD97,{1,2,3,4,5,6,7,8,9,10,11,12,13,14,15,16,17,18},), $D$7,$D$9,$D$11,$D$13,$D$15,$D$17,$D$19,$D$21,$D$23,$D$25,$D$27,$D$29,$D$31,$D$33,$D$35,$D$37,$D$39,$D$41) -> 604
AD99: 5 | AE99: =CHOOSE(MATCH(AD99,{1,2,3,4,5,6,7,8,9,10,11,12,13,14,15,16,17,18},),$C$7,$C$9,$C$11,$C$13,$C$15,$C$17,$C$19,$C$21,$C$23,$C$25,$C$27,$C$29,$C$31,$C$33,$C$35,$C$37,$C$39,$C$41) -> 505 | AF99: =CHOOSE(MATCH(AD99,{1,2,3,4,5,6,7,8,9,10,11,12,13,14,15,16,17,18},), $D$7,$D$9,$D$11,$D$13,$D$15,$D$17,$D$19,$D$21,$D$23,$D$25,$D$27,$D$29,$D$31,$D$33,$D$35,$D$37,$D$39,$D$41) -> 605
AD101: 6 | AE101: =CHOOSE(MATCH(AD101,{1,2,3,4,5,6,7,8,9,10,11,12,13,14,15,16,17,18},),$C$7,$C$9,$C$11,$C$13,$C$15,$C$17,$C$19,$C$21,$C$23,$C$25,$C$27,$C$29,$C$31,$C$33,$C$35,$C$37,$C$39,$C$41) -> 506 | AF101: =CHOOSE(MATCH(AD101,{1,2,3,4,5,6,7,8,9,10,11,12,13,14,15,16,17,18},), $D$7,$D$9,$D$11,$D$13,$D$15,$D$17,$D$19,$D$21,$D$23,$D$25,$D$27,$D$29,$D$31,$D$33,$D$35,$D$37,$D$39,$D$41) -> 606
AD103: 7 | AE103: =CHOOSE(MATCH(AD103,{1,2,3,4,5,6,7,8,9,10,11,12,13,14,15,16,17,18},),$C$7,$C$9,$C$11,$C$13,$C$15,$C$17,$C$19,$C$21,$C$23,$C$25,$C$27,$C$29,$C$31,$C$33,$C$35,$C$37,$C$39,$C$41) -> 507 | AF103: =CHOOSE(MATCH(AD103,{1,2,3,4,5,6,7,8,9,10,11,12,13,14,15,16,17,18},), $D$7,$D$9,$D$11,$D$13,$D$15,$D$17,$D$19,$D$21,$D$23,$D$25,$D$27,$D$29,$D$31,$D$33,$D$35,$D$37,$D$39,$D$41) -> 607
AD105: 8 | AE105: =CHOOSE(MATCH(AD105,{1,2,3,4,5,6,7,8,9,10,11,12,13,14,15,16,17,18},),$C$7,$C$9,$C$11,$C$13,$C$15,$C$17,$C$19,$C$21,$C$23,$C$25,$C$27,$C$29,$C$31,$C$33,$C$35,$C$37,$C$39,$C$41) -> 508 | AF105: =CHOOSE(MATCH(AD105,{1,2,3,4,5,6,7,8,9,10,11,12,13,14,15,16,17,18},), $D$7,$D$9,$D$11,$D$13,$D$15,$D$17,$D$19,$D$21,$D$23,$D$25,$D$27,$D$29,$D$31,$D$33,$D$35,$D$37,$D$39,$D$41) -> 608
AD107: 9 | AE107: =CHOOSE(MATCH(AD107,{1,2,3,4,5,6,7,8,9,10,11,12,13,14,15,16,17,18},),$C$7,$C$9,$C$11,$C$13,$C$15,$C$17,$C$19,$C$21,$C$23,$C$25,$C$27,$C$29,$C$31,$C$33,$C$35,$C$37,$C$39,$C$41) -> 509 | AF107: =CHOOSE(MATCH(AD107,{1,2,3,4,5,6,7,8,9,10,11,12,13,14,15,16,17,18},), $D$7,$D$9,$D$11,$D$13,$D$15,$D$17,$D$19,$D$21,$D$23,$D$25,$D$27,$D$29,$D$31,$D$33,$D$35,$D$37,$D$39,$D$41) -> 609
AD109: 10 | AE109: =CHOOSE(MATCH(AD109,{1,2,3,4,5,6,7,8,9,10,11,12,13,14,15,16,17,18},),$C$7,$C$9,$C$11,$C$13,$C$15,$C$17,$C$19,$C$21,$C$23,$C$25,$C$27,$C$29,$C$31,$C$33,$C$35,$C$37,$C$39,$C$41) -> 510 | AF109: =CHOOSE(MATCH(AD109,{1,2,3,4,5,6,7,8,9,10,11,12,13,14,15,16,17,18},), $D$7,$D$9,$D$11,$D$13,$D$15,$D$17,$D$19,$D$21,$D$23,$D$25,$D$27,$D$29,$D$31,$D$33,$D$35,$D$37,$D$39,$D$41) -> 610
AD111: 11 | AE111: =CHOOSE(MATCH(AD111,{1,2,3,4,5,6,7,8,9,10,11,12,13,14,15,16,17,18},),$C$7,$C$9,$C$11,$C$13,$C$15,$C$17,$C$19,$C$21,$C$23,$C$25,$C$27,$C$29,$C$31,$C$33,$C$35,$C$37,$C$39,$C$41) -> 511 | AF111: =CHOOSE(MATCH(AD111,{1,2,3,4,5,6,7,8,9,10,11,12,13,14,15,16,17,18},), $D$7,$D$9,$D$11,$D$13,$D$15,$D$17,$D$19,$D$21,$D$23,$D$25,$D$27,$D$29,$D$31,$D$33,$D$35,$D$37,$D$39,$D$41) -> 611
AD113: 12 | AE113: =CHOOSE(MATCH(AD113,{1,2,3,4,5,6,7,8,9,10,11,12,13,14,15,16,17,18},),$C$7,$C$9,$C$11,$C$13,$C$15,$C$17,$C$19,$C$21,$C$23,$C$25,$C$27,$C$29,$C$31,$C$33,$C$35,$C$37,$C$39,$C$41) -> 512 | AF113: =CHOOSE(MATCH(AD113,{1,2,3,4,5,6,7,8,9,10,11,12,13,14,15,16,17,18},), $D$7,$D$9,$D$11,$D$13,$D$15,$D$17,$D$19,$D$21,$D$23,$D$25,$D$27,$D$29,$D$31,$D$33,$D$35,$D$37,$D$39,$D$41) -> 612
AD115: 13 | AE115: =CHOOSE(MATCH(AD115,{1,2,3,4,5,6,7,8,9,10,11,12,13,14,15,16,17,18},),$C$7,$C$9,$C$11,$C$13,$C$15,$C$17,$C$19,$C$21,$C$23,$C$25,$C$27,$C$29,$C$31,$C$33,$C$35,$C$37,$C$39,$C$41) -> 513 | AF115: =CHOOSE(MATCH(AD115,{1,2,3,4,5,6,7,8,9,10,11,12,13,14,15,16,17,18},), $D$7,$D$9,$D$11,$D$13,$D$15,$D$17,$D$19,$D$21,$D$23,$D$25,$D$27,$D$29,$D$31,$D$33,$D$35,$D$37,$D$39,$D$41) -> 613
AD117: 14 | AE117: =CHOOSE(MATCH(AD117,{1,2,3,4,5,6,7,8,9,10,11,12,13,14,15,16,17,18},),$C$7,$C$9,$C$11,$C$13,$C$15,$C$17,$C$19,$C$21,$C$23,$C$25,$C$27,$C$29,$C$31,$C$33,$C$35,$C$37,$C$39,$C$41) -> 514 | AF117: =CHOOSE(MATCH(AD117,{1,2,3,4,5,6,7,8,9,10,11,12,13,14,15,16,17,18},), $D$7,$D$9,$D$11,$D$13,$D$15,$D$17,$D$19,$D$21,$D$23,$D$25,$D$27,$D$29,$D$31,$D$33,$D$35,$D$37,$D$39,$D$41) -> 614
AD119: =VALUE(K35) -> 16 | AE119: =CHOOSE(MATCH(AD119,{1,2,3,4,5,6,7,8,9,10,11,12,13,14,15,16,17,18},),$C$7,$C$9,$C$11,$C$13,$C$15,$C$17,$C$19,$C$21,$C$23,$C$25,$C$27,$C$29,$C$31,$C$33,$C$35,$C$37,$C$39,$C$41) -> 516 | AF119: =CHOOSE(MATCH(AD119,{1,2,3,4,5,6,7,8,9,10,11,12,13,14,15,16,17,18},), $D$7,$D$9,$D$11,$D$13,$D$15,$D$17,$D$19,$D$21,$D$23,$D$25,$D$27,$D$29,$D$31,$D$33,$D$35,$D$37,$D$39,$D$41) -> 616
AD121: =VALUE(K37) -> 18 | AE121: =CHOOSE(MATCH(AD121,{1,2,3,4,5,6,7,8,9,10,11,12,13,14,15,16,17,18},),$C$7,$C$9,$C$11,$C$13,$C$15,$C$17,$C$19,$C$21,$C$23,$C$25,$C$27,$C$29,$C$31,$C$33,$C$35,$C$37,$C$39,$C$41) -> 518 | AF121: =CHOOSE(MATCH(AD121,{1,2,3,4,5,6,7,8,9,10,11,12,13,14,15,16,17,18},), $D$7,$D$9,$D$11,$D$13,$D$15,$D$17,$D$19,$D$21,$D$23,$D$25,$D$27,$D$29,$D$31,$D$33,$D$35,$D$37,$D$39,$D$41) -> 618
AF128: Руководитель ковра
AD150: ПРОТОКОЛ ХОДА СХВАТКИ
AE151: ВЕС кг | AG151: 1/4 финала | AJ151: КОВЕР | AL151: 1
AD153: № п/п | AE153: Фамилия Имя | AF153: Город общество | AG153: 1 период | AI153: 2 период | AK153: баллы | AL153: очки | AM153: Судьи
AD155: =VALUE(N8) -> 2 | AE155: =CHOOSE(MATCH(AD155,{1,2,3,4,5,6,7,8,9,10,11,12,13,14,15,16,17,18},),$C$7,$C$9,$C$11,$C$13,$C$15,$C$17,$C$19,$C$21,$C$23,$C$25,$C$27,$C$29,$C$31,$C$33,$C$35,$C$37,$C$39,$C$41) -> 502 | AF155: =CHOOSE(MATCH(AD155,{1,2,3,4,5,6,7,8,9,10,11,12,13,14,15,16,17,18},), $D$7,$D$9,$D$11,$D$13,$D$15,$D$17,$D$19,$D$21,$D$23,$D$25,$D$27,$D$29,$D$31,$D$33,$D$35,$D$37,$D$39,$D$41) -> 602
AD157: =VALUE(N12) -> 3 | AE157: =CHOOSE(MATCH(AD157,{1,2,3,4,5,6,7,8,9,10,11,12,13,14,15,16,17,18},),$C$7,$C$9,$C$11,$C$13,$C$15,$C$17,$C$19,$C$21,$C$23,$C$25,$C$27,$C$29,$C$31,$C$33,$C$35,$C$37,$C$39,$C$41) -> 503 | AF157: =CHOOSE(MATCH(AD157,{1,2,3,4,5,6,7,8,9,10,11,12,13,14,15,16,17,18},), $D$7,$D$9,$D$11,$D$13,$D$15,$D$17,$D$19,$D$21,$D$23,$D$25,$D$27,$D$29,$D$31,$D$33,$D$35,$D$37,$D$39,$D$41) -> 603
AD159: =VALUE(N16) -> 5 | AE159: =CHOOSE(MATCH(AD159,{1,2,3,4,5,6,7,8,9,10,11,12,13,14,15,16,17,18},),$C$7,$C$9,$C$11,$C$13,$C$15,$C$17,$C$19,$C$21,$C$23,$C$25,$C$27,$C$29,$C$31,$C$33,$C$35,$C$37,$C$39,$C$41) -> 505 | AF159: =CHOOSE(MATCH(AD159,{1,2,3,4,5,6,7,8,9,10,11,12,13,14,15,16,17,18},), $D$7,$D$9,$D$11,$D$13,$D$15,$D$17,$D$19,$D$21,$D$23,$D$25,$D$27,$D$29,$D$31,$D$33,$D$35,$D$37,$D$39,$D$41) -> 605
AD161: =VALUE(N20) -> 8 | AE161: =CHOOSE(MATCH(AD161,{1,2,3,4,5,6,7,8,9,10,11,12,13,14,15,16,17,18},),$C$7,$C$9,$C$11,$C$13,$C$15,$C$17,$C$19,$C$21,$C$23,$C$25,$C$27,$C$29,$C$31,$C$33,$C$35,$C$37,$C$39,$C$41) -> 508 | AF161: =CHOOSE(MATCH(AD161,{1,2,3,4,5,6,7,8,9,10,11,12,13,14,15,16,17,18},), $D$7,$D$9,$D$11,$D$13,$D$15,$D$17,$D$19,$D$21,$D$23,$D$25,$D$27,$D$29,$D$31,$D$33,$D$35,$D$37,$D$39,$D$41) -> 608
AD163: =VALUE(N24) -> 9 | AE163: =CHOOSE(MATCH(AD163,{1,2,3,4,5,6,7,8,9,10,11,12,13,14,15,16,17,18},),$C$7,$C$9,$C$11,$C$13,$C$15,$C$17,$C$19,$C$21,$C$23,$C$25,$C$27,$C$29,$C$31,$C$33,$C$35,$C$37,$C$39,$C$41) -> 509 | AF163: =CHOOSE(MATCH(AD163,{1,2,3,4,5,6,7,8,9,10,11,12,13,14,15,16,17,18},), $D$7,$D$9,$D$11,$D$13,$D$15,$D$17,$D$19,$D$21,$D$23,$D$25,$D$27,$D$29,$D$31,$D$33,$D$35,$D$37,$D$39,$D$41) -> 609
AD165: =VALUE(N28) -> 11 | AE165: =CHOOSE(MATCH(AD165,{1,2,3,4,5,6,7,8,9,10,11,12,13,14,15,16,17,18},),$C$7,$C$9,$C$11,$C$13,$C$15,$C$17,$C$19,$C$21,$C$23,$C$25,$C$27,$C$29,$C$31,$C$33,$C$35,$C$37,$C$39,$C$41) -> 511 | AF165: =CHOOSE(MATCH(AD165,{1,2,3,4,5,6,7,8,9,10,11,12,13,14,15,16,17,18},), $D$7,$D$9,$D$11,$D$13,$D$15,$D$17,$D$19,$D$21,$D$23,$D$25,$D$27,$D$29,$D$31,$D$33,$D$35,$D$37,$D$39,$D$41) -> 611
AD167: =VALUE(N32) -> 13 | AE167: =CHOOSE(MATCH(AD167,{1,2,3,4,5,6,7,8,9,10,11,12,13,14,15,16,17,18},),$C$7,$C$9,$C$11,$C$13,$C$15,$C$17,$C$19,$C$21,$C$23,$C$25,$C$27,$C$29,$C$31,$C$33,$C$35,$C$37,$C$39,$C$41) -> 513 | AF167: =CHOOSE(MATCH(AD167,{1,2,3,4,5,6,7,8,9,10,11,12,13,14,15,16,17,18},), $D$7,$D$9,$D$11,$D$13,$D$15,$D$17,$D$19,$D$21,$D$23,$D$25,$D$27,$D$29,$D$31,$D$33,$D$35,$D$37,$D$39,$D$41) -> 613
AD169: =VALUE(N36) -> 18 | AE169: =CHOOSE(MATCH(AD169,{1,2,3,4,5,6,7,8,9,10,11,12,13,14,15,16,17,18},),$C$7,$C$9,$C$11,$C$13,$C$15,$C$17,$C$19,$C$21,$C$23,$C$25,$C$27,$C$29,$C$31,$C$33,$C$35,$C$37,$C$39,$C$41) -> 518 | AF169: =CHOOSE(MATCH(AD169,{1,2,3,4,5,6,7,8,9,10,11,12,13,14,15,16,17,18},), $D$7,$D$9,$D$11,$D$13,$D$15,$D$17,$D$19,$D$21,$D$23,$D$25,$D$27,$D$29,$D$31,$D$33,$D$35,$D$37,$D$39,$D$41) -> 618
AF174: Руководитель ковра
AD177: ПРОТОКОЛ ХОДА СХВАТКИ
AE178: ВЕС кг | AG178: 1/2 финала | AJ178: КОВЕР | AL178: 1
AD180: № п/п | AE180: Фамилия Имя | AF180: Город общество | AG180: 1 период | AI180: 2 период | AK180: баллы | AL180: очки | AM180: Судьи
AD182: =VALUE(Q10) -> 2 | AE182: =CHOOSE(MATCH(AD182,{1,2,3,4,5,6,7,8,9,10,11,12,13,14,15,16,17,18},),$C$7,$C$9,$C$11,$C$13,$C$15,$C$17,$C$19,$C$21,$C$23,$C$25,$C$27,$C$29,$C$31,$C$33,$C$35,$C$37,$C$39,$C$41) -> 502 | AF182: =CHOOSE(MATCH(AD182,{1,2,3,4,5,6,7,8,9,10,11,12,13,14,15,16,17,18},), $D$7,$D$9,$D$11,$D$13,$D$15,$D$17,$D$19,$D$21,$D$23,$D$25,$D$27,$D$29,$D$31,$D$33,$D$35,$D$37,$D$39,$D$41) -> 602
AD184: =VALUE(Q18) -> 8 | AE184: =CHOOSE(MATCH(AD184,{1,2,3,4,5,6,7,8,9,10,11,12,13,14,15,16,17,18},),$C$7,$C$9,$C$11,$C$13,$C$15,$C$17,$C$19,$C$21,$C$23,$C$25,$C$27,$C$29,$C$31,$C$33,$C$35,$C$37,$C$39,$C$41) -> 508 | AF184: =CHOOSE(MATCH(AD184,{1,2,3,4,5,6,7,8,9,10,11,12,13,14,15,16,17,18},), $D$7,$D$9,$D$11,$D$13,$D$15,$D$17,$D$19,$D$21,$D$23,$D$25,$D$27,$D$29,$D$31,$D$33,$D$35,$D$37,$D$39,$D$41) -> 608
AD186: =VALUE(Q26) -> 9 | AE186: =CHOOSE(MATCH(AD186,{1,2,3,4,5,6,7,8,9,10,11,12,13,14,15,16,17,18},),$C$7,$C$9,$C$11,$C$13,$C$15,$C$17,$C$19,$C$21,$C$23,$C$25,$C$27,$C$29,$C$31,$C$33,$C$35,$C$37,$C$39,$C$41) -> 509 | AF186: =CHOOSE(MATCH(AD186,{1,2,3,4,5,6,7,8,9,10,11,12,13,14,15,16,17,18},), $D$7,$D$9,$D$11,$D$13,$D$15,$D$17,$D$19,$D$21,$D$23,$D$25,$D$27,$D$29,$D$31,$D$33,$D$35,$D$37,$D$39,$D$41) -> 609
AD188: =VALUE(Q34) -> 18 | AE188: =CHOOSE(MATCH(AD188,{1,2,3,4,5,6,7,8,9,10,11,12,13,14,15,16,17,18},),$C$7,$C$9,$C$11,$C$13,$C$15,$C$17,$C$19,$C$21,$C$23,$C$25,$C$27,$C$29,$C$31,$C$33,$C$35,$C$37,$C$39,$C$41) -> 518 | AF188: =CHOOSE(MATCH(AD188,{1,2,3,4,5,6,7,8,9,10,11,12,13,14,15,16,17,18},), $D$7,$D$9,$D$11,$D$13,$D$15,$D$17,$D$19,$D$21,$D$23,$D$25,$D$27,$D$29,$D$31,$D$33,$D$35,$D$37,$D$39,$D$41) -> 618
AF192: Руководитель ковра
AD211: ПРОТОКОЛ ХОДА СХВАТКИ
AE212: ВЕС кг | AG212: утешение | AJ212: КОВЕР | AL212: 1
AD214: № п/п | AE214: Фамилия Имя | AF214: Город общество | AG214: 1 период | AI214: 2 период | AK214: баллы | AL214: очки | AM214: Судьи
AD216: =VALUE(K44) -> 0 | AE216: =CHOOSE(MATCH(AD216,{1,2,3,4,5,6,7,8,9,10,11,12,13,14,15,16,17,18},),$C$7,$C$9,$C$11,$C$13,$C$15,$C$17,$C$19,$C$21,$C$23,$C$25,$C$27,$C$29,$C$31,$C$33,$C$35,$C$37,$C$39,$C$41) ->  | AF216: =CHOOSE(MATCH(AD216,{1,2,3,4,5,6,7,8,9,10,11,12,13,14,15,16,17,18},), $D$7,$D$9,$D$11,$D$13,$D$15,$D$17,$D$19,$D$21,$D$23,$D$25,$D$27,$D$29,$D$31,$D$33,$D$35,$D$37,$D$39,$D$41) -> 
AD218: =VALUE(K48) -> 0 | AE218: =CHOOSE(MATCH(AD218,{1,2,3,4,5,6,7,8,9,10,11,12,13,14,15,16,17,18},),$C$7,$C$9,$C$11,$C$13,$C$15,$C$17,$C$19,$C$21,$C$23,$C$25,$C$27,$C$29,$C$31,$C$33,$C$35,$C$37,$C$39,$C$41) ->  | AF218: =CHOOSE(MATCH(AD218,{1,2,3,4,5,6,7,8,9,10,11,12,13,14,15,16,17,18},), $D$7,$D$9,$D$11,$D$13,$D$15,$D$17,$D$19,$D$21,$D$23,$D$25,$D$27,$D$29,$D$31,$D$33,$D$35,$D$37,$D$39,$D$41) -> 
AD220: =VALUE(K59) -> 17 | AE220: =CHOOSE(MATCH(AD220,{1,2,3,4,5,6,7,8,9,10,11,12,13,14,15,16,17,18},),$C$7,$C$9,$C$11,$C$13,$C$15,$C$17,$C$19,$C$21,$C$23,$C$25,$C$27,$C$29,$C$31,$C$33,$C$35,$C$37,$C$39,$C$41) -> 517 | AF220: =CHOOSE(MATCH(AD220,{1,2,3,4,5,6,7,8,9,10,11,12,13,14,15,16,17,18},), $D$7,$D$9,$D$11,$D$13,$D$15,$D$17,$D$19,$D$21,$D$23,$D$25,$D$27,$D$29,$D$31,$D$33,$D$35,$D$37,$D$39,$D$41) -> 617
AD222: =VALUE(K63) -> 16 | AE222: =CHOOSE(MATCH(AD222,{1,2,3,4,5,6,7,8,9,10,11,12,13,14,15,16,17,18},),$C$7,$C$9,$C$11,$C$13,$C$15,$C$17,$C$19,$C$21,$C$23,$C$25,$C$27,$C$29,$C$31,$C$33,$C$35,$C$37,$C$39,$C$41) -> 516 | AF222: =CHOOSE(MATCH(AD222,{1,2,3,4,5,6,7,8,9,10,11,12,13,14,15,16,17,18},), $D$7,$D$9,$D$11,$D$13,$D$15,$D$17,$D$19,$D$21,$D$23,$D$25,$D$27,$D$29,$D$31,$D$33,$D$35,$D$37,$D$39,$D$41) -> 616
AF226: Руководитель ковра
AD230: ПРОТОКОЛ ХОДА СХВАТКИ
AE231: ВЕС кг | AG231: утешение | AJ231: КОВЕР | AL231: 1
AD233: № п/п | AE233: Фамилия Имя | AF233: Город общество | AG233: 1 период | AI233: 2 период | AK233: баллы | AL233: очки | AM233: Судьи
AD235: =VALUE(N46) -> 7 | AE235: =CHOOSE(MATCH(AD235,{1,2,3,4,5,6,7,8,9,10,11,12,13,14,15,16,17,18},),$C$7,$C$9,$C$11,$C$13,$C$15,$C$17,$C$19,$C$21,$C$23,$C$25,$C$27,$C$29,$C$31,$C$33,$C$35,$C$37,$C$39,$C$41) -> 507 | AF235: =CHOOSE(MATCH(AD235,{1,2,3,4,5,6,7,8,9,10,11,12,13,14,15,16,17,18},), $D$7,$D$9,$D$11,$D$13,$D$15,$D$17,$D$19,$D$21,$D$23,$D$25,$D$27,$D$29,$D$31,$D$33,$D$35,$D$37,$D$39,$D$41) -> 607
AD237: =VALUE(N50) -> 5 | AE237: =CHOOSE(MATCH(AD237,{1,2,3,4,5,6,7,8,9,10,11,12,13,14,15,16,17,18},),$C$7,$C$9,$C$11,$C$13,$C$15,$C$17,$C$19,$C$21,$C$23,$C$25,$C$27,$C$29,$C$31,$C$33,$C$35,$C$37,$C$39,$C$41) -> 505 | AF237: =CHOOSE(MATCH(AD237,{1,2,3,4,5,6,7,8,9,10,11,12,13,14,15,16,17,18},), $D$7,$D$9,$D$11,$D$13,$D$15,$D$17,$D$19,$D$21,$D$23,$D$25,$D$27,$D$29,$D$31,$D$33,$D$35,$D$37,$D$39,$D$41) -> 605
AD239: =VALUE(N61) -> 17 | AE239: =CHOOSE(MATCH(AD239,{1,2,3,4,5,6,7,8,9,10,11,12,13,14,15,16,17,18},),$C$7,$C$9,$C$11,$C$13,$C$15,$C$17,$C$19,$C$21,$C$23,$C$25,$C$27,$C$29,$C$31,$C$33,$C$35,$C$37,$C$39,$C$41) -> 517 | AF239: =CHOOSE(MATCH(AD239,{1,2,3,4,5,6,7,8,9,10,11,12,13,14,15,16,17,18},), $D$7,$D$9,$D$11,$D$13,$D$15,$D$17,$D$19,$D$21,$D$23,$D$25,$D$27,$D$29,$D$31,$D$33,$D$35,$D$37,$D$39,$D$41) -> 617
AD241: =VALUE(N65) -> 13 | AE241: =CHOOSE(MATCH(AD241,{1,2,3,4,5,6,7,8,9,10,11,12,13,14,15,16,17,18},),$C$7,$C$9,$C$11,$C$13,$C$15,$C$17,$C$19,$C$21,$C$23,$C$25,$C$27,$C$29,$C$31,$C$33,$C$35,$C$37,$C$39,$C$41) -> 513 | AF241: =CHOOSE(MATCH(AD241,{1,2,3,4,5,6,7,8,9,10,11,12,13,14,15,16,17,18},), $D$7,$D$9,$D$11,$D$13,$D$15,$D$17,$D$19,$D$21,$D$23,$D$25,$D$27,$D$29,$D$31,$D$33,$D$35,$D$37,$D$39,$D$41) -> 613
AF245: Руководитель ковра
AD273: ПРОТОКОЛ ХОДА СХВАТКИ
AE274: ВЕС кг | AG274: финал за 3м. | AJ274: КОВЕР | AL274: 1
AD276: № п/п | AE276: Фамилия Имя | AF276: Город общество | AG276: 1 период | AI276: 2 период | AK276: баллы | AL276: очки | AM276: Судьи
AD278: =VALUE(Q48) -> 7 | AE278: =CHOOSE(MATCH(AD278,{1,2,3,4,5,6,7,8,9,10,11,12,13,14,15,16,17,18},),$C$7,$C$9,$C$11,$C$13,$C$15,$C$17,$C$19,$C$21,$C$23,$C$25,$C$27,$C$29,$C$31,$C$33,$C$35,$C$37,$C$39,$C$41) -> 507 | AF278: =CHOOSE(MATCH(AD278,{1,2,3,4,5,6,7,8,9,10,11,12,13,14,15,16,17,18},), $D$7,$D$9,$D$11,$D$13,$D$15,$D$17,$D$19,$D$21,$D$23,$D$25,$D$27,$D$29,$D$31,$D$33,$D$35,$D$37,$D$39,$D$41) -> 607
AD280: =VALUE(Q52) -> 2 | AE280: =CHOOSE(MATCH(AD280,{1,2,3,4,5,6,7,8,9,10,11,12,13,14,15,16,17,18},),$C$7,$C$9,$C$11,$C$13,$C$15,$C$17,$C$19,$C$21,$C$23,$C$25,$C$27,$C$29,$C$31,$C$33,$C$35,$C$37,$C$39,$C$41) -> 502 | AF280: =CHOOSE(MATCH(AD280,{1,2,3,4,5,6,7,8,9,10,11,12,13,14,15,16,17,18},), $D$7,$D$9,$D$11,$D$13,$D$15,$D$17,$D$19,$D$21,$D$23,$D$25,$D$27,$D$29,$D$31,$D$33,$D$35,$D$37,$D$39,$D$41) -> 602
AD282: =VALUE(Q63) -> 17 | AE282: =CHOOSE(MATCH(AD282,{1,2,3,4,5,6,7,8,9,10,11,12,13,14,15,16,17,18},),$C$7,$C$9,$C$11,$C$13,$C$15,$C$17,$C$19,$C$21,$C$23,$C$25,$C$27,$C$29,$C$31,$C$33,$C$35,$C$37,$C$39,$C$41) -> 517 | AF282: =CHOOSE(MATCH(AD282,{1,2,3,4,5,6,7,8,9,10,11,12,13,14,15,16,17,18},), $D$7,$D$9,$D$11,$D$13,$D$15,$D$17,$D$19,$D$21,$D$23,$D$25,$D$27,$D$29,$D$31,$D$33,$D$35,$D$37,$D$39,$D$41) -> 617
AD284: =VALUE(Q67) -> 9 | AE284: =CHOOSE(MATCH(AD284,{1,2,3,4,5,6,7,8,9,10,11,12,13,14,15,16,17,18},),$C$7,$C$9,$C$11,$C$13,$C$15,$C$17,$C$19,$C$21,$C$23,$C$25,$C$27,$C$29,$C$31,$C$33,$C$35,$C$37,$C$39,$C$41) -> 509 | AF284: =CHOOSE(MATCH(AD284,{1,2,3,4,5,6,7,8,9,10,11,12,13,14,15,16,17,18},), $D$7,$D$9,$D$11,$D$13,$D$15,$D$17,$D$19,$D$21,$D$23,$D$25,$D$27,$D$29,$D$31,$D$33,$D$35,$D$37,$D$39,$D$41) -> 609
AF288: Руководитель ковра
AD296: ПРОТОКОЛ ХОДА СХВАТКИ
AE297: ВЕС кг | AG297: финал | AJ297: КОВЕР | AL297: 1
AD299: № п/п | AE299: Фамилия Имя | AF299: Город общество | AG299: 1 период | AI299: 2 период | AK299: баллы | AL299: очки | AM299: Судьи
AD301: =VALUE(T14) -> 8 | AE301: =CHOOSE(MATCH(AD301,{1,2,3,4,5,6,7,8,9,10,11,12,13,14,15,16,17,18},),$C$7,$C$9,$C$11,$C$13,$C$15,$C$17,$C$19,$C$21,$C$23,$C$25,$C$27,$C$29,$C$31,$C$33,$C$35,$C$37,$C$39,$C$41) -> 508 | AF301: =CHOOSE(MATCH(AD301,{1,2,3,4,5,6,7,8,9,10,11,12,13,14,15,16,17,18},), $D$7,$D$9,$D$11,$D$13,$D$15,$D$17,$D$19,$D$21,$D$23,$D$25,$D$27,$D$29,$D$31,$D$33,$D$35,$D$37,$D$39,$D$41) -> 608
AD303: =VALUE(T30) -> 18 | AE303: =CHOOSE(MATCH(AD303,{1,2,3,4,5,6,7,8,9,10,11,12,13,14,15,16,17,18},),$C$7,$C$9,$C$11,$C$13,$C$15,$C$17,$C$19,$C$21,$C$23,$C$25,$C$27,$C$29,$C$31,$C$33,$C$35,$C$37,$C$39,$C$41) -> 518 | AF303: =CHOOSE(MATCH(AD303,{1,2,3,4,5,6,7,8,9,10,11,12,13,14,15,16,17,18},), $D$7,$D$9,$D$11,$D$13,$D$15,$D$17,$D$19,$D$21,$D$23,$D$25,$D$27,$D$29,$D$31,$D$33,$D$35,$D$37,$D$39,$D$41) -> 618
AF310: Руководитель ковра

Sheet 19уч
A1: ПРОТОКОЛ ХОДА СОРЕВНОВАНИЙ
A2: Турнир по борьбе вольной, памяти первого тренерашколы НЕЙЧА И.В.19 мая 2017г
C3: ВЕС кг
A5: МЕСТО | B5: № п/п | C5: Фамилия Имя | D5: Город общество | E5: Год рожд | F5: Разряд | H5: квалификация | K5: 1/8 финала | N5: 1/4 финала | Q5: 1/2 финала | T5: ФИНАЛ за 1место
B7: 1 | C7: 1001 | D7: 2001 | H7: 1 | I7: св | K7: 1 | L7: 1
L8: 1 | N8: =IF(L7>L9,K7,K9) -> 1 | O8: 3
B9: 2 | C9: 1002 | D9: 2002 | H9: 2 | I9: св | K9: 2
Q10: =IF(O8>O12,N8,N12) -> 1 | R10: 1
B11: 3 | C11: 1003 | D11: 2003 | H11: 3 | I11: св | K11: 3
N12: =IF(L11>L13,K11,K13) -> 4 | O12: 2
B13: 4 | C13: 1004 | D13: 2004 | H13: 4 | I13: св | K13: 4
T14: =IF(R10>R18,Q10,Q18) -> 8 | U14: 1
B15: 5 | C15: 1005 | D15: 2005 | H15: 5 | I15: св | K15: 5
N16: =IF(L15>L17,K15,K17) -> 6 | O16: 1
B17: 6 | C17: 1006 | D17: 2006 | H17: 6 | I17: св | K17: 6
Q18: =IF(O16>O20,N16,N20) -> 8 | R18: 2
B19: 7 | C19: 1007 | D19: 2007 | H19: 7 | I19: св | K19: 7
N20: =IF(L19>L21,K19,K21) -> 8 | O20: 5
B21: 8 | C21: 1008 | D21: 2008 | H21: 8 | I21: св | K21: 8
W22: =IF(U14>U30,T14,T30) -> 8
B23: 9 | C23: 1009 | D23: 2009 | H23: 9 | I23: св | K23: 9
N24: =IF(L23>L25,K23,K25) -> 10 | O24: 1
B25: 10 | C25: 1010 | D25: 2010 | H25: 10 | I25: св | K25: 10
Q26: =IF(O24>O28,N24,N28) -> 10 | R26: 4
B27: 11 | C27: 1011 | D27: 2011 | H27: 11 | I27: св | K27: 11
N28: =IF(L27>L29,K27,K29) -> 12 | O28: 0
B29: 12 | C29: 1012 | D29: 2012 | H29: 12 | I29: св | K29: 12
T30: =IF(R26>R34,Q26,Q34) -> 19 | U30: 0
B31: 13 | C31: 1013 | D31: 2013 | H31: 13 | I31: св | K31: 13
N32: =IF(L31>L33,K31,K33) -> 15 | O32: 1
B33: 14 | C33: 1014 | D33: 2014 | H33: 14 | K33: =IF(I33>I35,H33,H35) -> 15 | O33: ;
Q34: =IF(O32>O36,N32,N36) -> 19 | R34: 5
B35: 15 | C35: 1015 | D35: 2015 | H35: 15 | K35: =IF(I37>I39,H37,H39) -> 17
N36: =IF(L35>L37,K35,K37) -> 19 | O36: 2
B37: 16 | C37: 1016 | D37: 2016 | H37: 16 | K37: =IF(I41>I43,H41,H43) -> 19
B39: 17 | C39: 1017 | D39: 2017 | H39: 17 | N39: ПЕРЕЭКЗАМЕНОВКА
B41: 18 | C41: 1018 | D41: 2018 | H41: 18
K42: ПРОИГРАВШИЕ ПЕРВОМУ ФИНАЛИСТУ
B43: 19 | C43: 1019 | D43: 2019 | H43: 19
N46: =CHOOSE(MATCH($T$14,{1,2,3,4,5,6,7,8,9,10,11,12,13,14,15,16},),2,1,4,3,6,5,8,7,10,9,12,11,14,13,16,15,) -> 7 | O46: 1
Q48: =IF(O46>O50,N46,N50) -> 7 | R48: 3 | U48: 3 МЕСТО
N50: =CHOOSE(MATCH($T$14,{1,2,3,4,5,6,7,8,9,10,11,12,13,14,15,16},),N12,N12,N8,N8,N20,N20,N16,N16,) -> 6 | O50: 0 | T50: =IF(R48>R52,Q48,Q52) -> 7 | U50: =IF(S48>S52,R48,R52) -> 0
Q52: =IF(R10<R18,Q10,Q18) -> 1 | R52: 0
K57: ПРОИГРАВШИЕ ВТОРОМУ ФИНАЛИСТУ
K59: =CHOOSE(MATCH(T30,{14,15,16,17,18,19},),15,14,17,16,19,18) -> 18 | L59: 1
N61: =IF(L59>L63,K59,K63) -> 18 | O61: 1
K63: =CHOOSE(MATCH($T$30,{9,10,11,12,13,14,15,16,17,18,19,20,21,22,23,24,25,26,27,28,29,30,31,32},),10,9,12,11,14,13,13,K37,K37,K35,K35,19,22,21,24,23,26,25,28,27,30,29,32,31,) -> 17 | L63: 0 | Q63: =IF(O61>O65,N61,N65) -> 18 | R63: 1 | U63: 3 МЕСТО
N65: =CHOOSE(MATCH(T30,{9,10,11,12,13,14,15,16,17,18,19},),N28,N28,N24,N24,N36,N36,N36,N32,N32,N32,N32,) -> 15 | O65: 0 | T65: =IF(R63>R67,Q63,Q67) -> 18 | U65: =IF(S63>S67,R63,R67) -> 0
Q67: =IF(R26<R34,Q26,Q34) -> 10 | R67: 0
AD71: ПРОТОКОЛ ХОДА СХВАТКИ
AE72: ВЕС кг | AG72: утешение | AJ72: КОВЕР | AL72: 1
AD74: № п/п | AE74: Фамилия Имя | AF74: Город общество | AG74: 1 период | AI74: 2 период | AK74: баллы | AL74: очки | AM74: Судьи
AD76: 14 | AE76: =CHOOSE(MATCH(AD76,{1,2,3,4,5,6,7,8,9,10,11,12,13,14,15,16,17,18,19},),$C$7,$C$9,$C$11,$C$13,$C$15,$C$17,$C$19,$C$21,$C$23,$C$25,$C$27,$C$29,$C$31,$C$33,$C$35,$C$37,$C$39,$C$41,$C$43) -> 1014 | AF76: =CHOOSE(MATCH(AD76,{1,2,3,4,5,6,7,8,9,10,11,12,13,14,15,16,17,18,19},), $D$7,$D$9,$D$11,$D$13,$D$15,$D$17,$D$19,$D$21,$D$23,$D$25,$D$27,$D$29,$D$31,$D$33,$D$35,$D$37,$D$39,$D$41,$D$43) -> 2014
AD78: 15 | AE78: =CHOOSE(MATCH(AD78,{1,2,3,4,5,6,7,8,9,10,11,12,13,14,15,16,17,18,19},),$C$7,$C$9,$C$11,$C$13,$C$15,$C$17,$C$19,$C$21,$C$23,$C$25,$C$27,$C$29,$C$31,$C$33,$C$35,$C$37,$C$39,$C$41,$C$43) -> 1015 | AF78: =CHOOSE(MATCH(AD78,{1,2,3,4,5,6,7,8,9,10,11,12,13,14,15,16,17,18,19},), $D$7,$D$9,$D$11,$D$13,$D$15,$D$17,$D$19,$D$21,$D$23,$D$25,$D$27,$D$29,$D$31,$D$33,$D$35,$D$37,$D$39,$D$41,$D$43) -> 2015
AD80: 16 | AE80: =CHOOSE(MATCH(AD80,{1,2,3,4,5,6,7,8,9,10,11,12,13,14,15,16,17,18,19},),$C$7,$C$9,$C$11,$C$13,$C$15,$C$17,$C$19,$C$21,$C$23,$C$25,$C$27,$C$29,$C$31,$C$33,$C$35,$C$37,$C$39,$C$41,$C$43) -> 1016 | AF80: =CHOOSE(MATCH(AD80,{1,2,3,4,5,6,7,8,9,10,11,12,13,14,15,16,17,18,19},), $D$7,$D$9,$D$11,$D$13,$D$15,$D$17,$D$19,$D$21,$D$23,$D$25,$D$27,$D$29,$D$31,$D$33,$D$35,$D$37,$D$39,$D$41,$D$43) -> 2016
AD82: 17 | AE82: =CHOOSE(MATCH(AD82,{1,2,3,4,5,6,7,8,9,10,11,12,13,14,15,16,17,18,19},),$C$7,$C$9,$C$11,$C$13,$C$15,$C$17,$C$19,$C$21,$C$23,$C$25,$C$27,$C$29,$C$31,$C$33,$C$35,$C$37,$C$39,$C$41,$C$43) -> 1017 | AF82: =CHOOSE(MATCH(AD82,{1,2,3,4,5,6,7,8,9,10,11,12,13,14,15,16,17,18,19},), $D$7,$D$9,$D$11,$D$13,$D$15,$D$17,$D$19,$D$21,$D$23,$D$25,$D$27,$D$29,$D$31,$D$33,$D$35,$D$37,$D$39,$D$41,$D$43) -> 2017
AD84: 18 | AE84: =CHOOSE(MATCH(AD84,{1,2,3,4,5,6,7,8,9,10,11,12,13,14,15,16,17,18,19},),$C$7,$C$9,$C$11,$C$13,$C$15,$C$17,$C$19,$C$21,$C$23,$C$25,$C$27,$C$29,$C$31,$C$33,$C$35,$C$37,$C$39,$C$41,$C$43) -> 1018 | AF84: =CHOOSE(MATCH(AD84,{1,2,3,4,5,6,7,8,9,10,11,12,13,14,15,16,17,18,19},), $D$7,$D$9,$D$11,$D$13,$D$15,$D$17,$D$19,$D$21,$D$23,$D$25,$D$27,$D$29,$D$31,$D$33,$D$35,$D$37,$D$39,$D$41,$D$43) -> 2018
AD86: 19 | AE86: =CHOOSE(MATCH(AD86,{1,2,3,4,5,6,7,8,9,10,11,12,13,14,15,16,17,18,19},),$C$7,$C$9,$C$11,$C$13,$C$15,$C$17,$C$19,$C$21,$C$23,$C$25,$C$27,$C$29,$C$31,$C$33,$C$35,$C$37,$C$39,$C$41,$C$43) -> 1019 | AF86: =CHOOSE(MATCH(AD86,{1,2,3,4,5,6,7,8,9,10,11,12,13,14,15,16,17,18,19},), $D$7,$D$9,$D$11,$D$13,$D$15,$D$17,$D$19,$D$21,$D$23,$D$25,$D$27,$D$29,$D$31,$D$33,$D$35,$D$37,$D$39,$D$41,$D$43) -> 2019
AD94: ПРОТОКОЛ ХОДА СХВАТКИ
AE95: ВЕС кг | AG95: 1/8 финала | AJ95: КОВЕР | AL95: 1
AD97: № п/п | AE97: Фамилия Имя | AF97: Город общество | AG97: 1 период | AI97: 2 период | AK97: баллы | AL97: очки | AM97: Судьи
AD99: =VALUE(K7) -> 1 | AE99: =CHOOSE(MATCH(AD99,{1,2,3,4,5,6,7,8,9,10,11,12,13,14,15,16,17,18,19},),$C$7,$C$9,$C$11,$C$13,$C$15,$C$17,$C$19,$C$21,$C$23,$C$25,$C$27,$C$29,$C$31,$C$33,$C$35,$C$37,$C$39,$C$41,$C$43) -> 1001 | AF99: =CHOOSE(MATCH(AD99,{1,2,3,4,5,6,7,8,9,10,11,12,13,14,15,16,17,18,19},), $D$7,$D$9,$D$11,$D$13,$D$15,$D$17,$D$19,$D$21,$D$23,$D$25,$D$27,$D$29,$D$31,$D$33,$D$35,$D$37,$D$39,$D$41,$D$43) -> 2001
AD101: =VALUE(K9) -> 2 | AE101: =CHOOSE(MATCH(AD101,{1,2,3,4,5,6,7,8,9,10,11,12,13,14,15,16,17,18,19},),$C$7,$C$9,$C$11,$C$13,$C$15,$C$17,$C$19,$C$21,$C$23,$C$25,$C$27,$C$29,$C$31,$C$33,$C$35,$C$37,$C$39,$C$41,$C$43) -> 1002 | AF101: =CHOOSE(MATCH(AD101,{1,2,3,4,5,6,7,8,9,10,11,12,13,14,15,16,17,18,19},), $D$7,$D$9,$D$11,$D$13,$D$15,$D$17,$D$19,$D$21,$D$23,$D$25,$D$27,$D$29,$D$31,$D$33,$D$35,$D$37,$D$39,$D$41,$D$43) -> 2002
AD103: =VALUE(K11) -> 3 | AE103: =CHOOSE(MATCH(AD103,{1,2,3,4,5,6,7,8,9,10,11,12,13,14,15,16,17,18,19},),$C$7,$C$9,$C$11,$C$13,$C$15,$C$17,$C$19,$C$21,$C$23,$C$25,$C$27,$C$29,$C$31,$C$33,$C$35,$C$37,$C$39,$C$41,$C$43) -> 1003 | AF103: =CHOOSE(MATCH(AD103,{1,2,3,4,5,6,7,8,9,10,11,12,13,14,15,16,17,18,19},), $D$7,$D$9,$D$11,$D$13,$D$15,$D$17,$D$19,$D$21,$D$23,$D$25,$D$27,$D$29,$D$31,$D$33,$D$35,$D$37,$D$39,$D$41,$D$43) -> 2003
AD105: =VALUE(K13) -> 4 | AE105: =CHOOSE(MATCH(AD105,{1,2,3,4,5,6,7,8,9,10,11,12,13,14,15,16,17,18,19},),$C$7,$C$9,$C$11,$C$13,$C$15,$C$17,$C$19,$C$21,$C$23,$C$25,$C$27,$C$29,$C$31,$C$33,$C$35,$C$37,$C$39,$C$41,$C$43) -> 1004 | AF105: =CHOOSE(MATCH(AD105,{1,2,3,4,5,6,7,8,9,10,11,12,13,14,15,16,17,18,19},), $D$7,$D$9,$D$11,$D$13,$D$15,$D$17,$D$19,$D$21,$D$23,$D$25,$D$27,$D$29,$D$31,$D$33,$D$35,$D$37,$D$39,$D$41,$D$43) -> 2004
AD107: =VALUE(K15) -> 5 | AE107: =CHOOSE(MATCH(AD107,{1,2,3,4,5,6,7,8,9,10,11,12,13,14,15,16,17,18,19},),$C$7,$C$9,$C$11,$C$13,$C$15,$C$17,$C$19,$C$21,$C$23,$C$25,$C$27,$C$29,$C$31,$C$33,$C$35,$C$37,$C$39,$C$41,$C$43) -> 1005 | AF107: =CHOOSE(MATCH(AD107,{1,2,3,4,5,6,7,8,9,10,11,12,13,14,15,16,17,18,19},), $D$7,$D$9,$D$11,$D$13,$D$15,$D$17,$D$19,$D$21,$D$23,$D$25,$D$27,$D$29,$D$31,$D$33,$D$35,$D$37,$D$39,$D$41,$D$43) -> 2005
AD109: =VALUE(K17) -> 6 | AE109: =CHOOSE(MATCH(AD109,{1,2,3,4,5,6,7,8,9,10,11,12,13,14,15,16,17,18,19},),$C$7,$C$9,$C$11,$C$13,$C$15,$C$17,$C$19,$C$21,$C$23,$C$25,$C$27,$C$29,$C$31,$C$33,$C$35,$C$37,$C$39,$C$41,$C$43) -> 1006 | AF109: =CHOOSE(MATCH(AD109,{1,2,3,4,5,6,7,8,9,10,11,12,13,14,15,16,17,18,19},), $D$7,$D$9,$D$11,$D$13,$D$15,$D$17,$D$19,$D$21,$D$23,$D$25,$D$27,$D$29,$D$31,$D$33,$D$35,$D$37,$D$39,$D$41,$D$43) -> 2006
AD111: =VALUE(K19) -> 7 | AE111: =CHOOSE(MATCH(AD111,{1,2,3,4,5,6,7,8,9,10,11,12,13,14,15,16,17,18,19},),$C$7,$C$9,$C$11,$C$13,$C$15,$C$17,$C$19,$C$21,$C$23,$C$25,$C$27,$C$29,$C$31,$C$33,$C$35,$C$37,$C$39,$C$41,$C$43) -> 1007 | AF111: =CHOOSE(MATCH(AD111,{1,2,3,4,5,6,7,8,9,10,11,12,13,14,15,16,17,18,19},), $D$7,$D$9,$D$11,$D$13,$D$15,$D$17,$D$19,$D$21,$D$23,$D$25,$D$27,$D$29,$D$31,$D$33,$D$35,$D$37,$D$39,$D$41,$D$43) -> 2007
AD113: =VALUE(K21) -> 8 | AE113: =CHOOSE(MATCH(AD113,{1,2,3,4,5,6,7,8,9,10,11,12,13,14,15,16,17,18,19},),$C$7,$C$9,$C$11,$C$13,$C$15,$C$17,$C$19,$C$21,$C$23,$C$25,$C$27,$C$29,$C$31,$C$33,$C$35,$C$37,$C$39,$C$41,$C$43) -> 1008 | AF113: =CHOOSE(MATCH(AD113,{1,2,3,4,5,6,7,8,9,10,11,12,13,14,15,16,17,18,19},), $D$7,$D$9,$D$11,$D$13,$D$15,$D$17,$D$19,$D$21,$D$23,$D$25,$D$27,$D$29,$D$31,$D$33,$D$35,$D$37,$D$39,$D$41,$D$43) -> 2008
AD115: =VALUE(K23) -> 9 | AE115: =CHOOSE(MATCH(AD115,{1,2,3,4,5,6,7,8,9,10,11,12,13,14,15,16,17,18,19},),$C$7,$C$9,$C$11,$C$13,$C$15,$C$17,$C$19,$C$21,$C$23,$C$25,$C$27,$C$29,$C$31,$C$33,$C$35,$C$37,$C$39,$C$41,$C$43) -> 1009 | AF115: =CHOOSE(MATCH(AD115,{1,2,3,4,5,6,7,8,9,10,11,12,13,14,15,16,17,18,19},), $D$7,$D$9,$D$11,$D$13,$D$15,$D$17,$D$19,$D$21,$D$23,$D$25,$D$27,$D$29,$D$31,$D$33,$D$35,$D$37,$D$39,$D$41,$D$43) -> 2009
AD117: =VALUE(K25) -> 10 | AE117: =CHOOSE(MATCH(AD117,{1,2,3,4,5,6,7,8,9,10,11,12,13,14,15,16,17,18,19},),$C$7,$C$9,$C$11,$C$13,$C$15,$C$17,$C$19,$C$21,$C$23,$C$25,$C$27,$C$29,$C$31,$C$33,$C$35,$C$37,$C$39,$C$41,$C$43) -> 1010 | AF117: =CHOOSE(MATCH(AD117,{1,2,3,4,5,6,7,8,9,10,11,12,13,14,15,16,17,18,19},), $D$7,$D$9,$D$11,$D$13,$D$15,$D$17,$D$19,$D$21,$D$23,$D$25,$D$27,$D$29,$D$31,$D$33,$D$35,$D$37,$D$39,$D$41,$D$43) -> 2010
AD119: =VALUE(K27) -> 11 | AE119: =CHOOSE(MATCH(AD119,{1,2,3,4,5,6,7,8,9,10,11,12,13,14,15,16,17,18,19},),$C$7,$C$9,$C$11,$C$13,$C$15,$C$17,$C$19,$C$21,$C$23,$C$25,$C$27,$C$29,$C$31,$C$33,$C$35,$C$37,$C$39,$C$41,$C$43) -> 1011 | AF119: =CHOOSE(MATCH(AD119,{1,2,3,4,5,6,7,8,9,10,11,12,13,14,15,16,17,18,19},), $D$7,$D$9,$D$11,$D$13,$D$15,$D$17,$D$19,$D$21,$D$23,$D$25,$D$27,$D$29,$D$31,$D$33,$D$35,$D$37,$D$39,$D$41,$D$43) -> 2011
AD121: =VALUE(K29) -> 12 | AE121: =CHOOSE(MATCH(AD121,{1,2,3,4,5,6,7,8,9,10,11,12,13,14,15,16,17,18,19},),$C$7,$C$9,$C$11,$C$13,$C$15,$C$17,$C$19,$C$21,$C$23,$C$25,$C$27,$C$29,$C$31,$C$33,$C$35,$C$37,$C$39,$C$41,$C$43) -> 1012 | AF121: =CHOOSE(MATCH(AD121,{1,2,3,4,5,6,7,8,9,10,11,12,13,14,15,16,17,18,19},), $D$7,$D$9,$D$11,$D$13,$D$15,$D$17,$D$19,$D$21,$D$23,$D$25,$D$27,$D$29,$D$31,$D$33,$D$35,$D$37,$D$39,$D$41,$D$43) -> 2012
AD123: =VALUE(K31) -> 13 | AE123: =CHOOSE(MATCH(AD123,{1,2,3,4,5,6,7,8,9,10,11,12,13,14,15,16,17,18,19},),$C$7,$C$9,$C$11,$C$13,$C$15,$C$17,$C$19,$C$21,$C$23,$C$25,$C$27,$C$29,$C$31,$C$33,$C$35,$C$37,$C$39,$C$41,$C$43) -> 1013 | AF123: =CHOOSE(MATCH(AD123,{1,2,3,4,5,6,7,8,9,10,11,12,13,14,15,16,17,18,19},), $D$7,$D$9,$D$11,$D$13,$D$15,$D$17,$D$19,$D$21,$D$23,$D$25,$D$27,$D$29,$D$31,$D$33,$D$35,$D$37,$D$39,$D$41,$D$43) -> 2013
AD125: =VALUE(K33) -> 15 | AE125: =CHOOSE(MATCH(AD125,{1,2,3,4,5,6,7,8,9,10,11,12,13,14,15,16,17,18,19},),$C$7,$C$9,$C$11,$C$13,$C$15,$C$17,$C$19,$C$21,$C$23,$C$25,$C$27,$C$29,$C$31,$C$33,$C$35,$C$37,$C$39,$C$41,$C$43) -> 1015 | AF125: =CHOOSE(MATCH(AD125,{1,2,3,4,5,6,7,8,9,10,11,12,13,14,15,16,17,18,19},), $D$7,$D$9,$D$11,$D$13,$D$15,$D$17,$D$19,$D$21,$D$23,$D$25,$D$27,$D$29,$D$31,$D$33,$D$35,$D$37,$D$39,$D$41,$D$43) -> 2015
AD127: =VALUE(K35) -> 17 | AE127: =CHOOSE(MATCH(AD127,{1,2,3,4,5,6,7,8,9,10,11,12,13,14,15,16,17,18,19},),$C$7,$C$9,$C$11,$C$13,$C$15,$C$17,$C$19,$C$21,$C$23,$C$25,$C$27,$C$29,$C$31,$C$33,$C$35,$C$37,$C$39,$C$41,$C$43) -> 1017 | AF127: =CHOOSE(MATCH(AD127,{1,2,3,4,5,6,7,8,9,10,11,12,13,14,15,16,17,18,19},), $D$7,$D$9,$D$11,$D$13,$D$15,$D$17,$D$19,$D$21,$D$23,$D$25,$D$27,$D$29,$D$31,$D$33,$D$35,$D$37,$D$39,$D$41,$D$43) -> 2017
AD129: =VALUE(K37) -> 19 | AE129: =CHOOSE(MATCH(AD129,{1,2,3,4,5,6,7,8,9,10,11,12,13,14,15,16,17,18,19},),$C$7,$C$9,$C$11,$C$13,$C$15,$C$17,$C$19,$C$21,$C$23,$C$25,$C$27,$C$29,$C$31,$C$33,$C$35,$C$37,$C$39,$C$41,$C$43) -> 1019 | AF129: =CHOOSE(MATCH(AD129,{1,2,3,4,5,6,7,8,9,10,11,12,13,14,15,16,17,18,19},), $D$7,$D$9,$D$11,$D$13,$D$15,$D$17,$D$19,$D$21,$D$23,$D$25,$D$27,$D$29,$D$31,$D$33,$D$35,$D$37,$D$39,$D$41,$D$43) -> 2019
AD158: ПРОТОКОЛ ХОДА СХВАТКИ
AE159: ВЕС кг | AG159: 1/4 финала | AJ159: КОВЕР | AL159: 1
AD161: № п/п | AE161: Фамилия Имя | AF161: Город общество | AG161: 1 период | AI161: 2 период | AK161: баллы | AL161: очки | AM161: Судьи
AD163: =VALUE(N8) -> 1 | AE163: =CHOOSE(MATCH(AD163,{1,2,3,4,5,6,7,8,9,10,11,12,13,14,15,16,17,18,19},),$C$7,$C$9,$C$11,$C$13,$C$15,$C$17,$C$19,$C$21,$C$23,$C$25,$C$27,$C$29,$C$31,$C$33,$C$35,$C$37,$C$39,$C$41,$C$43) -> 1001 | AF163: =CHOOSE(MATCH(AD163,{1,2,3,4,5,6,7,8,9,10,11,12,13,14,15,16,17,18,19},), $D$7,$D$9,$D$11,$D$13,$D$15,$D$17,$D$19,$D$21,$D$23,$D$25,$D$27,$D$29,$D$31,$D$33,$D$35,$D$37,$D$39,$D$41,$D$43) -> 2001
AD165: =VALUE(N12) -> 4 | AE165: =CHOOSE(MATCH(AD165,{1,2,3,4,5,6,7,8,9,10,11,12,13,14,15,16,17,18,19},),$C$7,$C$9,$C$11,$C$13,$C$15,$C$17,$C$19,$C$21,$C$23,$C$25,$C$27,$C$29,$C$31,$C$33,$C$35,$C$37,$C$39,$C$41,$C$43) -> 1004 | AF165: =CHOOSE(MATCH(AD165,{1,2,3,4,5,6,7,8,9,10,11,12,13,14,15,16,17,18,19},), $D$7,$D$9,$D$11,$D$13,$D$15,$D$17,$D$19,$D$21,$D$23,$D$25,$D$27,$D$29,$D$31,$D$33,$D$35,$D$37,$D$39,$D$41,$D$43) -> 2004
AD167: =VALUE(N16) -> 6 | AE167: =CHOOSE(MATCH(AD167,{1,2,3,4,5,6,7,8,9,10,11,12,13,14,15,16,17,18,19},),$C$7,$C$9,$C$11,$C$13,$C$15,$C$17,$C$19,$C$21,$C$23,$C$25,$C$27,$C$29,$C$31,$C$33,$C$35,$C$37,$C$39,$C$41,$C$43) -> 1006 | AF167: =CHOOSE(MATCH(AD167,{1,2,3,4,5,6,7,8,9,10,11,12,13,14,15,16,17,18,19},), $D$7,$D$9,$D$11,$D$13,$D$15,$D$17,$D$19,$D$21,$D$23,$D$25,$D$27,$D$29,$D$31,$D$33,$D$35,$D$37,$D$39,$D$41,$D$43) -> 2006
AD169: =VALUE(N20) -> 8 | AE169: =CHOOSE(MATCH(AD169,{1,2,3,4,5,6,7,8,9,10,11,12,13,14,15,16,17,18,19},),$C$7,$C$9,$C$11,$C$13,$C$15,$C$17,$C$19,$C$21,$C$23,$C$25,$C$27,$C$29,$C$31,$C$33,$C$35,$C$37,$C$39,$C$41,$C$43) -> 1008 | AF169: =CHOOSE(MATCH(AD169,{1,2,3,4,5,6,7,8,9,10,11,12,13,14,15,16,17,18,19},), $D$7,$D$9,$D$11,$D$13,$D$15,$D$17,$D$19,$D$21,$D$23,$D$25,$D$27,$D$29,$D$31,$D$33,$D$35,$D$37,$D$39,$D$41,$D$43) -> 2008
AD171: =VALUE(N24) -> 10 | AE171: =CHOOSE(MATCH(AD171,{1,2,3,4,5,6,7,8,9,10,11,12,13,14,15,16,17,18,19},),$C$7,$C$9,$C$11,$C$13,$C$15,$C$17,$C$19,$C$21,$C$23,$C$25,$C$27,$C$29,$C$31,$C$33,$C$35,$C$37,$C$39,$C$41,$C$43) -> 1010 | AF171: =CHOOSE(MATCH(AD171,{1,2,3,4,5,6,7,8,9,10,11,12,13,14,15,16,17,18,19},), $D$7,$D$9,$D$11,$D$13,$D$15,$D$17,$D$19,$D$21,$D$23,$D$25,$D$27,$D$29,$D$31,$D$33,$D$35,$D$37,$D$39,$D$41,$D$43) -> 2010
AD173: =VALUE(N28) -> 12 | AE173: =CHOOSE(MATCH(AD173,{1,2,3,4,5,6,7,8,9,10,11,12,13,14,15,16,17,18,19},),$C$7,$C$9,$C$11,$C$13,$C$15,$C$17,$C$19,$C$21,$C$23,$C$25,$C$27,$C$29,$C$31,$C$33,$C$35,$C$37,$C$39,$C$41,$C$43) -> 1012 | AF173: =CHOOSE(MATCH(AD173,{1,2,3,4,5,6,7,8,9,10,11,12,13,14,15,16,17,18,19},), $D$7,$D$9,$D$11,$D$13,$D$15,$D$17,$D$19,$D$21,$D$23,$D$25,$D$27,$D$29,$D$31,$D$33,$D$35,$D$37,$D$39,$D$41,$D$43) -> 2012
AD175: =VALUE(N32) -> 15 | AE175: =CHOOSE(MATCH(AD175,{1,2,3,4,5,6,7,8,9,10,11,12,13,14,15,16,17,18,19},),$C$7,$C$9,$C$11,$C$13,$C$15,$C$17,$C$19,$C$21,$C$23,$C$25,$C$27,$C$29,$C$31,$C$33,$C$35,$C$37,$C$39,$C$41,$C$43) -> 1015 | AF175: =CHOOSE(MATCH(AD175,{1,2,3,4,5,6,7,8,9,10,11,12,13,14,15,16,17,18,19},), $D$7,$D$9,$D$11,$D$13,$D$15,$D$17,$D$19,$D$21,$D$23,$D$25,$D$27,$D$29,$D$31,$D$33,$D$35,$D$37,$D$39,$D$41,$D$43) -> 2015
AD177: =VALUE(N36) -> 19 | AE177: =CHOOSE(MATCH(AD177,{1,2,3,4,5,6,7,8,9,10,11,12,13,14,15,16,17,18,19},),$C$7,$C$9,$C$11,$C$13,$C$15,$C$17,$C$19,$C$21,$C$23,$C$25,$C$27,$C$29,$C$31,$C$33,$C$35,$C$37,$C$39,$C$41,$C$43) -> 1019 | AF177: =CHOOSE(MATCH(AD177,{1,2,3,4,5,6,7,8,9,10,11,12,13,14,15,16,17,18,19},), $D$7,$D$9,$D$11,$D$13,$D$15,$D$17,$D$19,$D$21,$D$23,$D$25,$D$27,$D$29,$D$31,$D$33,$D$35,$D$37,$D$39,$D$41,$D$43) -> 2019
AF182: Руководитель ковра
AD185: ПРОТОКОЛ ХОДА СХВАТКИ
AE186: ВЕС кг | AG186: 1/2 финала | AJ186: КОВЕР | AL186: 1
AD188: № п/п | AE188: Фамилия Имя | AF188: Город общество | AG188: 1 период | AI188: 2 период | AK188: баллы | AL188: очки | AM188: Судьи
AD190: =VALUE(Q10) -> 1 | AE190: =CHOOSE(MATCH(AD190,{1,2,3,4,5,6,7,8,9,10,11,12,13,14,15,16,17,18,19},),$C$7,$C$9,$C$11,$C$13,$C$15,$C$17,$C$19,$C$21,$C$23,$C$25,$C$27,$C$29,$C$31,$C$33,$C$35,$C$37,$C$39,$C$41,$C$43) -> 1001 | AF190: =CHOOSE(MATCH(AD190,{1,2,3,4,5,6,7,8,9,10,11,12,13,14,15,16,17,18,19},), $D$7,$D$9,$D$11,$D$13,$D$15,$D$17,$D$19,$D$21,$D$23,$D$25,$D$27,$D$29,$D$31,$D$33,$D$35,$D$37,$D$39,$D$41,$D$43) -> 2001
AD192: =VALUE(Q18) -> 8 | AE192: =CHOOSE(MATCH(AD192,{1,2,3,4,5,6,7,8,9,10,11,12,13,14,15,16,17,18,19},),$C$7,$C$9,$C$11,$C$13,$C$15,$C$17,$C$19,$C$21,$C$23,$C$25,$C$27,$C$29,$C$31,$C$33,$C$35,$C$37,$C$39,$C$41,$C$43) -> 1008 | AF192: =CHOOSE(MATCH(AD192,{1,2,3,4,5,6,7,8,9,10,11,12,13,14,15,16,17,18,19},), $D$7,$D$9,$D$11,$D$13,$D$15,$D$17,$D$19,$D$21,$D$23,$D$25,$D$27,$D$29,$D$31,$D$33,$D$35,$D$37,$D$39,$D$41,$D$43) -> 2008
AD194: =VALUE(Q26) -> 10 | AE194: =CHOOSE(MATCH(AD194,{1,2,3,4,5,6,7,8,9,10,11,12,13,14,15,16,17,18,19},),$C$7,$C$9,$C$11,$C$13,$C$15,$C$17,$C$19,$C$21,$C$23,$C$25,$C$27,$C$29,$C$31,$C$33,$C$35,$C$37,$C$39,$C$41,$C$43) -> 1010 | AF194: =CHOOSE(MATCH(AD194,{1,2,3,4,5,6,7,8,9,10,11,12,13,14,15,16,17,18,19},), $D$7,$D$9,$D$11,$D$13,$D$15,$D$17,$D$19,$D$21,$D$23,$D$25,$D$27,$D$29,$D$31,$D$33,$D$35,$D$37,$D$39,$D$41,$D$43) -> 2010
AD196: =VALUE(Q34) -> 19 | AE196: =CHOOSE(MATCH(AD196,{1,2,3,4,5,6,7,8,9,10,11,12,13,14,15,16,17,18,19},),$C$7,$C$9,$C$11,$C$13,$C$15,$C$17,$C$19,$C$21,$C$23,$C$25,$C$27,$C$29,$C$31,$C$33,$C$35,$C$37,$C$39,$C$41,$C$43) -> 1019 | AF196: =CHOOSE(MATCH(AD196,{1,2,3,4,5,6,7,8,9,10,11,12,13,14,15,16,17,18,19},), $D$7,$D$9,$D$11,$D$13,$D$15,$D$17,$D$19,$D$21,$D$23,$D$25,$D$27,$D$29,$D$31,$D$33,$D$35,$D$37,$D$39,$D$41,$D$43) -> 2019
AF200: Руководитель ковра
AD219: ПРОТОКОЛ ХОДА СХВАТКИ
AE220: ВЕС кг | AG220: утешение | AJ220: КОВЕР | AL220: 1
AD222: № п/п | AE222: Фамилия Имя | AF222: Город общество | AG222: 1 период | AI222: 2 период | AK222: баллы | AL222: очки | AM222: Судьи
AD224: =VALUE(K44) -> 0 | AE224: =CHOOSE(MATCH(AD224,{1,2,3,4,5,6,7,8,9,10,11,12,13,14,15,16,17,18,19},),$C$7,$C$9,$C$11,$C$13,$C$15,$C$17,$C$19,$C$21,$C$23,$C$25,$C$27,$C$29,$C$31,$C$33,$C$35,$C$37,$C$39,$C$41,$C$43) ->  | AF224: =CHOOSE(MATCH(AD224,{1,2,3,4,5,6,7,8,9,10,11,12,13,14,15,16,17,18,19},), $D$7,$D$9,$D$11,$D$13,$D$15,$D$17,$D$19,$D$21,$D$23,$D$25,$D$27,$D$29,$D$31,$D$33,$D$35,$D$37,$D$39,$D$41,$D$43) -> 
AD226: =VALUE(K48) -> 0 | AE226: =CHOOSE(MATCH(AD226,{1,2,3,4,5,6,7,8,9,10,11,12,13,14,15,16,17,18,19},),$C$7,$C$9,$C$11,$C$13,$C$15,$C$17,$C$19,$C$21,$C$23,$C$25,$C$27,$C$29,$C$31,$C$33,$C$35,$C$37,$C$39,$C$41,$C$43) ->  | AF226: =CHOOSE(MATCH(AD226,{1,2,3,4,5,6,7,8,9,10,11,12,13,14,15,16,17,18,19},), $D$7,$D$9,$D$11,$D$13,$D$15,$D$17,$D$19,$D$21,$D$23,$D$25,$D$27,$D$29,$D$31,$D$33,$D$35,$D$37,$D$39,$D$41,$D$43) -> 
AD228: =VALUE(K59) -> 18 | AE228: =CHOOSE(MATCH(AD228,{1,2,3,4,5,6,7,8,9,10,11,12,13,14,15,16,17,18,19},),$C$7,$C$9,$C$11,$C$13,$C$15,$C$17,$C$19,$C$21,$C$23,$C$25,$C$27,$C$29,$C$31,$C$33,$C$35,$C$37,$C$39,$C$41,$C$43) -> 1018 | AF228: =CHOOSE(MATCH(AD228,{1,2,3,4,5,6,7,8,9,10,11,12,13,14,15,16,17,18,19},), $D$7,$D$9,$D$11,$D$13,$D$15,$D$17,$D$19,$D$21,$D$23,$D$25,$D$27,$D$29,$D$31,$D$33,$D$35,$D$37,$D$39,$D$41,$D$43) -> 2018
AD230: =VALUE(K63) -> 17 | AE230: =CHOOSE(MATCH(AD230,{1,2,3,4,5,6,7,8,9,10,11,12,13,14,15,16,17,18,19},),$C$7,$C$9,$C$11,$C$13,$C$15,$C$17,$C$19,$C$21,$C$23,$C$25,$C$27,$C$29,$C$31,$C$33,$C$35,$C$37,$C$39,$C$41,$C$43) -> 1017 | AF230: =CHOOSE(MATCH(AD230,{1,2,3,4,5,6,7,8,9,10,11,12,13,14,15,16,17,18,19},), $D$7,$D$9,$D$11,$D$13,$D$15,$D$17,$D$19,$D$21,$D$23,$D$25,$D$27,$D$29,$D$31,$D$33,$D$35,$D$37,$D$39,$D$41,$D$43) -> 2017
AF234: Руководитель ковра
AD238: ПРОТОКОЛ ХОДА СХВАТКИ
AE239: ВЕС кг | AG239: утешение | AJ239: КОВЕР | AL239: 1
AD241: № п/п | AE241: Фамилия Имя | AF241: Город общество | AG241: 1 период | AI241: 2 период | AK241: баллы | AL241: очки | AM241: Судьи
AD243: =VALUE(N46) -> 7 | AE243: =CHOOSE(MATCH(AD243,{1,2,3,4,5,6,7,8,9,10,11,12,13,14,15,16,17,18,19},),$C$7,$C$9,$C$11,$C$13,$C$15,$C$17,$C$19,$C$21,$C$23,$C$25,$C$27,$C$29,$C$31,$C$33,$C$35,$C$37,$C$39,$C$41,$C$43) -> 1007 | AF243: =CHOOSE(MATCH(AD243,{1,2,3,4,5,6,7,8,9,10,11,12,13,14,15,16,17,18,19},), $D$7,$D$9,$D$11,$D$13,$D$15,$D$17,$D$19,$D$21,$D$23,$D$25,$D$27,$D$29,$D$31,$D$33,$D$35,$D$37,$D$39,$D$41,$D$43) -> 2007
AD245: =VALUE(N50) -> 6 | AE245: =CHOOSE(MATCH(AD245,{1,2,3,4,5,6,7,8,9,10,11,12,13,14,15,16,17,18,19},),$C$7,$C$9,$C$11,$C$13,$C$15,$C$17,$C$19,$C$21,$C$23,$C$25,$C$27,$C$29,$C$31,$C$33,$C$35,$C$37,$C$39,$C$41,$C$43) -> 1006 | AF245: =CHOOSE(MATCH(AD245,{1,2,3,4,5,6,7,8,9,10,11,12,13,14,15,16,17,18,19},), $D$7,$D$9,$D$11,$D$13,$D$15,$D$17,$D$19,$D$21,$D$23,$D$25,$D$27,$D$29,$D$31,$D$33,$D$35,$D$37,$D$39,$D$41,$D$43) -> 2006
AD247: =VALUE(N61) -> 18 | AE247: =CHOOSE(MATCH(AD247,{1,2,3,4,5,6,7,8,9,10,11,12,13,14,15,16,17,18,19},),$C$7,$C$9,$C$11,$C$13,$C$15,$C$17,$C$19,$C$21,$C$23,$C$25,$C$27,$C$29,$C$31,$C$33,$C$35,$C$37,$C$39,$C$41,$C$43) -> 1018 | AF247: =CHOOSE(MATCH(AD247,{1,2,3,4,5,6,7,8,9,10,11,12,13,14,15,16,17,18,19},), $D$7,$D$9,$D$11,$D$13,$D$15,$D$17,$D$19,$D$21,$D$23,$D$25,$D$27,$D$29,$D$31,$D$33,$D$35,$D$37,$D$39,$D$41,$D$43) -> 2018
AD249: =VALUE(N65) -> 15 | AE249: =CHOOSE(MATCH(AD249,{1,2,3,4,5,6,7,8,9,10,11,12,13,14,15,16,17,18,19},),$C$7,$C$9,$C$11,$C$13,$C$15,$C$17,$C$19,$C$21,$C$23,$C$25,$C$27,$C$29,$C$31,$C$33,$C$35,$C$37,$C$39,$C$41,$C$43) -> 1015 | AF249: =CHOOSE(MATCH(AD249,{1,2,3,4,5,6,7,8,9,10,11,12,13,14,15,16,17,18,19},), $D$7,$D$9,$D$11,$D$13,$D$15,$D$17,$D$19,$D$21,$D$23,$D$25,$D$27,$D$29,$D$31,$D$33,$D$35,$D$37,$D$39,$D$41,$D$43) -> 2015
AF253: Руководитель ковра
AD281: ПРОТОКОЛ ХОДА СХВАТКИ
AE282: ВЕС кг | AG282: финал за 3м. | AJ282: КОВЕР | AL282: 1
AD284: № п/п | AE284: Фамилия Имя | AF284: Город общество | AG284: 1 период | AI284: 2 период | AK284: баллы | AL284: очки | AM284: Судьи
AD286: =VALUE(Q48) -> 7 | AE286: =CHOOSE(MATCH(AD286,{1,2,3,4,5,6,7,8,9,10,11,12,13,14,15,16,17,18,19},),$C$7,$C$9,$C$11,$C$13,$C$15,$C$17,$C$19,$C$21,$C$23,$C$25,$C$27,$C$29,$C$31,$C$33,$C$35,$C$37,$C$39,$C$41,$C$43) -> 1007 | AF286: =CHOOSE(MATCH(AD286,{1,2,3,4,5,6,7,8,9,10,11,12,13,14,15,16,17,18,19},), $D$7,$D$9,$D$11,$D$13,$D$15,$D$17,$D$19,$D$21,$D$23,$D$25,$D$27,$D$29,$D$31,$D$33,$D$35,$D$37,$D$39,$D$41,$D$43) -> 2007
AD288: =VALUE(Q52) -> 1 | AE288: =CHOOSE(MATCH(AD288,{1,2,3,4,5,6,7,8,9,10,11,12,13,14,15,16,17,18,19},),$C$7,$C$9,$C$11,$C$13,$C$15,$C$17,$C$19,$C$21,$C$23,$C$25,$C$27,$C$29,$C$31,$C$33,$C$35,$C$37,$C$39,$C$41,$C$43) -> 1001 | AF288: =CHOOSE(MATCH(AD288,{1,2,3,4,5,6,7,8,9,10,11,12,13,14,15,16,17,18,19},), $D$7,$D$9,$D$11,$D$13,$D$15,$D$17,$D$19,$D$21,$D$23,$D$25,$D$27,$D$29,$D$31,$D$33,$D$35,$D$37,$D$39,$D$41,$D$43) -> 2001
AD290: =VALUE(Q63) -> 18 | AE290: =CHOOSE(MATCH(AD290,{1,2,3,4,5,6,7,8,9,10,11,12,13,14,15,16,17,18,19},),$C$7,$C$9,$C$11,$C$13,$C$15,$C$17,$C$19,$C$21,$C$23,$C$25,$C$27,$C$29,$C$31,$C$33,$C$35,$C$37,$C$39,$C$41,$C$43) -> 1018 | AF290: =CHOOSE(MATCH(AD290,{1,2,3,4,5,6,7,8,9,10,11,12,13,14,15,16,17,18,19},), $D$7,$D$9,$D$11,$D$13,$D$15,$D$17,$D$19,$D$21,$D$23,$D$25,$D$27,$D$29,$D$31,$D$33,$D$35,$D$37,$D$39,$D$41,$D$43) -> 2018
AD292: =VALUE(Q67) -> 10 | AE292: =CHOOSE(MATCH(AD292,{1,2,3,4,5,6,7,8,9,10,11,12,13,14,15,16,17,18,19},),$C$7,$C$9,$C$11,$C$13,$C$15,$C$17,$C$19,$C$21,$C$23,$C$25,$C$27,$C$29,$C$31,$C$33,$C$35,$C$37,$C$39,$C$41,$C$43) -> 1010 | AF292: =CHOOSE(MATCH(AD292,{1,2,3,4,5,6,7,8,9,10,11,12,13,14,15,16,17,18,19},), $D$7,$D$9,$D$11,$D$13,$D$15,$D$17,$D$19,$D$21,$D$23,$D$25,$D$27,$D$29,$D$31,$D$33,$D$35,$D$37,$D$39,$D$41,$D$43) -> 2010
AF296: Руководитель ковра
AD304: ПРОТОКОЛ ХОДА СХВАТКИ
AE305: ВЕС кг | AG305: финал | AJ305: КОВЕР | AL305: 1
AD307: № п/п | AE307: Фамилия Имя | AF307: Город общество | AG307: 1 период | AI307: 2 период | AK307: баллы | AL307: очки | AM307: Судьи
AD309: =VALUE(T14) -> 8 | AE309: =CHOOSE(MATCH(AD309,{1,2,3,4,5,6,7,8,9,10,11,12,13,14,15,16,17,18,19},),$C$7,$C$9,$C$11,$C$13,$C$15,$C$17,$C$19,$C$21,$C$23,$C$25,$C$27,$C$29,$C$31,$C$33,$C$35,$C$37,$C$39,$C$41,$C$43) -> 1008 | AF309: =CHOOSE(MATCH(AD309,{1,2,3,4,5,6,7,8,9,10,11,12,13,14,15,16,17,18,19},), $D$7,$D$9,$D$11,$D$13,$D$15,$D$17,$D$19,$D$21,$D$23,$D$25,$D$27,$D$29,$D$31,$D$33,$D$35,$D$37,$D$39,$D$41,$D$43) -> 2008
AD311: =VALUE(T30) -> 19 | AE311: =CHOOSE(MATCH(AD311,{1,2,3,4,5,6,7,8,9,10,11,12,13,14,15,16,17,18,19},),$C$7,$C$9,$C$11,$C$13,$C$15,$C$17,$C$19,$C$21,$C$23,$C$25,$C$27,$C$29,$C$31,$C$33,$C$35,$C$37,$C$39,$C$41,$C$43) -> 1019 | AF311: =CHOOSE(MATCH(AD311,{1,2,3,4,5,6,7,8,9,10,11,12,13,14,15,16,17,18,19},), $D$7,$D$9,$D$11,$D$13,$D$15,$D$17,$D$19,$D$21,$D$23,$D$25,$D$27,$D$29,$D$31,$D$33,$D$35,$D$37,$D$39,$D$41,$D$43) -> 2019
AF318: Руководитель ковра

Sheet 20уч
A1: ПРОТОКОЛ ХОДА СОРЕВНОВАНИЙ
A2: Турнир по борьбе вольной, памяти первого тренерашколы НЕЙЧА И.В.19 мая 2017г
C3: ВЕС кг
A5: МЕСТО | B5: № п/п | C5: Фамилия Имя | D5: Город общество | E5: Год рожд | F5: Разряд | H5: квалификация | K5: 1/8 финала | N5: 1/4 финала | Q5: 1/2 финала | T5: ФИНАЛ за 1место
A7: 1 | B7: 27 | C7: AUS | D7: 2001 | H7: 1 | I7: св | K7: 1 | L7: 1
L8: 1 | N8: =IF(L7>L9,K7,K9) -> 1 | O8: 3
A9: 2 | B9: 52 | C9: USA | D9: MEGALUDIS | H9: 2 | I9: св | K9: 2
Q10: =IF(O8>O12,N8,N12) -> 1 | R10: 1
A11: 3 | B11: 58 | C11: IND | D11: KUMAR | H11: 3 | I11: св | K11: 3
N12: =IF(L11>L13,K11,K13) -> 4 | O12: 2
A13: 4 | B13: 63 | C13: IND | D13: KADYAN | H13: 4 | I13: св | K13: 4
T14: =IF(R10>R18,Q10,Q18) -> 8 | U14: 1
A15: 5 | B15: 67 | C15: ITA | D15: 2005 | H15: 5 | I15: св | K15: 5
N16: =IF(L15>L17,K15,K17) -> 6 | O16: 1
A17: 6 | B17: 103 | C17: GEO | D17: 2006 | H17: 6 | I17: св | K17: 6
Q18: =IF(O16>O20,N16,N20) -> 8 | R18: 2
A19: 7 | B19: 115 | C19: KAZ | D19: AITAK | H19: 7 | I19: св | K19: 7
N20: =IF(L19>L21,K19,K21) -> 8 | O20: 5
A21: 8 | B21: 121 | C21: TUR | D21: ATLI | H21: 8 | I21: св | K21: 8
W22: =IF(U14>U30,T14,T30) -> 8
A23: 9 | B23: 126 | C23: IRA | D23: 2009 | H23: 9 | I23: св | K23: 9
N24: =IF(L23>L25,K23,K25) -> 10 | O24: 1
A25: 10 | B25: 157 | C25: IRA | D25: 2010 | H25: 10 | I25: св | K25: 10
Q26: =IF(O24>O28,N24,N28) -> 10 | R26: 4
A27: 11 | B27: 187 | C27: FRA | D27: 2011 | H27: 11 | I27: св | K27: 11
N28: =IF(L27>L29,K27,K29) -> 12 | O28: 0
A29: 12 | B29: 197 | C29: KGZ | D29: 2012 | H29: 12 | I29: св | K29: 12
T30: =IF(R26>R34,Q26,Q34) -> 20 | U30: 0
A31: 13 | B31: 204 | C31: USA | D31: DESHAZER | H31: 13 | K31: =IF(I31>I33,H31,H33) -> 14
N32: =IF(L31>L33,K31,K33) -> 16 | O32: 1
A33: 14 | B33: 215 | C33: RUS | D33: 2014 | H33: 14 | K33: =IF(I35>I37,H35,H37) -> 16 | O33: ;
Q34: =IF(O32>O36,N32,N36) -> 20 | R34: 5
A35: 15 | B35: 224 | C35: TUR | D35: TAS | H35: 15 | K35: =IF(I39>I41,H39,H41) -> 18
N36: =IF(L35>L37,K35,K37) -> 20 | O36: 2
A37: 16 | B37: 230 | C37: AZE | D37: 2016 | H37: 16 | K37: =IF(I43>I45,H43,H45) -> 20
A39: 17 | B39: 231 | C39: UZB | D39: 2017 | H39: 17 | N39: ПЕРЕЭКЗАМЕНОВКА
A41: 18 | B41: 232 | C41: TUR | D41: TOPAL | H41: 18
K42: ПРОИГРАВШИЕ ПЕРВОМУ ФИНАЛИСТУ
A43: 19 | B43: 233 | C43: KAZ | D43: TASKAL | H43: 19
A45: 20 | B45: 247 | C45: KAZ | D45: KURB | H45: 20
N46: =CHOOSE(MATCH($T$14,{1,2,3,4,5,6,7,8,9,10,11,12,13,14,15,16},),2,1,4,3,6,5,8,7,10,9,12,11,14,13,16,15,) -> 7 | O46: 1
Q48: =IF(O46>O50,N46,N50) -> 7 | R48: 3 | U48: 3 МЕСТО
N50: =CHOOSE(MATCH($T$14,{1,2,3,4,5,6,7,8,9,10,11,12,13,14,15,16},),N12,N12,N8,N8,N20,N20,N16,N16,) -> 6 | O50: 0 | T50: =IF(R48>R52,Q48,Q52) -> 7 | U50: =IF(S48>S52,R48,R52) -> 0
Q52: =IF(R10<R18,Q10,Q18) -> 1 | R52: 0
K57: ПРОИГРАВШИЕ ВТОРОМУ ФИНАЛИСТУ
K59: =CHOOSE(MATCH(T30,{13,14,15,16,17,18,19,20},),14,13,16,15,18,17,20,19) -> 19 | L59: 1
N61: =IF(L59>L63,K59,K63) -> 19 | O61: 1
K63: =CHOOSE(MATCH($T$30,{9,10,11,12,13,14,15,16,17,18,19,20,21,22,23,24,25,26,27,28,29,30,31,32},),10,9,12,11,K33,K33,K31,K31,K37,K37,K35,K35,19,22,21,24,23,26,25,28,27,30,29,32,31,) -> 18 | L63: 0 | Q63: =IF(O61>O65,N61,N65) -> 19 | R63: 1 | U63: 3 МЕСТО
N65: =CHOOSE(MATCH(T30,{9,10,11,12,13,14,15,16,17,18,19,20},),N28,N28,N24,N24,N36,N36,N36,N36,N32,N32,N32,N32,) -> 16 | O65: 0 | T65: =IF(R63>R67,Q63,Q67) -> 19 | U65: =IF(S63>S67,R63,R67) -> 0
Q67: =IF(R26<R34,Q26,Q34) -> 10 | R67: 0
AD71: ПРОТОКОЛ ХОДА СХВАТКИ
AE72: ВЕС кг | AG72: утешение | AJ72: КОВЕР | AL72: 1
AD74: № п/п | AE74: Фамилия Имя | AF74: Город общество | AG74: 1 период | AI74: 2 период | AK74: баллы | AL74: очки | AM74: Судьи
AD76: 13 | AE76: =CHOOSE(MATCH(AD76,{1,2,3,4,5,6,7,8,9,10,11,12,13,14,15,16,17,18,19},),$C$7,$C$9,$C$11,$C$13,$C$15,$C$17,$C$19,$C$21,$C$23,$C$25,$C$27,$C$29,$C$31,$C$33,$C$35,$C$37,$C$39,$C$41,$C$43) -> USA | AF76: =CHOOSE(MATCH(AD76,{1,2,3,4,5,6,7,8,9,10,11,12,13,14,15,16,17,18,19},), $D$7,$D$9,$D$11,$D$13,$D$15,$D$17,$D$19,$D$21,$D$23,$D$25,$D$27,$D$29,$D$31,$D$33,$D$35,$D$37,$D$39,$D$41,$D$43) -> DESHAZER
AD78: 14 | AE78: =CHOOSE(MATCH(AD78,{1,2,3,4,5,6,7,8,9,10,11,12,13,14,15,16,17,18,19},),$C$7,$C$9,$C$11,$C$13,$C$15,$C$17,$C$19,$C$21,$C$23,$C$25,$C$27,$C$29,$C$31,$C$33,$C$35,$C$37,$C$39,$C$41,$C$43) -> RUS | AF78: =CHOOSE(MATCH(AD78,{1,2,3,4,5,6,7,8,9,10,11,12,13,14,15,16,17,18,19},), $D$7,$D$9,$D$11,$D$13,$D$15,$D$17,$D$19,$D$21,$D$23,$D$25,$D$27,$D$29,$D$31,$D$33,$D$35,$D$37,$D$39,$D$41,$D$43) -> 2014
AD80: 15 | AE80: =CHOOSE(MATCH(AD80,{1,2,3,4,5,6,7,8,9,10,11,12,13,14,15,16,17,18,19},),$C$7,$C$9,$C$11,$C$13,$C$15,$C$17,$C$19,$C$21,$C$23,$C$25,$C$27,$C$29,$C$31,$C$33,$C$35,$C$37,$C$39,$C$41,$C$43) -> TUR | AF80: =CHOOSE(MATCH(AD80,{1,2,3,4,5,6,7,8,9,10,11,12,13,14,15,16,17,18,19},), $D$7,$D$9,$D$11,$D$13,$D$15,$D$17,$D$19,$D$21,$D$23,$D$25,$D$27,$D$29,$D$31,$D$33,$D$35,$D$37,$D$39,$D$41,$D$43) -> TAS
AD82: 16 | AE82: =CHOOSE(MATCH(AD82,{1,2,3,4,5,6,7,8,9,10,11,12,13,14,15,16,17,18,19},),$C$7,$C$9,$C$11,$C$13,$C$15,$C$17,$C$19,$C$21,$C$23,$C$25,$C$27,$C$29,$C$31,$C$33,$C$35,$C$37,$C$39,$C$41,$C$43) -> AZE | AF82: =CHOOSE(MATCH(AD82,{1,2,3,4,5,6,7,8,9,10,11,12,13,14,15,16,17,18,19},), $D$7,$D$9,$D$11,$D$13,$D$15,$D$17,$D$19,$D$21,$D$23,$D$25,$D$27,$D$29,$D$31,$D$33,$D$35,$D$37,$D$39,$D$41,$D$43) -> 2016
AD84: 17 | AE84: =CHOOSE(MATCH(AD84,{1,2,3,4,5,6,7,8,9,10,11,12,13,14,15,16,17,18,19},),$C$7,$C$9,$C$11,$C$13,$C$15,$C$17,$C$19,$C$21,$C$23,$C$25,$C$27,$C$29,$C$31,$C$33,$C$35,$C$37,$C$39,$C$41,$C$43) -> UZB | AF84: =CHOOSE(MATCH(AD84,{1,2,3,4,5,6,7,8,9,10,11,12,13,14,15,16,17,18,19},), $D$7,$D$9,$D$11,$D$13,$D$15,$D$17,$D$19,$D$21,$D$23,$D$25,$D$27,$D$29,$D$31,$D$33,$D$35,$D$37,$D$39,$D$41,$D$43) -> 2017
AD86: 18 | AE86: =CHOOSE(MATCH(AD86,{1,2,3,4,5,6,7,8,9,10,11,12,13,14,15,16,17,18,19},),$C$7,$C$9,$C$11,$C$13,$C$15,$C$17,$C$19,$C$21,$C$23,$C$25,$C$27,$C$29,$C$31,$C$33,$C$35,$C$37,$C$39,$C$41,$C$43) -> TUR | AF86: =CHOOSE(MATCH(AD86,{1,2,3,4,5,6,7,8,9,10,11,12,13,14,15,16,17,18,19},), $D$7,$D$9,$D$11,$D$13,$D$15,$D$17,$D$19,$D$21,$D$23,$D$25,$D$27,$D$29,$D$31,$D$33,$D$35,$D$37,$D$39,$D$41,$D$43) -> TOPAL
AD88: 19 | AE88: =CHOOSE(MATCH(AD88,{1,2,3,4,5,6,7,8,9,10,11,12,13,14,15,16,17,18,19},),$C$7,$C$9,$C$11,$C$13,$C$15,$C$17,$C$19,$C$21,$C$23,$C$25,$C$27,$C$29,$C$31,$C$33,$C$35,$C$37,$C$39,$C$41,$C$43) -> KAZ | AF88: =CHOOSE(MATCH(AD88,{1,2,3,4,5,6,7,8,9,10,11,12,13,14,15,16,17,18,19,20},), $D$7,$D$9,$D$11,$D$13,$D$15,$D$17,$D$19,$D$21,$D$23,$D$25,$D$27,$D$29,$D$31,$D$33,$D$35,$D$37,$D$39,$D$41,$D$43,$D$45) -> TASKAL
AD90: 20 | AE90: =CHOOSE(MATCH(AD90,{1,2,3,4,5,6,7,8,9,10,11,12,13,14,15,16,17,18,19,20},),$C$7,$C$9,$C$11,$C$13,$C$15,$C$17,$C$19,$C$21,$C$23,$C$25,$C$27,$C$29,$C$31,$C$33,$C$35,$C$37,$C$39,$C$41,$C$43,$C$45) -> KAZ | AF90: =CHOOSE(MATCH(AD90,{1,2,3,4,5,6,7,8,9,10,11,12,13,14,15,16,17,18,19,20},), $D$7,$D$9,$D$11,$D$13,$D$15,$D$17,$D$19,$D$21,$D$23,$D$25,$D$27,$D$29,$D$31,$D$33,$D$35,$D$37,$D$39,$D$41,$D$43,$D$45) -> KURB
AF95: Руководитель ковра
AD99: ПРОТОКОЛ ХОДА СХВАТКИ
AE100: ВЕС кг | AG100: 1/8 финала | AJ100: КОВЕР | AL100: 1
AD102: № п/п | AE102: Фамилия Имя | AF102: Город общество | AG102: 1 период | AI102: 2 период | AK102: баллы | AL102: очки | AM102: Судьи
AD104: =VALUE(K7) -> 1 | AE104: =CHOOSE(MATCH(AD104,{1,2,3,4,5,6,7,8,9,10,11,12,13,14,15,16,17,18,19},),$C$7,$C$9,$C$11,$C$13,$C$15,$C$17,$C$19,$C$21,$C$23,$C$25,$C$27,$C$29,$C$31,$C$33,$C$35,$C$37,$C$39,$C$41,$C$43) -> AUS | AF104: =CHOOSE(MATCH(AD104,{1,2,3,4,5,6,7,8,9,10,11,12,13,14,15,16,17,18,19},), $D$7,$D$9,$D$11,$D$13,$D$15,$D$17,$D$19,$D$21,$D$23,$D$25,$D$27,$D$29,$D$31,$D$33,$D$35,$D$37,$D$39,$D$41,$D$43) -> 2001
AD106: =VALUE(K9) -> 2 | AE106: =CHOOSE(MATCH(AD106,{1,2,3,4,5,6,7,8,9,10,11,12,13,14,15,16,17,18,19},),$C$7,$C$9,$C$11,$C$13,$C$15,$C$17,$C$19,$C$21,$C$23,$C$25,$C$27,$C$29,$C$31,$C$33,$C$35,$C$37,$C$39,$C$41,$C$43) -> USA | AF106: =CHOOSE(MATCH(AD106,{1,2,3,4,5,6,7,8,9,10,11,12,13,14,15,16,17,18,19},), $D$7,$D$9,$D$11,$D$13,$D$15,$D$17,$D$19,$D$21,$D$23,$D$25,$D$27,$D$29,$D$31,$D$33,$D$35,$D$37,$D$39,$D$41,$D$43) -> MEGALUDIS
AD108: =VALUE(K11) -> 3 | AE108: =CHOOSE(MATCH(AD108,{1,2,3,4,5,6,7,8,9,10,11,12,13,14,15,16,17,18,19},),$C$7,$C$9,$C$11,$C$13,$C$15,$C$17,$C$19,$C$21,$C$23,$C$25,$C$27,$C$29,$C$31,$C$33,$C$35,$C$37,$C$39,$C$41,$C$43) -> IND | AF108: =CHOOSE(MATCH(AD108,{1,2,3,4,5,6,7,8,9,10,11,12,13,14,15,16,17,18,19},), $D$7,$D$9,$D$11,$D$13,$D$15,$D$17,$D$19,$D$21,$D$23,$D$25,$D$27,$D$29,$D$31,$D$33,$D$35,$D$37,$D$39,$D$41,$D$43) -> KUMAR
AD110: =VALUE(K13) -> 4 | AE110: =CHOOSE(MATCH(AD110,{1,2,3,4,5,6,7,8,9,10,11,12,13,14,15,16,17,18,19},),$C$7,$C$9,$C$11,$C$13,$C$15,$C$17,$C$19,$C$21,$C$23,$C$25,$C$27,$C$29,$C$31,$C$33,$C$35,$C$37,$C$39,$C$41,$C$43) -> IND | AF110: =CHOOSE(MATCH(AD110,{1,2,3,4,5,6,7,8,9,10,11,12,13,14,15,16,17,18,19},), $D$7,$D$9,$D$11,$D$13,$D$15,$D$17,$D$19,$D$21,$D$23,$D$25,$D$27,$D$29,$D$31,$D$33,$D$35,$D$37,$D$39,$D$41,$D$43) -> KADYAN
AD112: =VALUE(K15) -> 5 | AE112: =CHOOSE(MATCH(AD112,{1,2,3,4,5,6,7,8,9,10,11,12,13,14,15,16,17,18,19},),$C$7,$C$9,$C$11,$C$13,$C$15,$C$17,$C$19,$C$21,$C$23,$C$25,$C$27,$C$29,$C$31,$C$33,$C$35,$C$37,$C$39,$C$41,$C$43) -> ITA | AF112: =CHOOSE(MATCH(AD112,{1,2,3,4,5,6,7,8,9,10,11,12,13,14,15,16,17,18,19},), $D$7,$D$9,$D$11,$D$13,$D$15,$D$17,$D$19,$D$21,$D$23,$D$25,$D$27,$D$29,$D$31,$D$33,$D$35,$D$37,$D$39,$D$41,$D$43) -> 2005
AD114: =VALUE(K17) -> 6 | AE114: =CHOOSE(MATCH(AD114,{1,2,3,4,5,6,7,8,9,10,11,12,13,14,15,16,17,18,19},),$C$7,$C$9,$C$11,$C$13,$C$15,$C$17,$C$19,$C$21,$C$23,$C$25,$C$27,$C$29,$C$31,$C$33,$C$35,$C$37,$C$39,$C$41,$C$43) -> GEO | AF114: =CHOOSE(MATCH(AD114,{1,2,3,4,5,6,7,8,9,10,11,12,13,14,15,16,17,18,19},), $D$7,$D$9,$D$11,$D$13,$D$15,$D$17,$D$19,$D$21,$D$23,$D$25,$D$27,$D$29,$D$31,$D$33,$D$35,$D$37,$D$39,$D$41,$D$43) -> 2006
AD116: =VALUE(K19) -> 7 | AE116: =CHOOSE(MATCH(AD116,{1,2,3,4,5,6,7,8,9,10,11,12,13,14,15,16,17,18,19},),$C$7,$C$9,$C$11,$C$13,$C$15,$C$17,$C$19,$C$21,$C$23,$C$25,$C$27,$C$29,$C$31,$C$33,$C$35,$C$37,$C$39,$C$41,$C$43) -> KAZ | AF116: =CHOOSE(MATCH(AD116,{1,2,3,4,5,6,7,8,9,10,11,12,13,14,15,16,17,18,19},), $D$7,$D$9,$D$11,$D$13,$D$15,$D$17,$D$19,$D$21,$D$23,$D$25,$D$27,$D$29,$D$31,$D$33,$D$35,$D$37,$D$39,$D$41,$D$43) -> AITAK
AD118: =VALUE(K21) -> 8 | AE118: =CHOOSE(MATCH(AD118,{1,2,3,4,5,6,7,8,9,10,11,12,13,14,15,16,17,18,19},),$C$7,$C$9,$C$11,$C$13,$C$15,$C$17,$C$19,$C$21,$C$23,$C$25,$C$27,$C$29,$C$31,$C$33,$C$35,$C$37,$C$39,$C$41,$C$43) -> TUR | AF118: =CHOOSE(MATCH(AD118,{1,2,3,4,5,6,7,8,9,10,11,12,13,14,15,16,17,18,19},), $D$7,$D$9,$D$11,$D$13,$D$15,$D$17,$D$19,$D$21,$D$23,$D$25,$D$27,$D$29,$D$31,$D$33,$D$35,$D$37,$D$39,$D$41,$D$43) -> ATLI
AD120: =VALUE(K23) -> 9 | AE120: =CHOOSE(MATCH(AD120,{1,2,3,4,5,6,7,8,9,10,11,12,13,14,15,16,17,18,19},),$C$7,$C$9,$C$11,$C$13,$C$15,$C$17,$C$19,$C$21,$C$23,$C$25,$C$27,$C$29,$C$31,$C$33,$C$35,$C$37,$C$39,$C$41,$C$43) -> IRA | AF120: =CHOOSE(MATCH(AD120,{1,2,3,4,5,6,7,8,9,10,11,12,13,14,15,16,17,18,19},), $D$7,$D$9,$D$11,$D$13,$D$15,$D$17,$D$19,$D$21,$D$23,$D$25,$D$27,$D$29,$D$31,$D$33,$D$35,$D$37,$D$39,$D$41,$D$43) -> 2009
AD122: =VALUE(K25) -> 10 | AE122: =CHOOSE(MATCH(AD122,{1,2,3,4,5,6,7,8,9,10,11,12,13,14,15,16,17,18,19},),$C$7,$C$9,$C$11,$C$13,$C$15,$C$17,$C$19,$C$21,$C$23,$C$25,$C$27,$C$29,$C$31,$C$33,$C$35,$C$37,$C$39,$C$41,$C$43) -> IRA | AF122: =CHOOSE(MATCH(AD122,{1,2,3,4,5,6,7,8,9,10,11,12,13,14,15,16,17,18,19},), $D$7,$D$9,$D$11,$D$13,$D$15,$D$17,$D$19,$D$21,$D$23,$D$25,$D$27,$D$29,$D$31,$D$33,$D$35,$D$37,$D$39,$D$41,$D$43) -> 2010
AD124: =VALUE(K27) -> 11 | AE124: =CHOOSE(MATCH(AD124,{1,2,3,4,5,6,7,8,9,10,11,12,13,14,15,16,17,18,19},),$C$7,$C$9,$C$11,$C$13,$C$15,$C$17,$C$19,$C$21,$C$23,$C$25,$C$27,$C$29,$C$31,$C$33,$C$35,$C$37,$C$39,$C$41,$C$43) -> FRA | AF124: =CHOOSE(MATCH(AD124,{1,2,3,4,5,6,7,8,9,10,11,12,13,14,15,16,17,18,19},), $D$7,$D$9,$D$11,$D$13,$D$15,$D$17,$D$19,$D$21,$D$23,$D$25,$D$27,$D$29,$D$31,$D$33,$D$35,$D$37,$D$39,$D$41,$D$43) -> 2011
AD126: =VALUE(K29) -> 12 | AE126: =CHOOSE(MATCH(AD126,{1,2,3,4,5,6,7,8,9,10,11,12,13,14,15,16,17,18,19},),$C$7,$C$9,$C$11,$C$13,$C$15,$C$17,$C$19,$C$21,$C$23,$C$25,$C$27,$C$29,$C$31,$C$33,$C$35,$C$37,$C$39,$C$41,$C$43) -> KGZ | AF126: =CHOOSE(MATCH(AD126,{1,2,3,4,5,6,7,8,9,10,11,12,13,14,15,16,17,18,19},), $D$7,$D$9,$D$11,$D$13,$D$15,$D$17,$D$19,$D$21,$D$23,$D$25,$D$27,$D$29,$D$31,$D$33,$D$35,$D$37,$D$39,$D$41,$D$43) -> 2012
AD128: =VALUE(K31) -> 14 | AE128: =CHOOSE(MATCH(AD128,{1,2,3,4,5,6,7,8,9,10,11,12,13,14,15,16,17,18,19},),$C$7,$C$9,$C$11,$C$13,$C$15,$C$17,$C$19,$C$21,$C$23,$C$25,$C$27,$C$29,$C$31,$C$33,$C$35,$C$37,$C$39,$C$41,$C$43) -> RUS | AF128: =CHOOSE(MATCH(AD128,{1,2,3,4,5,6,7,8,9,10,11,12,13,14,15,16,17,18,19},), $D$7,$D$9,$D$11,$D$13,$D$15,$D$17,$D$19,$D$21,$D$23,$D$25,$D$27,$D$29,$D$31,$D$33,$D$35,$D$37,$D$39,$D$41,$D$43) -> 2014
AD130: =VALUE(K33) -> 16 | AE130: =CHOOSE(MATCH(AD130,{1,2,3,4,5,6,7,8,9,10,11,12,13,14,15,16,17,18,19},),$C$7,$C$9,$C$11,$C$13,$C$15,$C$17,$C$19,$C$21,$C$23,$C$25,$C$27,$C$29,$C$31,$C$33,$C$35,$C$37,$C$39,$C$41,$C$43) -> AZE | AF130: =CHOOSE(MATCH(AD130,{1,2,3,4,5,6,7,8,9,10,11,12,13,14,15,16,17,18,19},), $D$7,$D$9,$D$11,$D$13,$D$15,$D$17,$D$19,$D$21,$D$23,$D$25,$D$27,$D$29,$D$31,$D$33,$D$35,$D$37,$D$39,$D$41,$D$43) -> 2016
AD132: =VALUE(K35) -> 18 | AE132: =CHOOSE(MATCH(AD132,{1,2,3,4,5,6,7,8,9,10,11,12,13,14,15,16,17,18,19},),$C$7,$C$9,$C$11,$C$13,$C$15,$C$17,$C$19,$C$21,$C$23,$C$25,$C$27,$C$29,$C$31,$C$33,$C$35,$C$37,$C$39,$C$41,$C$43) -> TUR | AF132: =CHOOSE(MATCH(AD132,{1,2,3,4,5,6,7,8,9,10,11,12,13,14,15,16,17,18,19},), $D$7,$D$9,$D$11,$D$13,$D$15,$D$17,$D$19,$D$21,$D$23,$D$25,$D$27,$D$29,$D$31,$D$33,$D$35,$D$37,$D$39,$D$41,$D$43) -> TOPAL
AD134: =VALUE(K37) -> 20 | AE134: =CHOOSE(MATCH(AD134,{1,2,3,4,5,6,7,8,9,10,11,12,13,14,15,16,17,18,19},),$C$7,$C$9,$C$11,$C$13,$C$15,$C$17,$C$19,$C$21,$C$23,$C$25,$C$27,$C$29,$C$31,$C$33,$C$35,$C$37,$C$39,$C$41,$C$43) ->  | AF134: =CHOOSE(MATCH(AD134,{1,2,3,4,5,6,7,8,9,10,11,12,13,14,15,16,17,18,19},), $D$7,$D$9,$D$11,$D$13,$D$15,$D$17,$D$19,$D$21,$D$23,$D$25,$D$27,$D$29,$D$31,$D$33,$D$35,$D$37,$D$39,$D$41,$D$43) -> 
AF143: Руководитель ковра
AD158: ПРОТОКОЛ ХОДА СХВАТКИ
AE159: ВЕС кг | AG159: 1/4 финала | AJ159: КОВЕР | AL159: 1
AD161: № п/п | AE161: Фамилия Имя | AF161: Город общество | AG161: 1 период | AI161: 2 период | AK161: баллы | AL161: очки | AM161: Судьи
AD163: =VALUE(N8) -> 1 | AE163: =CHOOSE(MATCH(AD163,{1,2,3,4,5,6,7,8,9,10,11,12,13,14,15,16,17,18,19},),$C$7,$C$9,$C$11,$C$13,$C$15,$C$17,$C$19,$C$21,$C$23,$C$25,$C$27,$C$29,$C$31,$C$33,$C$35,$C$37,$C$39,$C$41,$C$43) -> AUS | AF163: =CHOOSE(MATCH(AD163,{1,2,3,4,5,6,7,8,9,10,11,12,13,14,15,16,17,18,19},), $D$7,$D$9,$D$11,$D$13,$D$15,$D$17,$D$19,$D$21,$D$23,$D$25,$D$27,$D$29,$D$31,$D$33,$D$35,$D$37,$D$39,$D$41,$D$43) -> 2001
AD165: =VALUE(N12) -> 4 | AE165: =CHOOSE(MATCH(AD165,{1,2,3,4,5,6,7,8,9,10,11,12,13,14,15,16,17,18,19},),$C$7,$C$9,$C$11,$C$13,$C$15,$C$17,$C$19,$C$21,$C$23,$C$25,$C$27,$C$29,$C$31,$C$33,$C$35,$C$37,$C$39,$C$41,$C$43) -> IND | AF165: =CHOOSE(MATCH(AD165,{1,2,3,4,5,6,7,8,9,10,11,12,13,14,15,16,17,18,19},), $D$7,$D$9,$D$11,$D$13,$D$15,$D$17,$D$19,$D$21,$D$23,$D$25,$D$27,$D$29,$D$31,$D$33,$D$35,$D$37,$D$39,$D$41,$D$43) -> KADYAN
AD167: =VALUE(N16) -> 6 | AE167: =CHOOSE(MATCH(AD167,{1,2,3,4,5,6,7,8,9,10,11,12,13,14,15,16,17,18,19},),$C$7,$C$9,$C$11,$C$13,$C$15,$C$17,$C$19,$C$21,$C$23,$C$25,$C$27,$C$29,$C$31,$C$33,$C$35,$C$37,$C$39,$C$41,$C$43) -> GEO | AF167: =CHOOSE(MATCH(AD167,{1,2,3,4,5,6,7,8,9,10,11,12,13,14,15,16,17,18,19},), $D$7,$D$9,$D$11,$D$13,$D$15,$D$17,$D$19,$D$21,$D$23,$D$25,$D$27,$D$29,$D$31,$D$33,$D$35,$D$37,$D$39,$D$41,$D$43) -> 2006
AD169: =VALUE(N20) -> 8 | AE169: =CHOOSE(MATCH(AD169,{1,2,3,4,5,6,7,8,9,10,11,12,13,14,15,16,17,18,19},),$C$7,$C$9,$C$11,$C$13,$C$15,$C$17,$C$19,$C$21,$C$23,$C$25,$C$27,$C$29,$C$31,$C$33,$C$35,$C$37,$C$39,$C$41,$C$43) -> TUR | AF169: =CHOOSE(MATCH(AD169,{1,2,3,4,5,6,7,8,9,10,11,12,13,14,15,16,17,18,19},), $D$7,$D$9,$D$11,$D$13,$D$15,$D$17,$D$19,$D$21,$D$23,$D$25,$D$27,$D$29,$D$31,$D$33,$D$35,$D$37,$D$39,$D$41,$D$43) -> ATLI
AD171: =VALUE(N24) -> 10 | AE171: =CHOOSE(MATCH(AD171,{1,2,3,4,5,6,7,8,9,10,11,12,13,14,15,16,17,18,19},),$C$7,$C$9,$C$11,$C$13,$C$15,$C$17,$C$19,$C$21,$C$23,$C$25,$C$27,$C$29,$C$31,$C$33,$C$35,$C$37,$C$39,$C$41,$C$43) -> IRA | AF171: =CHOOSE(MATCH(AD171,{1,2,3,4,5,6,7,8,9,10,11,12,13,14,15,16,17,18,19},), $D$7,$D$9,$D$11,$D$13,$D$15,$D$17,$D$19,$D$21,$D$23,$D$25,$D$27,$D$29,$D$31,$D$33,$D$35,$D$37,$D$39,$D$41,$D$43) -> 2010
AD173: =VALUE(N28) -> 12 | AE173: =CHOOSE(MATCH(AD173,{1,2,3,4,5,6,7,8,9,10,11,12,13,14,15,16,17,18,19},),$C$7,$C$9,$C$11,$C$13,$C$15,$C$17,$C$19,$C$21,$C$23,$C$25,$C$27,$C$29,$C$31,$C$33,$C$35,$C$37,$C$39,$C$41,$C$43) -> KGZ | AF173: =CHOOSE(MATCH(AD173,{1,2,3,4,5,6,7,8,9,10,11,12,13,14,15,16,17,18,19},), $D$7,$D$9,$D$11,$D$13,$D$15,$D$17,$D$19,$D$21,$D$23,$D$25,$D$27,$D$29,$D$31,$D$33,$D$35,$D$37,$D$39,$D$41,$D$43) -> 2012
AD175: =VALUE(N32) -> 16 | AE175: =CHOOSE(MATCH(AD175,{1,2,3,4,5,6,7,8,9,10,11,12,13,14,15,16,17,18,19},),$C$7,$C$9,$C$11,$C$13,$C$15,$C$17,$C$19,$C$21,$C$23,$C$25,$C$27,$C$29,$C$31,$C$33,$C$35,$C$37,$C$39,$C$41,$C$43) -> AZE | AF175: =CHOOSE(MATCH(AD175,{1,2,3,4,5,6,7,8,9,10,11,12,13,14,15,16,17,18,19},), $D$7,$D$9,$D$11,$D$13,$D$15,$D$17,$D$19,$D$21,$D$23,$D$25,$D$27,$D$29,$D$31,$D$33,$D$35,$D$37,$D$39,$D$41,$D$43) -> 2016
AD177: =VALUE(N36) -> 20 | AE177: =CHOOSE(MATCH(AD177,{1,2,3,4,5,6,7,8,9,10,11,12,13,14,15,16,17,18,19},),$C$7,$C$9,$C$11,$C$13,$C$15,$C$17,$C$19,$C$21,$C$23,$C$25,$C$27,$C$29,$C$31,$C$33,$C$35,$C$37,$C$39,$C$41,$C$43) ->  | AF177: =CHOOSE(MATCH(AD177,{1,2,3,4,5,6,7,8,9,10,11,12,13,14,15,16,17,18,19},), $D$7,$D$9,$D$11,$D$13,$D$15,$D$17,$D$19,$D$21,$D$23,$D$25,$D$27,$D$29,$D$31,$D$33,$D$35,$D$37,$D$39,$D$41,$D$43) -> 
AF182: Руководитель ковра
AD185: ПРОТОКОЛ ХОДА СХВАТКИ
AE186: ВЕС кг | AG186: 1/2 финала | AJ186: КОВЕР | AL186: 1
AD188: № п/п | AE188: Фамилия Имя | AF188: Город общество | AG188: 1 период | AI188: 2 период | AK188: баллы | AL188: очки | AM188: Судьи
AD190: =VALUE(Q10) -> 1 | AE190: =CHOOSE(MATCH(AD190,{1,2,3,4,5,6,7,8,9,10,11,12,13,14,15,16,17,18,19},),$C$7,$C$9,$C$11,$C$13,$C$15,$C$17,$C$19,$C$21,$C$23,$C$25,$C$27,$C$29,$C$31,$C$33,$C$35,$C$37,$C$39,$C$41,$C$43) -> AUS | AF190: =CHOOSE(MATCH(AD190,{1,2,3,4,5,6,7,8,9,10,11,12,13,14,15,16,17,18,19},), $D$7,$D$9,$D$11,$D$13,$D$15,$D$17,$D$19,$D$21,$D$23,$D$25,$D$27,$D$29,$D$31,$D$33,$D$35,$D$37,$D$39,$D$41,$D$43) -> 2001
AD192: =VALUE(Q18) -> 8 | AE192: =CHOOSE(MATCH(AD192,{1,2,3,4,5,6,7,8,9,10,11,12,13,14,15,16,17,18,19},),$C$7,$C$9,$C$11,$C$13,$C$15,$C$17,$C$19,$C$21,$C$23,$C$25,$C$27,$C$29,$C$31,$C$33,$C$35,$C$37,$C$39,$C$41,$C$43) -> TUR | AF192: =CHOOSE(MATCH(AD192,{1,2,3,4,5,6,7,8,9,10,11,12,13,14,15,16,17,18,19},), $D$7,$D$9,$D$11,$D$13,$D$15,$D$17,$D$19,$D$21,$D$23,$D$25,$D$27,$D$29,$D$31,$D$33,$D$35,$D$37,$D$39,$D$41,$D$43) -> ATLI
AD194: =VALUE(Q26) -> 10 | AE194: =CHOOSE(MATCH(AD194,{1,2,3,4,5,6,7,8,9,10,11,12,13,14,15,16,17,18,19},),$C$7,$C$9,$C$11,$C$13,$C$15,$C$17,$C$19,$C$21,$C$23,$C$25,$C$27,$C$29,$C$31,$C$33,$C$35,$C$37,$C$39,$C$41,$C$43) -> IRA | AF194: =CHOOSE(MATCH(AD194,{1,2,3,4,5,6,7,8,9,10,11,12,13,14,15,16,17,18,19},), $D$7,$D$9,$D$11,$D$13,$D$15,$D$17,$D$19,$D$21,$D$23,$D$25,$D$27,$D$29,$D$31,$D$33,$D$35,$D$37,$D$39,$D$41,$D$43) -> 2010
AD196: =VALUE(Q34) -> 20 | AE196: =CHOOSE(MATCH(AD196,{1,2,3,4,5,6,7,8,9,10,11,12,13,14,15,16,17,18,19},),$C$7,$C$9,$C$11,$C$13,$C$15,$C$17,$C$19,$C$21,$C$23,$C$25,$C$27,$C$29,$C$31,$C$33,$C$35,$C$37,$C$39,$C$41,$C$43) ->  | AF196: =CHOOSE(MATCH(AD196,{1,2,3,4,5,6,7,8,9,10,11,12,13,14,15,16,17,18,19},), $D$7,$D$9,$D$11,$D$13,$D$15,$D$17,$D$19,$D$21,$D$23,$D$25,$D$27,$D$29,$D$31,$D$33,$D$35,$D$37,$D$39,$D$41,$D$43) -> 
AF200: Руководитель ковра
AD219: ПРОТОКОЛ ХОДА СХВАТКИ
AE220: ВЕС кг | AG220: утешение | AJ220: КОВЕР | AL220: 1
AD222: № п/п | AE222: Фамилия Имя | AF222: Город общество | AG222: 1 период | AI222: 2 период | AK222: баллы | AL222: очки | AM222: Судьи
AD224: =VALUE(K44) -> 0 | AE224: =CHOOSE(MATCH(AD224,{1,2,3,4,5,6,7,8,9,10,11,12,13,14,15,16,17,18,19},),$C$7,$C$9,$C$11,$C$13,$C$15,$C$17,$C$19,$C$21,$C$23,$C$25,$C$27,$C$29,$C$31,$C$33,$C$35,$C$37,$C$39,$C$41,$C$43) ->  | AF224: =CHOOSE(MATCH(AD224,{1,2,3,4,5,6,7,8,9,10,11,12,13,14,15,16,17,18,19},), $D$7,$D$9,$D$11,$D$13,$D$15,$D$17,$D$19,$D$21,$D$23,$D$25,$D$27,$D$29,$D$31,$D$33,$D$35,$D$37,$D$39,$D$41,$D$43) -> 
AD226: =VALUE(K48) -> 0 | AE226: =CHOOSE(MATCH(AD226,{1,2,3,4,5,6,7,8,9,10,11,12,13,14,15,16,17,18,19},),$C$7,$C$9,$C$11,$C$13,$C$15,$C$17,$C$19,$C$21,$C$23,$C$25,$C$27,$C$29,$C$31,$C$33,$C$35,$C$37,$C$39,$C$41,$C$43) ->  | AF226: =CHOOSE(MATCH(AD226,{1,2,3,4,5,6,7,8,9,10,11,12,13,14,15,16,17,18,19},), $D$7,$D$9,$D$11,$D$13,$D$15,$D$17,$D$19,$D$21,$D$23,$D$25,$D$27,$D$29,$D$31,$D$33,$D$35,$D$37,$D$39,$D$41,$D$43) -> 
AD228: =VALUE(K59) -> 19 | AE228: =CHOOSE(MATCH(AD228,{1,2,3,4,5,6,7,8,9,10,11,12,13,14,15,16,17,18,19},),$C$7,$C$9,$C$11,$C$13,$C$15,$C$17,$C$19,$C$21,$C$23,$C$25,$C$27,$C$29,$C$31,$C$33,$C$35,$C$37,$C$39,$C$41,$C$43) -> KAZ | AF228: =CHOOSE(MATCH(AD228,{1,2,3,4,5,6,7,8,9,10,11,12,13,14,15,16,17,18,19},), $D$7,$D$9,$D$11,$D$13,$D$15,$D$17,$D$19,$D$21,$D$23,$D$25,$D$27,$D$29,$D$31,$D$33,$D$35,$D$37,$D$39,$D$41,$D$43) -> TASKAL
AD230: =VALUE(K63) -> 18 | AE230: =CHOOSE(MATCH(AD230,{1,2,3,4,5,6,7,8,9,10,11,12,13,14,15,16,17,18,19},),$C$7,$C$9,$C$11,$C$13,$C$15,$C$17,$C$19,$C$21,$C$23,$C$25,$C$27,$C$29,$C$31,$C$33,$C$35,$C$37,$C$39,$C$41,$C$43) -> TUR | AF230: =CHOOSE(MATCH(AD230,{1,2,3,4,5,6,7,8,9,10,11,12,13,14,15,16,17,18,19},), $D$7,$D$9,$D$11,$D$13,$D$15,$D$17,$D$19,$D$21,$D$23,$D$25,$D$27,$D$29,$D$31,$D$33,$D$35,$D$37,$D$39,$D$41,$D$43) -> TOPAL
AF234: Руководитель ковра
AD238: ПРОТОКОЛ ХОДА СХВАТКИ
AE239: ВЕС кг | AG239: утешение | AJ239: КОВЕР | AL239: 1
AD241: № п/п | AE241: Фамилия Имя | AF241: Город общество | AG241: 1 период | AI241: 2 период | AK241: баллы | AL241: очки | AM241: Судьи
AD243: =VALUE(N46) -> 7 | AE243: =CHOOSE(MATCH(AD243,{1,2,3,4,5,6,7,8,9,10,11,12,13,14,15,16,17,18,19},),$C$7,$C$9,$C$11,$C$13,$C$15,$C$17,$C$19,$C$21,$C$23,$C$25,$C$27,$C$29,$C$31,$C$33,$C$35,$C$37,$C$39,$C$41,$C$43) -> KAZ | AF243: =CHOOSE(MATCH(AD243,{1,2,3,4,5,6,7,8,9,10,11,12,13,14,15,16,17,18,19},), $D$7,$D$9,$D$11,$D$13,$D$15,$D$17,$D$19,$D$21,$D$23,$D$25,$D$27,$D$29,$D$31,$D$33,$D$35,$D$37,$D$39,$D$41,$D$43) -> AITAK
AD245: =VALUE(N50) -> 6 | AE245: =CHOOSE(MATCH(AD245,{1,2,3,4,5,6,7,8,9,10,11,12,13,14,15,16,17,18,19},),$C$7,$C$9,$C$11,$C$13,$C$15,$C$17,$C$19,$C$21,$C$23,$C$25,$C$27,$C$29,$C$31,$C$33,$C$35,$C$37,$C$39,$C$41,$C$43) -> GEO | AF245: =CHOOSE(MATCH(AD245,{1,2,3,4,5,6,7,8,9,10,11,12,13,14,15,16,17,18,19},), $D$7,$D$9,$D$11,$D$13,$D$15,$D$17,$D$19,$D$21,$D$23,$D$25,$D$27,$D$29,$D$31,$D$33,$D$35,$D$37,$D$39,$D$41,$D$43) -> 2006
AD247: =VALUE(N61) -> 19 | AE247: =CHOOSE(MATCH(AD247,{1,2,3,4,5,6,7,8,9,10,11,12,13,14,15,16,17,18,19},),$C$7,$C$9,$C$11,$C$13,$C$15,$C$17,$C$19,$C$21,$C$23,$C$25,$C$27,$C$29,$C$31,$C$33,$C$35,$C$37,$C$39,$C$41,$C$43) -> KAZ | AF247: =CHOOSE(MATCH(AD247,{1,2,3,4,5,6,7,8,9,10,11,12,13,14,15,16,17,18,19},), $D$7,$D$9,$D$11,$D$13,$D$15,$D$17,$D$19,$D$21,$D$23,$D$25,$D$27,$D$29,$D$31,$D$33,$D$35,$D$37,$D$39,$D$41,$D$43) -> TASKAL
AD249: =VALUE(N65) -> 16 | AE249: =CHOOSE(MATCH(AD249,{1,2,3,4,5,6,7,8,9,10,11,12,13,14,15,16,17,18,19},),$C$7,$C$9,$C$11,$C$13,$C$15,$C$17,$C$19,$C$21,$C$23,$C$25,$C$27,$C$29,$C$31,$C$33,$C$35,$C$37,$C$39,$C$41,$C$43) -> AZE | AF249: =CHOOSE(MATCH(AD249,{1,2,3,4,5,6,7,8,9,10,11,12,13,14,15,16,17,18,19},), $D$7,$D$9,$D$11,$D$13,$D$15,$D$17,$D$19,$D$21,$D$23,$D$25,$D$27,$D$29,$D$31,$D$33,$D$35,$D$37,$D$39,$D$41,$D$43) -> 2016
AF253: Руководитель ковра
AD281: ПРОТОКОЛ ХОДА СХВАТКИ
AE282: ВЕС кг | AG282: финал за 3м. | AJ282: КОВЕР | AL282: 1
AD284: № п/п | AE284: Фамилия Имя | AF284: Город общество | AG284: 1 период | AI284: 2 период | AK284: баллы | AL284: очки | AM284: Судьи
AD286: =VALUE(Q48) -> 7 | AE286: =CHOOSE(MATCH(AD286,{1,2,3,4,5,6,7,8,9,10,11,12,13,14,15,16,17,18,19},),$C$7,$C$9,$C$11,$C$13,$C$15,$C$17,$C$19,$C$21,$C$23,$C$25,$C$27,$C$29,$C$31,$C$33,$C$35,$C$37,$C$39,$C$41,$C$43) -> KAZ | AF286: =CHOOSE(MATCH(AD286,{1,2,3,4,5,6,7,8,9,10,11,12,13,14,15,16,17,18,19},), $D$7,$D$9,$D$11,$D$13,$D$15,$D$17,$D$19,$D$21,$D$23,$D$25,$D$27,$D$29,$D$31,$D$33,$D$35,$D$37,$D$39,$D$41,$D$43) -> AITAK
AD288: =VALUE(Q52) -> 1 | AE288: =CHOOSE(MATCH(AD288,{1,2,3,4,5,6,7,8,9,10,11,12,13,14,15,16,17,18,19},),$C$7,$C$9,$C$11,$C$13,$C$15,$C$17,$C$19,$C$21,$C$23,$C$25,$C$27,$C$29,$C$31,$C$33,$C$35,$C$37,$C$39,$C$41,$C$43) -> AUS | AF288: =CHOOSE(MATCH(AD288,{1,2,3,4,5,6,7,8,9,10,11,12,13,14,15,16,17,18,19},), $D$7,$D$9,$D$11,$D$13,$D$15,$D$17,$D$19,$D$21,$D$23,$D$25,$D$27,$D$29,$D$31,$D$33,$D$35,$D$37,$D$39,$D$41,$D$43) -> 2001
AD290: =VALUE(Q63) -> 19 | AE290: =CHOOSE(MATCH(AD290,{1,2,3,4,5,6,7,8,9,10,11,12,13,14,15,16,17,18,19},),$C$7,$C$9,$C$11,$C$13,$C$15,$C$17,$C$19,$C$21,$C$23,$C$25,$C$27,$C$29,$C$31,$C$33,$C$35,$C$37,$C$39,$C$41,$C$43) -> KAZ | AF290: =CHOOSE(MATCH(AD290,{1,2,3,4,5,6,7,8,9,10,11,12,13,14,15,16,17,18,19},), $D$7,$D$9,$D$11,$D$13,$D$15,$D$17,$D$19,$D$21,$D$23,$D$25,$D$27,$D$29,$D$31,$D$33,$D$35,$D$37,$D$39,$D$41,$D$43) -> TASKAL
AD292: =VALUE(Q67) -> 10 | AE292: =CHOOSE(MATCH(AD292,{1,2,3,4,5,6,7,8,9,10,11,12,13,14,15,16,17,18,19},),$C$7,$C$9,$C$11,$C$13,$C$15,$C$17,$C$19,$C$21,$C$23,$C$25,$C$27,$C$29,$C$31,$C$33,$C$35,$C$37,$C$39,$C$41,$C$43) -> IRA | AF292: =CHOOSE(MATCH(AD292,{1,2,3,4,5,6,7,8,9,10,11,12,13,14,15,16,17,18,19},), $D$7,$D$9,$D$11,$D$13,$D$15,$D$17,$D$19,$D$21,$D$23,$D$25,$D$27,$D$29,$D$31,$D$33,$D$35,$D$37,$D$39,$D$41,$D$43) -> 2010
AF296: Руководитель ковра
AD304: ПРОТОКОЛ ХОДА СХВАТКИ
AE305: ВЕС кг | AG305: финал | AJ305: КОВЕР | AL305: 1
AD307: № п/п | AE307: Фамилия Имя | AF307: Город общество | AG307: 1 период | AI307: 2 период | AK307: баллы | AL307: очки | AM307: Судьи
AD309: =VALUE(T14) -> 8 | AE309: =CHOOSE(MATCH(AD309,{1,2,3,4,5,6,7,8,9,10,11,12,13,14,15,16,17,18,19},),$C$7,$C$9,$C$11,$C$13,$C$15,$C$17,$C$19,$C$21,$C$23,$C$25,$C$27,$C$29,$C$31,$C$33,$C$35,$C$37,$C$39,$C$41,$C$43) -> TUR | AF309: =CHOOSE(MATCH(AD309,{1,2,3,4,5,6,7,8,9,10,11,12,13,14,15,16,17,18,19},), $D$7,$D$9,$D$11,$D$13,$D$15,$D$17,$D$19,$D$21,$D$23,$D$25,$D$27,$D$29,$D$31,$D$33,$D$35,$D$37,$D$39,$D$41,$D$43) -> ATLI
AD311: =VALUE(T30) -> 20 | AE311: =CHOOSE(MATCH(AD311,{1,2,3,4,5,6,7,8,9,10,11,12,13,14,15,16,17,18,19},),$C$7,$C$9,$C$11,$C$13,$C$15,$C$17,$C$19,$C$21,$C$23,$C$25,$C$27,$C$29,$C$31,$C$33,$C$35,$C$37,$C$39,$C$41,$C$43) ->  | AF311: =CHOOSE(MATCH(AD311,{1,2,3,4,5,6,7,8,9,10,11,12,13,14,15,16,17,18,19},), $D$7,$D$9,$D$11,$D$13,$D$15,$D$17,$D$19,$D$21,$D$23,$D$25,$D$27,$D$29,$D$31,$D$33,$D$35,$D$37,$D$39,$D$41,$D$43) -> 
AF318: Руководитель ковра

Sheet 21уч
A1: ПРОТОКОЛ ХОДА СОРЕВНОВАНИЙ
A2: Турнир по борьбе вольной, памяти первого тренерашколы НЕЙЧА И.В.19 мая 2017г
C3: ВЕС кг
A5: МЕСТО | B5: № п/п | C5: Фамилия Имя | D5: Город общество | E5: Год рожд | F5: Разряд | H5: квалификация | K5: 1/8 финала | N5: 1/4 финала | Q5: 1/2 финала | T5: ФИНАЛ за 1место
B7: 1 | C7: 1001 | D7: 2001 | H7: 1 | I7: св | K7: 1 | L7: 1
L8: 1 | N8: =IF(L7>L9,K7,K9) -> 1 | O8: 3
B9: 2 | C9: 1002 | D9: 2002 | H9: 2 | I9: св | K9: 2
Q10: =IF(O8>O12,N8,N12) -> 1 | R10: 1
B11: 3 | C11: 1003 | D11: 2003 | H11: 3 | I11: св | K11: 3
N12: =IF(L11>L13,K11,K13) -> 4 | O12: 2
B13: 4 | C13: 1004 | D13: 2004 | H13: 4 | I13: св | K13: 4
T14: =IF(R10>R18,Q10,Q18) -> 8 | U14: 1
B15: 5 | C15: 1005 | D15: 2005 | H15: 5 | I15: св | K15: 5
N16: =IF(L15>L17,K15,K17) -> 6 | O16: 1
B17: 6 | C17: 1006 | D17: 2006 | H17: 6 | I17: св | K17: 6
Q18: =IF(O16>O20,N16,N20) -> 8 | R18: 2
B19: 7 | C19: 1007 | D19: 2007 | H19: 7 | I19: св | K19: 7
N20: =IF(L19>L21,K19,K21) -> 8 | O20: 5
B21: 8 | C21: 1008 | D21: 2008 | H21: 8 | I21: св | K21: 8
W22: =IF(U14>U30,T14,T30) -> 8
B23: 9 | C23: 1009 | D23: 2009 | H23: 9 | I23: св | K23: 9
N24: =IF(L23>L25,K23,K25) -> 10 | O24: 1
B25: 10 | C25: 1010 | D25: 2010 | H25: 10 | I25: св | K25: 10
Q26: =IF(O24>O28,N24,N28) -> 12 | R26: 4
B27: 11 | C27: 1011 | D27: 2011 | H27: 11 | I27: св | K27: 11
N28: =IF(L27>L29,K27,K29) -> 12 | O28: 3
B29: 12 | C29: 1012 | D29: 2012 | H29: 12 | I29: 1 | K29: =IF(I29>I31,H29,H31) -> 12
T30: =IF(R26>R34,Q26,Q34) -> 20 | U30: 0
B31: 13 | C31: 1013 | D31: 2013 | H31: 13 | I31: 0 | K31: =IF(I33>I35,H33,H35) -> 15
N32: =IF(L31>L33,K31,K33) -> 17 | O32: 1
B33: 14 | C33: 1014 | D33: 2014 | H33: 14 | K33: =IF(I37>I39,H37,H39) -> 17 | O33: ;
Q34: =IF(O32>O36,N32,N36) -> 20 | R34: 5
B35: 15 | C35: 1015 | D35: 2015 | H35: 15 | K35: =IF(I41>I43,H41,H43) -> 19
N36: =IF(L35>L37,K35,K37) -> 20 | O36: 2
B37: 16 | C37: 1016 | D37: 2016 | H37: 16 | K37: =IF(I45>I47,H45,H47) -> 20
B39: 17 | C39: 1017 | D39: 2017 | H39: 17 | N39: ПЕРЕЭКЗАМЕНОВКА
B41: 18 | C41: 1018 | D41: 2018 | H41: 18
K42: ПРОИГРАВШИЕ ПЕРВОМУ ФИНАЛИСТУ
B43: 19 | C43: 1019 | D43: 2019 | H43: 19
B45: 20 | C45: 1020 | D45: 2020 | H45: 20 | I45: 1
N46: =CHOOSE(MATCH($T$14,{1,2,3,4,5,6,7,8,9,10,11,12,13,14,15,16},),2,1,4,3,6,5,8,7,10,9,12,11,14,13,16,15,) -> 7 | O46: 1
B47: 21 | C47: 1021 | D47: 2021 | H47: 21
Q48: =IF(O46>O50,N46,N50) -> 7 | R48: 3 | U48: 3 МЕСТО
N50: =CHOOSE(MATCH($T$14,{1,2,3,4,5,6,7,8,9,10,11,12,13,14,15,16},),N12,N12,N8,N8,N20,N20,N16,N16,) -> 6 | O50: 0 | T50: =IF(R48>R52,Q48,Q52) -> 7 | U50: =IF(S48>S52,R48,R52) -> 0
Q52: =IF(R10<R18,Q10,Q18) -> 1 | R52: 0
K57: ПРОИГРАВШИЕ ВТОРОМУ ФИНАЛИСТУ
K59: =CHOOSE(MATCH(T30,{12,13,14,15,16,17,18,19,20,21},),13,12,15,14,17,16,19,18,21,20) -> 21 | L59: 1
N61: =IF(L59>L63,K59,K63) -> 21 | O61: 1
K63: =CHOOSE(MATCH($T$30,{9,10,11,12,13,14,15,16,17,18,19,20,21,22,23,24,25,26,27,28,29,30,31,32},),10,9,12,11,K33,K33,K31,K31,K37,K37,K35,K35,19,22,21,24,23,26,25,28,27,30,29,32,31,) -> 19 | L63: 0 | Q63: =IF(O61>O65,N61,N65) -> 21 | R63: 1 | U63: 3 МЕСТО
N65: =CHOOSE(MATCH(T30,{9,10,11,12,13,14,15,16,17,18,19,20,21},),N28,N28,N24,N24,N36,N36,N36,N36,N32,N32,N32,N32,N32,) -> 17 | O65: 0 | T65: =IF(R63>R67,Q63,Q67) -> 21 | U65: =IF(S63>S67,R63,R67) -> 0
Q67: =IF(R26<R34,Q26,Q34) -> 12 | R67: 0
AD71: ПРОТОКОЛ ХОДА СХВАТКИ
AE72: ВЕС кг | AG72: квалификация | AJ72: КОВЕР | AL72: 1
AD74: № п/п | AE74: Фамилия Имя | AF74: Город общество | AG74: 1 период | AI74: 2 период | AK74: баллы | AL74: очки | AM74: Судьи
AD76: 12 | AE76: =CHOOSE(MATCH(AD76,{1,2,3,4,5,6,7,8,9,10,11,12,13,14,15,16,17,18,19},),$C$7,$C$9,$C$11,$C$13,$C$15,$C$17,$C$19,$C$21,$C$23,$C$25,$C$27,$C$29,$C$31,$C$33,$C$35,$C$37,$C$39,$C$41,$C$43) -> 1012 | AF76: =CHOOSE(MATCH(AD76,{1,2,3,4,5,6,7,8,9,10,11,12,13,14,15,16,17,18,19},), $D$7,$D$9,$D$11,$D$13,$D$15,$D$17,$D$19,$D$21,$D$23,$D$25,$D$27,$D$29,$D$31,$D$33,$D$35,$D$37,$D$39,$D$41,$D$43) -> 2012
AD78: 13 | AE78: =CHOOSE(MATCH(AD78,{1,2,3,4,5,6,7,8,9,10,11,12,13,14,15,16,17,18,19},),$C$7,$C$9,$C$11,$C$13,$C$15,$C$17,$C$19,$C$21,$C$23,$C$25,$C$27,$C$29,$C$31,$C$33,$C$35,$C$37,$C$39,$C$41,$C$43) -> 1013 | AF78: =CHOOSE(MATCH(AD78,{1,2,3,4,5,6,7,8,9,10,11,12,13,14,15,16,17,18,19},), $D$7,$D$9,$D$11,$D$13,$D$15,$D$17,$D$19,$D$21,$D$23,$D$25,$D$27,$D$29,$D$31,$D$33,$D$35,$D$37,$D$39,$D$41,$D$43) -> 2013
AD80: 14 | AE80: =CHOOSE(MATCH(AD80,{1,2,3,4,5,6,7,8,9,10,11,12,13,14,15,16,17,18,19},),$C$7,$C$9,$C$11,$C$13,$C$15,$C$17,$C$19,$C$21,$C$23,$C$25,$C$27,$C$29,$C$31,$C$33,$C$35,$C$37,$C$39,$C$41,$C$43) -> 1014 | AF80: =CHOOSE(MATCH(AD80,{1,2,3,4,5,6,7,8,9,10,11,12,13,14,15,16,17,18,19},), $D$7,$D$9,$D$11,$D$13,$D$15,$D$17,$D$19,$D$21,$D$23,$D$25,$D$27,$D$29,$D$31,$D$33,$D$35,$D$37,$D$39,$D$41,$D$43) -> 2014
AD82: 15 | AE82: =CHOOSE(MATCH(AD82,{1,2,3,4,5,6,7,8,9,10,11,12,13,14,15,16,17,18,19},),$C$7,$C$9,$C$11,$C$13,$C$15,$C$17,$C$19,$C$21,$C$23,$C$25,$C$27,$C$29,$C$31,$C$33,$C$35,$C$37,$C$39,$C$41,$C$43) -> 1015 | AF82: =CHOOSE(MATCH(AD82,{1,2,3,4,5,6,7,8,9,10,11,12,13,14,15,16,17,18,19},), $D$7,$D$9,$D$11,$D$13,$D$15,$D$17,$D$19,$D$21,$D$23,$D$25,$D$27,$D$29,$D$31,$D$33,$D$35,$D$37,$D$39,$D$41,$D$43) -> 2015
AD84: 16 | AE84: =CHOOSE(MATCH(AD84,{1,2,3,4,5,6,7,8,9,10,11,12,13,14,15,16,17,18,19},),$C$7,$C$9,$C$11,$C$13,$C$15,$C$17,$C$19,$C$21,$C$23,$C$25,$C$27,$C$29,$C$31,$C$33,$C$35,$C$37,$C$39,$C$41,$C$43) -> 1016 | AF84: =CHOOSE(MATCH(AD84,{1,2,3,4,5,6,7,8,9,10,11,12,13,14,15,16,17,18,19},), $D$7,$D$9,$D$11,$D$13,$D$15,$D$17,$D$19,$D$21,$D$23,$D$25,$D$27,$D$29,$D$31,$D$33,$D$35,$D$37,$D$39,$D$41,$D$43) -> 2016
AD86: 17 | AE86: =CHOOSE(MATCH(AD86,{1,2,3,4,5,6,7,8,9,10,11,12,13,14,15,16,17,18,19},),$C$7,$C$9,$C$11,$C$13,$C$15,$C$17,$C$19,$C$21,$C$23,$C$25,$C$27,$C$29,$C$31,$C$33,$C$35,$C$37,$C$39,$C$41,$C$43) -> 1017 | AF86: =CHOOSE(MATCH(AD86,{1,2,3,4,5,6,7,8,9,10,11,12,13,14,15,16,17,18,19},), $D$7,$D$9,$D$11,$D$13,$D$15,$D$17,$D$19,$D$21,$D$23,$D$25,$D$27,$D$29,$D$31,$D$33,$D$35,$D$37,$D$39,$D$41,$D$43) -> 2017
AD88: 18 | AE88: =CHOOSE(MATCH(AD88,{1,2,3,4,5,6,7,8,9,10,11,12,13,14,15,16,17,18,19},),$C$7,$C$9,$C$11,$C$13,$C$15,$C$17,$C$19,$C$21,$C$23,$C$25,$C$27,$C$29,$C$31,$C$33,$C$35,$C$37,$C$39,$C$41,$C$43) -> 1018 | AF88: =CHOOSE(MATCH(AD88,{1,2,3,4,5,6,7,8,9,10,11,12,13,14,15,16,17,18,19},), $D$7,$D$9,$D$11,$D$13,$D$15,$D$17,$D$19,$D$21,$D$23,$D$25,$D$27,$D$29,$D$31,$D$33,$D$35,$D$37,$D$39,$D$41,$D$43) -> 2018
AD90: 19 | AE90: =CHOOSE(MATCH(AD90,{1,2,3,4,5,6,7,8,9,10,11,12,13,14,15,16,17,18,19},),$C$7,$C$9,$C$11,$C$13,$C$15,$C$17,$C$19,$C$21,$C$23,$C$25,$C$27,$C$29,$C$31,$C$33,$C$35,$C$37,$C$39,$C$41,$C$43) -> 1019 | AF90: =CHOOSE(MATCH(AD90,{1,2,3,4,5,6,7,8,9,10,11,12,13,14,15,16,17,18,19},), $D$7,$D$9,$D$11,$D$13,$D$15,$D$17,$D$19,$D$21,$D$23,$D$25,$D$27,$D$29,$D$31,$D$33,$D$35,$D$37,$D$39,$D$41,$D$43) -> 2019
AD92: 20 | AE92: =CHOOSE(MATCH(AD92,{1,2,3,4,5,6,7,8,9,10,11,12,13,14,15,16,17,18,19,20,21},),$C$7,$C$9,$C$11,$C$13,$C$15,$C$17,$C$19,$C$21,$C$23,$C$25,$C$27,$C$29,$C$31,$C$33,$C$35,$C$37,$C$39,$C$41,$C$43,$C$45,$C$47) -> 1020 | AF92: =CHOOSE(MATCH(AD92,{1,2,3,4,5,6,7,8,9,10,11,12,13,14,15,16,17,18,19,20,21},), $D$7,$D$9,$D$11,$D$13,$D$15,$D$17,$D$19,$D$21,$D$23,$D$25,$D$27,$D$29,$D$31,$D$33,$D$35,$D$37,$D$39,$D$41,$D$43,$D$45,$D$47) -> 2020
AD94: 21 | AE94: =CHOOSE(MATCH(AD94,{1,2,3,4,5,6,7,8,9,10,11,12,13,14,15,16,17,18,19,20,21},),$C$7,$C$9,$C$11,$C$13,$C$15,$C$17,$C$19,$C$21,$C$23,$C$25,$C$27,$C$29,$C$31,$C$33,$C$35,$C$37,$C$39,$C$41,$C$43,$C$45,$C$47) -> 1021 | AF94: =CHOOSE(MATCH(AD94,{1,2,3,4,5,6,7,8,9,10,11,12,13,14,15,16,17,18,19,20,21},), $D$7,$D$9,$D$11,$D$13,$D$15,$D$17,$D$19,$D$21,$D$23,$D$25,$D$27,$D$29,$D$31,$D$33,$D$35,$D$37,$D$39,$D$41,$D$43,$D$45,$D$47) -> 2021
AF97: Руководитель ковра
AD100: ПРОТОКОЛ ХОДА СХВАТКИ
AE101: ВЕС кг | AG101: 1/8 финала | AJ101: КОВЕР | AL101: 1
AD103: № п/п | AE103: Фамилия Имя | AF103: Город общество | AG103: 1 период | AI103: 2 период | AK103: баллы | AL103: очки | AM103: Судьи
AD105: =VALUE(K7) -> 1 | AE105: =CHOOSE(MATCH(AD105,{1,2,3,4,5,6,7,8,9,10,11,12,13,14,15,16,17,18,19},),$C$7,$C$9,$C$11,$C$13,$C$15,$C$17,$C$19,$C$21,$C$23,$C$25,$C$27,$C$29,$C$31,$C$33,$C$35,$C$37,$C$39,$C$41,$C$43) -> 1001 | AF105: =CHOOSE(MATCH(AD105,{1,2,3,4,5,6,7,8,9,10,11,12,13,14,15,16,17,18,19},), $D$7,$D$9,$D$11,$D$13,$D$15,$D$17,$D$19,$D$21,$D$23,$D$25,$D$27,$D$29,$D$31,$D$33,$D$35,$D$37,$D$39,$D$41,$D$43) -> 2001
AD107: =VALUE(K9) -> 2 | AE107: =CHOOSE(MATCH(AD107,{1,2,3,4,5,6,7,8,9,10,11,12,13,14,15,16,17,18,19},),$C$7,$C$9,$C$11,$C$13,$C$15,$C$17,$C$19,$C$21,$C$23,$C$25,$C$27,$C$29,$C$31,$C$33,$C$35,$C$37,$C$39,$C$41,$C$43) -> 1002 | AF107: =CHOOSE(MATCH(AD107,{1,2,3,4,5,6,7,8,9,10,11,12,13,14,15,16,17,18,19},), $D$7,$D$9,$D$11,$D$13,$D$15,$D$17,$D$19,$D$21,$D$23,$D$25,$D$27,$D$29,$D$31,$D$33,$D$35,$D$37,$D$39,$D$41,$D$43) -> 2002
AD109: =VALUE(K11) -> 3 | AE109: =CHOOSE(MATCH(AD109,{1,2,3,4,5,6,7,8,9,10,11,12,13,14,15,16,17,18,19},),$C$7,$C$9,$C$11,$C$13,$C$15,$C$17,$C$19,$C$21,$C$23,$C$25,$C$27,$C$29,$C$31,$C$33,$C$35,$C$37,$C$39,$C$41,$C$43) -> 1003 | AF109: =CHOOSE(MATCH(AD109,{1,2,3,4,5,6,7,8,9,10,11,12,13,14,15,16,17,18,19},), $D$7,$D$9,$D$11,$D$13,$D$15,$D$17,$D$19,$D$21,$D$23,$D$25,$D$27,$D$29,$D$31,$D$33,$D$35,$D$37,$D$39,$D$41,$D$43) -> 2003
AD111: =VALUE(K13) -> 4 | AE111: =CHOOSE(MATCH(AD111,{1,2,3,4,5,6,7,8,9,10,11,12,13,14,15,16,17,18,19},),$C$7,$C$9,$C$11,$C$13,$C$15,$C$17,$C$19,$C$21,$C$23,$C$25,$C$27,$C$29,$C$31,$C$33,$C$35,$C$37,$C$39,$C$41,$C$43) -> 1004 | AF111: =CHOOSE(MATCH(AD111,{1,2,3,4,5,6,7,8,9,10,11,12,13,14,15,16,17,18,19},), $D$7,$D$9,$D$11,$D$13,$D$15,$D$17,$D$19,$D$21,$D$23,$D$25,$D$27,$D$29,$D$31,$D$33,$D$35,$D$37,$D$39,$D$41,$D$43) -> 2004
AD113: =VALUE(K15) -> 5 | AE113: =CHOOSE(MATCH(AD113,{1,2,3,4,5,6,7,8,9,10,11,12,13,14,15,16,17,18,19},),$C$7,$C$9,$C$11,$C$13,$C$15,$C$17,$C$19,$C$21,$C$23,$C$25,$C$27,$C$29,$C$31,$C$33,$C$35,$C$37,$C$39,$C$41,$C$43) -> 1005 | AF113: =CHOOSE(MATCH(AD113,{1,2,3,4,5,6,7,8,9,10,11,12,13,14,15,16,17,18,19},), $D$7,$D$9,$D$11,$D$13,$D$15,$D$17,$D$19,$D$21,$D$23,$D$25,$D$27,$D$29,$D$31,$D$33,$D$35,$D$37,$D$39,$D$41,$D$43) -> 2005
AD115: =VALUE(K17) -> 6 | AE115: =CHOOSE(MATCH(AD115,{1,2,3,4,5,6,7,8,9,10,11,12,13,14,15,16,17,18,19},),$C$7,$C$9,$C$11,$C$13,$C$15,$C$17,$C$19,$C$21,$C$23,$C$25,$C$27,$C$29,$C$31,$C$33,$C$35,$C$37,$C$39,$C$41,$C$43) -> 1006 | AF115: =CHOOSE(MATCH(AD115,{1,2,3,4,5,6,7,8,9,10,11,12,13,14,15,16,17,18,19},), $D$7,$D$9,$D$11,$D$13,$D$15,$D$17,$D$19,$D$21,$D$23,$D$25,$D$27,$D$29,$D$31,$D$33,$D$35,$D$37,$D$39,$D$41,$D$43) -> 2006
AD117: =VALUE(K19) -> 7 | AE117: =CHOOSE(MATCH(AD117,{1,2,3,4,5,6,7,8,9,10,11,12,13,14,15,16,17,18,19},),$C$7,$C$9,$C$11,$C$13,$C$15,$C$17,$C$19,$C$21,$C$23,$C$25,$C$27,$C$29,$C$31,$C$33,$C$35,$C$37,$C$39,$C$41,$C$43) -> 1007 | AF117: =CHOOSE(MATCH(AD117,{1,2,3,4,5,6,7,8,9,10,11,12,13,14,15,16,17,18,19},), $D$7,$D$9,$D$11,$D$13,$D$15,$D$17,$D$19,$D$21,$D$23,$D$25,$D$27,$D$29,$D$31,$D$33,$D$35,$D$37,$D$39,$D$41,$D$43) -> 2007
AD119: =VALUE(K21) -> 8 | AE119: =CHOOSE(MATCH(AD119,{1,2,3,4,5,6,7,8,9,10,11,12,13,14,15,16,17,18,19},),$C$7,$C$9,$C$11,$C$13,$C$15,$C$17,$C$19,$C$21,$C$23,$C$25,$C$27,$C$29,$C$31,$C$33,$C$35,$C$37,$C$39,$C$41,$C$43) -> 1008 | AF119: =CHOOSE(MATCH(AD119,{1,2,3,4,5,6,7,8,9,10,11,12,13,14,15,16,17,18,19},), $D$7,$D$9,$D$11,$D$13,$D$15,$D$17,$D$19,$D$21,$D$23,$D$25,$D$27,$D$29,$D$31,$D$33,$D$35,$D$37,$D$39,$D$41,$D$43) -> 2008
AD121: =VALUE(K23) -> 9 | AE121: =CHOOSE(MATCH(AD121,{1,2,3,4,5,6,7,8,9,10,11,12,13,14,15,16,17,18,19},),$C$7,$C$9,$C$11,$C$13,$C$15,$C$17,$C$19,$C$21,$C$23,$C$25,$C$27,$C$29,$C$31,$C$33,$C$35,$C$37,$C$39,$C$41,$C$43) -> 1009 | AF121: =CHOOSE(MATCH(AD121,{1,2,3,4,5,6,7,8,9,10,11,12,13,14,15,16,17,18,19},), $D$7,$D$9,$D$11,$D$13,$D$15,$D$17,$D$19,$D$21,$D$23,$D$25,$D$27,$D$29,$D$31,$D$33,$D$35,$D$37,$D$39,$D$41,$D$43) -> 2009
AD123: =VALUE(K25) -> 10 | AE123: =CHOOSE(MATCH(AD123,{1,2,3,4,5,6,7,8,9,10,11,12,13,14,15,16,17,18,19},),$C$7,$C$9,$C$11,$C$13,$C$15,$C$17,$C$19,$C$21,$C$23,$C$25,$C$27,$C$29,$C$31,$C$33,$C$35,$C$37,$C$39,$C$41,$C$43) -> 1010 | AF123: =CHOOSE(MATCH(AD123,{1,2,3,4,5,6,7,8,9,10,11,12,13,14,15,16,17,18,19},), $D$7,$D$9,$D$11,$D$13,$D$15,$D$17,$D$19,$D$21,$D$23,$D$25,$D$27,$D$29,$D$31,$D$33,$D$35,$D$37,$D$39,$D$41,$D$43) -> 2010
AD125: =VALUE(K27) -> 11 | AE125: =CHOOSE(MATCH(AD125,{1,2,3,4,5,6,7,8,9,10,11,12,13,14,15,16,17,18,19},),$C$7,$C$9,$C$11,$C$13,$C$15,$C$17,$C$19,$C$21,$C$23,$C$25,$C$27,$C$29,$C$31,$C$33,$C$35,$C$37,$C$39,$C$41,$C$43) -> 1011 | AF125: =CHOOSE(MATCH(AD125,{1,2,3,4,5,6,7,8,9,10,11,12,13,14,15,16,17,18,19},), $D$7,$D$9,$D$11,$D$13,$D$15,$D$17,$D$19,$D$21,$D$23,$D$25,$D$27,$D$29,$D$31,$D$33,$D$35,$D$37,$D$39,$D$41,$D$43) -> 2011
AD127: =VALUE(K29) -> 12 | AE127: =CHOOSE(MATCH(AD127,{1,2,3,4,5,6,7,8,9,10,11,12,13,14,15,16,17,18,19},),$C$7,$C$9,$C$11,$C$13,$C$15,$C$17,$C$19,$C$21,$C$23,$C$25,$C$27,$C$29,$C$31,$C$33,$C$35,$C$37,$C$39,$C$41,$C$43) -> 1012 | AF127: =CHOOSE(MATCH(AD127,{1,2,3,4,5,6,7,8,9,10,11,12,13,14,15,16,17,18,19},), $D$7,$D$9,$D$11,$D$13,$D$15,$D$17,$D$19,$D$21,$D$23,$D$25,$D$27,$D$29,$D$31,$D$33,$D$35,$D$37,$D$39,$D$41,$D$43) -> 2012
AD129: =VALUE(K31) -> 15 | AE129: =CHOOSE(MATCH(AD129,{1,2,3,4,5,6,7,8,9,10,11,12,13,14,15,16,17,18,19},),$C$7,$C$9,$C$11,$C$13,$C$15,$C$17,$C$19,$C$21,$C$23,$C$25,$C$27,$C$29,$C$31,$C$33,$C$35,$C$37,$C$39,$C$41,$C$43) -> 1015 | AF129: =CHOOSE(MATCH(AD129,{1,2,3,4,5,6,7,8,9,10,11,12,13,14,15,16,17,18,19},), $D$7,$D$9,$D$11,$D$13,$D$15,$D$17,$D$19,$D$21,$D$23,$D$25,$D$27,$D$29,$D$31,$D$33,$D$35,$D$37,$D$39,$D$41,$D$43) -> 2015
AD131: =VALUE(K33) -> 17 | AE131: =CHOOSE(MATCH(AD131,{1,2,3,4,5,6,7,8,9,10,11,12,13,14,15,16,17,18,19},),$C$7,$C$9,$C$11,$C$13,$C$15,$C$17,$C$19,$C$21,$C$23,$C$25,$C$27,$C$29,$C$31,$C$33,$C$35,$C$37,$C$39,$C$41,$C$43) -> 1017 | AF131: =CHOOSE(MATCH(AD131,{1,2,3,4,5,6,7,8,9,10,11,12,13,14,15,16,17,18,19},), $D$7,$D$9,$D$11,$D$13,$D$15,$D$17,$D$19,$D$21,$D$23,$D$25,$D$27,$D$29,$D$31,$D$33,$D$35,$D$37,$D$39,$D$41,$D$43) -> 2017
AD133: =VALUE(K35) -> 19 | AE133: =CHOOSE(MATCH(AD133,{1,2,3,4,5,6,7,8,9,10,11,12,13,14,15,16,17,18,19},),$C$7,$C$9,$C$11,$C$13,$C$15,$C$17,$C$19,$C$21,$C$23,$C$25,$C$27,$C$29,$C$31,$C$33,$C$35,$C$37,$C$39,$C$41,$C$43) -> 1019 | AF133: =CHOOSE(MATCH(AD133,{1,2,3,4,5,6,7,8,9,10,11,12,13,14,15,16,17,18,19},), $D$7,$D$9,$D$11,$D$13,$D$15,$D$17,$D$19,$D$21,$D$23,$D$25,$D$27,$D$29,$D$31,$D$33,$D$35,$D$37,$D$39,$D$41,$D$43) -> 2019
AD135: =VALUE(K37) -> 20 | AE135: =CHOOSE(MATCH(AD135,{1,2,3,4,5,6,7,8,9,10,11,12,13,14,15,16,17,18,19,20,21},),$C$7,$C$9,$C$11,$C$13,$C$15,$C$17,$C$19,$C$21,$C$23,$C$25,$C$27,$C$29,$C$31,$C$33,$C$35,$C$37,$C$39,$C$41,$C$43,$C$45,$C$47) -> 1020 | AF135: =CHOOSE(MATCH(AD135,{1,2,3,4,5,6,7,8,9,10,11,12,13,14,15,16,17,18,19,20,21},), $D$7,$D$9,$D$11,$D$13,$D$15,$D$17,$D$19,$D$21,$D$23,$D$25,$D$27,$D$29,$D$31,$D$33,$D$35,$D$37,$D$39,$D$41,$D$43,$D$45,$D$47) -> 2020
AG139: Руководитель ковра
AD158: ПРОТОКОЛ ХОДА СХВАТКИ
AE159: ВЕС кг | AG159: 1/4 финала | AJ159: КОВЕР | AL159: 1
AD161: № п/п | AE161: Фамилия Имя | AF161: Город общество | AG161: 1 период | AI161: 2 период | AK161: баллы | AL161: очки | AM161: Судьи
AD163: =VALUE(N8) -> 1 | AE163: =CHOOSE(MATCH(AD163,{1,2,3,4,5,6,7,8,9,10,11,12,13,14,15,16,17,18,19},),$C$7,$C$9,$C$11,$C$13,$C$15,$C$17,$C$19,$C$21,$C$23,$C$25,$C$27,$C$29,$C$31,$C$33,$C$35,$C$37,$C$39,$C$41,$C$43) -> 1001 | AF163: =CHOOSE(MATCH(AD163,{1,2,3,4,5,6,7,8,9,10,11,12,13,14,15,16,17,18,19},), $D$7,$D$9,$D$11,$D$13,$D$15,$D$17,$D$19,$D$21,$D$23,$D$25,$D$27,$D$29,$D$31,$D$33,$D$35,$D$37,$D$39,$D$41,$D$43) -> 2001
AD165: =VALUE(N12) -> 4 | AE165: =CHOOSE(MATCH(AD165,{1,2,3,4,5,6,7,8,9,10,11,12,13,14,15,16,17,18,19},),$C$7,$C$9,$C$11,$C$13,$C$15,$C$17,$C$19,$C$21,$C$23,$C$25,$C$27,$C$29,$C$31,$C$33,$C$35,$C$37,$C$39,$C$41,$C$43) -> 1004 | AF165: =CHOOSE(MATCH(AD165,{1,2,3,4,5,6,7,8,9,10,11,12,13,14,15,16,17,18,19},), $D$7,$D$9,$D$11,$D$13,$D$15,$D$17,$D$19,$D$21,$D$23,$D$25,$D$27,$D$29,$D$31,$D$33,$D$35,$D$37,$D$39,$D$41,$D$43) -> 2004
AD167: =VALUE(N16) -> 6 | AE167: =CHOOSE(MATCH(AD167,{1,2,3,4,5,6,7,8,9,10,11,12,13,14,15,16,17,18,19},),$C$7,$C$9,$C$11,$C$13,$C$15,$C$17,$C$19,$C$21,$C$23,$C$25,$C$27,$C$29,$C$31,$C$33,$C$35,$C$37,$C$39,$C$41,$C$43) -> 1006 | AF167: =CHOOSE(MATCH(AD167,{1,2,3,4,5,6,7,8,9,10,11,12,13,14,15,16,17,18,19},), $D$7,$D$9,$D$11,$D$13,$D$15,$D$17,$D$19,$D$21,$D$23,$D$25,$D$27,$D$29,$D$31,$D$33,$D$35,$D$37,$D$39,$D$41,$D$43) -> 2006
AD169: =VALUE(N20) -> 8 | AE169: =CHOOSE(MATCH(AD169,{1,2,3,4,5,6,7,8,9,10,11,12,13,14,15,16,17,18,19},),$C$7,$C$9,$C$11,$C$13,$C$15,$C$17,$C$19,$C$21,$C$23,$C$25,$C$27,$C$29,$C$31,$C$33,$C$35,$C$37,$C$39,$C$41,$C$43) -> 1008 | AF169: =CHOOSE(MATCH(AD169,{1,2,3,4,5,6,7,8,9,10,11,12,13,14,15,16,17,18,19},), $D$7,$D$9,$D$11,$D$13,$D$15,$D$17,$D$19,$D$21,$D$23,$D$25,$D$27,$D$29,$D$31,$D$33,$D$35,$D$37,$D$39,$D$41,$D$43) -> 2008
AD171: =VALUE(N24) -> 10 | AE171: =CHOOSE(MATCH(AD171,{1,2,3,4,5,6,7,8,9,10,11,12,13,14,15,16,17,18,19},),$C$7,$C$9,$C$11,$C$13,$C$15,$C$17,$C$19,$C$21,$C$23,$C$25,$C$27,$C$29,$C$31,$C$33,$C$35,$C$37,$C$39,$C$41,$C$43) -> 1010 | AF171: =CHOOSE(MATCH(AD171,{1,2,3,4,5,6,7,8,9,10,11,12,13,14,15,16,17,18,19},), $D$7,$D$9,$D$11,$D$13,$D$15,$D$17,$D$19,$D$21,$D$23,$D$25,$D$27,$D$29,$D$31,$D$33,$D$35,$D$37,$D$39,$D$41,$D$43) -> 2010
AD173: =VALUE(N28) -> 12 | AE173: =CHOOSE(MATCH(AD173,{1,2,3,4,5,6,7,8,9,10,11,12,13,14,15,16,17,18,19},),$C$7,$C$9,$C$11,$C$13,$C$15,$C$17,$C$19,$C$21,$C$23,$C$25,$C$27,$C$29,$C$31,$C$33,$C$35,$C$37,$C$39,$C$41,$C$43) -> 1012 | AF173: =CHOOSE(MATCH(AD173,{1,2,3,4,5,6,7,8,9,10,11,12,13,14,15,16,17,18,19},), $D$7,$D$9,$D$11,$D$13,$D$15,$D$17,$D$19,$D$21,$D$23,$D$25,$D$27,$D$29,$D$31,$D$33,$D$35,$D$37,$D$39,$D$41,$D$43) -> 2012
AD175: =VALUE(N32) -> 17 | AE175: =CHOOSE(MATCH(AD175,{1,2,3,4,5,6,7,8,9,10,11,12,13,14,15,16,17,18,19},),$C$7,$C$9,$C$11,$C$13,$C$15,$C$17,$C$19,$C$21,$C$23,$C$25,$C$27,$C$29,$C$31,$C$33,$C$35,$C$37,$C$39,$C$41,$C$43) -> 1017 | AF175: =CHOOSE(MATCH(AD175,{1,2,3,4,5,6,7,8,9,10,11,12,13,14,15,16,17,18,19},), $D$7,$D$9,$D$11,$D$13,$D$15,$D$17,$D$19,$D$21,$D$23,$D$25,$D$27,$D$29,$D$31,$D$33,$D$35,$D$37,$D$39,$D$41,$D$43) -> 2017
AD177: =VALUE(N36) -> 20 | AE177: =CHOOSE(MATCH(AD177,{1,2,3,4,5,6,7,8,9,10,11,12,13,14,15,16,17,18,19},),$C$7,$C$9,$C$11,$C$13,$C$15,$C$17,$C$19,$C$21,$C$23,$C$25,$C$27,$C$29,$C$31,$C$33,$C$35,$C$37,$C$39,$C$41,$C$43) ->  | AF177: =CHOOSE(MATCH(AD177,{1,2,3,4,5,6,7,8,9,10,11,12,13,14,15,16,17,18,19},), $D$7,$D$9,$D$11,$D$13,$D$15,$D$17,$D$19,$D$21,$D$23,$D$25,$D$27,$D$29,$D$31,$D$33,$D$35,$D$37,$D$39,$D$41,$D$43) -> 
AF182: Руководитель ковра
AD185: ПРОТОКОЛ ХОДА СХВАТКИ
AE186: ВЕС кг | AG186: 1/2 финала | AJ186: КОВЕР | AL186: 1
AD188: № п/п | AE188: Фамилия Имя | AF188: Город общество | AG188: 1 период | AI188: 2 период | AK188: баллы | AL188: очки | AM188: Судьи
AD190: =VALUE(Q10) -> 1 | AE190: =CHOOSE(MATCH(AD190,{1,2,3,4,5,6,7,8,9,10,11,12,13,14,15,16,17,18,19},),$C$7,$C$9,$C$11,$C$13,$C$15,$C$17,$C$19,$C$21,$C$23,$C$25,$C$27,$C$29,$C$31,$C$33,$C$35,$C$37,$C$39,$C$41,$C$43) -> 1001 | AF190: =CHOOSE(MATCH(AD190,{1,2,3,4,5,6,7,8,9,10,11,12,13,14,15,16,17,18,19},), $D$7,$D$9,$D$11,$D$13,$D$15,$D$17,$D$19,$D$21,$D$23,$D$25,$D$27,$D$29,$D$31,$D$33,$D$35,$D$37,$D$39,$D$41,$D$43) -> 2001
AD192: =VALUE(Q18) -> 8 | AE192: =CHOOSE(MATCH(AD192,{1,2,3,4,5,6,7,8,9,10,11,12,13,14,15,16,17,18,19},),$C$7,$C$9,$C$11,$C$13,$C$15,$C$17,$C$19,$C$21,$C$23,$C$25,$C$27,$C$29,$C$31,$C$33,$C$35,$C$37,$C$39,$C$41,$C$43) -> 1008 | AF192: =CHOOSE(MATCH(AD192,{1,2,3,4,5,6,7,8,9,10,11,12,13,14,15,16,17,18,19},), $D$7,$D$9,$D$11,$D$13,$D$15,$D$17,$D$19,$D$21,$D$23,$D$25,$D$27,$D$29,$D$31,$D$33,$D$35,$D$37,$D$39,$D$41,$D$43) -> 2008
AD194: =VALUE(Q26) -> 12 | AE194: =CHOOSE(MATCH(AD194,{1,2,3,4,5,6,7,8,9,10,11,12,13,14,15,16,17,18,19},),$C$7,$C$9,$C$11,$C$13,$C$15,$C$17,$C$19,$C$21,$C$23,$C$25,$C$27,$C$29,$C$31,$C$33,$C$35,$C$37,$C$39,$C$41,$C$43) -> 1012 | AF194: =CHOOSE(MATCH(AD194,{1,2,3,4,5,6,7,8,9,10,11,12,13,14,15,16,17,18,19},), $D$7,$D$9,$D$11,$D$13,$D$15,$D$17,$D$19,$D$21,$D$23,$D$25,$D$27,$D$29,$D$31,$D$33,$D$35,$D$37,$D$39,$D$41,$D$43) -> 2012
AD196: =VALUE(Q34) -> 20 | AE196: =CHOOSE(MATCH(AD196,{1,2,3,4,5,6,7,8,9,10,11,12,13,14,15,16,17,18,19},),$C$7,$C$9,$C$11,$C$13,$C$15,$C$17,$C$19,$C$21,$C$23,$C$25,$C$27,$C$29,$C$31,$C$33,$C$35,$C$37,$C$39,$C$41,$C$43) ->  | AF196: =CHOOSE(MATCH(AD196,{1,2,3,4,5,6,7,8,9,10,11,12,13,14,15,16,17,18,19},), $D$7,$D$9,$D$11,$D$13,$D$15,$D$17,$D$19,$D$21,$D$23,$D$25,$D$27,$D$29,$D$31,$D$33,$D$35,$D$37,$D$39,$D$41,$D$43) -> 
AF200: Руководитель ковра
AD219: ПРОТОКОЛ ХОДА СХВАТКИ
AE220: ВЕС кг | AG220: утешение | AJ220: КОВЕР | AL220: 1
AD222: № п/п | AE222: Фамилия Имя | AF222: Город общество | AG222: 1 период | AI222: 2 период | AK222: баллы | AL222: очки | AM222: Судьи
AD224: =VALUE(K44) -> 0 | AE224: =CHOOSE(MATCH(AD224,{1,2,3,4,5,6,7,8,9,10,11,12,13,14,15,16,17,18,19},),$C$7,$C$9,$C$11,$C$13,$C$15,$C$17,$C$19,$C$21,$C$23,$C$25,$C$27,$C$29,$C$31,$C$33,$C$35,$C$37,$C$39,$C$41,$C$43) ->  | AF224: =CHOOSE(MATCH(AD224,{1,2,3,4,5,6,7,8,9,10,11,12,13,14,15,16,17,18,19},), $D$7,$D$9,$D$11,$D$13,$D$15,$D$17,$D$19,$D$21,$D$23,$D$25,$D$27,$D$29,$D$31,$D$33,$D$35,$D$37,$D$39,$D$41,$D$43) -> 
AD226: =VALUE(K48) -> 0 | AE226: =CHOOSE(MATCH(AD226,{1,2,3,4,5,6,7,8,9,10,11,12,13,14,15,16,17,18,19},),$C$7,$C$9,$C$11,$C$13,$C$15,$C$17,$C$19,$C$21,$C$23,$C$25,$C$27,$C$29,$C$31,$C$33,$C$35,$C$37,$C$39,$C$41,$C$43) ->  | AF226: =CHOOSE(MATCH(AD226,{1,2,3,4,5,6,7,8,9,10,11,12,13,14,15,16,17,18,19},), $D$7,$D$9,$D$11,$D$13,$D$15,$D$17,$D$19,$D$21,$D$23,$D$25,$D$27,$D$29,$D$31,$D$33,$D$35,$D$37,$D$39,$D$41,$D$43) -> 
AD228: =VALUE(K59) -> 21 | AE228: =CHOOSE(MATCH(AD228,{1,2,3,4,5,6,7,8,9,10,11,12,13,14,15,16,17,18,19},),$C$7,$C$9,$C$11,$C$13,$C$15,$C$17,$C$19,$C$21,$C$23,$C$25,$C$27,$C$29,$C$31,$C$33,$C$35,$C$37,$C$39,$C$41,$C$43) ->  | AF228: =CHOOSE(MATCH(AD228,{1,2,3,4,5,6,7,8,9,10,11,12,13,14,15,16,17,18,19},), $D$7,$D$9,$D$11,$D$13,$D$15,$D$17,$D$19,$D$21,$D$23,$D$25,$D$27,$D$29,$D$31,$D$33,$D$35,$D$37,$D$39,$D$41,$D$43) -> 
AD230: =VALUE(K63) -> 19 | AE230: =CHOOSE(MATCH(AD230,{1,2,3,4,5,6,7,8,9,10,11,12,13,14,15,16,17,18,19},),$C$7,$C$9,$C$11,$C$13,$C$15,$C$17,$C$19,$C$21,$C$23,$C$25,$C$27,$C$29,$C$31,$C$33,$C$35,$C$37,$C$39,$C$41,$C$43) -> 1019 | AF230: =CHOOSE(MATCH(AD230,{1,2,3,4,5,6,7,8,9,10,11,12,13,14,15,16,17,18,19},), $D$7,$D$9,$D$11,$D$13,$D$15,$D$17,$D$19,$D$21,$D$23,$D$25,$D$27,$D$29,$D$31,$D$33,$D$35,$D$37,$D$39,$D$41,$D$43) -> 2019
AF234: Руководитель ковра
AD238: ПРОТОКОЛ ХОДА СХВАТКИ
AE239: ВЕС кг | AG239: утешение | AJ239: КОВЕР | AL239: 1
AD241: № п/п | AE241: Фамилия Имя | AF241: Город общество | AG241: 1 период | AI241: 2 период | AK241: баллы | AL241: очки | AM241: Судьи
AD243: =VALUE(N46) -> 7 | AE243: =CHOOSE(MATCH(AD243,{1,2,3,4,5,6,7,8,9,10,11,12,13,14,15,16,17,18,19},),$C$7,$C$9,$C$11,$C$13,$C$15,$C$17,$C$19,$C$21,$C$23,$C$25,$C$27,$C$29,$C$31,$C$33,$C$35,$C$37,$C$39,$C$41,$C$43) -> 1007 | AF243: =CHOOSE(MATCH(AD243,{1,2,3,4,5,6,7,8,9,10,11,12,13,14,15,16,17,18,19},), $D$7,$D$9,$D$11,$D$13,$D$15,$D$17,$D$19,$D$21,$D$23,$D$25,$D$27,$D$29,$D$31,$D$33,$D$35,$D$37,$D$39,$D$41,$D$43) -> 2007
AD245: =VALUE(N50) -> 6 | AE245: =CHOOSE(MATCH(AD245,{1,2,3,4,5,6,7,8,9,10,11,12,13,14,15,16,17,18,19},),$C$7,$C$9,$C$11,$C$13,$C$15,$C$17,$C$19,$C$21,$C$23,$C$25,$C$27,$C$29,$C$31,$C$33,$C$35,$C$37,$C$39,$C$41,$C$43) -> 1006 | AF245: =CHOOSE(MATCH(AD245,{1,2,3,4,5,6,7,8,9,10,11,12,13,14,15,16,17,18,19},), $D$7,$D$9,$D$11,$D$13,$D$15,$D$17,$D$19,$D$21,$D$23,$D$25,$D$27,$D$29,$D$31,$D$33,$D$35,$D$37,$D$39,$D$41,$D$43) -> 2006
AD247: =VALUE(N61) -> 21 | AE247: =CHOOSE(MATCH(AD247,{1,2,3,4,5,6,7,8,9,10,11,12,13,14,15,16,17,18,19},),$C$7,$C$9,$C$11,$C$13,$C$15,$C$17,$C$19,$C$21,$C$23,$C$25,$C$27,$C$29,$C$31,$C$33,$C$35,$C$37,$C$39,$C$41,$C$43) ->  | AF247: =CHOOSE(MATCH(AD247,{1,2,3,4,5,6,7,8,9,10,11,12,13,14,15,16,17,18,19},), $D$7,$D$9,$D$11,$D$13,$D$15,$D$17,$D$19,$D$21,$D$23,$D$25,$D$27,$D$29,$D$31,$D$33,$D$35,$D$37,$D$39,$D$41,$D$43) -> 
AD249: =VALUE(N65) -> 17 | AE249: =CHOOSE(MATCH(AD249,{1,2,3,4,5,6,7,8,9,10,11,12,13,14,15,16,17,18,19},),$C$7,$C$9,$C$11,$C$13,$C$15,$C$17,$C$19,$C$21,$C$23,$C$25,$C$27,$C$29,$C$31,$C$33,$C$35,$C$37,$C$39,$C$41,$C$43) -> 1017 | AF249: =CHOOSE(MATCH(AD249,{1,2,3,4,5,6,7,8,9,10,11,12,13,14,15,16,17,18,19},), $D$7,$D$9,$D$11,$D$13,$D$15,$D$17,$D$19,$D$21,$D$23,$D$25,$D$27,$D$29,$D$31,$D$33,$D$35,$D$37,$D$39,$D$41,$D$43) -> 2017
AF253: Руководитель ковра
AD281: ПРОТОКОЛ ХОДА СХВАТКИ
AE282: ВЕС кг | AG282: финал за 3м. | AJ282: КОВЕР | AL282: 1
AD284: № п/п | AE284: Фамилия Имя | AF284: Город общество | AG284: 1 период | AI284: 2 период | AK284: баллы | AL284: очки | AM284: Судьи
AD286: =VALUE(Q48) -> 7 | AE286: =CHOOSE(MATCH(AD286,{1,2,3,4,5,6,7,8,9,10,11,12,13,14,15,16,17,18,19},),$C$7,$C$9,$C$11,$C$13,$C$15,$C$17,$C$19,$C$21,$C$23,$C$25,$C$27,$C$29,$C$31,$C$33,$C$35,$C$37,$C$39,$C$41,$C$43) -> 1007 | AF286: =CHOOSE(MATCH(AD286,{1,2,3,4,5,6,7,8,9,10,11,12,13,14,15,16,17,18,19},), $D$7,$D$9,$D$11,$D$13,$D$15,$D$17,$D$19,$D$21,$D$23,$D$25,$D$27,$D$29,$D$31,$D$33,$D$35,$D$37,$D$39,$D$41,$D$43) -> 2007
AD288: =VALUE(Q52) -> 1 | AE288: =CHOOSE(MATCH(AD288,{1,2,3,4,5,6,7,8,9,10,11,12,13,14,15,16,17,18,19},),$C$7,$C$9,$C$11,$C$13,$C$15,$C$17,$C$19,$C$21,$C$23,$C$25,$C$27,$C$29,$C$31,$C$33,$C$35,$C$37,$C$39,$C$41,$C$43) -> 1001 | AF288: =CHOOSE(MATCH(AD288,{1,2,3,4,5,6,7,8,9,10,11,12,13,14,15,16,17,18,19},), $D$7,$D$9,$D$11,$D$13,$D$15,$D$17,$D$19,$D$21,$D$23,$D$25,$D$27,$D$29,$D$31,$D$33,$D$35,$D$37,$D$39,$D$41,$D$43) -> 2001
AD290: =VALUE(Q63) -> 21 | AE290: =CHOOSE(MATCH(AD290,{1,2,3,4,5,6,7,8,9,10,11,12,13,14,15,16,17,18,19},),$C$7,$C$9,$C$11,$C$13,$C$15,$C$17,$C$19,$C$21,$C$23,$C$25,$C$27,$C$29,$C$31,$C$33,$C$35,$C$37,$C$39,$C$41,$C$43) ->  | AF290: =CHOOSE(MATCH(AD290,{1,2,3,4,5,6,7,8,9,10,11,12,13,14,15,16,17,18,19},), $D$7,$D$9,$D$11,$D$13,$D$15,$D$17,$D$19,$D$21,$D$23,$D$25,$D$27,$D$29,$D$31,$D$33,$D$35,$D$37,$D$39,$D$41,$D$43) -> 
AD292: =VALUE(Q67) -> 12 | AE292: =CHOOSE(MATCH(AD292,{1,2,3,4,5,6,7,8,9,10,11,12,13,14,15,16,17,18,19},),$C$7,$C$9,$C$11,$C$13,$C$15,$C$17,$C$19,$C$21,$C$23,$C$25,$C$27,$C$29,$C$31,$C$33,$C$35,$C$37,$C$39,$C$41,$C$43) -> 1012 | AF292: =CHOOSE(MATCH(AD292,{1,2,3,4,5,6,7,8,9,10,11,12,13,14,15,16,17,18,19},), $D$7,$D$9,$D$11,$D$13,$D$15,$D$17,$D$19,$D$21,$D$23,$D$25,$D$27,$D$29,$D$31,$D$33,$D$35,$D$37,$D$39,$D$41,$D$43) -> 2012
AF296: Руководитель ковра
AD304: ПРОТОКОЛ ХОДА СХВАТКИ
AE305: ВЕС кг | AG305: финал | AJ305: КОВЕР | AL305: 1
AD307: № п/п | AE307: Фамилия Имя | AF307: Город общество | AG307: 1 период | AI307: 2 период | AK307: баллы | AL307: очки | AM307: Судьи
AD309: =VALUE(T14) -> 8 | AE309: =CHOOSE(MATCH(AD309,{1,2,3,4,5,6,7,8,9,10,11,12,13,14,15,16,17,18,19},),$C$7,$C$9,$C$11,$C$13,$C$15,$C$17,$C$19,$C$21,$C$23,$C$25,$C$27,$C$29,$C$31,$C$33,$C$35,$C$37,$C$39,$C$41,$C$43) -> 1008 | AF309: =CHOOSE(MATCH(AD309,{1,2,3,4,5,6,7,8,9,10,11,12,13,14,15,16,17,18,19},), $D$7,$D$9,$D$11,$D$13,$D$15,$D$17,$D$19,$D$21,$D$23,$D$25,$D$27,$D$29,$D$31,$D$33,$D$35,$D$37,$D$39,$D$41,$D$43) -> 2008
AD311: =VALUE(T30) -> 20 | AE311: =CHOOSE(MATCH(AD311,{1,2,3,4,5,6,7,8,9,10,11,12,13,14,15,16,17,18,19},),$C$7,$C$9,$C$11,$C$13,$C$15,$C$17,$C$19,$C$21,$C$23,$C$25,$C$27,$C$29,$C$31,$C$33,$C$35,$C$37,$C$39,$C$41,$C$43) ->  | AF311: =CHOOSE(MATCH(AD311,{1,2,3,4,5,6,7,8,9,10,11,12,13,14,15,16,17,18,19},), $D$7,$D$9,$D$11,$D$13,$D$15,$D$17,$D$19,$D$21,$D$23,$D$25,$D$27,$D$29,$D$31,$D$33,$D$35,$D$37,$D$39,$D$41,$D$43) -> 
AF318: Руководитель ковра

Sheet 22уч
A1: ПРОТОКОЛ ХОДА СОРЕВНОВАНИЙ
A2: Турнир по борьбе вольной, памяти первого тренерашколы НЕЙЧА И.В.19 мая 2017г
C3: ВЕС кг
A5: МЕСТО | B5: № п/п | C5: Фамилия Имя | D5: Город общество | E5: Год рожд | F5: Разряд | H5: квалификация | K5: 1/8 финала | N5: 1/4 финала | Q5: 1/2 финала | T5: ФИНАЛ за 1место
B7: 1 | C7: 1001 | D7: 2001 | H7: 1 | I7: св | K7: 1 | L7: 1
L8: 1 | N8: =IF(L7>L9,K7,K9) -> 1 | O8: 3
B9: 2 | C9: 1002 | D9: 2002 | H9: 2 | I9: св | K9: 2
Q10: =IF(O8>O12,N8,N12) -> 1 | R10: 1
B11: 3 | C11: 1003 | D11: 2003 | H11: 3 | I11: св | K11: 3
N12: =IF(L11>L13,K11,K13) -> 4 | O12: 2
B13: 4 | C13: 1004 | D13: 2004 | H13: 4 | I13: св | K13: 4
T14: =IF(R10>R18,Q10,Q18) -> 8 | U14: 1
B15: 5 | C15: 1005 | D15: 2005 | H15: 5 | I15: св | K15: 5
N16: =IF(L15>L17,K15,K17) -> 6 | O16: 1
B17: 6 | C17: 1006 | D17: 2006 | H17: 6 | I17: св | K17: 6
Q18: =IF(O16>O20,N16,N20) -> 8 | R18: 2
B19: 7 | C19: 1007 | D19: 2007 | H19: 7 | I19: св | K19: 7
N20: =IF(L19>L21,K19,K21) -> 8 | O20: 5
B21: 8 | C21: 1008 | D21: 2008 | H21: 8 | I21: св | K21: 8
W22: =IF(U14>U30,T14,T30) -> 8
B23: 9 | C23: 1009 | D23: 2009 | H23: 9 | I23: св | K23: 9
N24: =IF(L23>L25,K23,K25) -> 10 | O24: 1
B25: 10 | C25: 1010 | D25: 2010 | H25: 10 | I25: св | K25: 10
Q26: =IF(O24>O28,N24,N28) -> 11 | R26: 4
B27: 11 | C27: 1011 | D27: 2011 | H27: 11 | I27: 1 | K27: =IF(I27>I29,H27,H29) -> 11 | L27: 1
N28: =IF(L27>L29,K27,K29) -> 11 | O28: 2
B29: 12 | C29: 1012 | D29: 2012 | H29: 12 | I29: 0 | K29: =IF(I31>I33,H31,H33) -> 14 | L29: 0
T30: =IF(R26>R34,Q26,Q34) -> 11 | U30: 0
B31: 13 | C31: 1013 | D31: 2013 | H31: 13 | K31: =IF(I35>I37,H35,H37) -> 16
N32: =IF(L31>L33,K31,K33) -> 18 | O32: 1
B33: 14 | C33: 1014 | D33: 2014 | H33: 14 | K33: =IF(I39>I41,H39,H41) -> 18 | O33: ;
Q34: =IF(O32>O36,N32,N36) -> 22 | R34: 0
B35: 15 | C35: 1015 | D35: 2015 | H35: 15 | K35: =IF(I43>I45,H43,H45) -> 20
N36: =IF(L35>L37,K35,K37) -> 22 | O36: 2
B37: 16 | C37: 1016 | D37: 2016 | H37: 16 | K37: =IF(I47>I49,H47,H49) -> 22
B39: 17 | C39: 1017 | D39: 2017 | H39: 17 | N39: ПЕРЕЭКЗАМЕНОВКА
B41: 18 | C41: 1018 | D41: 2018 | H41: 18
K42: ПРОИГРАВШИЕ ПЕРВОМУ ФИНАЛИСТУ
B43: 19 | C43: 1019 | D43: 2019 | H43: 19
B45: 20 | C45: 1020 | D45: 2020 | H45: 20
N46: =CHOOSE(MATCH($T$14,{1,2,3,4,5,6,7,8,9,10,11,12,13,14,15,16},),2,1,4,3,6,5,8,7,10,9,12,11,14,13,16,15,) -> 7 | O46: 1
B47: 21 | C47: 1021 | D47: 2021 | H47: 21
Q48: =IF(O46>O50,N46,N50) -> 7 | R48: 3 | U48: 3 МЕСТО
B49: 22 | C49: 1022 | D49: 2022 | H49: 22
N50: =CHOOSE(MATCH($T$14,{1,2,3,4,5,6,7,8,9,10,11,12,13,14,15,16},),N12,N12,N8,N8,N20,N20,N16,N16,) -> 6 | O50: 0 | T50: =IF(R48>R52,Q48,Q52) -> 7 | U50: =IF(S48>S52,R48,R52) -> 0
Q52: =IF(R10<R18,Q10,Q18) -> 1 | R52: 0
K57: ПРОИГРАВШИЕ ВТОРОМУ ФИНАЛИСТУ
K59: =CHOOSE(MATCH(T30,{11,12,13,14,15,16,17,18,19,20,21,22},),12,11,14,13,16,15,18,17,20,19,22,21) -> 12 | L59: 1
N61: =IF(L59>L63,K59,K63) -> 12 | O61: 1
K63: =CHOOSE(MATCH($T$30,{11,12,13,14,15,16,17,18,19,20,21,22},),K29,K29,K27,K27,K33,K33,K31,K31,K37,K37,K35,K35,) -> 14 | L63: 0 | Q63: =IF(O61>O65,N61,N65) -> 12 | R63: 1 | U63: 3 МЕСТО
N65: =CHOOSE(MATCH(T30,{9,10,11,12,13,14,15,16,17,18,19,20,21,22},),N28,N28,N24,N24,N24,N24,N36,N36,N36,N36,N32,N32,N32,N32,N32,) -> 10 | O65: 0 | T65: =IF(R63>R67,Q63,Q67) -> 12 | U65: =IF(S63>S67,R63,R67) -> 0
Q67: =IF(R26<R34,Q26,Q34) -> 22 | R67: 0
AD71: ПРОТОКОЛ ХОДА СХВАТКИ
AE72: ВЕС кг | AG72: квалификация | AJ72: КОВЕР | AL72: 1
AD74: № п/п | AE74: Фамилия Имя | AF74: Город общество | AG74: 1 период | AI74: 2 период | AK74: баллы | AL74: очки | AM74: Судьи
AD76: 11 | AE76: =CHOOSE(MATCH(AD76,{1,2,3,4,5,6,7,8,9,10,11,12,13,14,15,16,17,18,19},),$C$7,$C$9,$C$11,$C$13,$C$15,$C$17,$C$19,$C$21,$C$23,$C$25,$C$27,$C$29,$C$31,$C$33,$C$35,$C$37,$C$39,$C$41,$C$43) -> 1011 | AF76: =CHOOSE(MATCH(AD76,{1,2,3,4,5,6,7,8,9,10,11,12,13,14,15,16,17,18,19},), $D$7,$D$9,$D$11,$D$13,$D$15,$D$17,$D$19,$D$21,$D$23,$D$25,$D$27,$D$29,$D$31,$D$33,$D$35,$D$37,$D$39,$D$41,$D$43) -> 2011
AD78: 12 | AE78: =CHOOSE(MATCH(AD78,{1,2,3,4,5,6,7,8,9,10,11,12,13,14,15,16,17,18,19},),$C$7,$C$9,$C$11,$C$13,$C$15,$C$17,$C$19,$C$21,$C$23,$C$25,$C$27,$C$29,$C$31,$C$33,$C$35,$C$37,$C$39,$C$41,$C$43) -> 1012 | AF78: =CHOOSE(MATCH(AD78,{1,2,3,4,5,6,7,8,9,10,11,12,13,14,15,16,17,18,19},), $D$7,$D$9,$D$11,$D$13,$D$15,$D$17,$D$19,$D$21,$D$23,$D$25,$D$27,$D$29,$D$31,$D$33,$D$35,$D$37,$D$39,$D$41,$D$43) -> 2012
AD80: 13 | AE80: =CHOOSE(MATCH(AD80,{1,2,3,4,5,6,7,8,9,10,11,12,13,14,15,16,17,18,19},),$C$7,$C$9,$C$11,$C$13,$C$15,$C$17,$C$19,$C$21,$C$23,$C$25,$C$27,$C$29,$C$31,$C$33,$C$35,$C$37,$C$39,$C$41,$C$43) -> 1013 | AF80: =CHOOSE(MATCH(AD80,{1,2,3,4,5,6,7,8,9,10,11,12,13,14,15,16,17,18,19},), $D$7,$D$9,$D$11,$D$13,$D$15,$D$17,$D$19,$D$21,$D$23,$D$25,$D$27,$D$29,$D$31,$D$33,$D$35,$D$37,$D$39,$D$41,$D$43) -> 2013
AD82: 14 | AE82: =CHOOSE(MATCH(AD82,{1,2,3,4,5,6,7,8,9,10,11,12,13,14,15,16,17,18,19},),$C$7,$C$9,$C$11,$C$13,$C$15,$C$17,$C$19,$C$21,$C$23,$C$25,$C$27,$C$29,$C$31,$C$33,$C$35,$C$37,$C$39,$C$41,$C$43) -> 1014 | AF82: =CHOOSE(MATCH(AD82,{1,2,3,4,5,6,7,8,9,10,11,12,13,14,15,16,17,18,19},), $D$7,$D$9,$D$11,$D$13,$D$15,$D$17,$D$19,$D$21,$D$23,$D$25,$D$27,$D$29,$D$31,$D$33,$D$35,$D$37,$D$39,$D$41,$D$43) -> 2014
AD84: 15 | AE84: =CHOOSE(MATCH(AD84,{1,2,3,4,5,6,7,8,9,10,11,12,13,14,15,16,17,18,19},),$C$7,$C$9,$C$11,$C$13,$C$15,$C$17,$C$19,$C$21,$C$23,$C$25,$C$27,$C$29,$C$31,$C$33,$C$35,$C$37,$C$39,$C$41,$C$43) -> 1015 | AF84: =CHOOSE(MATCH(AD84,{1,2,3,4,5,6,7,8,9,10,11,12,13,14,15,16,17,18,19},), $D$7,$D$9,$D$11,$D$13,$D$15,$D$17,$D$19,$D$21,$D$23,$D$25,$D$27,$D$29,$D$31,$D$33,$D$35,$D$37,$D$39,$D$41,$D$43) -> 2015
AD86: 16 | AE86: =CHOOSE(MATCH(AD86,{1,2,3,4,5,6,7,8,9,10,11,12,13,14,15,16,17,18,19},),$C$7,$C$9,$C$11,$C$13,$C$15,$C$17,$C$19,$C$21,$C$23,$C$25,$C$27,$C$29,$C$31,$C$33,$C$35,$C$37,$C$39,$C$41,$C$43) -> 1016 | AF86: =CHOOSE(MATCH(AD86,{1,2,3,4,5,6,7,8,9,10,11,12,13,14,15,16,17,18,19},), $D$7,$D$9,$D$11,$D$13,$D$15,$D$17,$D$19,$D$21,$D$23,$D$25,$D$27,$D$29,$D$31,$D$33,$D$35,$D$37,$D$39,$D$41,$D$43) -> 2016
AD88: 17 | AE88: =CHOOSE(MATCH(AD88,{1,2,3,4,5,6,7,8,9,10,11,12,13,14,15,16,17,18,19},),$C$7,$C$9,$C$11,$C$13,$C$15,$C$17,$C$19,$C$21,$C$23,$C$25,$C$27,$C$29,$C$31,$C$33,$C$35,$C$37,$C$39,$C$41,$C$43) -> 1017 | AF88: =CHOOSE(MATCH(AD88,{1,2,3,4,5,6,7,8,9,10,11,12,13,14,15,16,17,18,19},), $D$7,$D$9,$D$11,$D$13,$D$15,$D$17,$D$19,$D$21,$D$23,$D$25,$D$27,$D$29,$D$31,$D$33,$D$35,$D$37,$D$39,$D$41,$D$43) -> 2017
AD90: 18 | AE90: =CHOOSE(MATCH(AD90,{1,2,3,4,5,6,7,8,9,10,11,12,13,14,15,16,17,18,19},),$C$7,$C$9,$C$11,$C$13,$C$15,$C$17,$C$19,$C$21,$C$23,$C$25,$C$27,$C$29,$C$31,$C$33,$C$35,$C$37,$C$39,$C$41,$C$43) -> 1018 | AF90: =CHOOSE(MATCH(AD90,{1,2,3,4,5,6,7,8,9,10,11,12,13,14,15,16,17,18,19},), $D$7,$D$9,$D$11,$D$13,$D$15,$D$17,$D$19,$D$21,$D$23,$D$25,$D$27,$D$29,$D$31,$D$33,$D$35,$D$37,$D$39,$D$41,$D$43) -> 2018
AD92: 19 | AE92: =CHOOSE(MATCH(AD92,{1,2,3,4,5,6,7,8,9,10,11,12,13,14,15,16,17,18,19},),$C$7,$C$9,$C$11,$C$13,$C$15,$C$17,$C$19,$C$21,$C$23,$C$25,$C$27,$C$29,$C$31,$C$33,$C$35,$C$37,$C$39,$C$41,$C$43) -> 1019 | AF92: =CHOOSE(MATCH(AD92,{1,2,3,4,5,6,7,8,9,10,11,12,13,14,15,16,17,18,19},), $D$7,$D$9,$D$11,$D$13,$D$15,$D$17,$D$19,$D$21,$D$23,$D$25,$D$27,$D$29,$D$31,$D$33,$D$35,$D$37,$D$39,$D$41,$D$43) -> 2019
AD94: 20 | AE94: =VLOOKUP(AD94,$B$7:$D$50,2) -> 1020 | AF94: =VLOOKUP(AD94,$B$7:$D$50,3) -> 2020
AD96: 21 | AE96: =VLOOKUP(AD96,$B$7:$D$50,2) -> 1021 | AF96: =VLOOKUP(AD96,$B$7:$D$50,3) -> 2021
AD98: 22 | AE98: =VLOOKUP(AD98,$B$7:$D$50,2) -> 1022 | AF98: =VLOOKUP(AD98,$B$7:$D$50,3) -> 2022
AF102: Руководитель ковра
AD118: ПРОТОКОЛ ХОДА СХВАТКИ
AE119: ВЕС кг | AG119: 1/8 финала | AJ119: КОВЕР | AL119: 1
AD121: № п/п | AE121: Фамилия Имя | AF121: Город общество | AG121: 1 период | AI121: 2 период | AK121: баллы | AL121: очки | AM121: Судьи
AD123: =VALUE(K7) -> 1 | AE123: =CHOOSE(MATCH(AD123,{1,2,3,4,5,6,7,8,9,10,11,12,13,14,15,16,17,18,19},),$C$7,$C$9,$C$11,$C$13,$C$15,$C$17,$C$19,$C$21,$C$23,$C$25,$C$27,$C$29,$C$31,$C$33,$C$35,$C$37,$C$39,$C$41,$C$43) -> 1001 | AF123: =CHOOSE(MATCH(AD123,{1,2,3,4,5,6,7,8,9,10,11,12,13,14,15,16,17,18,19},), $D$7,$D$9,$D$11,$D$13,$D$15,$D$17,$D$19,$D$21,$D$23,$D$25,$D$27,$D$29,$D$31,$D$33,$D$35,$D$37,$D$39,$D$41,$D$43) -> 2001
AD125: =VALUE(K9) -> 2 | AE125: =CHOOSE(MATCH(AD125,{1,2,3,4,5,6,7,8,9,10,11,12,13,14,15,16,17,18,19},),$C$7,$C$9,$C$11,$C$13,$C$15,$C$17,$C$19,$C$21,$C$23,$C$25,$C$27,$C$29,$C$31,$C$33,$C$35,$C$37,$C$39,$C$41,$C$43) -> 1002 | AF125: =CHOOSE(MATCH(AD125,{1,2,3,4,5,6,7,8,9,10,11,12,13,14,15,16,17,18,19},), $D$7,$D$9,$D$11,$D$13,$D$15,$D$17,$D$19,$D$21,$D$23,$D$25,$D$27,$D$29,$D$31,$D$33,$D$35,$D$37,$D$39,$D$41,$D$43) -> 2002
AD127: =VALUE(K11) -> 3 | AE127: =CHOOSE(MATCH(AD127,{1,2,3,4,5,6,7,8,9,10,11,12,13,14,15,16,17,18,19},),$C$7,$C$9,$C$11,$C$13,$C$15,$C$17,$C$19,$C$21,$C$23,$C$25,$C$27,$C$29,$C$31,$C$33,$C$35,$C$37,$C$39,$C$41,$C$43) -> 1003 | AF127: =CHOOSE(MATCH(AD127,{1,2,3,4,5,6,7,8,9,10,11,12,13,14,15,16,17,18,19},), $D$7,$D$9,$D$11,$D$13,$D$15,$D$17,$D$19,$D$21,$D$23,$D$25,$D$27,$D$29,$D$31,$D$33,$D$35,$D$37,$D$39,$D$41,$D$43) -> 2003
AD129: =VALUE(K13) -> 4 | AE129: =CHOOSE(MATCH(AD129,{1,2,3,4,5,6,7,8,9,10,11,12,13,14,15,16,17,18,19},),$C$7,$C$9,$C$11,$C$13,$C$15,$C$17,$C$19,$C$21,$C$23,$C$25,$C$27,$C$29,$C$31,$C$33,$C$35,$C$37,$C$39,$C$41,$C$43) -> 1004 | AF129: =CHOOSE(MATCH(AD129,{1,2,3,4,5,6,7,8,9,10,11,12,13,14,15,16,17,18,19},), $D$7,$D$9,$D$11,$D$13,$D$15,$D$17,$D$19,$D$21,$D$23,$D$25,$D$27,$D$29,$D$31,$D$33,$D$35,$D$37,$D$39,$D$41,$D$43) -> 2004
AD131: =VALUE(K15) -> 5 | AE131: =CHOOSE(MATCH(AD131,{1,2,3,4,5,6,7,8,9,10,11,12,13,14,15,16,17,18,19},),$C$7,$C$9,$C$11,$C$13,$C$15,$C$17,$C$19,$C$21,$C$23,$C$25,$C$27,$C$29,$C$31,$C$33,$C$35,$C$37,$C$39,$C$41,$C$43) -> 1005 | AF131: =CHOOSE(MATCH(AD131,{1,2,3,4,5,6,7,8,9,10,11,12,13,14,15,16,17,18,19},), $D$7,$D$9,$D$11,$D$13,$D$15,$D$17,$D$19,$D$21,$D$23,$D$25,$D$27,$D$29,$D$31,$D$33,$D$35,$D$37,$D$39,$D$41,$D$43) -> 2005
AD133: =VALUE(K17) -> 6 | AE133: =CHOOSE(MATCH(AD133,{1,2,3,4,5,6,7,8,9,10,11,12,13,14,15,16,17,18,19},),$C$7,$C$9,$C$11,$C$13,$C$15,$C$17,$C$19,$C$21,$C$23,$C$25,$C$27,$C$29,$C$31,$C$33,$C$35,$C$37,$C$39,$C$41,$C$43) -> 1006 | AF133: =CHOOSE(MATCH(AD133,{1,2,3,4,5,6,7,8,9,10,11,12,13,14,15,16,17,18,19},), $D$7,$D$9,$D$11,$D$13,$D$15,$D$17,$D$19,$D$21,$D$23,$D$25,$D$27,$D$29,$D$31,$D$33,$D$35,$D$37,$D$39,$D$41,$D$43) -> 2006
AD135: =VALUE(K19) -> 7 | AE135: =CHOOSE(MATCH(AD135,{1,2,3,4,5,6,7,8,9,10,11,12,13,14,15,16,17,18,19},),$C$7,$C$9,$C$11,$C$13,$C$15,$C$17,$C$19,$C$21,$C$23,$C$25,$C$27,$C$29,$C$31,$C$33,$C$35,$C$37,$C$39,$C$41,$C$43) -> 1007 | AF135: =CHOOSE(MATCH(AD135,{1,2,3,4,5,6,7,8,9,10,11,12,13,14,15,16,17,18,19},), $D$7,$D$9,$D$11,$D$13,$D$15,$D$17,$D$19,$D$21,$D$23,$D$25,$D$27,$D$29,$D$31,$D$33,$D$35,$D$37,$D$39,$D$41,$D$43) -> 2007
AD137: =VALUE(K21) -> 8 | AE137: =CHOOSE(MATCH(AD137,{1,2,3,4,5,6,7,8,9,10,11,12,13,14,15,16,17,18,19},),$C$7,$C$9,$C$11,$C$13,$C$15,$C$17,$C$19,$C$21,$C$23,$C$25,$C$27,$C$29,$C$31,$C$33,$C$35,$C$37,$C$39,$C$41,$C$43) -> 1008 | AF137: =CHOOSE(MATCH(AD137,{1,2,3,4,5,6,7,8,9,10,11,12,13,14,15,16,17,18,19},), $D$7,$D$9,$D$11,$D$13,$D$15,$D$17,$D$19,$D$21,$D$23,$D$25,$D$27,$D$29,$D$31,$D$33,$D$35,$D$37,$D$39,$D$41,$D$43) -> 2008
AD139: =VALUE(K23) -> 9 | AE139: =CHOOSE(MATCH(AD139,{1,2,3,4,5,6,7,8,9,10,11,12,13,14,15,16,17,18,19},),$C$7,$C$9,$C$11,$C$13,$C$15,$C$17,$C$19,$C$21,$C$23,$C$25,$C$27,$C$29,$C$31,$C$33,$C$35,$C$37,$C$39,$C$41,$C$43) -> 1009 | AF139: =CHOOSE(MATCH(AD139,{1,2,3,4,5,6,7,8,9,10,11,12,13,14,15,16,17,18,19},), $D$7,$D$9,$D$11,$D$13,$D$15,$D$17,$D$19,$D$21,$D$23,$D$25,$D$27,$D$29,$D$31,$D$33,$D$35,$D$37,$D$39,$D$41,$D$43) -> 2009
AD141: =VALUE(K25) -> 10 | AE141: =CHOOSE(MATCH(AD141,{1,2,3,4,5,6,7,8,9,10,11,12,13,14,15,16,17,18,19},),$C$7,$C$9,$C$11,$C$13,$C$15,$C$17,$C$19,$C$21,$C$23,$C$25,$C$27,$C$29,$C$31,$C$33,$C$35,$C$37,$C$39,$C$41,$C$43) -> 1010 | AF141: =CHOOSE(MATCH(AD141,{1,2,3,4,5,6,7,8,9,10,11,12,13,14,15,16,17,18,19},), $D$7,$D$9,$D$11,$D$13,$D$15,$D$17,$D$19,$D$21,$D$23,$D$25,$D$27,$D$29,$D$31,$D$33,$D$35,$D$37,$D$39,$D$41,$D$43) -> 2010
AD143: =VALUE(K27) -> 11 | AE143: =CHOOSE(MATCH(AD143,{1,2,3,4,5,6,7,8,9,10,11,12,13,14,15,16,17,18,19},),$C$7,$C$9,$C$11,$C$13,$C$15,$C$17,$C$19,$C$21,$C$23,$C$25,$C$27,$C$29,$C$31,$C$33,$C$35,$C$37,$C$39,$C$41,$C$43) -> 1011 | AF143: =CHOOSE(MATCH(AD143,{1,2,3,4,5,6,7,8,9,10,11,12,13,14,15,16,17,18,19},), $D$7,$D$9,$D$11,$D$13,$D$15,$D$17,$D$19,$D$21,$D$23,$D$25,$D$27,$D$29,$D$31,$D$33,$D$35,$D$37,$D$39,$D$41,$D$43) -> 2011
AD145: =VALUE(K29) -> 14 | AE145: =CHOOSE(MATCH(AD145,{1,2,3,4,5,6,7,8,9,10,11,12,13,14,15,16,17,18,19},),$C$7,$C$9,$C$11,$C$13,$C$15,$C$17,$C$19,$C$21,$C$23,$C$25,$C$27,$C$29,$C$31,$C$33,$C$35,$C$37,$C$39,$C$41,$C$43) -> 1014 | AF145: =CHOOSE(MATCH(AD145,{1,2,3,4,5,6,7,8,9,10,11,12,13,14,15,16,17,18,19},), $D$7,$D$9,$D$11,$D$13,$D$15,$D$17,$D$19,$D$21,$D$23,$D$25,$D$27,$D$29,$D$31,$D$33,$D$35,$D$37,$D$39,$D$41,$D$43) -> 2014
AD147: =VALUE(K31) -> 16 | AE147: =CHOOSE(MATCH(AD147,{1,2,3,4,5,6,7,8,9,10,11,12,13,14,15,16,17,18,19},),$C$7,$C$9,$C$11,$C$13,$C$15,$C$17,$C$19,$C$21,$C$23,$C$25,$C$27,$C$29,$C$31,$C$33,$C$35,$C$37,$C$39,$C$41,$C$43) -> 1016 | AF147: =CHOOSE(MATCH(AD147,{1,2,3,4,5,6,7,8,9,10,11,12,13,14,15,16,17,18,19},), $D$7,$D$9,$D$11,$D$13,$D$15,$D$17,$D$19,$D$21,$D$23,$D$25,$D$27,$D$29,$D$31,$D$33,$D$35,$D$37,$D$39,$D$41,$D$43) -> 2016
AD149: =VALUE(K33) -> 18 | AE149: =CHOOSE(MATCH(AD149,{1,2,3,4,5,6,7,8,9,10,11,12,13,14,15,16,17,18,19},),$C$7,$C$9,$C$11,$C$13,$C$15,$C$17,$C$19,$C$21,$C$23,$C$25,$C$27,$C$29,$C$31,$C$33,$C$35,$C$37,$C$39,$C$41,$C$43) -> 1018 | AF149: =CHOOSE(MATCH(AD149,{1,2,3,4,5,6,7,8,9,10,11,12,13,14,15,16,17,18,19},), $D$7,$D$9,$D$11,$D$13,$D$15,$D$17,$D$19,$D$21,$D$23,$D$25,$D$27,$D$29,$D$31,$D$33,$D$35,$D$37,$D$39,$D$41,$D$43) -> 2018
AD151: =VALUE(K35) -> 20 | AE151: =VLOOKUP(AD151,$B$7:$D$50,2) -> 1020 | AF151: =VLOOKUP(AD151,$B$7:$D$50,3) -> 2020
AD153: =VALUE(K37) -> 22 | AE153: =VLOOKUP(AD153,$B$7:$D$50,2) -> 1022 | AF153: =VLOOKUP(AD153,$B$7:$D$50,3) -> 2022
AF157: Руководитель ковра
AD158: ПРОТОКОЛ ХОДА СХВАТКИ
AE159: ВЕС кг | AG159: 1/4 финала | AJ159: КОВЕР | AL159: 1
AD161: № п/п | AE161: Фамилия Имя | AF161: Город общество | AG161: 1 период | AI161: 2 период | AK161: баллы | AL161: очки | AM161: Судьи
AD163: =VALUE(N8) -> 1 | AE163: =CHOOSE(MATCH(AD163,{1,2,3,4,5,6,7,8,9,10,11,12,13,14,15,16,17,18,19},),$C$7,$C$9,$C$11,$C$13,$C$15,$C$17,$C$19,$C$21,$C$23,$C$25,$C$27,$C$29,$C$31,$C$33,$C$35,$C$37,$C$39,$C$41,$C$43) -> 1001 | AF163: =CHOOSE(MATCH(AD163,{1,2,3,4,5,6,7,8,9,10,11,12,13,14,15,16,17,18,19},), $D$7,$D$9,$D$11,$D$13,$D$15,$D$17,$D$19,$D$21,$D$23,$D$25,$D$27,$D$29,$D$31,$D$33,$D$35,$D$37,$D$39,$D$41,$D$43) -> 2001
AD165: =VALUE(N12) -> 4 | AE165: =CHOOSE(MATCH(AD165,{1,2,3,4,5,6,7,8,9,10,11,12,13,14,15,16,17,18,19},),$C$7,$C$9,$C$11,$C$13,$C$15,$C$17,$C$19,$C$21,$C$23,$C$25,$C$27,$C$29,$C$31,$C$33,$C$35,$C$37,$C$39,$C$41,$C$43) -> 1004 | AF165: =CHOOSE(MATCH(AD165,{1,2,3,4,5,6,7,8,9,10,11,12,13,14,15,16,17,18,19},), $D$7,$D$9,$D$11,$D$13,$D$15,$D$17,$D$19,$D$21,$D$23,$D$25,$D$27,$D$29,$D$31,$D$33,$D$35,$D$37,$D$39,$D$41,$D$43) -> 2004
AD167: =VALUE(N16) -> 6 | AE167: =CHOOSE(MATCH(AD167,{1,2,3,4,5,6,7,8,9,10,11,12,13,14,15,16,17,18,19},),$C$7,$C$9,$C$11,$C$13,$C$15,$C$17,$C$19,$C$21,$C$23,$C$25,$C$27,$C$29,$C$31,$C$33,$C$35,$C$37,$C$39,$C$41,$C$43) -> 1006 | AF167: =CHOOSE(MATCH(AD167,{1,2,3,4,5,6,7,8,9,10,11,12,13,14,15,16,17,18,19},), $D$7,$D$9,$D$11,$D$13,$D$15,$D$17,$D$19,$D$21,$D$23,$D$25,$D$27,$D$29,$D$31,$D$33,$D$35,$D$37,$D$39,$D$41,$D$43) -> 2006
AD169: =VALUE(N20) -> 8 | AE169: =CHOOSE(MATCH(AD169,{1,2,3,4,5,6,7,8,9,10,11,12,13,14,15,16,17,18,19},),$C$7,$C$9,$C$11,$C$13,$C$15,$C$17,$C$19,$C$21,$C$23,$C$25,$C$27,$C$29,$C$31,$C$33,$C$35,$C$37,$C$39,$C$41,$C$43) -> 1008 | AF169: =CHOOSE(MATCH(AD169,{1,2,3,4,5,6,7,8,9,10,11,12,13,14,15,16,17,18,19},), $D$7,$D$9,$D$11,$D$13,$D$15,$D$17,$D$19,$D$21,$D$23,$D$25,$D$27,$D$29,$D$31,$D$33,$D$35,$D$37,$D$39,$D$41,$D$43) -> 2008
AD171: =VALUE(N24) -> 10 | AE171: =CHOOSE(MATCH(AD171,{1,2,3,4,5,6,7,8,9,10,11,12,13,14,15,16,17,18,19},),$C$7,$C$9,$C$11,$C$13,$C$15,$C$17,$C$19,$C$21,$C$23,$C$25,$C$27,$C$29,$C$31,$C$33,$C$35,$C$37,$C$39,$C$41,$C$43) -> 1010 | AF171: =CHOOSE(MATCH(AD171,{1,2,3,4,5,6,7,8,9,10,11,12,13,14,15,16,17,18,19},), $D$7,$D$9,$D$11,$D$13,$D$15,$D$17,$D$19,$D$21,$D$23,$D$25,$D$27,$D$29,$D$31,$D$33,$D$35,$D$37,$D$39,$D$41,$D$43) -> 2010
